Workbook

Sheet Startovní listina - dívky
A1: Středočeský svaz stolního tenisu | E1: 2025-02-23
A2: KP - U15 | E2: dívky
A3: Odolena Voda | E3: Dvouhra - startovní listina
A5: 1. | B5: Rigoci Ema | C5: 2010 | D5: STC Slaný | E5: R9
A6: 2. | B6: Čebišová Linda | C6: 2010 | D6: Sokol Velký Osek | E6: K42
A7: 3. | B7: Baštová Zuzana | C7: 2011 | D7: TTC Brandýs nad Labem | E7: K50
A8: 4. | B8: Múčková Zuzana | C8: 2011 | D8: Sokol Všetaty | E8: K73
A9: 5. | B9: Suková Petra | C9: 2010 | D9: Sokol Všetaty | E9: K83
A10: 6. | B10: Bubeníčková Kateřina | C10: 2011 | D10: TJ Aero Odolena Voda | E10: K98
A11: 7. | B11: Matějíčková Karolína | C11: 2010 | D11: SKST Králův Dvůr | E11: K105
A12: 8. | B12: Kaiserová Karolína | C12: 2012 | D12: Černošice | E12: K171
A13: 9. | B13: Zamrzlová Zita | C13: 2012 | D13: TTC Dřínov | E13: K191
A14: 10. | B14: Svejkovská Valerie | C14: 2012 | D14: SKST Králův Dvůr | E14: K194
A15: 11. | B15: Vachová Laura | C15: 2012 | D15: TTC Přezletice
A16: 12. | B16: Sollier Jennifer | C16: 2010 | D16: TTC Poděbrady
A17: 13.
A18: 14.
A19: 15.
A20: 16.
A21: 17.
A22: 18.
A23: 19.
A24: 20.
A25: 21.
A26: 22.
A27: 23.
A28: 24.
A29: 25.
A30: 26.
A31: 27.
A32: 28.
A33: 29.
A34: 30.

Sheet Skupiny - dívky
B1: Skupina A | E1: =C2 -> Rigoci Ema (STC Slaný) | F1: =C3 -> Vachová Laura (TTC Přezletice) | G1: =C4 -> Kaiserová Karolína ( Černošice) | H1: =C5 -> Bye | I1: Skóre | J1: Body | K1: Míčky | L1: Pořadí | M1: Pavouk
B2: 1 | C2: Rigoci Ema (STC Slaný) | F2: =IF(OR(LEFT(B12,3)="bye",LEFT(E12,3)="bye"),"0:0",M12) -> 3:0 | G2: =CONCATENATE(RIGHT(E4,1),MID(E4,2,1),LEFT(E4,1)) -> 3:0 | H2: =IF(OR(LEFT(B8,3)="bye",LEFT(E8,3)="bye"),"0:0",M8) -> 0:0 | I2: =CONCATENATE(LEFT(F2,1)+LEFT(G2,1)+LEFT(H2,1),":",RIGHT(F2,1)+RIGHT(G2,1)+RIGHT(H2,1)) -> 6:0 | J2: =IF(LEFT(C2,3)="bye",0,IF(OR(F2="0:0",H12="WO-"),0,IF(LEFT(F2,1)="3",2,1))+IF(OR(G2="0:0",H15="WO"),0,IF(LEFT(G2,1)="3",2,1))+IF(OR(H2="0:0",H8="WO-"),0,IF(LEFT(H2,1)="3",2,1))) -> 4 | L2: 1. | M2: A1
B3: 2 | C3: Vachová Laura (TTC Přezletice) | E3: =CONCATENATE(RIGHT(F2,1),MID(F2,2,1),LEFT(F2,1)) -> 0:3 | G3: =IF(OR(LEFT(B9,3)="bye",LEFT(E9,3)="bye"),"0:0",M9) -> 1:3 | H3: =IF(OR(LEFT(B14,3)="bye",LEFT(E14,3)="bye"),"0:0",M14) -> 0:0 | I3: =CONCATENATE(LEFT(E3,1)+LEFT(G3,1)+LEFT(H3,1),":",RIGHT(E3,1)+RIGHT(G3,1)+RIGHT(H3,1)) -> 1:6 | J3: =IF(LEFT(C3,3)="bye",0,IF(OR(E3="0:0",H12="WO"),0,IF(LEFT(E3,1)="3",2,1))+IF(OR(G3="0:0",H9="WO-"),0,IF(LEFT(G3,1)="3",2,1))+IF(OR(H3="0:0",H14="WO-"),0,IF(LEFT(H3,1)="3",2,1))) -> 2 | L3: 3. | M3: A2
B4: 3 | C4: Kaiserová Karolína ( Černošice) | E4: =IF(OR(LEFT(B15,3)="bye",LEFT(E15,3)="bye"),"0:0",M15) -> 0:3 | F4: =CONCATENATE(RIGHT(G3,1),MID(G3,2,1),LEFT(G3,1)) -> 3:1 | H4: =CONCATENATE(RIGHT(G5,1),MID(G5,2,1),LEFT(G5,1)) -> 0:0 | I4: =CONCATENATE(LEFT(E4,1)+LEFT(F4,1)+LEFT(H4,1),":",RIGHT(E4,1)+RIGHT(F4,1)+RIGHT(H4,1)) -> 3:4 | J4: =IF(LEFT(C4,3)="bye",0,IF(OR(E4="0:0",H15="WO-"),0,IF(LEFT(E4,1)="3",2,1))+IF(OR(F4="0:0",H9="WO"),0,IF(LEFT(F4,1)="3",2,1))+IF(OR(H4="0:0",H11="WO"),0,IF(LEFT(H4,1)="3",2,1))) -> 3 | L4: 2. | M4: A3
B5: 4 | C5: Bye | E5: =CONCATENATE(RIGHT(H2,1),MID(H2,2,1),LEFT(H2,1)) -> 0:0 | F5: =CONCATENATE(RIGHT(H3,1),MID(H3,2,1),LEFT(H3,1)) -> 0:0 | G5: =IF(OR(LEFT(B11,3)="bye",LEFT(E11,3)="bye"),"0:0",M11) -> 0:0 | I5: =CONCATENATE(LEFT(E5,1)+LEFT(F5,1)+LEFT(G5,1),":",RIGHT(E5,1)+RIGHT(F5,1)+RIGHT(G5,1)) -> 0:0 | J5: =IF(LEFT(C5,3)="bye",0,IF(OR(E5="0:0",H8="WO"),0,IF(LEFT(E5,1)="3",2,1))+IF(OR(F5="0:0",H14="WO"),0,IF(LEFT(F5,1)="3",2,1))+IF(OR(G5="0:0",H11="WO-"),0,IF(LEFT(G5,1)="3",2,1))) -> 0 | M5: A4
B7: I.kolo | H7: 1.set | I7: 2.set | J7: 3.set | K7: 4.set | L7: 5.set | M7: výsledek
B8: =C2 -> Rigoci Ema (STC Slaný) | D8: - | E8: =C5 -> Bye | M8: =IF(H8="WO","3:0",IF(H8="WO-","0:3",CONCATENATE(V8,":",W8))) -> 0:0 | Q8: =IF(H8="",0,IF(OR(H8<0,H8="0-"),"0:1","1:0")) -> 0 | R8: 0 | S8: 0 | T8: 0 | U8: 0 | V8: =LEFT(Q8,1)+LEFT(R8,1)+LEFT(S8,1)+LEFT(T8,1)+LEFT(U8,1) -> 0 | W8: =RIGHT(Q8,1)+RIGHT(R8,1)+RIGHT(S8,1)+RIGHT(T8,1)+RIGHT(U8,1) -> 0 | X8: =IF(OR(LEFT(H8,2)="WO",H8="0-",H8=""),0,IF(H8<0,ABS(H8),IF(H8<10,11,H8+2))) -> 0 | Y8: =IF(OR(LEFT(H8,2)="WO",I8="0-",I8=""),0,IF(I8<0,ABS(I8),IF(I8<10,11,I8+2))) -> 0 | Z8: =IF(OR(LEFT(H8,2)="WO",J8="0-",J8=""),0,IF(J8<0,ABS(J8),IF(J8<10,11,J8+2))) -> 0 | AA8: =IF(OR(LEFT(H8,2)="WO",K8="0-",K8=""),0,IF(K8<0,ABS(K8),IF(K8<10,11,K8+2))) -> 0 | AB8: =IF(OR(LEFT(H8,2)="WO",L8="0-",L8=""),0,IF(L8<0,ABS(L8),IF(L8<10,11,L8+2))) -> 0 | AC8: =SUM(X8:AB8) -> 0 | AD8: =IF(H8="0-",11,IF(OR(LEFT(H8,2)="WO",H8=""),0,IF(H8<0,IF(ABS(H8)<10,11,ABS(H8)+2),H8))) -> 0 | AE8: =IF(I8="0-",11,IF(OR(LEFT(H8,2)="WO",I8="0-",I8=""),0,IF(I8<0,IF(ABS(I8)<10,11,ABS(I8)+2),I8))) -> 0 | AF8: =IF(J8="0-",11,IF(OR(LEFT(H8,2)="WO",J8="0-",J8=""),0,IF(J8<0,IF(ABS(J8)<10,11,ABS(J8)+2),J8))) -> 0 | AG8: =IF(K8="0-",11,IF(OR(LEFT(H8,2)="WO",K8="0-",K8=""),0,IF(K8<0,IF(ABS(K8)<10,11,ABS(K8)+2),K8))) -> 0 | AH8: =IF(L8="0-",11,IF(OR(LEFT(H8,2)="WO",L8="0-",L8=""),0,IF(L8<0,IF(ABS(L8)<10,11,ABS(L8)+2),L8))) -> 0 | AI8: =SUM(AD8:AH8) -> 0 | AJ8: =CONCATENATE(B8,"-",E8) -> Rigoci Ema (STC Slaný)-Bye
B9: =C3 -> Vachová Laura (TTC Přezletice) | C9: =#REF! ->  | D9: - | E9: =C4 -> Kaiserová Karolína ( Černošice) | F9: =C4 -> Kaiserová Karolína ( Černošice) | H9: 11:7 | I9: 8:11 | J9: 6:11 | K9: 5:11 | M9: 1:3 | Q9: 1:0 | R9: 1:0 | S9: 1:0 | T9: 1:0 | U9: 0 | V9: =LEFT(Q9,1)+LEFT(R9,1)+LEFT(S9,1)+LEFT(T9,1)+LEFT(U9,1) -> 4 | W9: =RIGHT(Q9,1)+RIGHT(R9,1)+RIGHT(S9,1)+RIGHT(T9,1)+RIGHT(U9,1) -> 0 | X9: =IF(OR(LEFT(H9,2)="WO",H9="0-",H9=""),0,IF(H9<0,ABS(H9),IF(H9<10,11,H9+2))) -> 2.463194444 | Y9: =IF(OR(LEFT(H9,2)="WO",I9="0-",I9=""),0,IF(I9<0,ABS(I9),IF(I9<10,11,I9+2))) -> 2.340972222 | Z9: =IF(OR(LEFT(H9,2)="WO",J9="0-",J9=""),0,IF(J9<0,ABS(J9),IF(J9<10,11,J9+2))) -> 2.257638889 | AA9: =IF(OR(LEFT(H9,2)="WO",K9="0-",K9=""),0,IF(K9<0,ABS(K9),IF(K9<10,11,K9+2))) -> 2.215972222 | AB9: =IF(OR(LEFT(H9,2)="WO",L9="0-",L9=""),0,IF(L9<0,ABS(L9),IF(L9<10,11,L9+2))) -> 0 | AC9: =SUM(X9:AB9) -> 9.277777778 | AD9: =IF(H9="0-",11,IF(OR(LEFT(H9,2)="WO",H9=""),0,IF(H9<0,IF(ABS(H9)<10,11,ABS(H9)+2),H9))) -> 11:7 | AE9: =IF(I9="0-",11,IF(OR(LEFT(H9,2)="WO",I9="0-",I9=""),0,IF(I9<0,IF(ABS(I9)<10,11,ABS(I9)+2),I9))) -> 8:11 | AF9: =IF(J9="0-",11,IF(OR(LEFT(H9,2)="WO",J9="0-",J9=""),0,IF(J9<0,IF(ABS(J9)<10,11,ABS(J9)+2),J9))) -> 6:11 | AG9: =IF(K9="0-",11,IF(OR(LEFT(H9,2)="WO",K9="0-",K9=""),0,IF(K9<0,IF(ABS(K9)<10,11,ABS(K9)+2),K9))) -> 5:11 | AH9: =IF(L9="0-",11,IF(OR(LEFT(H9,2)="WO",L9="0-",L9=""),0,IF(L9<0,IF(ABS(L9)<10,11,ABS(L9)+2),L9))) -> 0 | AI9: =SUM(AD9:AH9) -> 0 | AJ9: =CONCATENATE(B9,"-",E9) -> Vachová Laura (TTC Přezletice)-Kaiserová Karolína ( Černošice)
B10: II.kolo | H10: 1.set | I10: 2.set | J10: 3.set | K10: 4.set | L10: 5.set | M10: výsledek
B11: =C5 -> Bye | C11: =C5 -> Bye | D11: - | E11: =C4 -> Kaiserová Karolína ( Černošice) | F11: =C4 -> Kaiserová Karolína ( Černošice) | M11: =IF(H11="WO","3:0",IF(H11="WO-","0:3",CONCATENATE(V11,":",W11))) -> 0:0 | Q11: =IF(H11="",0,IF(OR(H11<0,H11="0-"),"0:1","1:0")) -> 0 | R11: 0 | S11: 0 | T11: 0 | U11: 0 | V11: 0 | W11: 0 | X11: =IF(OR(LEFT(H11,2)="WO",H11="0-",H11=""),0,IF(H11<0,ABS(H11),IF(H11<10,11,H11+2))) -> 0 | Y11: =IF(OR(LEFT(H11,2)="WO",I11="0-",I11=""),0,IF(I11<0,ABS(I11),IF(I11<10,11,I11+2))) -> 0 | Z11: =IF(OR(LEFT(H11,2)="WO",J11="0-",J11=""),0,IF(J11<0,ABS(J11),IF(J11<10,11,J11+2))) -> 0 | AA11: =IF(OR(LEFT(H11,2)="WO",K11="0-",K11=""),0,IF(K11<0,ABS(K11),IF(K11<10,11,K11+2))) -> 0 | AB11: =IF(OR(LEFT(H11,2)="WO",L11="0-",L11=""),0,IF(L11<0,ABS(L11),IF(L11<10,11,L11+2))) -> 0 | AC11: 0 | AD11: =IF(H11="0-",11,IF(OR(LEFT(H11,2)="WO",H11=""),0,IF(H11<0,IF(ABS(H11)<10,11,ABS(H11)+2),H11))) -> 0 | AE11: =IF(I11="0-",11,IF(OR(LEFT(H11,2)="WO",I11="0-",I11=""),0,IF(I11<0,IF(ABS(I11)<10,11,ABS(I11)+2),I11))) -> 0 | AF11: =IF(J11="0-",11,IF(OR(LEFT(H11,2)="WO",J11="0-",J11=""),0,IF(J11<0,IF(ABS(J11)<10,11,ABS(J11)+2),J11))) -> 0 | AG11: =IF(K11="0-",11,IF(OR(LEFT(H11,2)="WO",K11="0-",K11=""),0,IF(K11<0,IF(ABS(K11)<10,11,ABS(K11)+2),K11))) -> 0 | AH11: =IF(L11="0-",11,IF(OR(LEFT(H11,2)="WO",L11="0-",L11=""),0,IF(L11<0,IF(ABS(L11)<10,11,ABS(L11)+2),L11))) -> 0 | AI11: 0 | AJ11: =CONCATENATE(B11,"-",E11) -> Bye-Kaiserová Karolína ( Černošice)
B12: =C2 -> Rigoci Ema (STC Slaný) | C12: =C3 -> Vachová Laura (TTC Přezletice) | D12: - | E12: =C3 -> Vachová Laura (TTC Přezletice) | F12: =C3 -> Vachová Laura (TTC Přezletice) | H12: 11:4 | I12: 11:7 | J12: 11:6 | M12: =IF(H12="WO","3:0",IF(H12="WO-","0:3",CONCATENATE(V12,":",W12))) -> 3:0 | Q12: 1:0 | R12: 1:0 | S12: 1:0 | T12: 0 | U12: 0 | V12: 3 | W12: 0 | X12: =IF(OR(LEFT(H12,2)="WO",H12="0-",H12=""),0,IF(H12<0,ABS(H12),IF(H12<10,11,H12+2))) -> 2.461111111 | Y12: =IF(OR(LEFT(H12,2)="WO",I12="0-",I12=""),0,IF(I12<0,ABS(I12),IF(I12<10,11,I12+2))) -> 2.463194444 | Z12: =IF(OR(LEFT(H12,2)="WO",J12="0-",J12=""),0,IF(J12<0,ABS(J12),IF(J12<10,11,J12+2))) -> 2.4625 | AA12: =IF(OR(LEFT(H12,2)="WO",K12="0-",K12=""),0,IF(K12<0,ABS(K12),IF(K12<10,11,K12+2))) -> 0 | AB12: =IF(OR(LEFT(H12,2)="WO",L12="0-",L12=""),0,IF(L12<0,ABS(L12),IF(L12<10,11,L12+2))) -> 0 | AC12: 7.386805556 | AD12: =IF(H12="0-",11,IF(OR(LEFT(H12,2)="WO",H12=""),0,IF(H12<0,IF(ABS(H12)<10,11,ABS(H12)+2),H12))) -> 11:4 | AE12: =IF(I12="0-",11,IF(OR(LEFT(H12,2)="WO",I12="0-",I12=""),0,IF(I12<0,IF(ABS(I12)<10,11,ABS(I12)+2),I12))) -> 11:7 | AF12: =IF(J12="0-",11,IF(OR(LEFT(H12,2)="WO",J12="0-",J12=""),0,IF(J12<0,IF(ABS(J12)<10,11,ABS(J12)+2),J12))) -> 11:6 | AG12: =IF(K12="0-",11,IF(OR(LEFT(H12,2)="WO",K12="0-",K12=""),0,IF(K12<0,IF(ABS(K12)<10,11,ABS(K12)+2),K12))) -> 0 | AH12: =IF(L12="0-",11,IF(OR(LEFT(H12,2)="WO",L12="0-",L12=""),0,IF(L12<0,IF(ABS(L12)<10,11,ABS(L12)+2),L12))) -> 0 | AI12: 0 | AJ12: =CONCATENATE(B12,"-",E12) -> Rigoci Ema (STC Slaný)-Vachová Laura (TTC Přezletice)
B13: III.kolo | H13: 1.set | I13: 2.set | J13: 3.set | K13: 4.set | L13: 5.set | M13: výsledek
B14: =C3 -> Vachová Laura (TTC Přezletice) | C14: =#REF! ->  | D14: - | E14: =C5 -> Bye | F14: =C5 -> Bye | M14: =IF(H14="WO","3:0",IF(H14="WO-","0:3",CONCATENATE(V14,":",W14))) -> 0:0 | Q14: =IF(H14="",0,IF(OR(H14<0,H14="0-"),"0:1","1:0")) -> 0 | R14: 0 | S14: 0 | T14: 0 | U14: 0 | V14: 0 | W14: 0 | X14: =IF(OR(LEFT(H14,2)="WO",H14="0-",H14=""),0,IF(H14<0,ABS(H14),IF(H14<10,11,H14+2))) -> 0 | Y14: =IF(OR(LEFT(H14,2)="WO",I14="0-",I14=""),0,IF(I14<0,ABS(I14),IF(I14<10,11,I14+2))) -> 0 | Z14: =IF(OR(LEFT(H14,2)="WO",J14="0-",J14=""),0,IF(J14<0,ABS(J14),IF(J14<10,11,J14+2))) -> 0 | AA14: =IF(OR(LEFT(H14,2)="WO",K14="0-",K14=""),0,IF(K14<0,ABS(K14),IF(K14<10,11,K14+2))) -> 0 | AB14: =IF(OR(LEFT(H14,2)="WO",L14="0-",L14=""),0,IF(L14<0,ABS(L14),IF(L14<10,11,L14+2))) -> 0 | AC14: 0 | AD14: =IF(H14="0-",11,IF(OR(LEFT(H14,2)="WO",H14=""),0,IF(H14<0,IF(ABS(H14)<10,11,ABS(H14)+2),H14))) -> 0 | AE14: =IF(I14="0-",11,IF(OR(LEFT(H14,2)="WO",I14="0-",I14=""),0,IF(I14<0,IF(ABS(I14)<10,11,ABS(I14)+2),I14))) -> 0 | AF14: =IF(J14="0-",11,IF(OR(LEFT(H14,2)="WO",J14="0-",J14=""),0,IF(J14<0,IF(ABS(J14)<10,11,ABS(J14)+2),J14))) -> 0 | AG14: =IF(K14="0-",11,IF(OR(LEFT(H14,2)="WO",K14="0-",K14=""),0,IF(K14<0,IF(ABS(K14)<10,11,ABS(K14)+2),K14))) -> 0 | AH14: =IF(L14="0-",11,IF(OR(LEFT(H14,2)="WO",L14="0-",L14=""),0,IF(L14<0,IF(ABS(L14)<10,11,ABS(L14)+2),L14))) -> 0 | AI14: 0 | AJ14: =CONCATENATE(B14,"-",E14) -> Vachová Laura (TTC Přezletice)-Bye
B15: =C4 -> Kaiserová Karolína ( Černošice) | C15: =#REF! ->  | D15: - | E15: =C2 -> Rigoci Ema (STC Slaný) | F15: =C2 -> Rigoci Ema (STC Slaný) | H15: 4:11 | I15: 5:11 | J15: 4:11 | M15: 0:3 | Q15: 1:0 | R15: 1:0 | S15: 1:0 | T15: 0 | U15: 0 | V15: 3 | W15: 0 | X15: =IF(OR(LEFT(H15,2)="WO",H15="0-",H15=""),0,IF(H15<0,ABS(H15),IF(H15<10,11,H15+2))) -> 2.174305556 | Y15: =IF(OR(LEFT(H15,2)="WO",I15="0-",I15=""),0,IF(I15<0,ABS(I15),IF(I15<10,11,I15+2))) -> 2.215972222 | Z15: =IF(OR(LEFT(H15,2)="WO",J15="0-",J15=""),0,IF(J15<0,ABS(J15),IF(J15<10,11,J15+2))) -> 2.174305556 | AA15: =IF(OR(LEFT(H15,2)="WO",K15="0-",K15=""),0,IF(K15<0,ABS(K15),IF(K15<10,11,K15+2))) -> 0 | AB15: =IF(OR(LEFT(H15,2)="WO",L15="0-",L15=""),0,IF(L15<0,ABS(L15),IF(L15<10,11,L15+2))) -> 0 | AC15: 6.564583333 | AD15: =IF(H15="0-",11,IF(OR(LEFT(H15,2)="WO",H15=""),0,IF(H15<0,IF(ABS(H15)<10,11,ABS(H15)+2),H15))) -> 4:11 | AE15: =IF(I15="0-",11,IF(OR(LEFT(H15,2)="WO",I15="0-",I15=""),0,IF(I15<0,IF(ABS(I15)<10,11,ABS(I15)+2),I15))) -> 5:11 | AF15: =IF(J15="0-",11,IF(OR(LEFT(H15,2)="WO",J15="0-",J15=""),0,IF(J15<0,IF(ABS(J15)<10,11,ABS(J15)+2),J15))) -> 4:11 | AG15: =IF(K15="0-",11,IF(OR(LEFT(H15,2)="WO",K15="0-",K15=""),0,IF(K15<0,IF(ABS(K15)<10,11,ABS(K15)+2),K15))) -> 0 | AH15: =IF(L15="0-",11,IF(OR(LEFT(H15,2)="WO",L15="0-",L15=""),0,IF(L15<0,IF(ABS(L15)<10,11,ABS(L15)+2),L15))) -> 0 | AI15: 0 | AJ15: =CONCATENATE(B15,"-",E15) -> Kaiserová Karolína ( Černošice)-Rigoci Ema (STC Slaný)
B18: Skupina B | E18: =C19 -> Čebišová Linda (Velký Osek) | F18: =C20 -> Sollier Jennifer (TTC Poděbrady) | G18: =C21 -> Matějíčková Karolína (SKST Králův Dvůr) | H18: =C22 -> Bye | I18: Skóre | J18: Body | K18: Míčky | L18: Pořadí | M18: Pavouk
B19: 1 | C19: Čebišová Linda (Velký Osek) | F19: =IF(OR(LEFT(B29,3)="bye",LEFT(E29,3)="bye"),"0:0",M29) -> 3:0 | G19: =CONCATENATE(RIGHT(E21,1),MID(E21,2,1),LEFT(E21,1)) -> 3:0 | H19: =IF(OR(LEFT(B25,3)="bye",LEFT(E25,3)="bye"),"0:0",M25) -> 0:0 | I19: =CONCATENATE(LEFT(F19,1)+LEFT(G19,1)+LEFT(H19,1),":",RIGHT(F19,1)+RIGHT(G19,1)+RIGHT(H19,1)) -> 6:0 | J19: =IF(LEFT(C19,3)="bye",0,IF(OR(F19="0:0",H29="WO-"),0,IF(LEFT(F19,1)="3",2,1))+IF(OR(G19="0:0",H32="WO"),0,IF(LEFT(G19,1)="3",2,1))+IF(OR(H19="0:0",H25="WO-"),0,IF(LEFT(H19,1)="3",2,1))) -> 4 | L19: 1. | M19: B1
B20: 2 | C20: Sollier Jennifer (TTC Poděbrady) | E20: =CONCATENATE(RIGHT(F19,1),MID(F19,2,1),LEFT(F19,1)) -> 0:3 | G20: =IF(OR(LEFT(B26,3)="bye",LEFT(E26,3)="bye"),"0:0",M26) -> 2:3 | H20: =IF(OR(LEFT(B31,3)="bye",LEFT(E31,3)="bye"),"0:0",M31) -> 0:0 | I20: =CONCATENATE(LEFT(E20,1)+LEFT(G20,1)+LEFT(H20,1),":",RIGHT(E20,1)+RIGHT(G20,1)+RIGHT(H20,1)) -> 2:6 | J20: =IF(LEFT(C20,3)="bye",0,IF(OR(E20="0:0",H29="WO"),0,IF(LEFT(E20,1)="3",2,1))+IF(OR(G20="0:0",H26="WO-"),0,IF(LEFT(G20,1)="3",2,1))+IF(OR(H20="0:0",H31="WO-"),0,IF(LEFT(H20,1)="3",2,1))) -> 2 | L20: 3. | M20: B2
B21: 3 | C21: Matějíčková Karolína (SKST Králův Dvůr) | E21: =IF(OR(LEFT(B32,3)="bye",LEFT(E32,3)="bye"),"0:0",M32) -> 0:3 | F21: =CONCATENATE(RIGHT(G20,1),MID(G20,2,1),LEFT(G20,1)) -> 3:2 | H21: =CONCATENATE(RIGHT(G22,1),MID(G22,2,1),LEFT(G22,1)) -> 0:0 | I21: =CONCATENATE(LEFT(E21,1)+LEFT(F21,1)+LEFT(H21,1),":",RIGHT(E21,1)+RIGHT(F21,1)+RIGHT(H21,1)) -> 3:5 | J21: =IF(LEFT(C21,3)="bye",0,IF(OR(E21="0:0",H32="WO-"),0,IF(LEFT(E21,1)="3",2,1))+IF(OR(F21="0:0",H26="WO"),0,IF(LEFT(F21,1)="3",2,1))+IF(OR(H21="0:0",H28="WO"),0,IF(LEFT(H21,1)="3",2,1))) -> 3 | L21: 2. | M21: B3
B22: 4 | C22: Bye | E22: =CONCATENATE(RIGHT(H19,1),MID(H19,2,1),LEFT(H19,1)) -> 0:0 | F22: =CONCATENATE(RIGHT(H20,1),MID(H20,2,1),LEFT(H20,1)) -> 0:0 | G22: =IF(OR(LEFT(B28,3)="bye",LEFT(E28,3)="bye"),"0:0",M28) -> 0:0 | I22: =CONCATENATE(LEFT(E22,1)+LEFT(F22,1)+LEFT(G22,1),":",RIGHT(E22,1)+RIGHT(F22,1)+RIGHT(G22,1)) -> 0:0 | J22: =IF(LEFT(C22,3)="bye",0,IF(OR(E22="0:0",H25="WO"),0,IF(LEFT(E22,1)="3",2,1))+IF(OR(F22="0:0",H31="WO"),0,IF(LEFT(F22,1)="3",2,1))+IF(OR(G22="0:0",H28="WO-"),0,IF(LEFT(G22,1)="3",2,1))) -> 0 | M22: B4
B24: I.kolo | H24: 1.set | I24: 2.set | J24: 3.set | K24: 4.set | L24: 5.set | M24: výsledek
B25: =C19 -> Čebišová Linda (Velký Osek) | D25: - | E25: =C22 -> Bye | M25: =IF(H25="WO","3:0",IF(H25="WO-","0:3",CONCATENATE(V25,":",W25))) -> 0:0 | Q25: =IF(H25="",0,IF(OR(H25<0,H25="0-"),"0:1","1:0")) -> 0 | R25: 0 | S25: 0 | T25: 0 | U25: 0 | V25: =LEFT(Q25,1)+LEFT(R25,1)+LEFT(S25,1)+LEFT(T25,1)+LEFT(U25,1) -> 0 | W25: =RIGHT(Q25,1)+RIGHT(R25,1)+RIGHT(S25,1)+RIGHT(T25,1)+RIGHT(U25,1) -> 0 | X25: =IF(OR(LEFT(H25,2)="WO",H25="0-",H25=""),0,IF(H25<0,ABS(H25),IF(H25<10,11,H25+2))) -> 0 | Y25: =IF(OR(LEFT(H25,2)="WO",I25="0-",I25=""),0,IF(I25<0,ABS(I25),IF(I25<10,11,I25+2))) -> 0 | Z25: =IF(OR(LEFT(H25,2)="WO",J25="0-",J25=""),0,IF(J25<0,ABS(J25),IF(J25<10,11,J25+2))) -> 0 | AA25: =IF(OR(LEFT(H25,2)="WO",K25="0-",K25=""),0,IF(K25<0,ABS(K25),IF(K25<10,11,K25+2))) -> 0 | AB25: =IF(OR(LEFT(H25,2)="WO",L25="0-",L25=""),0,IF(L25<0,ABS(L25),IF(L25<10,11,L25+2))) -> 0 | AC25: =SUM(X25:AB25) -> 0 | AD25: =IF(H25="0-",11,IF(OR(LEFT(H25,2)="WO",H25=""),0,IF(H25<0,IF(ABS(H25)<10,11,ABS(H25)+2),H25))) -> 0 | AE25: =IF(I25="0-",11,IF(OR(LEFT(H25,2)="WO",I25="0-",I25=""),0,IF(I25<0,IF(ABS(I25)<10,11,ABS(I25)+2),I25))) -> 0 | AF25: =IF(J25="0-",11,IF(OR(LEFT(H25,2)="WO",J25="0-",J25=""),0,IF(J25<0,IF(ABS(J25)<10,11,ABS(J25)+2),J25))) -> 0 | AG25: =IF(K25="0-",11,IF(OR(LEFT(H25,2)="WO",K25="0-",K25=""),0,IF(K25<0,IF(ABS(K25)<10,11,ABS(K25)+2),K25))) -> 0 | AH25: =IF(L25="0-",11,IF(OR(LEFT(H25,2)="WO",L25="0-",L25=""),0,IF(L25<0,IF(ABS(L25)<10,11,ABS(L25)+2),L25))) -> 0 | AI25: =SUM(AD25:AH25) -> 0 | AJ25: =CONCATENATE(B25,"-",E25) -> Čebišová Linda (Velký Osek)-Bye
B26: =C20 -> Sollier Jennifer (TTC Poděbrady) | C26: =#REF! ->  | D26: - | E26: =C21 -> Matějíčková Karolína (SKST Králův Dvůr) | F26: =C21 -> Matějíčková Karolína (SKST Králův Dvůr) | H26: 03:11:00 | I26: 12:10:00 | J26: 06:11:00 | K26: 11:7 | L26: 08:11:00 | M26: 2:3 | Q26: 1:0 | R26: 1:0 | S26: 1:0 | T26: 1:0 | U26: 1:0 | V26: =LEFT(Q26,1)+LEFT(R26,1)+LEFT(S26,1)+LEFT(T26,1)+LEFT(U26,1) -> 5 | W26: =RIGHT(Q26,1)+RIGHT(R26,1)+RIGHT(S26,1)+RIGHT(T26,1)+RIGHT(U26,1) -> 0 | X26: =IF(OR(LEFT(H26,2)="WO",H26="0-",H26=""),0,IF(H26<0,ABS(H26),IF(H26<10,11,H26+2))) -> 11 | Y26: =IF(OR(LEFT(H26,2)="WO",I26="0-",I26=""),0,IF(I26<0,ABS(I26),IF(I26<10,11,I26+2))) -> 11 | Z26: =IF(OR(LEFT(H26,2)="WO",J26="0-",J26=""),0,IF(J26<0,ABS(J26),IF(J26<10,11,J26+2))) -> 11 | AA26: =IF(OR(LEFT(H26,2)="WO",K26="0-",K26=""),0,IF(K26<0,ABS(K26),IF(K26<10,11,K26+2))) -> 2.463194444 | AB26: =IF(OR(LEFT(H26,2)="WO",L26="0-",L26=""),0,IF(L26<0,ABS(L26),IF(L26<10,11,L26+2))) -> 11 | AC26: =SUM(X26:AB26) -> 46.46319444 | AD26: =IF(H26="0-",11,IF(OR(LEFT(H26,2)="WO",H26=""),0,IF(H26<0,IF(ABS(H26)<10,11,ABS(H26)+2),H26))) -> 0.1326388889 | AE26: =IF(I26="0-",11,IF(OR(LEFT(H26,2)="WO",I26="0-",I26=""),0,IF(I26<0,IF(ABS(I26)<10,11,ABS(I26)+2),I26))) -> 0.5069444444 | AF26: =IF(J26="0-",11,IF(OR(LEFT(H26,2)="WO",J26="0-",J26=""),0,IF(J26<0,IF(ABS(J26)<10,11,ABS(J26)+2),J26))) -> 0.2576388889 | AG26: =IF(K26="0-",11,IF(OR(LEFT(H26,2)="WO",K26="0-",K26=""),0,IF(K26<0,IF(ABS(K26)<10,11,ABS(K26)+2),K26))) -> 11:7 | AH26: =IF(L26="0-",11,IF(OR(LEFT(H26,2)="WO",L26="0-",L26=""),0,IF(L26<0,IF(ABS(L26)<10,11,ABS(L26)+2),L26))) -> 0.3409722222 | AI26: =SUM(AD26:AH26) -> 1.238194444 | AJ26: =CONCATENATE(B26,"-",E26) -> Sollier Jennifer (TTC Poděbrady)-Matějíčková Karolína (SKST Králův Dvůr)
B27: II.kolo | H27: 1.set | I27: 2.set | J27: 3.set | K27: 4.set | L27: 5.set | M27: výsledek
B28: =C22 -> Bye | C28: =C22 -> Bye | D28: - | E28: =C21 -> Matějíčková Karolína (SKST Králův Dvůr) | F28: =C21 -> Matějíčková Karolína (SKST Králův Dvůr) | M28: =IF(H28="WO","3:0",IF(H28="WO-","0:3",CONCATENATE(V28,":",W28))) -> 0:0 | Q28: =IF(H28="",0,IF(OR(H28<0,H28="0-"),"0:1","1:0")) -> 0 | R28: 0 | S28: 0 | T28: 0 | U28: 0 | V28: =LEFT(Q28,1)+LEFT(R28,1)+LEFT(S28,1)+LEFT(T28,1)+LEFT(U28,1) -> 0 | W28: =RIGHT(Q28,1)+RIGHT(R28,1)+RIGHT(S28,1)+RIGHT(T28,1)+RIGHT(U28,1) -> 0 | X28: =IF(OR(LEFT(H28,2)="WO",H28="0-",H28=""),0,IF(H28<0,ABS(H28),IF(H28<10,11,H28+2))) -> 0 | Y28: =IF(OR(LEFT(H28,2)="WO",I28="0-",I28=""),0,IF(I28<0,ABS(I28),IF(I28<10,11,I28+2))) -> 0 | Z28: =IF(OR(LEFT(H28,2)="WO",J28="0-",J28=""),0,IF(J28<0,ABS(J28),IF(J28<10,11,J28+2))) -> 0 | AA28: =IF(OR(LEFT(H28,2)="WO",K28="0-",K28=""),0,IF(K28<0,ABS(K28),IF(K28<10,11,K28+2))) -> 0 | AB28: =IF(OR(LEFT(H28,2)="WO",L28="0-",L28=""),0,IF(L28<0,ABS(L28),IF(L28<10,11,L28+2))) -> 0 | AC28: 0 | AD28: =IF(H28="0-",11,IF(OR(LEFT(H28,2)="WO",H28=""),0,IF(H28<0,IF(ABS(H28)<10,11,ABS(H28)+2),H28))) -> 0 | AE28: =IF(I28="0-",11,IF(OR(LEFT(H28,2)="WO",I28="0-",I28=""),0,IF(I28<0,IF(ABS(I28)<10,11,ABS(I28)+2),I28))) -> 0 | AF28: =IF(J28="0-",11,IF(OR(LEFT(H28,2)="WO",J28="0-",J28=""),0,IF(J28<0,IF(ABS(J28)<10,11,ABS(J28)+2),J28))) -> 0 | AG28: =IF(K28="0-",11,IF(OR(LEFT(H28,2)="WO",K28="0-",K28=""),0,IF(K28<0,IF(ABS(K28)<10,11,ABS(K28)+2),K28))) -> 0 | AH28: =IF(L28="0-",11,IF(OR(LEFT(H28,2)="WO",L28="0-",L28=""),0,IF(L28<0,IF(ABS(L28)<10,11,ABS(L28)+2),L28))) -> 0 | AI28: 0 | AJ28: =CONCATENATE(B28,"-",E28) -> Bye-Matějíčková Karolína (SKST Králův Dvůr)
B29: =C19 -> Čebišová Linda (Velký Osek) | C29: =C20 -> Sollier Jennifer (TTC Poděbrady) | D29: - | E29: =C20 -> Sollier Jennifer (TTC Poděbrady) | F29: =C20 -> Sollier Jennifer (TTC Poděbrady) | H29: 11:1 | I29: 11:6 | J29: 11:6 | M29: =IF(H29="WO","3:0",IF(H29="WO-","0:3",CONCATENATE(V29,":",W29))) -> 3:0 | Q29: 1:0 | R29: 1:0 | S29: 1:0 | T29: 0 | U29: 0 | V29: 3 | W29: 0 | X29: =IF(OR(LEFT(H29,2)="WO",H29="0-",H29=""),0,IF(H29<0,ABS(H29),IF(H29<10,11,H29+2))) -> 2.459027778 | Y29: =IF(OR(LEFT(H29,2)="WO",I29="0-",I29=""),0,IF(I29<0,ABS(I29),IF(I29<10,11,I29+2))) -> 2.4625 | Z29: =IF(OR(LEFT(H29,2)="WO",J29="0-",J29=""),0,IF(J29<0,ABS(J29),IF(J29<10,11,J29+2))) -> 2.4625 | AA29: =IF(OR(LEFT(H29,2)="WO",K29="0-",K29=""),0,IF(K29<0,ABS(K29),IF(K29<10,11,K29+2))) -> 0 | AB29: =IF(OR(LEFT(H29,2)="WO",L29="0-",L29=""),0,IF(L29<0,ABS(L29),IF(L29<10,11,L29+2))) -> 0 | AC29: 7.384027778 | AD29: =IF(H29="0-",11,IF(OR(LEFT(H29,2)="WO",H29=""),0,IF(H29<0,IF(ABS(H29)<10,11,ABS(H29)+2),H29))) -> 11:1 | AE29: =IF(I29="0-",11,IF(OR(LEFT(H29,2)="WO",I29="0-",I29=""),0,IF(I29<0,IF(ABS(I29)<10,11,ABS(I29)+2),I29))) -> 11:6 | AF29: =IF(J29="0-",11,IF(OR(LEFT(H29,2)="WO",J29="0-",J29=""),0,IF(J29<0,IF(ABS(J29)<10,11,ABS(J29)+2),J29))) -> 11:6 | AG29: =IF(K29="0-",11,IF(OR(LEFT(H29,2)="WO",K29="0-",K29=""),0,IF(K29<0,IF(ABS(K29)<10,11,ABS(K29)+2),K29))) -> 0 | AH29: =IF(L29="0-",11,IF(OR(LEFT(H29,2)="WO",L29="0-",L29=""),0,IF(L29<0,IF(ABS(L29)<10,11,ABS(L29)+2),L29))) -> 0 | AI29: 0 | AJ29: =CONCATENATE(B29,"-",E29) -> Čebišová Linda (Velký Osek)-Sollier Jennifer (TTC Poděbrady)
B30: III.kolo | H30: 1.set | I30: 2.set | J30: 3.set | K30: 4.set | L30: 5.set | M30: výsledek
B31: =C20 -> Sollier Jennifer (TTC Poděbrady) | C31: =#REF! ->  | D31: - | E31: =C22 -> Bye | F31: =C22 -> Bye | M31: =IF(H31="WO","3:0",IF(H31="WO-","0:3",CONCATENATE(V31,":",W31))) -> 0:0 | Q31: =IF(H31="",0,IF(OR(H31<0,H31="0-"),"0:1","1:0")) -> 0 | R31: 0 | S31: 0 | T31: 0 | U31: 0 | V31: =LEFT(Q31,1)+LEFT(R31,1)+LEFT(S31,1)+LEFT(T31,1)+LEFT(U31,1) -> 0 | W31: =RIGHT(Q31,1)+RIGHT(R31,1)+RIGHT(S31,1)+RIGHT(T31,1)+RIGHT(U31,1) -> 0 | X31: =IF(OR(LEFT(H31,2)="WO",H31="0-",H31=""),0,IF(H31<0,ABS(H31),IF(H31<10,11,H31+2))) -> 0 | Y31: =IF(OR(LEFT(H31,2)="WO",I31="0-",I31=""),0,IF(I31<0,ABS(I31),IF(I31<10,11,I31+2))) -> 0 | Z31: =IF(OR(LEFT(H31,2)="WO",J31="0-",J31=""),0,IF(J31<0,ABS(J31),IF(J31<10,11,J31+2))) -> 0 | AA31: =IF(OR(LEFT(H31,2)="WO",K31="0-",K31=""),0,IF(K31<0,ABS(K31),IF(K31<10,11,K31+2))) -> 0 | AB31: =IF(OR(LEFT(H31,2)="WO",L31="0-",L31=""),0,IF(L31<0,ABS(L31),IF(L31<10,11,L31+2))) -> 0 | AC31: 0 | AD31: =IF(H31="0-",11,IF(OR(LEFT(H31,2)="WO",H31=""),0,IF(H31<0,IF(ABS(H31)<10,11,ABS(H31)+2),H31))) -> 0 | AE31: =IF(I31="0-",11,IF(OR(LEFT(H31,2)="WO",I31="0-",I31=""),0,IF(I31<0,IF(ABS(I31)<10,11,ABS(I31)+2),I31))) -> 0 | AF31: =IF(J31="0-",11,IF(OR(LEFT(H31,2)="WO",J31="0-",J31=""),0,IF(J31<0,IF(ABS(J31)<10,11,ABS(J31)+2),J31))) -> 0 | AG31: =IF(K31="0-",11,IF(OR(LEFT(H31,2)="WO",K31="0-",K31=""),0,IF(K31<0,IF(ABS(K31)<10,11,ABS(K31)+2),K31))) -> 0 | AH31: =IF(L31="0-",11,IF(OR(LEFT(H31,2)="WO",L31="0-",L31=""),0,IF(L31<0,IF(ABS(L31)<10,11,ABS(L31)+2),L31))) -> 0 | AI31: 0 | AJ31: =CONCATENATE(B31,"-",E31) -> Sollier Jennifer (TTC Poděbrady)-Bye
B32: =C21 -> Matějíčková Karolína (SKST Králův Dvůr) | C32: =#REF! ->  | D32: - | E32: =C19 -> Čebišová Linda (Velký Osek) | F32: =C19 -> Čebišová Linda (Velký Osek) | H32: 6:11 | I32: 5:11 | J32: 4:11 | M32: 0:3 | Q32: 1:0 | R32: 1:0 | S32: 1:0 | T32: 0 | U32: 0 | V32: 3 | W32: 0 | X32: =IF(OR(LEFT(H32,2)="WO",H32="0-",H32=""),0,IF(H32<0,ABS(H32),IF(H32<10,11,H32+2))) -> 2.257638889 | Y32: =IF(OR(LEFT(H32,2)="WO",I32="0-",I32=""),0,IF(I32<0,ABS(I32),IF(I32<10,11,I32+2))) -> 2.215972222 | Z32: =IF(OR(LEFT(H32,2)="WO",J32="0-",J32=""),0,IF(J32<0,ABS(J32),IF(J32<10,11,J32+2))) -> 2.174305556 | AA32: =IF(OR(LEFT(H32,2)="WO",K32="0-",K32=""),0,IF(K32<0,ABS(K32),IF(K32<10,11,K32+2))) -> 0 | AB32: =IF(OR(LEFT(H32,2)="WO",L32="0-",L32=""),0,IF(L32<0,ABS(L32),IF(L32<10,11,L32+2))) -> 0 | AC32: 6.647916667 | AD32: =IF(H32="0-",11,IF(OR(LEFT(H32,2)="WO",H32=""),0,IF(H32<0,IF(ABS(H32)<10,11,ABS(H32)+2),H32))) -> 6:11 | AE32: =IF(I32="0-",11,IF(OR(LEFT(H32,2)="WO",I32="0-",I32=""),0,IF(I32<0,IF(ABS(I32)<10,11,ABS(I32)+2),I32))) -> 5:11 | AF32: =IF(J32="0-",11,IF(OR(LEFT(H32,2)="WO",J32="0-",J32=""),0,IF(J32<0,IF(ABS(J32)<10,11,ABS(J32)+2),J32))) -> 4:11 | AG32: =IF(K32="0-",11,IF(OR(LEFT(H32,2)="WO",K32="0-",K32=""),0,IF(K32<0,IF(ABS(K32)<10,11,ABS(K32)+2),K32))) -> 0 | AH32: =IF(L32="0-",11,IF(OR(LEFT(H32,2)="WO",L32="0-",L32=""),0,IF(L32<0,IF(ABS(L32)<10,11,ABS(L32)+2),L32))) -> 0 | AI32: 0 | AJ32: =CONCATENATE(B32,"-",E32) -> Matějíčková Karolína (SKST Králův Dvůr)-Čebišová Linda (Velký Osek)
B34: Skupina C | E34: =C35 -> Baštová Zuzana (TTC Brandýs nad Labem) | F34: =C36 -> Zamrzlová Zita (TTC Dřínov) | G34: =C37 -> Suková Petra (Sokol Všetaty) | H34: =C38 -> Bye | I34: Skóre | J34: Body | K34: Míčky | L34: Pořadí | M34: Pavouk
B35: 1 | C35: Baštová Zuzana (TTC Brandýs nad Labem) | F35: =IF(OR(LEFT(B45,3)="bye",LEFT(E45,3)="bye"),"0:0",M45) -> 3:0 | G35: =CONCATENATE(RIGHT(E37,1),MID(E37,2,1),LEFT(E37,1)) -> 3:1 | H35: =IF(OR(LEFT(B41,3)="bye",LEFT(E41,3)="bye"),"0:0",M41) -> 0:0 | I35: =CONCATENATE(LEFT(F35,1)+LEFT(G35,1)+LEFT(H35,1),":",RIGHT(F35,1)+RIGHT(G35,1)+RIGHT(H35,1)) -> 6:1 | J35: =IF(LEFT(C35,3)="bye",0,IF(OR(F35="0:0",H45="WO-"),0,IF(LEFT(F35,1)="3",2,1))+IF(OR(G35="0:0",H48="WO"),0,IF(LEFT(G35,1)="3",2,1))+IF(OR(H35="0:0",H41="WO-"),0,IF(LEFT(H35,1)="3",2,1))) -> 4 | L35: 1. | M35: C1
B36: 2 | C36: Zamrzlová Zita (TTC Dřínov) | E36: =CONCATENATE(RIGHT(F35,1),MID(F35,2,1),LEFT(F35,1)) -> 0:3 | G36: =IF(OR(LEFT(B42,3)="bye",LEFT(E42,3)="bye"),"0:0",M42) -> 0:3 | H36: =IF(OR(LEFT(B47,3)="bye",LEFT(E47,3)="bye"),"0:0",M47) -> 0:0 | I36: =CONCATENATE(LEFT(E36,1)+LEFT(G36,1)+LEFT(H36,1),":",RIGHT(E36,1)+RIGHT(G36,1)+RIGHT(H36,1)) -> 0:6 | J36: =IF(LEFT(C36,3)="bye",0,IF(OR(E36="0:0",H45="WO"),0,IF(LEFT(E36,1)="3",2,1))+IF(OR(G36="0:0",H42="WO-"),0,IF(LEFT(G36,1)="3",2,1))+IF(OR(H36="0:0",H47="WO-"),0,IF(LEFT(H36,1)="3",2,1))) -> 2 | L36: 3. | M36: C2
B37: 3 | C37: Suková Petra (Sokol Všetaty) | E37: =IF(OR(LEFT(B48,3)="bye",LEFT(E48,3)="bye"),"0:0",M48) -> 1:3 | F37: =CONCATENATE(RIGHT(G36,1),MID(G36,2,1),LEFT(G36,1)) -> 3:0 | H37: =CONCATENATE(RIGHT(G38,1),MID(G38,2,1),LEFT(G38,1)) -> 0:0 | I37: =CONCATENATE(LEFT(E37,1)+LEFT(F37,1)+LEFT(H37,1),":",RIGHT(E37,1)+RIGHT(F37,1)+RIGHT(H37,1)) -> 4:3 | J37: =IF(LEFT(C37,3)="bye",0,IF(OR(E37="0:0",H48="WO-"),0,IF(LEFT(E37,1)="3",2,1))+IF(OR(F37="0:0",H42="WO"),0,IF(LEFT(F37,1)="3",2,1))+IF(OR(H37="0:0",H44="WO"),0,IF(LEFT(H37,1)="3",2,1))) -> 3 | L37: 2. | M37: C3
B38: 4 | C38: Bye | E38: =CONCATENATE(RIGHT(H35,1),MID(H35,2,1),LEFT(H35,1)) -> 0:0 | F38: =CONCATENATE(RIGHT(H36,1),MID(H36,2,1),LEFT(H36,1)) -> 0:0 | G38: =IF(OR(LEFT(B44,3)="bye",LEFT(E44,3)="bye"),"0:0",M44) -> 0:0 | I38: =CONCATENATE(LEFT(E38,1)+LEFT(F38,1)+LEFT(G38,1),":",RIGHT(E38,1)+RIGHT(F38,1)+RIGHT(G38,1)) -> 0:0 | J38: =IF(LEFT(C38,3)="bye",0,IF(OR(E38="0:0",H41="WO"),0,IF(LEFT(E38,1)="3",2,1))+IF(OR(F38="0:0",H47="WO"),0,IF(LEFT(F38,1)="3",2,1))+IF(OR(G38="0:0",H44="WO-"),0,IF(LEFT(G38,1)="3",2,1))) -> 0 | M38: C4
B40: I.kolo | H40: 1.set | I40: 2.set | J40: 3.set | K40: 4.set | L40: 5.set | M40: výsledek
B41: =C35 -> Baštová Zuzana (TTC Brandýs nad Labem) | D41: - | E41: =C38 -> Bye | M41: =IF(H41="WO","3:0",IF(H41="WO-","0:3",CONCATENATE(V41,":",W41))) -> 0:0 | Q41: =IF(H41="",0,IF(OR(H41<0,H41="0-"),"0:1","1:0")) -> 0 | R41: 0 | S41: 0 | T41: 0 | U41: 0 | V41: =LEFT(Q41,1)+LEFT(R41,1)+LEFT(S41,1)+LEFT(T41,1)+LEFT(U41,1) -> 0 | W41: =RIGHT(Q41,1)+RIGHT(R41,1)+RIGHT(S41,1)+RIGHT(T41,1)+RIGHT(U41,1) -> 0 | X41: =IF(OR(LEFT(H41,2)="WO",H41="0-",H41=""),0,IF(H41<0,ABS(H41),IF(H41<10,11,H41+2))) -> 0 | Y41: =IF(OR(LEFT(H41,2)="WO",I41="0-",I41=""),0,IF(I41<0,ABS(I41),IF(I41<10,11,I41+2))) -> 0 | Z41: =IF(OR(LEFT(H41,2)="WO",J41="0-",J41=""),0,IF(J41<0,ABS(J41),IF(J41<10,11,J41+2))) -> 0 | AA41: =IF(OR(LEFT(H41,2)="WO",K41="0-",K41=""),0,IF(K41<0,ABS(K41),IF(K41<10,11,K41+2))) -> 0 | AB41: =IF(OR(LEFT(H41,2)="WO",L41="0-",L41=""),0,IF(L41<0,ABS(L41),IF(L41<10,11,L41+2))) -> 0 | AC41: =SUM(X41:AB41) -> 0 | AD41: =IF(H41="0-",11,IF(OR(LEFT(H41,2)="WO",H41=""),0,IF(H41<0,IF(ABS(H41)<10,11,ABS(H41)+2),H41))) -> 0 | AE41: =IF(I41="0-",11,IF(OR(LEFT(H41,2)="WO",I41="0-",I41=""),0,IF(I41<0,IF(ABS(I41)<10,11,ABS(I41)+2),I41))) -> 0 | AF41: =IF(J41="0-",11,IF(OR(LEFT(H41,2)="WO",J41="0-",J41=""),0,IF(J41<0,IF(ABS(J41)<10,11,ABS(J41)+2),J41))) -> 0 | AG41: =IF(K41="0-",11,IF(OR(LEFT(H41,2)="WO",K41="0-",K41=""),0,IF(K41<0,IF(ABS(K41)<10,11,ABS(K41)+2),K41))) -> 0 | AH41: =IF(L41="0-",11,IF(OR(LEFT(H41,2)="WO",L41="0-",L41=""),0,IF(L41<0,IF(ABS(L41)<10,11,ABS(L41)+2),L41))) -> 0 | AI41: =SUM(AD41:AH41) -> 0 | AJ41: =CONCATENATE(B41,"-",E41) -> Baštová Zuzana (TTC Brandýs nad Labem)-Bye
B42: =C36 -> Zamrzlová Zita (TTC Dřínov) | C42: =#REF! ->  | D42: - | E42: =C37 -> Suková Petra (Sokol Všetaty) | F42: =C37 -> Suková Petra (Sokol Všetaty) | H42: 06:11:00 | I42: 03:11:00 | J42: 04:11:00 | M42: 0:3 | Q42: 1:0 | R42: 1:0 | S42: 1:0 | T42: 0 | U42: 0 | V42: =LEFT(Q42,1)+LEFT(R42,1)+LEFT(S42,1)+LEFT(T42,1)+LEFT(U42,1) -> 3 | W42: =RIGHT(Q42,1)+RIGHT(R42,1)+RIGHT(S42,1)+RIGHT(T42,1)+RIGHT(U42,1) -> 0 | X42: =IF(OR(LEFT(H42,2)="WO",H42="0-",H42=""),0,IF(H42<0,ABS(H42),IF(H42<10,11,H42+2))) -> 11 | Y42: =IF(OR(LEFT(H42,2)="WO",I42="0-",I42=""),0,IF(I42<0,ABS(I42),IF(I42<10,11,I42+2))) -> 11 | Z42: =IF(OR(LEFT(H42,2)="WO",J42="0-",J42=""),0,IF(J42<0,ABS(J42),IF(J42<10,11,J42+2))) -> 11 | AA42: =IF(OR(LEFT(H42,2)="WO",K42="0-",K42=""),0,IF(K42<0,ABS(K42),IF(K42<10,11,K42+2))) -> 0 | AB42: =IF(OR(LEFT(H42,2)="WO",L42="0-",L42=""),0,IF(L42<0,ABS(L42),IF(L42<10,11,L42+2))) -> 0 | AC42: =SUM(X42:AB42) -> 33 | AD42: =IF(H42="0-",11,IF(OR(LEFT(H42,2)="WO",H42=""),0,IF(H42<0,IF(ABS(H42)<10,11,ABS(H42)+2),H42))) -> 0.2576388889 | AE42: =IF(I42="0-",11,IF(OR(LEFT(H42,2)="WO",I42="0-",I42=""),0,IF(I42<0,IF(ABS(I42)<10,11,ABS(I42)+2),I42))) -> 0.1326388889 | AF42: =IF(J42="0-",11,IF(OR(LEFT(H42,2)="WO",J42="0-",J42=""),0,IF(J42<0,IF(ABS(J42)<10,11,ABS(J42)+2),J42))) -> 0.1743055556 | AG42: =IF(K42="0-",11,IF(OR(LEFT(H42,2)="WO",K42="0-",K42=""),0,IF(K42<0,IF(ABS(K42)<10,11,ABS(K42)+2),K42))) -> 0 | AH42: =IF(L42="0-",11,IF(OR(LEFT(H42,2)="WO",L42="0-",L42=""),0,IF(L42<0,IF(ABS(L42)<10,11,ABS(L42)+2),L42))) -> 0 | AI42: =SUM(AD42:AH42) -> 0.5645833333 | AJ42: =CONCATENATE(B42,"-",E42) -> Zamrzlová Zita (TTC Dřínov)-Suková Petra (Sokol Všetaty)
B43: II.kolo | H43: 1.set | I43: 2.set | J43: 3.set | K43: 4.set | L43: 5.set | M43: výsledek
B44: =C38 -> Bye | C44: =C38 -> Bye | D44: - | E44: =C37 -> Suková Petra (Sokol Všetaty) | F44: =C37 -> Suková Petra (Sokol Všetaty) | M44: =IF(H44="WO","3:0",IF(H44="WO-","0:3",CONCATENATE(V44,":",W44))) -> 0:0 | Q44: =IF(H44="",0,IF(OR(H44<0,H44="0-"),"0:1","1:0")) -> 0 | R44: 0 | S44: 0 | T44: 0 | U44: 0 | V44: =LEFT(Q44,1)+LEFT(R44,1)+LEFT(S44,1)+LEFT(T44,1)+LEFT(U44,1) -> 0 | W44: =RIGHT(Q44,1)+RIGHT(R44,1)+RIGHT(S44,1)+RIGHT(T44,1)+RIGHT(U44,1) -> 0 | X44: =IF(OR(LEFT(H44,2)="WO",H44="0-",H44=""),0,IF(H44<0,ABS(H44),IF(H44<10,11,H44+2))) -> 0 | Y44: =IF(OR(LEFT(H44,2)="WO",I44="0-",I44=""),0,IF(I44<0,ABS(I44),IF(I44<10,11,I44+2))) -> 0 | Z44: =IF(OR(LEFT(H44,2)="WO",J44="0-",J44=""),0,IF(J44<0,ABS(J44),IF(J44<10,11,J44+2))) -> 0 | AA44: =IF(OR(LEFT(H44,2)="WO",K44="0-",K44=""),0,IF(K44<0,ABS(K44),IF(K44<10,11,K44+2))) -> 0 | AB44: =IF(OR(LEFT(H44,2)="WO",L44="0-",L44=""),0,IF(L44<0,ABS(L44),IF(L44<10,11,L44+2))) -> 0 | AC44: 0 | AD44: =IF(H44="0-",11,IF(OR(LEFT(H44,2)="WO",H44=""),0,IF(H44<0,IF(ABS(H44)<10,11,ABS(H44)+2),H44))) -> 0 | AE44: =IF(I44="0-",11,IF(OR(LEFT(H44,2)="WO",I44="0-",I44=""),0,IF(I44<0,IF(ABS(I44)<10,11,ABS(I44)+2),I44))) -> 0 | AF44: =IF(J44="0-",11,IF(OR(LEFT(H44,2)="WO",J44="0-",J44=""),0,IF(J44<0,IF(ABS(J44)<10,11,ABS(J44)+2),J44))) -> 0 | AG44: =IF(K44="0-",11,IF(OR(LEFT(H44,2)="WO",K44="0-",K44=""),0,IF(K44<0,IF(ABS(K44)<10,11,ABS(K44)+2),K44))) -> 0 | AH44: =IF(L44="0-",11,IF(OR(LEFT(H44,2)="WO",L44="0-",L44=""),0,IF(L44<0,IF(ABS(L44)<10,11,ABS(L44)+2),L44))) -> 0 | AI44: 0 | AJ44: =CONCATENATE(B44,"-",E44) -> Bye-Suková Petra (Sokol Všetaty)
B45: =C35 -> Baštová Zuzana (TTC Brandýs nad Labem) | C45: =C36 -> Zamrzlová Zita (TTC Dřínov) | D45: - | E45: =C36 -> Zamrzlová Zita (TTC Dřínov) | F45: =C36 -> Zamrzlová Zita (TTC Dřínov) | H45: 11:2 | I45: 11:7 | J45: 11:7 | M45: =IF(H45="WO","3:0",IF(H45="WO-","0:3",CONCATENATE(V45,":",W45))) -> 3:0 | Q45: 1:0 | R45: 1:0 | S45: 1:0 | T45: 0 | U45: 0 | V45: 3 | W45: 0 | X45: =IF(OR(LEFT(H45,2)="WO",H45="0-",H45=""),0,IF(H45<0,ABS(H45),IF(H45<10,11,H45+2))) -> 2.459722222 | Y45: =IF(OR(LEFT(H45,2)="WO",I45="0-",I45=""),0,IF(I45<0,ABS(I45),IF(I45<10,11,I45+2))) -> 2.463194444 | Z45: =IF(OR(LEFT(H45,2)="WO",J45="0-",J45=""),0,IF(J45<0,ABS(J45),IF(J45<10,11,J45+2))) -> 2.463194444 | AA45: =IF(OR(LEFT(H45,2)="WO",K45="0-",K45=""),0,IF(K45<0,ABS(K45),IF(K45<10,11,K45+2))) -> 0 | AB45: =IF(OR(LEFT(H45,2)="WO",L45="0-",L45=""),0,IF(L45<0,ABS(L45),IF(L45<10,11,L45+2))) -> 0 | AC45: 7.386111111 | AD45: =IF(H45="0-",11,IF(OR(LEFT(H45,2)="WO",H45=""),0,IF(H45<0,IF(ABS(H45)<10,11,ABS(H45)+2),H45))) -> 11:2 | AE45: =IF(I45="0-",11,IF(OR(LEFT(H45,2)="WO",I45="0-",I45=""),0,IF(I45<0,IF(ABS(I45)<10,11,ABS(I45)+2),I45))) -> 11:7 | AF45: =IF(J45="0-",11,IF(OR(LEFT(H45,2)="WO",J45="0-",J45=""),0,IF(J45<0,IF(ABS(J45)<10,11,ABS(J45)+2),J45))) -> 11:7 | AG45: =IF(K45="0-",11,IF(OR(LEFT(H45,2)="WO",K45="0-",K45=""),0,IF(K45<0,IF(ABS(K45)<10,11,ABS(K45)+2),K45))) -> 0 | AH45: =IF(L45="0-",11,IF(OR(LEFT(H45,2)="WO",L45="0-",L45=""),0,IF(L45<0,IF(ABS(L45)<10,11,ABS(L45)+2),L45))) -> 0 | AI45: 0 | AJ45: =CONCATENATE(B45,"-",E45) -> Baštová Zuzana (TTC Brandýs nad Labem)-Zamrzlová Zita (TTC Dřínov)
B46: III.kolo | H46: 1.set | I46: 2.set | J46: 3.set | K46: 4.set | L46: 5.set | M46: výsledek
B47: =C36 -> Zamrzlová Zita (TTC Dřínov) | C47: =#REF! ->  | D47: - | E47: =C38 -> Bye | F47: =C38 -> Bye | M47: =IF(H47="WO","3:0",IF(H47="WO-","0:3",CONCATENATE(V47,":",W47))) -> 0:0 | Q47: =IF(H47="",0,IF(OR(H47<0,H47="0-"),"0:1","1:0")) -> 0 | R47: 0 | S47: 0 | T47: 0 | U47: 0 | V47: =LEFT(Q47,1)+LEFT(R47,1)+LEFT(S47,1)+LEFT(T47,1)+LEFT(U47,1) -> 0 | W47: =RIGHT(Q47,1)+RIGHT(R47,1)+RIGHT(S47,1)+RIGHT(T47,1)+RIGHT(U47,1) -> 0 | X47: =IF(OR(LEFT(H47,2)="WO",H47="0-",H47=""),0,IF(H47<0,ABS(H47),IF(H47<10,11,H47+2))) -> 0 | Y47: =IF(OR(LEFT(H47,2)="WO",I47="0-",I47=""),0,IF(I47<0,ABS(I47),IF(I47<10,11,I47+2))) -> 0 | Z47: =IF(OR(LEFT(H47,2)="WO",J47="0-",J47=""),0,IF(J47<0,ABS(J47),IF(J47<10,11,J47+2))) -> 0 | AA47: =IF(OR(LEFT(H47,2)="WO",K47="0-",K47=""),0,IF(K47<0,ABS(K47),IF(K47<10,11,K47+2))) -> 0 | AB47: =IF(OR(LEFT(H47,2)="WO",L47="0-",L47=""),0,IF(L47<0,ABS(L47),IF(L47<10,11,L47+2))) -> 0 | AC47: 0 | AD47: =IF(H47="0-",11,IF(OR(LEFT(H47,2)="WO",H47=""),0,IF(H47<0,IF(ABS(H47)<10,11,ABS(H47)+2),H47))) -> 0 | AE47: =IF(I47="0-",11,IF(OR(LEFT(H47,2)="WO",I47="0-",I47=""),0,IF(I47<0,IF(ABS(I47)<10,11,ABS(I47)+2),I47))) -> 0 | AF47: =IF(J47="0-",11,IF(OR(LEFT(H47,2)="WO",J47="0-",J47=""),0,IF(J47<0,IF(ABS(J47)<10,11,ABS(J47)+2),J47))) -> 0 | AG47: =IF(K47="0-",11,IF(OR(LEFT(H47,2)="WO",K47="0-",K47=""),0,IF(K47<0,IF(ABS(K47)<10,11,ABS(K47)+2),K47))) -> 0 | AH47: =IF(L47="0-",11,IF(OR(LEFT(H47,2)="WO",L47="0-",L47=""),0,IF(L47<0,IF(ABS(L47)<10,11,ABS(L47)+2),L47))) -> 0 | AI47: 0 | AJ47: =CONCATENATE(B47,"-",E47) -> Zamrzlová Zita (TTC Dřínov)-Bye
B48: =C37 -> Suková Petra (Sokol Všetaty) | C48: =#REF! ->  | D48: - | E48: =C35 -> Baštová Zuzana (TTC Brandýs nad Labem) | F48: =C35 -> Baštová Zuzana (TTC Brandýs nad Labem) | H48: 4:11 | I48: 2:11 | J48: 12:10 | K48: 7:11 | M48: 1:3 | Q48: 1:0 | R48: 1:0 | S48: 1:0 | T48: 1:0 | U48: 0 | V48: 4 | W48: 0 | X48: =IF(OR(LEFT(H48,2)="WO",H48="0-",H48=""),0,IF(H48<0,ABS(H48),IF(H48<10,11,H48+2))) -> 2.174305556 | Y48: =IF(OR(LEFT(H48,2)="WO",I48="0-",I48=""),0,IF(I48<0,ABS(I48),IF(I48<10,11,I48+2))) -> 2.090972222 | Z48: =IF(OR(LEFT(H48,2)="WO",J48="0-",J48=""),0,IF(J48<0,ABS(J48),IF(J48<10,11,J48+2))) -> 2.506944444 | AA48: =IF(OR(LEFT(H48,2)="WO",K48="0-",K48=""),0,IF(K48<0,ABS(K48),IF(K48<10,11,K48+2))) -> 2.299305556 | AB48: =IF(OR(LEFT(H48,2)="WO",L48="0-",L48=""),0,IF(L48<0,ABS(L48),IF(L48<10,11,L48+2))) -> 0 | AC48: 9.071527778 | AD48: =IF(H48="0-",11,IF(OR(LEFT(H48,2)="WO",H48=""),0,IF(H48<0,IF(ABS(H48)<10,11,ABS(H48)+2),H48))) -> 4:11 | AE48: =IF(I48="0-",11,IF(OR(LEFT(H48,2)="WO",I48="0-",I48=""),0,IF(I48<0,IF(ABS(I48)<10,11,ABS(I48)+2),I48))) -> 2:11 | AF48: =IF(J48="0-",11,IF(OR(LEFT(H48,2)="WO",J48="0-",J48=""),0,IF(J48<0,IF(ABS(J48)<10,11,ABS(J48)+2),J48))) -> 12:10 | AG48: =IF(K48="0-",11,IF(OR(LEFT(H48,2)="WO",K48="0-",K48=""),0,IF(K48<0,IF(ABS(K48)<10,11,ABS(K48)+2),K48))) -> 7:11 | AH48: =IF(L48="0-",11,IF(OR(LEFT(H48,2)="WO",L48="0-",L48=""),0,IF(L48<0,IF(ABS(L48)<10,11,ABS(L48)+2),L48))) -> 0 | AI48: 0 | AJ48: =CONCATENATE(B48,"-",E48) -> Suková Petra (Sokol Všetaty)-Baštová Zuzana (TTC Brandýs nad Labem)
B51: Skupina D | E51: =C52 -> Mučková Zuzana (Sokol Všetaty) | F51: =C53 -> Svejkovská Valerie (Králův Dvůr | G51: =C54 -> Bubeníčková Kateřina | H51: =C55 -> Bye | I51: Skóre | J51: Body | K51: Míčky | L51: Pořadí | M51: Pavouk
B52: 1 | C52: Mučková Zuzana (Sokol Všetaty) | F52: =IF(OR(LEFT(B62,3)="bye",LEFT(E62,3)="bye"),"0:0",M62) -> 3:0 | G52: =CONCATENATE(RIGHT(E54,1),MID(E54,2,1),LEFT(E54,1)) -> 3:0 | H52: =IF(OR(LEFT(B58,3)="bye",LEFT(E58,3)="bye"),"0:0",M58) -> 0:0 | I52: =CONCATENATE(LEFT(F52,1)+LEFT(G52,1)+LEFT(H52,1),":",RIGHT(F52,1)+RIGHT(G52,1)+RIGHT(H52,1)) -> 6:0 | J52: =IF(LEFT(C52,3)="bye",0,IF(OR(F52="0:0",H62="WO-"),0,IF(LEFT(F52,1)="3",2,1))+IF(OR(G52="0:0",H65="WO"),0,IF(LEFT(G52,1)="3",2,1))+IF(OR(H52="0:0",H58="WO-"),0,IF(LEFT(H52,1)="3",2,1))) -> 4 | L52: 1. | M52: D1
B53: 2 | C53: Svejkovská Valerie (Králův Dvůr | E53: =CONCATENATE(RIGHT(F52,1),MID(F52,2,1),LEFT(F52,1)) -> 0:3 | G53: =IF(OR(LEFT(B59,3)="bye",LEFT(E59,3)="bye"),"0:0",M59) -> 1:3 | H53: =IF(OR(LEFT(B64,3)="bye",LEFT(E64,3)="bye"),"0:0",M64) -> 0:0 | I53: =CONCATENATE(LEFT(E53,1)+LEFT(G53,1)+LEFT(H53,1),":",RIGHT(E53,1)+RIGHT(G53,1)+RIGHT(H53,1)) -> 1:6 | J53: =IF(LEFT(C53,3)="bye",0,IF(OR(E53="0:0",H62="WO"),0,IF(LEFT(E53,1)="3",2,1))+IF(OR(G53="0:0",H59="WO-"),0,IF(LEFT(G53,1)="3",2,1))+IF(OR(H53="0:0",H64="WO-"),0,IF(LEFT(H53,1)="3",2,1))) -> 2 | L53: 3. | M53: D2
B54: 3 | C54: Bubeníčková Kateřina | E54: =IF(OR(LEFT(B65,3)="bye",LEFT(E65,3)="bye"),"0:0",M65) -> 0:3 | F54: =CONCATENATE(RIGHT(G53,1),MID(G53,2,1),LEFT(G53,1)) -> 3:1 | H54: =CONCATENATE(RIGHT(G55,1),MID(G55,2,1),LEFT(G55,1)) -> 0:0 | I54: =CONCATENATE(LEFT(E54,1)+LEFT(F54,1)+LEFT(H54,1),":",RIGHT(E54,1)+RIGHT(F54,1)+RIGHT(H54,1)) -> 3:4 | J54: =IF(LEFT(C54,3)="bye",0,IF(OR(E54="0:0",H65="WO-"),0,IF(LEFT(E54,1)="3",2,1))+IF(OR(F54="0:0",H59="WO"),0,IF(LEFT(F54,1)="3",2,1))+IF(OR(H54="0:0",H61="WO"),0,IF(LEFT(H54,1)="3",2,1))) -> 3 | L54: 2. | M54: D3
B55: 4 | C55: Bye | E55: =CONCATENATE(RIGHT(H52,1),MID(H52,2,1),LEFT(H52,1)) -> 0:0 | F55: =CONCATENATE(RIGHT(H53,1),MID(H53,2,1),LEFT(H53,1)) -> 0:0 | G55: =IF(OR(LEFT(B61,3)="bye",LEFT(E61,3)="bye"),"0:0",M61) -> 0:0 | I55: =CONCATENATE(LEFT(E55,1)+LEFT(F55,1)+LEFT(G55,1),":",RIGHT(E55,1)+RIGHT(F55,1)+RIGHT(G55,1)) -> 0:0 | J55: =IF(LEFT(C55,3)="bye",0,IF(OR(E55="0:0",H58="WO"),0,IF(LEFT(E55,1)="3",2,1))+IF(OR(F55="0:0",H64="WO"),0,IF(LEFT(F55,1)="3",2,1))+IF(OR(G55="0:0",H61="WO-"),0,IF(LEFT(G55,1)="3",2,1))) -> 0 | M55: D4
B57: I.kolo | H57: 1.set | I57: 2.set | J57: 3.set | K57: 4.set | L57: 5.set | M57: výsledek
B58: =C52 -> Mučková Zuzana (Sokol Všetaty) | D58: - | E58: =C55 -> Bye | M58: =IF(H58="WO","3:0",IF(H58="WO-","0:3",CONCATENATE(V58,":",W58))) -> 0:0 | Q58: =IF(H58="",0,IF(OR(H58<0,H58="0-"),"0:1","1:0")) -> 0 | R58: 0 | S58: 0 | T58: 0 | U58: 0 | V58: =LEFT(Q58,1)+LEFT(R58,1)+LEFT(S58,1)+LEFT(T58,1)+LEFT(U58,1) -> 0 | W58: =RIGHT(Q58,1)+RIGHT(R58,1)+RIGHT(S58,1)+RIGHT(T58,1)+RIGHT(U58,1) -> 0 | X58: =IF(OR(LEFT(H58,2)="WO",H58="0-",H58=""),0,IF(H58<0,ABS(H58),IF(H58<10,11,H58+2))) -> 0 | Y58: =IF(OR(LEFT(H58,2)="WO",I58="0-",I58=""),0,IF(I58<0,ABS(I58),IF(I58<10,11,I58+2))) -> 0 | Z58: =IF(OR(LEFT(H58,2)="WO",J58="0-",J58=""),0,IF(J58<0,ABS(J58),IF(J58<10,11,J58+2))) -> 0 | AA58: =IF(OR(LEFT(H58,2)="WO",K58="0-",K58=""),0,IF(K58<0,ABS(K58),IF(K58<10,11,K58+2))) -> 0 | AB58: =IF(OR(LEFT(H58,2)="WO",L58="0-",L58=""),0,IF(L58<0,ABS(L58),IF(L58<10,11,L58+2))) -> 0 | AC58: =SUM(X58:AB58) -> 0 | AD58: =IF(H58="0-",11,IF(OR(LEFT(H58,2)="WO",H58=""),0,IF(H58<0,IF(ABS(H58)<10,11,ABS(H58)+2),H58))) -> 0 | AE58: =IF(I58="0-",11,IF(OR(LEFT(H58,2)="WO",I58="0-",I58=""),0,IF(I58<0,IF(ABS(I58)<10,11,ABS(I58)+2),I58))) -> 0 | AF58: =IF(J58="0-",11,IF(OR(LEFT(H58,2)="WO",J58="0-",J58=""),0,IF(J58<0,IF(ABS(J58)<10,11,ABS(J58)+2),J58))) -> 0 | AG58: =IF(K58="0-",11,IF(OR(LEFT(H58,2)="WO",K58="0-",K58=""),0,IF(K58<0,IF(ABS(K58)<10,11,ABS(K58)+2),K58))) -> 0 | AH58: =IF(L58="0-",11,IF(OR(LEFT(H58,2)="WO",L58="0-",L58=""),0,IF(L58<0,IF(ABS(L58)<10,11,ABS(L58)+2),L58))) -> 0 | AI58: =SUM(AD58:AH58) -> 0 | AJ58: =CONCATENATE(B58,"-",E58) -> Mučková Zuzana (Sokol Všetaty)-Bye
B59: =C53 -> Svejkovská Valerie (Králův Dvůr | C59: =#REF! ->  | D59: - | E59: =C54 -> Bubeníčková Kateřina | F59: =C54 -> Bubeníčková Kateřina | H59: -100 | I59: -4 | J59: 2 | K59: -3 | M59: =IF(H59="WO","3:0",IF(H59="WO-","0:3",CONCATENATE(V59,":",W59))) -> 1:3 | Q59: 0:1 | R59: 0:1 | S59: 1:0 | T59: 0:1 | U59: 0 | V59: =LEFT(Q59,1)+LEFT(R59,1)+LEFT(S59,1)+LEFT(T59,1)+LEFT(U59,1) -> 1 | W59: =RIGHT(Q59,1)+RIGHT(R59,1)+RIGHT(S59,1)+RIGHT(T59,1)+RIGHT(U59,1) -> 3 | X59: =IF(OR(LEFT(H59,2)="WO",H59="0-",H59=""),0,IF(H59<0,ABS(H59),IF(H59<10,11,H59+2))) -> 100 | Y59: =IF(OR(LEFT(H59,2)="WO",I59="0-",I59=""),0,IF(I59<0,ABS(I59),IF(I59<10,11,I59+2))) -> 4 | Z59: =IF(OR(LEFT(H59,2)="WO",J59="0-",J59=""),0,IF(J59<0,ABS(J59),IF(J59<10,11,J59+2))) -> 11 | AA59: =IF(OR(LEFT(H59,2)="WO",K59="0-",K59=""),0,IF(K59<0,ABS(K59),IF(K59<10,11,K59+2))) -> 3 | AB59: =IF(OR(LEFT(H59,2)="WO",L59="0-",L59=""),0,IF(L59<0,ABS(L59),IF(L59<10,11,L59+2))) -> 0 | AC59: =SUM(X59:AB59) -> 118 | AD59: =IF(H59="0-",11,IF(OR(LEFT(H59,2)="WO",H59=""),0,IF(H59<0,IF(ABS(H59)<10,11,ABS(H59)+2),H59))) -> 102 | AE59: =IF(I59="0-",11,IF(OR(LEFT(H59,2)="WO",I59="0-",I59=""),0,IF(I59<0,IF(ABS(I59)<10,11,ABS(I59)+2),I59))) -> 11 | AF59: =IF(J59="0-",11,IF(OR(LEFT(H59,2)="WO",J59="0-",J59=""),0,IF(J59<0,IF(ABS(J59)<10,11,ABS(J59)+2),J59))) -> 2 | AG59: =IF(K59="0-",11,IF(OR(LEFT(H59,2)="WO",K59="0-",K59=""),0,IF(K59<0,IF(ABS(K59)<10,11,ABS(K59)+2),K59))) -> 11 | AH59: =IF(L59="0-",11,IF(OR(LEFT(H59,2)="WO",L59="0-",L59=""),0,IF(L59<0,IF(ABS(L59)<10,11,ABS(L59)+2),L59))) -> 0 | AI59: =SUM(AD59:AH59) -> 126 | AJ59: =CONCATENATE(B59,"-",E59) -> Svejkovská Valerie (Králův Dvůr-Bubeníčková Kateřina
B60: II.kolo | H60: 1.set | I60: 2.set | J60: 3.set | K60: 4.set | L60: 5.set | M60: výsledek
B61: =C55 -> Bye | C61: =C55 -> Bye | D61: - | E61: =C54 -> Bubeníčková Kateřina | F61: =C54 -> Bubeníčková Kateřina | M61: =IF(H61="WO","3:0",IF(H61="WO-","0:3",CONCATENATE(V61,":",W61))) -> 0:0 | Q61: =IF(H61="",0,IF(OR(H61<0,H61="0-"),"0:1","1:0")) -> 0 | R61: 0 | S61: 0 | T61: 0 | U61: 0 | V61: =LEFT(Q61,1)+LEFT(R61,1)+LEFT(S61,1)+LEFT(T61,1)+LEFT(U61,1) -> 0 | W61: =RIGHT(Q61,1)+RIGHT(R61,1)+RIGHT(S61,1)+RIGHT(T61,1)+RIGHT(U61,1) -> 0 | X61: =IF(OR(LEFT(H61,2)="WO",H61="0-",H61=""),0,IF(H61<0,ABS(H61),IF(H61<10,11,H61+2))) -> 0 | Y61: =IF(OR(LEFT(H61,2)="WO",I61="0-",I61=""),0,IF(I61<0,ABS(I61),IF(I61<10,11,I61+2))) -> 0 | Z61: =IF(OR(LEFT(H61,2)="WO",J61="0-",J61=""),0,IF(J61<0,ABS(J61),IF(J61<10,11,J61+2))) -> 0 | AA61: =IF(OR(LEFT(H61,2)="WO",K61="0-",K61=""),0,IF(K61<0,ABS(K61),IF(K61<10,11,K61+2))) -> 0 | AB61: =IF(OR(LEFT(H61,2)="WO",L61="0-",L61=""),0,IF(L61<0,ABS(L61),IF(L61<10,11,L61+2))) -> 0 | AC61: 0 | AD61: =IF(H61="0-",11,IF(OR(LEFT(H61,2)="WO",H61=""),0,IF(H61<0,IF(ABS(H61)<10,11,ABS(H61)+2),H61))) -> 0 | AE61: =IF(I61="0-",11,IF(OR(LEFT(H61,2)="WO",I61="0-",I61=""),0,IF(I61<0,IF(ABS(I61)<10,11,ABS(I61)+2),I61))) -> 0 | AF61: =IF(J61="0-",11,IF(OR(LEFT(H61,2)="WO",J61="0-",J61=""),0,IF(J61<0,IF(ABS(J61)<10,11,ABS(J61)+2),J61))) -> 0 | AG61: =IF(K61="0-",11,IF(OR(LEFT(H61,2)="WO",K61="0-",K61=""),0,IF(K61<0,IF(ABS(K61)<10,11,ABS(K61)+2),K61))) -> 0 | AH61: =IF(L61="0-",11,IF(OR(LEFT(H61,2)="WO",L61="0-",L61=""),0,IF(L61<0,IF(ABS(L61)<10,11,ABS(L61)+2),L61))) -> 0 | AI61: 0 | AJ61: =CONCATENATE(B61,"-",E61) -> Bye-Bubeníčková Kateřina
B62: =C52 -> Mučková Zuzana (Sokol Všetaty) | C62: =C53 -> Svejkovská Valerie (Králův Dvůr | D62: - | E62: =C53 -> Svejkovská Valerie (Králův Dvůr | F62: =C53 -> Svejkovská Valerie (Králův Dvůr | H62: 6 | I62: 5 | J62: 6 | M62: =IF(H62="WO","3:0",IF(H62="WO-","0:3",CONCATENATE(V62,":",W62))) -> 3:0 | Q62: 1:0 | R62: 1:0 | S62: 1:0 | T62: 0 | U62: 0 | V62: 3 | W62: 0 | X62: =IF(OR(LEFT(H62,2)="WO",H62="0-",H62=""),0,IF(H62<0,ABS(H62),IF(H62<10,11,H62+2))) -> 11 | Y62: =IF(OR(LEFT(H62,2)="WO",I62="0-",I62=""),0,IF(I62<0,ABS(I62),IF(I62<10,11,I62+2))) -> 11 | Z62: =IF(OR(LEFT(H62,2)="WO",J62="0-",J62=""),0,IF(J62<0,ABS(J62),IF(J62<10,11,J62+2))) -> 11 | AA62: =IF(OR(LEFT(H62,2)="WO",K62="0-",K62=""),0,IF(K62<0,ABS(K62),IF(K62<10,11,K62+2))) -> 0 | AB62: =IF(OR(LEFT(H62,2)="WO",L62="0-",L62=""),0,IF(L62<0,ABS(L62),IF(L62<10,11,L62+2))) -> 0 | AC62: 33 | AD62: =IF(H62="0-",11,IF(OR(LEFT(H62,2)="WO",H62=""),0,IF(H62<0,IF(ABS(H62)<10,11,ABS(H62)+2),H62))) -> 6 | AE62: =IF(I62="0-",11,IF(OR(LEFT(H62,2)="WO",I62="0-",I62=""),0,IF(I62<0,IF(ABS(I62)<10,11,ABS(I62)+2),I62))) -> 5 | AF62: =IF(J62="0-",11,IF(OR(LEFT(H62,2)="WO",J62="0-",J62=""),0,IF(J62<0,IF(ABS(J62)<10,11,ABS(J62)+2),J62))) -> 6 | AG62: =IF(K62="0-",11,IF(OR(LEFT(H62,2)="WO",K62="0-",K62=""),0,IF(K62<0,IF(ABS(K62)<10,11,ABS(K62)+2),K62))) -> 0 | AH62: =IF(L62="0-",11,IF(OR(LEFT(H62,2)="WO",L62="0-",L62=""),0,IF(L62<0,IF(ABS(L62)<10,11,ABS(L62)+2),L62))) -> 0 | AI62: 17 | AJ62: =CONCATENATE(B62,"-",E62) -> Mučková Zuzana (Sokol Všetaty)-Svejkovská Valerie (Králův Dvůr
B63: III.kolo | H63: 1.set | I63: 2.set | J63: 3.set | K63: 4.set | L63: 5.set | M63: výsledek
B64: =C53 -> Svejkovská Valerie (Králův Dvůr | C64: =#REF! ->  | D64: - | E64: =C55 -> Bye | F64: =C55 -> Bye | M64: =IF(H64="WO","3:0",IF(H64="WO-","0:3",CONCATENATE(V64,":",W64))) -> 0:0 | Q64: =IF(H64="",0,IF(OR(H64<0,H64="0-"),"0:1","1:0")) -> 0 | R64: 0 | S64: 0 | T64: 0 | U64: 0 | V64: =LEFT(Q64,1)+LEFT(R64,1)+LEFT(S64,1)+LEFT(T64,1)+LEFT(U64,1) -> 0 | W64: =RIGHT(Q64,1)+RIGHT(R64,1)+RIGHT(S64,1)+RIGHT(T64,1)+RIGHT(U64,1) -> 0 | X64: =IF(OR(LEFT(H64,2)="WO",H64="0-",H64=""),0,IF(H64<0,ABS(H64),IF(H64<10,11,H64+2))) -> 0 | Y64: =IF(OR(LEFT(H64,2)="WO",I64="0-",I64=""),0,IF(I64<0,ABS(I64),IF(I64<10,11,I64+2))) -> 0 | Z64: =IF(OR(LEFT(H64,2)="WO",J64="0-",J64=""),0,IF(J64<0,ABS(J64),IF(J64<10,11,J64+2))) -> 0 | AA64: =IF(OR(LEFT(H64,2)="WO",K64="0-",K64=""),0,IF(K64<0,ABS(K64),IF(K64<10,11,K64+2))) -> 0 | AB64: =IF(OR(LEFT(H64,2)="WO",L64="0-",L64=""),0,IF(L64<0,ABS(L64),IF(L64<10,11,L64+2))) -> 0 | AC64: 0 | AD64: =IF(H64="0-",11,IF(OR(LEFT(H64,2)="WO",H64=""),0,IF(H64<0,IF(ABS(H64)<10,11,ABS(H64)+2),H64))) -> 0 | AE64: =IF(I64="0-",11,IF(OR(LEFT(H64,2)="WO",I64="0-",I64=""),0,IF(I64<0,IF(ABS(I64)<10,11,ABS(I64)+2),I64))) -> 0 | AF64: =IF(J64="0-",11,IF(OR(LEFT(H64,2)="WO",J64="0-",J64=""),0,IF(J64<0,IF(ABS(J64)<10,11,ABS(J64)+2),J64))) -> 0 | AG64: =IF(K64="0-",11,IF(OR(LEFT(H64,2)="WO",K64="0-",K64=""),0,IF(K64<0,IF(ABS(K64)<10,11,ABS(K64)+2),K64))) -> 0 | AH64: =IF(L64="0-",11,IF(OR(LEFT(H64,2)="WO",L64="0-",L64=""),0,IF(L64<0,IF(ABS(L64)<10,11,ABS(L64)+2),L64))) -> 0 | AI64: 0 | AJ64: =CONCATENATE(B64,"-",E64) -> Svejkovská Valerie (Králův Dvůr-Bye
B65: =C54 -> Bubeníčková Kateřina | C65: =#REF! ->  | D65: - | E65: =C52 -> Mučková Zuzana (Sokol Všetaty) | F65: =C52 -> Mučková Zuzana (Sokol Všetaty) | H65: -2 | I65: -5 | J65: -3 | M65: =IF(H65="WO","3:0",IF(H65="WO-","0:3",CONCATENATE(V65,":",W65))) -> 0:3 | Q65: 0:1 | R65: 0:1 | S65: 0:1 | T65: 0 | U65: 0 | V65: 0 | W65: 3 | X65: =IF(OR(LEFT(H65,2)="WO",H65="0-",H65=""),0,IF(H65<0,ABS(H65),IF(H65<10,11,H65+2))) -> 2 | Y65: =IF(OR(LEFT(H65,2)="WO",I65="0-",I65=""),0,IF(I65<0,ABS(I65),IF(I65<10,11,I65+2))) -> 5 | Z65: =IF(OR(LEFT(H65,2)="WO",J65="0-",J65=""),0,IF(J65<0,ABS(J65),IF(J65<10,11,J65+2))) -> 3 | AA65: =IF(OR(LEFT(H65,2)="WO",K65="0-",K65=""),0,IF(K65<0,ABS(K65),IF(K65<10,11,K65+2))) -> 0 | AB65: =IF(OR(LEFT(H65,2)="WO",L65="0-",L65=""),0,IF(L65<0,ABS(L65),IF(L65<10,11,L65+2))) -> 0 | AC65: 10 | AD65: =IF(H65="0-",11,IF(OR(LEFT(H65,2)="WO",H65=""),0,IF(H65<0,IF(ABS(H65)<10,11,ABS(H65)+2),H65))) -> 11 | AE65: =IF(I65="0-",11,IF(OR(LEFT(H65,2)="WO",I65="0-",I65=""),0,IF(I65<0,IF(ABS(I65)<10,11,ABS(I65)+2),I65))) -> 11 | AF65: =IF(J65="0-",11,IF(OR(LEFT(H65,2)="WO",J65="0-",J65=""),0,IF(J65<0,IF(ABS(J65)<10,11,ABS(J65)+2),J65))) -> 11 | AG65: =IF(K65="0-",11,IF(OR(LEFT(H65,2)="WO",K65="0-",K65=""),0,IF(K65<0,IF(ABS(K65)<10,11,ABS(K65)+2),K65))) -> 0 | AH65: =IF(L65="0-",11,IF(OR(LEFT(H65,2)="WO",L65="0-",L65=""),0,IF(L65<0,IF(ABS(L65)<10,11,ABS(L65)+2),L65))) -> 0 | AI65: 33 | AJ65: =CONCATENATE(B65,"-",E65) -> Bubeníčková Kateřina-Mučková Zuzana (Sokol Všetaty)
B68: Skupina E | E68: =C69 -> jméno a oddíl | F68: =C70 -> jméno a oddíl | G68: =C71 -> jméno a oddíl | H68: =C72 -> jméno a oddíl | I68: Skóre | J68: Body | K68: Míčky | L68: Pořadí | M68: Pavouk
B69: 1 | C69: jméno a oddíl | F69: =IF(OR(LEFT(B79,3)="bye",LEFT(E79,3)="bye"),"0:0",M79) -> 0:0 | G69: =CONCATENATE(RIGHT(E71,1),MID(E71,2,1),LEFT(E71,1)) -> 0:0 | H69: =IF(OR(LEFT(B75,3)="bye",LEFT(E75,3)="bye"),"0:0",M75) -> 0:0 | I69: =CONCATENATE(LEFT(F69,1)+LEFT(G69,1)+LEFT(H69,1),":",RIGHT(F69,1)+RIGHT(G69,1)+RIGHT(H69,1)) -> 0:0 | J69: =IF(LEFT(C69,3)="bye",0,IF(OR(F69="0:0",H79="WO-"),0,IF(LEFT(F69,1)="3",2,1))+IF(OR(G69="0:0",H82="WO"),0,IF(LEFT(G69,1)="3",2,1))+IF(OR(H69="0:0",H75="WO-"),0,IF(LEFT(H69,1)="3",2,1))) -> 0 | K69: =IF(LEFT(C69,3)="bye",0,CONCATENATE(AC75+AC79+AI82,":",AI75+AI79+AC82)) -> 0:0 | M69: E1
B70: 2 | C70: jméno a oddíl | E70: =CONCATENATE(RIGHT(F69,1),MID(F69,2,1),LEFT(F69,1)) -> 0:0 | G70: =IF(OR(LEFT(B76,3)="bye",LEFT(E76,3)="bye"),"0:0",M76) -> 0:0 | H70: =IF(OR(LEFT(B81,3)="bye",LEFT(E81,3)="bye"),"0:0",M81) -> 0:0 | I70: =CONCATENATE(LEFT(E70,1)+LEFT(G70,1)+LEFT(H70,1),":",RIGHT(E70,1)+RIGHT(G70,1)+RIGHT(H70,1)) -> 0:0 | J70: =IF(LEFT(C70,3)="bye",0,IF(OR(E70="0:0",H79="WO"),0,IF(LEFT(E70,1)="3",2,1))+IF(OR(G70="0:0",H76="WO-"),0,IF(LEFT(G70,1)="3",2,1))+IF(OR(H70="0:0",H81="WO-"),0,IF(LEFT(H70,1)="3",2,1))) -> 0 | K70: =IF(LEFT(C70,3)="bye",0,CONCATENATE(AC76+AI79+AC81,":",AI76+AC79+AI81)) -> 0:0 | M70: E2
B71: 3 | C71: jméno a oddíl | E71: =IF(OR(LEFT(B82,3)="bye",LEFT(E82,3)="bye"),"0:0",M82) -> 0:0 | F71: =CONCATENATE(RIGHT(G70,1),MID(G70,2,1),LEFT(G70,1)) -> 0:0 | H71: =CONCATENATE(RIGHT(G72,1),MID(G72,2,1),LEFT(G72,1)) -> 0:0 | I71: =CONCATENATE(LEFT(E71,1)+LEFT(F71,1)+LEFT(H71,1),":",RIGHT(E71,1)+RIGHT(F71,1)+RIGHT(H71,1)) -> 0:0 | J71: =IF(LEFT(C71,3)="bye",0,IF(OR(E71="0:0",H82="WO-"),0,IF(LEFT(E71,1)="3",2,1))+IF(OR(F71="0:0",H76="WO"),0,IF(LEFT(F71,1)="3",2,1))+IF(OR(H71="0:0",H78="WO"),0,IF(LEFT(H71,1)="3",2,1))) -> 0 | K71: =IF(LEFT(C71,3)="bye",0,CONCATENATE(AI76+AI78+AC82,":",AC76+AC78+AI82)) -> 0:0 | M71: E3
B72: 4 | C72: jméno a oddíl | E72: =CONCATENATE(RIGHT(H69,1),MID(H69,2,1),LEFT(H69,1)) -> 0:0 | F72: =CONCATENATE(RIGHT(H70,1),MID(H70,2,1),LEFT(H70,1)) -> 0:0 | G72: =IF(OR(LEFT(B78,3)="bye",LEFT(E78,3)="bye"),"0:0",M78) -> 0:0 | I72: =CONCATENATE(LEFT(E72,1)+LEFT(F72,1)+LEFT(G72,1),":",RIGHT(E72,1)+RIGHT(F72,1)+RIGHT(G72,1)) -> 0:0 | J72: =IF(LEFT(C72,3)="bye",0,IF(OR(E72="0:0",H75="WO"),0,IF(LEFT(E72,1)="3",2,1))+IF(OR(F72="0:0",H81="WO"),0,IF(LEFT(F72,1)="3",2,1))+IF(OR(G72="0:0",H78="WO-"),0,IF(LEFT(G72,1)="3",2,1))) -> 0 | K72: =IF(LEFT(C71,3)="bye",0,CONCATENATE(AI75+AC78+AI81,":",AC75+AI78+AC81)) -> 0:0 | M72: E4
B74: I.kolo | H74: 1.set | I74: 2.set | J74: 3.set | K74: 4.set | L74: 5.set | M74: výsledek
B75: =C69 -> jméno a oddíl | D75: - | E75: =C72 -> jméno a oddíl | M75: =IF(H75="WO","3:0",IF(H75="WO-","0:3",CONCATENATE(V75,":",W75))) -> 0:0 | Q75: =IF(H75="",0,IF(OR(H75<0,H75="0-"),"0:1","1:0")) -> 0 | R75: 0 | S75: 0 | T75: 0 | U75: 0 | V75: =LEFT(Q75,1)+LEFT(R75,1)+LEFT(S75,1)+LEFT(T75,1)+LEFT(U75,1) -> 0 | W75: =RIGHT(Q75,1)+RIGHT(R75,1)+RIGHT(S75,1)+RIGHT(T75,1)+RIGHT(U75,1) -> 0 | X75: =IF(OR(LEFT(H75,2)="WO",H75="0-",H75=""),0,IF(H75<0,ABS(H75),IF(H75<10,11,H75+2))) -> 0 | Y75: =IF(OR(LEFT(H75,2)="WO",I75="0-",I75=""),0,IF(I75<0,ABS(I75),IF(I75<10,11,I75+2))) -> 0 | Z75: =IF(OR(LEFT(H75,2)="WO",J75="0-",J75=""),0,IF(J75<0,ABS(J75),IF(J75<10,11,J75+2))) -> 0 | AA75: =IF(OR(LEFT(H75,2)="WO",K75="0-",K75=""),0,IF(K75<0,ABS(K75),IF(K75<10,11,K75+2))) -> 0 | AB75: =IF(OR(LEFT(H75,2)="WO",L75="0-",L75=""),0,IF(L75<0,ABS(L75),IF(L75<10,11,L75+2))) -> 0 | AC75: =SUM(X75:AB75) -> 0 | AD75: =IF(H75="0-",11,IF(OR(LEFT(H75,2)="WO",H75=""),0,IF(H75<0,IF(ABS(H75)<10,11,ABS(H75)+2),H75))) -> 0 | AE75: =IF(I75="0-",11,IF(OR(LEFT(H75,2)="WO",I75="0-",I75=""),0,IF(I75<0,IF(ABS(I75)<10,11,ABS(I75)+2),I75))) -> 0 | AF75: =IF(J75="0-",11,IF(OR(LEFT(H75,2)="WO",J75="0-",J75=""),0,IF(J75<0,IF(ABS(J75)<10,11,ABS(J75)+2),J75))) -> 0 | AG75: =IF(K75="0-",11,IF(OR(LEFT(H75,2)="WO",K75="0-",K75=""),0,IF(K75<0,IF(ABS(K75)<10,11,ABS(K75)+2),K75))) -> 0 | AH75: =IF(L75="0-",11,IF(OR(LEFT(H75,2)="WO",L75="0-",L75=""),0,IF(L75<0,IF(ABS(L75)<10,11,ABS(L75)+2),L75))) -> 0 | AI75: =SUM(AD75:AH75) -> 0 | AJ75: =CONCATENATE(B75,"-",E75) -> jméno a oddíl-jméno a oddíl
B76: =C70 -> jméno a oddíl | C76: =#REF! ->  | D76: - | E76: =C71 -> jméno a oddíl | F76: =C71 -> jméno a oddíl | M76: =IF(H76="WO","3:0",IF(H76="WO-","0:3",CONCATENATE(V76,":",W76))) -> 0:0 | Q76: 0 | R76: 0 | S76: 0 | T76: 0 | U76: 0 | V76: =LEFT(Q76,1)+LEFT(R76,1)+LEFT(S76,1)+LEFT(T76,1)+LEFT(U76,1) -> 0 | W76: =RIGHT(Q76,1)+RIGHT(R76,1)+RIGHT(S76,1)+RIGHT(T76,1)+RIGHT(U76,1) -> 0 | X76: =IF(OR(LEFT(H76,2)="WO",H76="0-",H76=""),0,IF(H76<0,ABS(H76),IF(H76<10,11,H76+2))) -> 0 | Y76: =IF(OR(LEFT(H76,2)="WO",I76="0-",I76=""),0,IF(I76<0,ABS(I76),IF(I76<10,11,I76+2))) -> 0 | Z76: =IF(OR(LEFT(H76,2)="WO",J76="0-",J76=""),0,IF(J76<0,ABS(J76),IF(J76<10,11,J76+2))) -> 0 | AA76: =IF(OR(LEFT(H76,2)="WO",K76="0-",K76=""),0,IF(K76<0,ABS(K76),IF(K76<10,11,K76+2))) -> 0 | AB76: =IF(OR(LEFT(H76,2)="WO",L76="0-",L76=""),0,IF(L76<0,ABS(L76),IF(L76<10,11,L76+2))) -> 0 | AC76: =SUM(X76:AB76) -> 0 | AD76: =IF(H76="0-",11,IF(OR(LEFT(H76,2)="WO",H76=""),0,IF(H76<0,IF(ABS(H76)<10,11,ABS(H76)+2),H76))) -> 0 | AE76: =IF(I76="0-",11,IF(OR(LEFT(H76,2)="WO",I76="0-",I76=""),0,IF(I76<0,IF(ABS(I76)<10,11,ABS(I76)+2),I76))) -> 0 | AF76: =IF(J76="0-",11,IF(OR(LEFT(H76,2)="WO",J76="0-",J76=""),0,IF(J76<0,IF(ABS(J76)<10,11,ABS(J76)+2),J76))) -> 0 | AG76: =IF(K76="0-",11,IF(OR(LEFT(H76,2)="WO",K76="0-",K76=""),0,IF(K76<0,IF(ABS(K76)<10,11,ABS(K76)+2),K76))) -> 0 | AH76: =IF(L76="0-",11,IF(OR(LEFT(H76,2)="WO",L76="0-",L76=""),0,IF(L76<0,IF(ABS(L76)<10,11,ABS(L76)+2),L76))) -> 0 | AI76: =SUM(AD76:AH76) -> 0 | AJ76: =CONCATENATE(B76,"-",E76) -> jméno a oddíl-jméno a oddíl
B77: II.kolo | H77: 1.set | I77: 2.set | J77: 3.set | K77: 4.set | L77: 5.set | M77: výsledek
B78: =C72 -> jméno a oddíl | C78: =C72 -> jméno a oddíl | D78: - | E78: =C71 -> jméno a oddíl | F78: =C71 -> jméno a oddíl | M78: =IF(H78="WO","3:0",IF(H78="WO-","0:3",CONCATENATE(V78,":",W78))) -> 0:0 | Q78: =IF(H78="",0,IF(OR(H78<0,H78="0-"),"0:1","1:0")) -> 0 | R78: 0 | S78: 0 | T78: 0 | U78: 0 | V78: =LEFT(Q78,1)+LEFT(R78,1)+LEFT(S78,1)+LEFT(T78,1)+LEFT(U78,1) -> 0 | W78: =RIGHT(Q78,1)+RIGHT(R78,1)+RIGHT(S78,1)+RIGHT(T78,1)+RIGHT(U78,1) -> 0 | X78: =IF(OR(LEFT(H78,2)="WO",H78="0-",H78=""),0,IF(H78<0,ABS(H78),IF(H78<10,11,H78+2))) -> 0 | Y78: =IF(OR(LEFT(H78,2)="WO",I78="0-",I78=""),0,IF(I78<0,ABS(I78),IF(I78<10,11,I78+2))) -> 0 | Z78: =IF(OR(LEFT(H78,2)="WO",J78="0-",J78=""),0,IF(J78<0,ABS(J78),IF(J78<10,11,J78+2))) -> 0 | AA78: =IF(OR(LEFT(H78,2)="WO",K78="0-",K78=""),0,IF(K78<0,ABS(K78),IF(K78<10,11,K78+2))) -> 0 | AB78: =IF(OR(LEFT(H78,2)="WO",L78="0-",L78=""),0,IF(L78<0,ABS(L78),IF(L78<10,11,L78+2))) -> 0 | AC78: =SUM(X78:AB78) -> 0 | AD78: =IF(H78="0-",11,IF(OR(LEFT(H78,2)="WO",H78=""),0,IF(H78<0,IF(ABS(H78)<10,11,ABS(H78)+2),H78))) -> 0 | AE78: =IF(I78="0-",11,IF(OR(LEFT(H78,2)="WO",I78="0-",I78=""),0,IF(I78<0,IF(ABS(I78)<10,11,ABS(I78)+2),I78))) -> 0 | AF78: =IF(J78="0-",11,IF(OR(LEFT(H78,2)="WO",J78="0-",J78=""),0,IF(J78<0,IF(ABS(J78)<10,11,ABS(J78)+2),J78))) -> 0 | AG78: =IF(K78="0-",11,IF(OR(LEFT(H78,2)="WO",K78="0-",K78=""),0,IF(K78<0,IF(ABS(K78)<10,11,ABS(K78)+2),K78))) -> 0 | AH78: =IF(L78="0-",11,IF(OR(LEFT(H78,2)="WO",L78="0-",L78=""),0,IF(L78<0,IF(ABS(L78)<10,11,ABS(L78)+2),L78))) -> 0 | AI78: =SUM(AD78:AH78) -> 0 | AJ78: =CONCATENATE(B78,"-",E78) -> jméno a oddíl-jméno a oddíl
B79: =C69 -> jméno a oddíl | C79: =C70 -> jméno a oddíl | D79: - | E79: =C70 -> jméno a oddíl | F79: =C70 -> jméno a oddíl | M79: =IF(H79="WO","3:0",IF(H79="WO-","0:3",CONCATENATE(V79,":",W79))) -> 0:0 | Q79: 0 | R79: 0 | S79: 0 | T79: 0 | U79: 0 | V79: 0 | W79: 0 | X79: =IF(OR(LEFT(H79,2)="WO",H79="0-",H79=""),0,IF(H79<0,ABS(H79),IF(H79<10,11,H79+2))) -> 0 | Y79: =IF(OR(LEFT(H79,2)="WO",I79="0-",I79=""),0,IF(I79<0,ABS(I79),IF(I79<10,11,I79+2))) -> 0 | Z79: =IF(OR(LEFT(H79,2)="WO",J79="0-",J79=""),0,IF(J79<0,ABS(J79),IF(J79<10,11,J79+2))) -> 0 | AA79: =IF(OR(LEFT(H79,2)="WO",K79="0-",K79=""),0,IF(K79<0,ABS(K79),IF(K79<10,11,K79+2))) -> 0 | AB79: =IF(OR(LEFT(H79,2)="WO",L79="0-",L79=""),0,IF(L79<0,ABS(L79),IF(L79<10,11,L79+2))) -> 0 | AC79: 0 | AD79: =IF(H79="0-",11,IF(OR(LEFT(H79,2)="WO",H79=""),0,IF(H79<0,IF(ABS(H79)<10,11,ABS(H79)+2),H79))) -> 0 | AE79: =IF(I79="0-",11,IF(OR(LEFT(H79,2)="WO",I79="0-",I79=""),0,IF(I79<0,IF(ABS(I79)<10,11,ABS(I79)+2),I79))) -> 0 | AF79: =IF(J79="0-",11,IF(OR(LEFT(H79,2)="WO",J79="0-",J79=""),0,IF(J79<0,IF(ABS(J79)<10,11,ABS(J79)+2),J79))) -> 0 | AG79: =IF(K79="0-",11,IF(OR(LEFT(H79,2)="WO",K79="0-",K79=""),0,IF(K79<0,IF(ABS(K79)<10,11,ABS(K79)+2),K79))) -> 0 | AH79: =IF(L79="0-",11,IF(OR(LEFT(H79,2)="WO",L79="0-",L79=""),0,IF(L79<0,IF(ABS(L79)<10,11,ABS(L79)+2),L79))) -> 0 | AI79: 0 | AJ79: =CONCATENATE(B79,"-",E79) -> jméno a oddíl-jméno a oddíl
B80: III.kolo | H80: 1.set | I80: 2.set | J80: 3.set | K80: 4.set | L80: 5.set | M80: výsledek
B81: =C70 -> jméno a oddíl | C81: =#REF! ->  | D81: - | E81: =C72 -> jméno a oddíl | F81: =C72 -> jméno a oddíl | M81: =IF(H81="WO","3:0",IF(H81="WO-","0:3",CONCATENATE(V81,":",W81))) -> 0:0 | Q81: =IF(H81="",0,IF(OR(H81<0,H81="0-"),"0:1","1:0")) -> 0 | R81: 0 | S81: 0 | T81: 0 | U81: 0 | V81: =LEFT(Q81,1)+LEFT(R81,1)+LEFT(S81,1)+LEFT(T81,1)+LEFT(U81,1) -> 0 | W81: =RIGHT(Q81,1)+RIGHT(R81,1)+RIGHT(S81,1)+RIGHT(T81,1)+RIGHT(U81,1) -> 0 | X81: =IF(OR(LEFT(H81,2)="WO",H81="0-",H81=""),0,IF(H81<0,ABS(H81),IF(H81<10,11,H81+2))) -> 0 | Y81: =IF(OR(LEFT(H81,2)="WO",I81="0-",I81=""),0,IF(I81<0,ABS(I81),IF(I81<10,11,I81+2))) -> 0 | Z81: =IF(OR(LEFT(H81,2)="WO",J81="0-",J81=""),0,IF(J81<0,ABS(J81),IF(J81<10,11,J81+2))) -> 0 | AA81: =IF(OR(LEFT(H81,2)="WO",K81="0-",K81=""),0,IF(K81<0,ABS(K81),IF(K81<10,11,K81+2))) -> 0 | AB81: =IF(OR(LEFT(H81,2)="WO",L81="0-",L81=""),0,IF(L81<0,ABS(L81),IF(L81<10,11,L81+2))) -> 0 | AC81: =SUM(X81:AB81) -> 0 | AD81: =IF(H81="0-",11,IF(OR(LEFT(H81,2)="WO",H81=""),0,IF(H81<0,IF(ABS(H81)<10,11,ABS(H81)+2),H81))) -> 0 | AE81: =IF(I81="0-",11,IF(OR(LEFT(H81,2)="WO",I81="0-",I81=""),0,IF(I81<0,IF(ABS(I81)<10,11,ABS(I81)+2),I81))) -> 0 | AF81: =IF(J81="0-",11,IF(OR(LEFT(H81,2)="WO",J81="0-",J81=""),0,IF(J81<0,IF(ABS(J81)<10,11,ABS(J81)+2),J81))) -> 0 | AG81: =IF(K81="0-",11,IF(OR(LEFT(H81,2)="WO",K81="0-",K81=""),0,IF(K81<0,IF(ABS(K81)<10,11,ABS(K81)+2),K81))) -> 0 | AH81: =IF(L81="0-",11,IF(OR(LEFT(H81,2)="WO",L81="0-",L81=""),0,IF(L81<0,IF(ABS(L81)<10,11,ABS(L81)+2),L81))) -> 0 | AI81: =SUM(AD81:AH81) -> 0 | AJ81: =CONCATENATE(B81,"-",E81) -> jméno a oddíl-jméno a oddíl
B82: =C71 -> jméno a oddíl | C82: =#REF! ->  | D82: - | E82: =C69 -> jméno a oddíl | F82: =C69 -> jméno a oddíl | M82: =IF(H82="WO","3:0",IF(H82="WO-","0:3",CONCATENATE(V82,":",W82))) -> 0:0 | Q82: 0 | R82: 0 | S82: 0 | T82: 0 | U82: 0 | V82: 0 | W82: 0 | X82: =IF(OR(LEFT(H82,2)="WO",H82="0-",H82=""),0,IF(H82<0,ABS(H82),IF(H82<10,11,H82+2))) -> 0 | Y82: =IF(OR(LEFT(H82,2)="WO",I82="0-",I82=""),0,IF(I82<0,ABS(I82),IF(I82<10,11,I82+2))) -> 0 | Z82: =IF(OR(LEFT(H82,2)="WO",J82="0-",J82=""),0,IF(J82<0,ABS(J82),IF(J82<10,11,J82+2))) -> 0 | AA82: =IF(OR(LEFT(H82,2)="WO",K82="0-",K82=""),0,IF(K82<0,ABS(K82),IF(K82<10,11,K82+2))) -> 0 | AB82: =IF(OR(LEFT(H82,2)="WO",L82="0-",L82=""),0,IF(L82<0,ABS(L82),IF(L82<10,11,L82+2))) -> 0 | AC82: 0 | AD82: =IF(H82="0-",11,IF(OR(LEFT(H82,2)="WO",H82=""),0,IF(H82<0,IF(ABS(H82)<10,11,ABS(H82)+2),H82))) -> 0 | AE82: =IF(I82="0-",11,IF(OR(LEFT(H82,2)="WO",I82="0-",I82=""),0,IF(I82<0,IF(ABS(I82)<10,11,ABS(I82)+2),I82))) -> 0 | AF82: =IF(J82="0-",11,IF(OR(LEFT(H82,2)="WO",J82="0-",J82=""),0,IF(J82<0,IF(ABS(J82)<10,11,ABS(J82)+2),J82))) -> 0 | AG82: =IF(K82="0-",11,IF(OR(LEFT(H82,2)="WO",K82="0-",K82=""),0,IF(K82<0,IF(ABS(K82)<10,11,ABS(K82)+2),K82))) -> 0 | AH82: =IF(L82="0-",11,IF(OR(LEFT(H82,2)="WO",L82="0-",L82=""),0,IF(L82<0,IF(ABS(L82)<10,11,ABS(L82)+2),L82))) -> 0 | AI82: 0 | AJ82: =CONCATENATE(B82,"-",E82) -> jméno a oddíl-jméno a oddíl
B85: Skupina F | E85: =C86 -> jméno a oddíl | F85: =C87 -> jméno a oddíl | G85: =C88 -> jméno a oddíl | H85: =C89 -> jméno a oddíl | I85: Skóre | J85: Body | K85: Míčky | L85: Pořadí | M85: Pavouk
B86: 1 | C86: jméno a oddíl | F86: =IF(OR(LEFT(B96,3)="bye",LEFT(E96,3)="bye"),"0:0",M96) -> 0:0 | G86: =CONCATENATE(RIGHT(E88,1),MID(E88,2,1),LEFT(E88,1)) -> 0:0 | H86: =IF(OR(LEFT(B92,3)="bye",LEFT(E92,3)="bye"),"0:0",M92) -> 0:0 | I86: =CONCATENATE(LEFT(F86,1)+LEFT(G86,1)+LEFT(H86,1),":",RIGHT(F86,1)+RIGHT(G86,1)+RIGHT(H86,1)) -> 0:0 | J86: =IF(LEFT(C86,3)="bye",0,IF(OR(F86="0:0",H96="WO-"),0,IF(LEFT(F86,1)="3",2,1))+IF(OR(G86="0:0",H99="WO"),0,IF(LEFT(G86,1)="3",2,1))+IF(OR(H86="0:0",H92="WO-"),0,IF(LEFT(H86,1)="3",2,1))) -> 0 | K86: =IF(LEFT(C86,3)="bye",0,CONCATENATE(AC92+AC96+AI99,":",AI92+AI96+AC99)) -> 0:0 | M86: F1
B87: 2 | C87: jméno a oddíl | E87: =CONCATENATE(RIGHT(F86,1),MID(F86,2,1),LEFT(F86,1)) -> 0:0 | G87: =IF(OR(LEFT(B93,3)="bye",LEFT(E93,3)="bye"),"0:0",M93) -> 0:0 | H87: =IF(OR(LEFT(B98,3)="bye",LEFT(E98,3)="bye"),"0:0",M98) -> 0:0 | I87: =CONCATENATE(LEFT(E87,1)+LEFT(G87,1)+LEFT(H87,1),":",RIGHT(E87,1)+RIGHT(G87,1)+RIGHT(H87,1)) -> 0:0 | J87: =IF(LEFT(C87,3)="bye",0,IF(OR(E87="0:0",H96="WO"),0,IF(LEFT(E87,1)="3",2,1))+IF(OR(G87="0:0",H93="WO-"),0,IF(LEFT(G87,1)="3",2,1))+IF(OR(H87="0:0",H98="WO-"),0,IF(LEFT(H87,1)="3",2,1))) -> 0 | K87: =IF(LEFT(C87,3)="bye",0,CONCATENATE(AC93+AI96+AC98,":",AI93+AC96+AI98)) -> 0:0 | M87: F2
B88: 3 | C88: jméno a oddíl | E88: =IF(OR(LEFT(B99,3)="bye",LEFT(E99,3)="bye"),"0:0",M99) -> 0:0 | F88: =CONCATENATE(RIGHT(G87,1),MID(G87,2,1),LEFT(G87,1)) -> 0:0 | H88: =CONCATENATE(RIGHT(G89,1),MID(G89,2,1),LEFT(G89,1)) -> 0:0 | I88: =CONCATENATE(LEFT(E88,1)+LEFT(F88,1)+LEFT(H88,1),":",RIGHT(E88,1)+RIGHT(F88,1)+RIGHT(H88,1)) -> 0:0 | J88: =IF(LEFT(C88,3)="bye",0,IF(OR(E88="0:0",H99="WO-"),0,IF(LEFT(E88,1)="3",2,1))+IF(OR(F88="0:0",H93="WO"),0,IF(LEFT(F88,1)="3",2,1))+IF(OR(H88="0:0",H95="WO"),0,IF(LEFT(H88,1)="3",2,1))) -> 0 | K88: =IF(LEFT(C88,3)="bye",0,CONCATENATE(AI93+AI95+AC99,":",AC93+AC95+AI99)) -> 0:0 | M88: F3
B89: 4 | C89: jméno a oddíl | E89: =CONCATENATE(RIGHT(H86,1),MID(H86,2,1),LEFT(H86,1)) -> 0:0 | F89: =CONCATENATE(RIGHT(H87,1),MID(H87,2,1),LEFT(H87,1)) -> 0:0 | G89: =IF(OR(LEFT(B95,3)="bye",LEFT(E95,3)="bye"),"0:0",M95) -> 0:0 | I89: =CONCATENATE(LEFT(E89,1)+LEFT(F89,1)+LEFT(G89,1),":",RIGHT(E89,1)+RIGHT(F89,1)+RIGHT(G89,1)) -> 0:0 | J89: =IF(LEFT(C89,3)="bye",0,IF(OR(E89="0:0",H92="WO"),0,IF(LEFT(E89,1)="3",2,1))+IF(OR(F89="0:0",H98="WO"),0,IF(LEFT(F89,1)="3",2,1))+IF(OR(G89="0:0",H95="WO-"),0,IF(LEFT(G89,1)="3",2,1))) -> 0 | K89: =IF(LEFT(C88,3)="bye",0,CONCATENATE(AI92+AC95+AI98,":",AC92+AI95+AC98)) -> 0:0 | M89: F4
B91: I.kolo | H91: 1.set | I91: 2.set | J91: 3.set | K91: 4.set | L91: 5.set | M91: výsledek
B92: =C86 -> jméno a oddíl | D92: - | E92: =C89 -> jméno a oddíl | M92: =IF(H92="WO","3:0",IF(H92="WO-","0:3",CONCATENATE(V92,":",W92))) -> 0:0 | Q92: =IF(H92="",0,IF(OR(H92<0,H92="0-"),"0:1","1:0")) -> 0 | R92: 0 | S92: 0 | T92: 0 | U92: 0 | V92: =LEFT(Q92,1)+LEFT(R92,1)+LEFT(S92,1)+LEFT(T92,1)+LEFT(U92,1) -> 0 | W92: =RIGHT(Q92,1)+RIGHT(R92,1)+RIGHT(S92,1)+RIGHT(T92,1)+RIGHT(U92,1) -> 0 | X92: =IF(OR(LEFT(H92,2)="WO",H92="0-",H92=""),0,IF(H92<0,ABS(H92),IF(H92<10,11,H92+2))) -> 0 | Y92: =IF(OR(LEFT(H92,2)="WO",I92="0-",I92=""),0,IF(I92<0,ABS(I92),IF(I92<10,11,I92+2))) -> 0 | Z92: =IF(OR(LEFT(H92,2)="WO",J92="0-",J92=""),0,IF(J92<0,ABS(J92),IF(J92<10,11,J92+2))) -> 0 | AA92: =IF(OR(LEFT(H92,2)="WO",K92="0-",K92=""),0,IF(K92<0,ABS(K92),IF(K92<10,11,K92+2))) -> 0 | AB92: =IF(OR(LEFT(H92,2)="WO",L92="0-",L92=""),0,IF(L92<0,ABS(L92),IF(L92<10,11,L92+2))) -> 0 | AC92: =SUM(X92:AB92) -> 0 | AD92: =IF(H92="0-",11,IF(OR(LEFT(H92,2)="WO",H92=""),0,IF(H92<0,IF(ABS(H92)<10,11,ABS(H92)+2),H92))) -> 0 | AE92: =IF(I92="0-",11,IF(OR(LEFT(H92,2)="WO",I92="0-",I92=""),0,IF(I92<0,IF(ABS(I92)<10,11,ABS(I92)+2),I92))) -> 0 | AF92: =IF(J92="0-",11,IF(OR(LEFT(H92,2)="WO",J92="0-",J92=""),0,IF(J92<0,IF(ABS(J92)<10,11,ABS(J92)+2),J92))) -> 0 | AG92: =IF(K92="0-",11,IF(OR(LEFT(H92,2)="WO",K92="0-",K92=""),0,IF(K92<0,IF(ABS(K92)<10,11,ABS(K92)+2),K92))) -> 0 | AH92: =IF(L92="0-",11,IF(OR(LEFT(H92,2)="WO",L92="0-",L92=""),0,IF(L92<0,IF(ABS(L92)<10,11,ABS(L92)+2),L92))) -> 0 | AI92: =SUM(AD92:AH92) -> 0 | AJ92: =CONCATENATE(B92,"-",E92) -> jméno a oddíl-jméno a oddíl
B93: =C87 -> jméno a oddíl | C93: =#REF! ->  | D93: - | E93: =C88 -> jméno a oddíl | F93: =C88 -> jméno a oddíl | M93: =IF(H93="WO","3:0",IF(H93="WO-","0:3",CONCATENATE(V93,":",W93))) -> 0:0 | Q93: 0 | R93: 0 | S93: 0 | T93: 0 | U93: 0 | V93: =LEFT(Q93,1)+LEFT(R93,1)+LEFT(S93,1)+LEFT(T93,1)+LEFT(U93,1) -> 0 | W93: =RIGHT(Q93,1)+RIGHT(R93,1)+RIGHT(S93,1)+RIGHT(T93,1)+RIGHT(U93,1) -> 0 | X93: =IF(OR(LEFT(H93,2)="WO",H93="0-",H93=""),0,IF(H93<0,ABS(H93),IF(H93<10,11,H93+2))) -> 0 | Y93: =IF(OR(LEFT(H93,2)="WO",I93="0-",I93=""),0,IF(I93<0,ABS(I93),IF(I93<10,11,I93+2))) -> 0 | Z93: =IF(OR(LEFT(H93,2)="WO",J93="0-",J93=""),0,IF(J93<0,ABS(J93),IF(J93<10,11,J93+2))) -> 0 | AA93: =IF(OR(LEFT(H93,2)="WO",K93="0-",K93=""),0,IF(K93<0,ABS(K93),IF(K93<10,11,K93+2))) -> 0 | AB93: =IF(OR(LEFT(H93,2)="WO",L93="0-",L93=""),0,IF(L93<0,ABS(L93),IF(L93<10,11,L93+2))) -> 0 | AC93: =SUM(X93:AB93) -> 0 | AD93: =IF(H93="0-",11,IF(OR(LEFT(H93,2)="WO",H93=""),0,IF(H93<0,IF(ABS(H93)<10,11,ABS(H93)+2),H93))) -> 0 | AE93: =IF(I93="0-",11,IF(OR(LEFT(H93,2)="WO",I93="0-",I93=""),0,IF(I93<0,IF(ABS(I93)<10,11,ABS(I93)+2),I93))) -> 0 | AF93: =IF(J93="0-",11,IF(OR(LEFT(H93,2)="WO",J93="0-",J93=""),0,IF(J93<0,IF(ABS(J93)<10,11,ABS(J93)+2),J93))) -> 0 | AG93: =IF(K93="0-",11,IF(OR(LEFT(H93,2)="WO",K93="0-",K93=""),0,IF(K93<0,IF(ABS(K93)<10,11,ABS(K93)+2),K93))) -> 0 | AH93: =IF(L93="0-",11,IF(OR(LEFT(H93,2)="WO",L93="0-",L93=""),0,IF(L93<0,IF(ABS(L93)<10,11,ABS(L93)+2),L93))) -> 0 | AI93: =SUM(AD93:AH93) -> 0 | AJ93: =CONCATENATE(B93,"-",E93) -> jméno a oddíl-jméno a oddíl
B94: II.kolo | H94: 1.set | I94: 2.set | J94: 3.set | K94: 4.set | L94: 5.set | M94: výsledek
B95: =C89 -> jméno a oddíl | C95: =C89 -> jméno a oddíl | D95: - | E95: =C88 -> jméno a oddíl | F95: =C88 -> jméno a oddíl | M95: =IF(H95="WO","3:0",IF(H95="WO-","0:3",CONCATENATE(V95,":",W95))) -> 0:0 | Q95: =IF(H95="",0,IF(OR(H95<0,H95="0-"),"0:1","1:0")) -> 0 | R95: 0 | S95: 0 | T95: 0 | U95: 0 | V95: =LEFT(Q95,1)+LEFT(R95,1)+LEFT(S95,1)+LEFT(T95,1)+LEFT(U95,1) -> 0 | W95: =RIGHT(Q95,1)+RIGHT(R95,1)+RIGHT(S95,1)+RIGHT(T95,1)+RIGHT(U95,1) -> 0 | X95: =IF(OR(LEFT(H95,2)="WO",H95="0-",H95=""),0,IF(H95<0,ABS(H95),IF(H95<10,11,H95+2))) -> 0 | Y95: =IF(OR(LEFT(H95,2)="WO",I95="0-",I95=""),0,IF(I95<0,ABS(I95),IF(I95<10,11,I95+2))) -> 0 | Z95: =IF(OR(LEFT(H95,2)="WO",J95="0-",J95=""),0,IF(J95<0,ABS(J95),IF(J95<10,11,J95+2))) -> 0 | AA95: =IF(OR(LEFT(H95,2)="WO",K95="0-",K95=""),0,IF(K95<0,ABS(K95),IF(K95<10,11,K95+2))) -> 0 | AB95: =IF(OR(LEFT(H95,2)="WO",L95="0-",L95=""),0,IF(L95<0,ABS(L95),IF(L95<10,11,L95+2))) -> 0 | AC95: =SUM(X95:AB95) -> 0 | AD95: =IF(H95="0-",11,IF(OR(LEFT(H95,2)="WO",H95=""),0,IF(H95<0,IF(ABS(H95)<10,11,ABS(H95)+2),H95))) -> 0 | AE95: =IF(I95="0-",11,IF(OR(LEFT(H95,2)="WO",I95="0-",I95=""),0,IF(I95<0,IF(ABS(I95)<10,11,ABS(I95)+2),I95))) -> 0 | AF95: =IF(J95="0-",11,IF(OR(LEFT(H95,2)="WO",J95="0-",J95=""),0,IF(J95<0,IF(ABS(J95)<10,11,ABS(J95)+2),J95))) -> 0 | AG95: =IF(K95="0-",11,IF(OR(LEFT(H95,2)="WO",K95="0-",K95=""),0,IF(K95<0,IF(ABS(K95)<10,11,ABS(K95)+2),K95))) -> 0 | AH95: =IF(L95="0-",11,IF(OR(LEFT(H95,2)="WO",L95="0-",L95=""),0,IF(L95<0,IF(ABS(L95)<10,11,ABS(L95)+2),L95))) -> 0 | AI95: =SUM(AD95:AH95) -> 0 | AJ95: =CONCATENATE(B95,"-",E95) -> jméno a oddíl-jméno a oddíl
B96: =C86 -> jméno a oddíl | C96: =C87 -> jméno a oddíl | D96: - | E96: =C87 -> jméno a oddíl | F96: =C87 -> jméno a oddíl | M96: =IF(H96="WO","3:0",IF(H96="WO-","0:3",CONCATENATE(V96,":",W96))) -> 0:0 | Q96: 0 | R96: 0 | S96: 0 | T96: 0 | U96: 0 | V96: 0 | W96: 0 | X96: =IF(OR(LEFT(H96,2)="WO",H96="0-",H96=""),0,IF(H96<0,ABS(H96),IF(H96<10,11,H96+2))) -> 0 | Y96: =IF(OR(LEFT(H96,2)="WO",I96="0-",I96=""),0,IF(I96<0,ABS(I96),IF(I96<10,11,I96+2))) -> 0 | Z96: =IF(OR(LEFT(H96,2)="WO",J96="0-",J96=""),0,IF(J96<0,ABS(J96),IF(J96<10,11,J96+2))) -> 0 | AA96: =IF(OR(LEFT(H96,2)="WO",K96="0-",K96=""),0,IF(K96<0,ABS(K96),IF(K96<10,11,K96+2))) -> 0 | AB96: =IF(OR(LEFT(H96,2)="WO",L96="0-",L96=""),0,IF(L96<0,ABS(L96),IF(L96<10,11,L96+2))) -> 0 | AC96: 0 | AD96: =IF(H96="0-",11,IF(OR(LEFT(H96,2)="WO",H96=""),0,IF(H96<0,IF(ABS(H96)<10,11,ABS(H96)+2),H96))) -> 0 | AE96: =IF(I96="0-",11,IF(OR(LEFT(H96,2)="WO",I96="0-",I96=""),0,IF(I96<0,IF(ABS(I96)<10,11,ABS(I96)+2),I96))) -> 0 | AF96: =IF(J96="0-",11,IF(OR(LEFT(H96,2)="WO",J96="0-",J96=""),0,IF(J96<0,IF(ABS(J96)<10,11,ABS(J96)+2),J96))) -> 0 | AG96: =IF(K96="0-",11,IF(OR(LEFT(H96,2)="WO",K96="0-",K96=""),0,IF(K96<0,IF(ABS(K96)<10,11,ABS(K96)+2),K96))) -> 0 | AH96: =IF(L96="0-",11,IF(OR(LEFT(H96,2)="WO",L96="0-",L96=""),0,IF(L96<0,IF(ABS(L96)<10,11,ABS(L96)+2),L96))) -> 0 | AI96: 0 | AJ96: =CONCATENATE(B96,"-",E96) -> jméno a oddíl-jméno a oddíl
B97: III.kolo | H97: 1.set | I97: 2.set | J97: 3.set | K97: 4.set | L97: 5.set | M97: výsledek
B98: =C87 -> jméno a oddíl | C98: =#REF! ->  | D98: - | E98: =C89 -> jméno a oddíl | F98: =C89 -> jméno a oddíl | M98: =IF(H98="WO","3:0",IF(H98="WO-","0:3",CONCATENATE(V98,":",W98))) -> 0:0 | Q98: =IF(H98="",0,IF(OR(H98<0,H98="0-"),"0:1","1:0")) -> 0 | R98: 0 | S98: 0 | T98: 0 | U98: 0 | V98: =LEFT(Q98,1)+LEFT(R98,1)+LEFT(S98,1)+LEFT(T98,1)+LEFT(U98,1) -> 0 | W98: =RIGHT(Q98,1)+RIGHT(R98,1)+RIGHT(S98,1)+RIGHT(T98,1)+RIGHT(U98,1) -> 0 | X98: =IF(OR(LEFT(H98,2)="WO",H98="0-",H98=""),0,IF(H98<0,ABS(H98),IF(H98<10,11,H98+2))) -> 0 | Y98: =IF(OR(LEFT(H98,2)="WO",I98="0-",I98=""),0,IF(I98<0,ABS(I98),IF(I98<10,11,I98+2))) -> 0 | Z98: =IF(OR(LEFT(H98,2)="WO",J98="0-",J98=""),0,IF(J98<0,ABS(J98),IF(J98<10,11,J98+2))) -> 0 | AA98: =IF(OR(LEFT(H98,2)="WO",K98="0-",K98=""),0,IF(K98<0,ABS(K98),IF(K98<10,11,K98+2))) -> 0 | AB98: =IF(OR(LEFT(H98,2)="WO",L98="0-",L98=""),0,IF(L98<0,ABS(L98),IF(L98<10,11,L98+2))) -> 0 | AC98: =SUM(X98:AB98) -> 0 | AD98: =IF(H98="0-",11,IF(OR(LEFT(H98,2)="WO",H98=""),0,IF(H98<0,IF(ABS(H98)<10,11,ABS(H98)+2),H98))) -> 0 | AE98: =IF(I98="0-",11,IF(OR(LEFT(H98,2)="WO",I98="0-",I98=""),0,IF(I98<0,IF(ABS(I98)<10,11,ABS(I98)+2),I98))) -> 0 | AF98: =IF(J98="0-",11,IF(OR(LEFT(H98,2)="WO",J98="0-",J98=""),0,IF(J98<0,IF(ABS(J98)<10,11,ABS(J98)+2),J98))) -> 0 | AG98: =IF(K98="0-",11,IF(OR(LEFT(H98,2)="WO",K98="0-",K98=""),0,IF(K98<0,IF(ABS(K98)<10,11,ABS(K98)+2),K98))) -> 0 | AH98: =IF(L98="0-",11,IF(OR(LEFT(H98,2)="WO",L98="0-",L98=""),0,IF(L98<0,IF(ABS(L98)<10,11,ABS(L98)+2),L98))) -> 0 | AI98: =SUM(AD98:AH98) -> 0 | AJ98: =CONCATENATE(B98,"-",E98) -> jméno a oddíl-jméno a oddíl
B99: =C88 -> jméno a oddíl | C99: =#REF! ->  | D99: - | E99: =C86 -> jméno a oddíl | F99: =C86 -> jméno a oddíl | M99: =IF(H99="WO","3:0",IF(H99="WO-","0:3",CONCATENATE(V99,":",W99))) -> 0:0 | Q99: 0 | R99: 0 | S99: 0 | T99: 0 | U99: 0 | V99: 0 | W99: 0 | X99: =IF(OR(LEFT(H99,2)="WO",H99="0-",H99=""),0,IF(H99<0,ABS(H99),IF(H99<10,11,H99+2))) -> 0 | Y99: =IF(OR(LEFT(H99,2)="WO",I99="0-",I99=""),0,IF(I99<0,ABS(I99),IF(I99<10,11,I99+2))) -> 0 | Z99: =IF(OR(LEFT(H99,2)="WO",J99="0-",J99=""),0,IF(J99<0,ABS(J99),IF(J99<10,11,J99+2))) -> 0 | AA99: =IF(OR(LEFT(H99,2)="WO",K99="0-",K99=""),0,IF(K99<0,ABS(K99),IF(K99<10,11,K99+2))) -> 0 | AB99: =IF(OR(LEFT(H99,2)="WO",L99="0-",L99=""),0,IF(L99<0,ABS(L99),IF(L99<10,11,L99+2))) -> 0 | AC99: 0 | AD99: =IF(H99="0-",11,IF(OR(LEFT(H99,2)="WO",H99=""),0,IF(H99<0,IF(ABS(H99)<10,11,ABS(H99)+2),H99))) -> 0 | AE99: =IF(I99="0-",11,IF(OR(LEFT(H99,2)="WO",I99="0-",I99=""),0,IF(I99<0,IF(ABS(I99)<10,11,ABS(I99)+2),I99))) -> 0 | AF99: =IF(J99="0-",11,IF(OR(LEFT(H99,2)="WO",J99="0-",J99=""),0,IF(J99<0,IF(ABS(J99)<10,11,ABS(J99)+2),J99))) -> 0 | AG99: =IF(K99="0-",11,IF(OR(LEFT(H99,2)="WO",K99="0-",K99=""),0,IF(K99<0,IF(ABS(K99)<10,11,ABS(K99)+2),K99))) -> 0 | AH99: =IF(L99="0-",11,IF(OR(LEFT(H99,2)="WO",L99="0-",L99=""),0,IF(L99<0,IF(ABS(L99)<10,11,ABS(L99)+2),L99))) -> 0 | AI99: 0 | AJ99: =CONCATENATE(B99,"-",E99) -> jméno a oddíl-jméno a oddíl
B101: Skupina G | E101: =C102 -> jméno a oddíl | F101: =C103 -> jméno a oddíl | G101: =C104 -> jméno a oddíl | H101: =C105 -> jméno a oddíl | I101: Skóre | J101: Body | K101: Míčky | L101: Pořadí | M101: Pavouk
B102: 1 | C102: jméno a oddíl | F102: =IF(OR(LEFT(B112,3)="bye",LEFT(E112,3)="bye"),"0:0",M112) -> 0:0 | G102: =CONCATENATE(RIGHT(E104,1),MID(E104,2,1),LEFT(E104,1)) -> 0:0 | H102: =IF(OR(LEFT(B108,3)="bye",LEFT(E108,3)="bye"),"0:0",M108) -> 0:0 | I102: =CONCATENATE(LEFT(F102,1)+LEFT(G102,1)+LEFT(H102,1),":",RIGHT(F102,1)+RIGHT(G102,1)+RIGHT(H102,1)) -> 0:0 | J102: =IF(LEFT(C102,3)="bye",0,IF(OR(F102="0:0",H112="WO-"),0,IF(LEFT(F102,1)="3",2,1))+IF(OR(G102="0:0",H115="WO"),0,IF(LEFT(G102,1)="3",2,1))+IF(OR(H102="0:0",H108="WO-"),0,IF(LEFT(H102,1)="3",2,1))) -> 0 | K102: =IF(LEFT(C102,3)="bye",0,CONCATENATE(AC108+AC112+AI115,":",AI108+AI112+AC115)) -> 0:0 | M102: G1
B103: 2 | C103: jméno a oddíl | E103: =CONCATENATE(RIGHT(F102,1),MID(F102,2,1),LEFT(F102,1)) -> 0:0 | G103: =IF(OR(LEFT(B109,3)="bye",LEFT(E109,3)="bye"),"0:0",M109) -> 0:0 | H103: =IF(OR(LEFT(B114,3)="bye",LEFT(E114,3)="bye"),"0:0",M114) -> 0:0 | I103: =CONCATENATE(LEFT(E103,1)+LEFT(G103,1)+LEFT(H103,1),":",RIGHT(E103,1)+RIGHT(G103,1)+RIGHT(H103,1)) -> 0:0 | J103: =IF(LEFT(C103,3)="bye",0,IF(OR(E103="0:0",H112="WO"),0,IF(LEFT(E103,1)="3",2,1))+IF(OR(G103="0:0",H109="WO-"),0,IF(LEFT(G103,1)="3",2,1))+IF(OR(H103="0:0",H114="WO-"),0,IF(LEFT(H103,1)="3",2,1))) -> 0 | K103: =IF(LEFT(C103,3)="bye",0,CONCATENATE(AC109+AI112+AC114,":",AI109+AC112+AI114)) -> 0:0 | M103: G2
B104: 3 | C104: jméno a oddíl | E104: =IF(OR(LEFT(B115,3)="bye",LEFT(E115,3)="bye"),"0:0",M115) -> 0:0 | F104: =CONCATENATE(RIGHT(G103,1),MID(G103,2,1),LEFT(G103,1)) -> 0:0 | H104: =CONCATENATE(RIGHT(G105,1),MID(G105,2,1),LEFT(G105,1)) -> 0:0 | I104: =CONCATENATE(LEFT(E104,1)+LEFT(F104,1)+LEFT(H104,1),":",RIGHT(E104,1)+RIGHT(F104,1)+RIGHT(H104,1)) -> 0:0 | J104: =IF(LEFT(C104,3)="bye",0,IF(OR(E104="0:0",H115="WO-"),0,IF(LEFT(E104,1)="3",2,1))+IF(OR(F104="0:0",H109="WO"),0,IF(LEFT(F104,1)="3",2,1))+IF(OR(H104="0:0",H111="WO"),0,IF(LEFT(H104,1)="3",2,1))) -> 0 | K104: =IF(LEFT(C104,3)="bye",0,CONCATENATE(AI109+AI111+AC115,":",AC109+AC111+AI115)) -> 0:0 | M104: G3
B105: 4 | C105: jméno a oddíl | E105: =CONCATENATE(RIGHT(H102,1),MID(H102,2,1),LEFT(H102,1)) -> 0:0 | F105: =CONCATENATE(RIGHT(H103,1),MID(H103,2,1),LEFT(H103,1)) -> 0:0 | G105: =IF(OR(LEFT(B111,3)="bye",LEFT(E111,3)="bye"),"0:0",M111) -> 0:0 | I105: =CONCATENATE(LEFT(E105,1)+LEFT(F105,1)+LEFT(G105,1),":",RIGHT(E105,1)+RIGHT(F105,1)+RIGHT(G105,1)) -> 0:0 | J105: =IF(LEFT(C105,3)="bye",0,IF(OR(E105="0:0",H108="WO"),0,IF(LEFT(E105,1)="3",2,1))+IF(OR(F105="0:0",H114="WO"),0,IF(LEFT(F105,1)="3",2,1))+IF(OR(G105="0:0",H111="WO-"),0,IF(LEFT(G105,1)="3",2,1))) -> 0 | K105: =IF(LEFT(C104,3)="bye",0,CONCATENATE(AI108+AC111+AI114,":",AC108+AI111+AC114)) -> 0:0 | M105: G4
B107: I.kolo | H107: 1.set | I107: 2.set | J107: 3.set | K107: 4.set | L107: 5.set | M107: výsledek
B108: =C102 -> jméno a oddíl | D108: - | E108: =C105 -> jméno a oddíl | M108: =IF(H108="WO","3:0",IF(H108="WO-","0:3",CONCATENATE(V108,":",W108))) -> 0:0 | Q108: =IF(H108="",0,IF(OR(H108<0,H108="0-"),"0:1","1:0")) -> 0 | R108: 0 | S108: 0 | T108: 0 | U108: 0 | V108: =LEFT(Q108,1)+LEFT(R108,1)+LEFT(S108,1)+LEFT(T108,1)+LEFT(U108,1) -> 0 | W108: =RIGHT(Q108,1)+RIGHT(R108,1)+RIGHT(S108,1)+RIGHT(T108,1)+RIGHT(U108,1) -> 0 | X108: =IF(OR(LEFT(H108,2)="WO",H108="0-",H108=""),0,IF(H108<0,ABS(H108),IF(H108<10,11,H108+2))) -> 0 | Y108: =IF(OR(LEFT(H108,2)="WO",I108="0-",I108=""),0,IF(I108<0,ABS(I108),IF(I108<10,11,I108+2))) -> 0 | Z108: =IF(OR(LEFT(H108,2)="WO",J108="0-",J108=""),0,IF(J108<0,ABS(J108),IF(J108<10,11,J108+2))) -> 0 | AA108: =IF(OR(LEFT(H108,2)="WO",K108="0-",K108=""),0,IF(K108<0,ABS(K108),IF(K108<10,11,K108+2))) -> 0 | AB108: =IF(OR(LEFT(H108,2)="WO",L108="0-",L108=""),0,IF(L108<0,ABS(L108),IF(L108<10,11,L108+2))) -> 0 | AC108: =SUM(X108:AB108) -> 0 | AD108: =IF(H108="0-",11,IF(OR(LEFT(H108,2)="WO",H108=""),0,IF(H108<0,IF(ABS(H108)<10,11,ABS(H108)+2),H108))) -> 0 | AE108: =IF(I108="0-",11,IF(OR(LEFT(H108,2)="WO",I108="0-",I108=""),0,IF(I108<0,IF(ABS(I108)<10,11,ABS(I108)+2),I108))) -> 0 | AF108: =IF(J108="0-",11,IF(OR(LEFT(H108,2)="WO",J108="0-",J108=""),0,IF(J108<0,IF(ABS(J108)<10,11,ABS(J108)+2),J108))) -> 0 | AG108: =IF(K108="0-",11,IF(OR(LEFT(H108,2)="WO",K108="0-",K108=""),0,IF(K108<0,IF(ABS(K108)<10,11,ABS(K108)+2),K108))) -> 0 | AH108: =IF(L108="0-",11,IF(OR(LEFT(H108,2)="WO",L108="0-",L108=""),0,IF(L108<0,IF(ABS(L108)<10,11,ABS(L108)+2),L108))) -> 0 | AI108: =SUM(AD108:AH108) -> 0 | AJ108: =CONCATENATE(B108,"-",E108) -> jméno a oddíl-jméno a oddíl
B109: =C103 -> jméno a oddíl | C109: =#REF! ->  | D109: - | E109: =C104 -> jméno a oddíl | F109: =C104 -> jméno a oddíl | M109: =IF(H109="WO","3:0",IF(H109="WO-","0:3",CONCATENATE(V109,":",W109))) -> 0:0 | Q109: 0 | R109: 0 | S109: 0 | T109: 0 | U109: 0 | V109: =LEFT(Q109,1)+LEFT(R109,1)+LEFT(S109,1)+LEFT(T109,1)+LEFT(U109,1) -> 0 | W109: =RIGHT(Q109,1)+RIGHT(R109,1)+RIGHT(S109,1)+RIGHT(T109,1)+RIGHT(U109,1) -> 0 | X109: =IF(OR(LEFT(H109,2)="WO",H109="0-",H109=""),0,IF(H109<0,ABS(H109),IF(H109<10,11,H109+2))) -> 0 | Y109: =IF(OR(LEFT(H109,2)="WO",I109="0-",I109=""),0,IF(I109<0,ABS(I109),IF(I109<10,11,I109+2))) -> 0 | Z109: =IF(OR(LEFT(H109,2)="WO",J109="0-",J109=""),0,IF(J109<0,ABS(J109),IF(J109<10,11,J109+2))) -> 0 | AA109: =IF(OR(LEFT(H109,2)="WO",K109="0-",K109=""),0,IF(K109<0,ABS(K109),IF(K109<10,11,K109+2))) -> 0 | AB109: =IF(OR(LEFT(H109,2)="WO",L109="0-",L109=""),0,IF(L109<0,ABS(L109),IF(L109<10,11,L109+2))) -> 0 | AC109: =SUM(X109:AB109) -> 0 | AD109: =IF(H109="0-",11,IF(OR(LEFT(H109,2)="WO",H109=""),0,IF(H109<0,IF(ABS(H109)<10,11,ABS(H109)+2),H109))) -> 0 | AE109: =IF(I109="0-",11,IF(OR(LEFT(H109,2)="WO",I109="0-",I109=""),0,IF(I109<0,IF(ABS(I109)<10,11,ABS(I109)+2),I109))) -> 0 | AF109: =IF(J109="0-",11,IF(OR(LEFT(H109,2)="WO",J109="0-",J109=""),0,IF(J109<0,IF(ABS(J109)<10,11,ABS(J109)+2),J109))) -> 0 | AG109: =IF(K109="0-",11,IF(OR(LEFT(H109,2)="WO",K109="0-",K109=""),0,IF(K109<0,IF(ABS(K109)<10,11,ABS(K109)+2),K109))) -> 0 | AH109: =IF(L109="0-",11,IF(OR(LEFT(H109,2)="WO",L109="0-",L109=""),0,IF(L109<0,IF(ABS(L109)<10,11,ABS(L109)+2),L109))) -> 0 | AI109: =SUM(AD109:AH109) -> 0 | AJ109: =CONCATENATE(B109,"-",E109) -> jméno a oddíl-jméno a oddíl
B110: II.kolo | H110: 1.set | I110: 2.set | J110: 3.set | K110: 4.set | L110: 5.set | M110: výsledek
B111: =C105 -> jméno a oddíl | C111: =C105 -> jméno a oddíl | D111: - | E111: =C104 -> jméno a oddíl | F111: =C104 -> jméno a oddíl | M111: =IF(H111="WO","3:0",IF(H111="WO-","0:3",CONCATENATE(V111,":",W111))) -> 0:0 | Q111: =IF(H111="",0,IF(OR(H111<0,H111="0-"),"0:1","1:0")) -> 0 | R111: 0 | S111: 0 | T111: 0 | U111: 0 | V111: =LEFT(Q111,1)+LEFT(R111,1)+LEFT(S111,1)+LEFT(T111,1)+LEFT(U111,1) -> 0 | W111: =RIGHT(Q111,1)+RIGHT(R111,1)+RIGHT(S111,1)+RIGHT(T111,1)+RIGHT(U111,1) -> 0 | X111: =IF(OR(LEFT(H111,2)="WO",H111="0-",H111=""),0,IF(H111<0,ABS(H111),IF(H111<10,11,H111+2))) -> 0 | Y111: =IF(OR(LEFT(H111,2)="WO",I111="0-",I111=""),0,IF(I111<0,ABS(I111),IF(I111<10,11,I111+2))) -> 0 | Z111: =IF(OR(LEFT(H111,2)="WO",J111="0-",J111=""),0,IF(J111<0,ABS(J111),IF(J111<10,11,J111+2))) -> 0 | AA111: =IF(OR(LEFT(H111,2)="WO",K111="0-",K111=""),0,IF(K111<0,ABS(K111),IF(K111<10,11,K111+2))) -> 0 | AB111: =IF(OR(LEFT(H111,2)="WO",L111="0-",L111=""),0,IF(L111<0,ABS(L111),IF(L111<10,11,L111+2))) -> 0 | AC111: =SUM(X111:AB111) -> 0 | AD111: =IF(H111="0-",11,IF(OR(LEFT(H111,2)="WO",H111=""),0,IF(H111<0,IF(ABS(H111)<10,11,ABS(H111)+2),H111))) -> 0 | AE111: =IF(I111="0-",11,IF(OR(LEFT(H111,2)="WO",I111="0-",I111=""),0,IF(I111<0,IF(ABS(I111)<10,11,ABS(I111)+2),I111))) -> 0 | AF111: =IF(J111="0-",11,IF(OR(LEFT(H111,2)="WO",J111="0-",J111=""),0,IF(J111<0,IF(ABS(J111)<10,11,ABS(J111)+2),J111))) -> 0 | AG111: =IF(K111="0-",11,IF(OR(LEFT(H111,2)="WO",K111="0-",K111=""),0,IF(K111<0,IF(ABS(K111)<10,11,ABS(K111)+2),K111))) -> 0 | AH111: =IF(L111="0-",11,IF(OR(LEFT(H111,2)="WO",L111="0-",L111=""),0,IF(L111<0,IF(ABS(L111)<10,11,ABS(L111)+2),L111))) -> 0 | AI111: =SUM(AD111:AH111) -> 0 | AJ111: =CONCATENATE(B111,"-",E111) -> jméno a oddíl-jméno a oddíl
B112: =C102 -> jméno a oddíl | C112: =C103 -> jméno a oddíl | D112: - | E112: =C103 -> jméno a oddíl | F112: =C103 -> jméno a oddíl | M112: =IF(H112="WO","3:0",IF(H112="WO-","0:3",CONCATENATE(V112,":",W112))) -> 0:0 | Q112: 0 | R112: 0 | S112: 0 | T112: 0 | U112: 0 | V112: 0 | W112: 0 | X112: =IF(OR(LEFT(H112,2)="WO",H112="0-",H112=""),0,IF(H112<0,ABS(H112),IF(H112<10,11,H112+2))) -> 0 | Y112: =IF(OR(LEFT(H112,2)="WO",I112="0-",I112=""),0,IF(I112<0,ABS(I112),IF(I112<10,11,I112+2))) -> 0 | Z112: =IF(OR(LEFT(H112,2)="WO",J112="0-",J112=""),0,IF(J112<0,ABS(J112),IF(J112<10,11,J112+2))) -> 0 | AA112: =IF(OR(LEFT(H112,2)="WO",K112="0-",K112=""),0,IF(K112<0,ABS(K112),IF(K112<10,11,K112+2))) -> 0 | AB112: =IF(OR(LEFT(H112,2)="WO",L112="0-",L112=""),0,IF(L112<0,ABS(L112),IF(L112<10,11,L112+2))) -> 0 | AC112: 0 | AD112: =IF(H112="0-",11,IF(OR(LEFT(H112,2)="WO",H112=""),0,IF(H112<0,IF(ABS(H112)<10,11,ABS(H112)+2),H112))) -> 0 | AE112: =IF(I112="0-",11,IF(OR(LEFT(H112,2)="WO",I112="0-",I112=""),0,IF(I112<0,IF(ABS(I112)<10,11,ABS(I112)+2),I112))) -> 0 | AF112: =IF(J112="0-",11,IF(OR(LEFT(H112,2)="WO",J112="0-",J112=""),0,IF(J112<0,IF(ABS(J112)<10,11,ABS(J112)+2),J112))) -> 0 | AG112: =IF(K112="0-",11,IF(OR(LEFT(H112,2)="WO",K112="0-",K112=""),0,IF(K112<0,IF(ABS(K112)<10,11,ABS(K112)+2),K112))) -> 0 | AH112: =IF(L112="0-",11,IF(OR(LEFT(H112,2)="WO",L112="0-",L112=""),0,IF(L112<0,IF(ABS(L112)<10,11,ABS(L112)+2),L112))) -> 0 | AI112: 0 | AJ112: =CONCATENATE(B112,"-",E112) -> jméno a oddíl-jméno a oddíl
B113: III.kolo | H113: 1.set | I113: 2.set | J113: 3.set | K113: 4.set | L113: 5.set | M113: výsledek
B114: =C103 -> jméno a oddíl | C114: =#REF! ->  | D114: - | E114: =C105 -> jméno a oddíl | F114: =C105 -> jméno a oddíl | M114: =IF(H114="WO","3:0",IF(H114="WO-","0:3",CONCATENATE(V114,":",W114))) -> 0:0 | Q114: =IF(H114="",0,IF(OR(H114<0,H114="0-"),"0:1","1:0")) -> 0 | R114: 0 | S114: 0 | T114: 0 | U114: 0 | V114: =LEFT(Q114,1)+LEFT(R114,1)+LEFT(S114,1)+LEFT(T114,1)+LEFT(U114,1) -> 0 | W114: =RIGHT(Q114,1)+RIGHT(R114,1)+RIGHT(S114,1)+RIGHT(T114,1)+RIGHT(U114,1) -> 0 | X114: =IF(OR(LEFT(H114,2)="WO",H114="0-",H114=""),0,IF(H114<0,ABS(H114),IF(H114<10,11,H114+2))) -> 0 | Y114: =IF(OR(LEFT(H114,2)="WO",I114="0-",I114=""),0,IF(I114<0,ABS(I114),IF(I114<10,11,I114+2))) -> 0 | Z114: =IF(OR(LEFT(H114,2)="WO",J114="0-",J114=""),0,IF(J114<0,ABS(J114),IF(J114<10,11,J114+2))) -> 0 | AA114: =IF(OR(LEFT(H114,2)="WO",K114="0-",K114=""),0,IF(K114<0,ABS(K114),IF(K114<10,11,K114+2))) -> 0 | AB114: =IF(OR(LEFT(H114,2)="WO",L114="0-",L114=""),0,IF(L114<0,ABS(L114),IF(L114<10,11,L114+2))) -> 0 | AC114: =SUM(X114:AB114) -> 0 | AD114: =IF(H114="0-",11,IF(OR(LEFT(H114,2)="WO",H114=""),0,IF(H114<0,IF(ABS(H114)<10,11,ABS(H114)+2),H114))) -> 0 | AE114: =IF(I114="0-",11,IF(OR(LEFT(H114,2)="WO",I114="0-",I114=""),0,IF(I114<0,IF(ABS(I114)<10,11,ABS(I114)+2),I114))) -> 0 | AF114: =IF(J114="0-",11,IF(OR(LEFT(H114,2)="WO",J114="0-",J114=""),0,IF(J114<0,IF(ABS(J114)<10,11,ABS(J114)+2),J114))) -> 0 | AG114: =IF(K114="0-",11,IF(OR(LEFT(H114,2)="WO",K114="0-",K114=""),0,IF(K114<0,IF(ABS(K114)<10,11,ABS(K114)+2),K114))) -> 0 | AH114: =IF(L114="0-",11,IF(OR(LEFT(H114,2)="WO",L114="0-",L114=""),0,IF(L114<0,IF(ABS(L114)<10,11,ABS(L114)+2),L114))) -> 0 | AI114: =SUM(AD114:AH114) -> 0 | AJ114: =CONCATENATE(B114,"-",E114) -> jméno a oddíl-jméno a oddíl
B115: =C104 -> jméno a oddíl | C115: =#REF! ->  | D115: - | E115: =C102 -> jméno a oddíl | F115: =C102 -> jméno a oddíl | M115: =IF(H115="WO","3:0",IF(H115="WO-","0:3",CONCATENATE(V115,":",W115))) -> 0:0 | Q115: 0 | R115: 0 | S115: 0 | T115: 0 | U115: 0 | V115: 0 | W115: 0 | X115: =IF(OR(LEFT(H115,2)="WO",H115="0-",H115=""),0,IF(H115<0,ABS(H115),IF(H115<10,11,H115+2))) -> 0 | Y115: =IF(OR(LEFT(H115,2)="WO",I115="0-",I115=""),0,IF(I115<0,ABS(I115),IF(I115<10,11,I115+2))) -> 0 | Z115: =IF(OR(LEFT(H115,2)="WO",J115="0-",J115=""),0,IF(J115<0,ABS(J115),IF(J115<10,11,J115+2))) -> 0 | AA115: =IF(OR(LEFT(H115,2)="WO",K115="0-",K115=""),0,IF(K115<0,ABS(K115),IF(K115<10,11,K115+2))) -> 0 | AB115: =IF(OR(LEFT(H115,2)="WO",L115="0-",L115=""),0,IF(L115<0,ABS(L115),IF(L115<10,11,L115+2))) -> 0 | AC115: 0 | AD115: =IF(H115="0-",11,IF(OR(LEFT(H115,2)="WO",H115=""),0,IF(H115<0,IF(ABS(H115)<10,11,ABS(H115)+2),H115))) -> 0 | AE115: =IF(I115="0-",11,IF(OR(LEFT(H115,2)="WO",I115="0-",I115=""),0,IF(I115<0,IF(ABS(I115)<10,11,ABS(I115)+2),I115))) -> 0 | AF115: =IF(J115="0-",11,IF(OR(LEFT(H115,2)="WO",J115="0-",J115=""),0,IF(J115<0,IF(ABS(J115)<10,11,ABS(J115)+2),J115))) -> 0 | AG115: =IF(K115="0-",11,IF(OR(LEFT(H115,2)="WO",K115="0-",K115=""),0,IF(K115<0,IF(ABS(K115)<10,11,ABS(K115)+2),K115))) -> 0 | AH115: =IF(L115="0-",11,IF(OR(LEFT(H115,2)="WO",L115="0-",L115=""),0,IF(L115<0,IF(ABS(L115)<10,11,ABS(L115)+2),L115))) -> 0 | AI115: 0 | AJ115: =CONCATENATE(B115,"-",E115) -> jméno a oddíl-jméno a oddíl
B118: Skupina H | E118: =C119 -> jméno a oddíl | F118: =C120 -> jméno a oddíl | G118: =C121 -> jméno a oddíl | H118: =C122 -> jméno a oddíl | I118: Skóre | J118: Body | K118: Míčky | L118: Pořadí | M118: Pavouk
B119: 1 | C119: jméno a oddíl | F119: =IF(OR(LEFT(B129,3)="bye",LEFT(E129,3)="bye"),"0:0",M129) -> 0:0 | G119: =CONCATENATE(RIGHT(E121,1),MID(E121,2,1),LEFT(E121,1)) -> 0:0 | H119: =IF(OR(LEFT(B125,3)="bye",LEFT(E125,3)="bye"),"0:0",M125) -> 0:0 | I119: =CONCATENATE(LEFT(F119,1)+LEFT(G119,1)+LEFT(H119,1),":",RIGHT(F119,1)+RIGHT(G119,1)+RIGHT(H119,1)) -> 0:0 | J119: =IF(LEFT(C119,3)="bye",0,IF(OR(F119="0:0",H129="WO-"),0,IF(LEFT(F119,1)="3",2,1))+IF(OR(G119="0:0",H132="WO"),0,IF(LEFT(G119,1)="3",2,1))+IF(OR(H119="0:0",H125="WO-"),0,IF(LEFT(H119,1)="3",2,1))) -> 0 | K119: =IF(LEFT(C119,3)="bye",0,CONCATENATE(AC125+AC129+AI132,":",AI125+AI129+AC132)) -> 0:0 | M119: H1
B120: 2 | C120: jméno a oddíl | E120: =CONCATENATE(RIGHT(F119,1),MID(F119,2,1),LEFT(F119,1)) -> 0:0 | G120: =IF(OR(LEFT(B126,3)="bye",LEFT(E126,3)="bye"),"0:0",M126) -> 0:0 | H120: =IF(OR(LEFT(B131,3)="bye",LEFT(E131,3)="bye"),"0:0",M131) -> 0:0 | I120: =CONCATENATE(LEFT(E120,1)+LEFT(G120,1)+LEFT(H120,1),":",RIGHT(E120,1)+RIGHT(G120,1)+RIGHT(H120,1)) -> 0:0 | J120: =IF(LEFT(C120,3)="bye",0,IF(OR(E120="0:0",H129="WO"),0,IF(LEFT(E120,1)="3",2,1))+IF(OR(G120="0:0",H126="WO-"),0,IF(LEFT(G120,1)="3",2,1))+IF(OR(H120="0:0",H131="WO-"),0,IF(LEFT(H120,1)="3",2,1))) -> 0 | K120: =IF(LEFT(C120,3)="bye",0,CONCATENATE(AC126+AI129+AC131,":",AI126+AC129+AI131)) -> 0:0 | M120: H2
B121: 3 | C121: jméno a oddíl | E121: =IF(OR(LEFT(B132,3)="bye",LEFT(E132,3)="bye"),"0:0",M132) -> 0:0 | F121: =CONCATENATE(RIGHT(G120,1),MID(G120,2,1),LEFT(G120,1)) -> 0:0 | H121: =CONCATENATE(RIGHT(G122,1),MID(G122,2,1),LEFT(G122,1)) -> 0:0 | I121: =CONCATENATE(LEFT(E121,1)+LEFT(F121,1)+LEFT(H121,1),":",RIGHT(E121,1)+RIGHT(F121,1)+RIGHT(H121,1)) -> 0:0 | J121: =IF(LEFT(C121,3)="bye",0,IF(OR(E121="0:0",H132="WO-"),0,IF(LEFT(E121,1)="3",2,1))+IF(OR(F121="0:0",H126="WO"),0,IF(LEFT(F121,1)="3",2,1))+IF(OR(H121="0:0",H128="WO"),0,IF(LEFT(H121,1)="3",2,1))) -> 0 | K121: =IF(LEFT(C121,3)="bye",0,CONCATENATE(AI126+AI128+AC132,":",AC126+AC128+AI132)) -> 0:0 | M121: H3
B122: 4 | C122: jméno a oddíl | E122: =CONCATENATE(RIGHT(H119,1),MID(H119,2,1),LEFT(H119,1)) -> 0:0 | F122: =CONCATENATE(RIGHT(H120,1),MID(H120,2,1),LEFT(H120,1)) -> 0:0 | G122: =IF(OR(LEFT(B128,3)="bye",LEFT(E128,3)="bye"),"0:0",M128) -> 0:0 | I122: =CONCATENATE(LEFT(E122,1)+LEFT(F122,1)+LEFT(G122,1),":",RIGHT(E122,1)+RIGHT(F122,1)+RIGHT(G122,1)) -> 0:0 | J122: =IF(LEFT(C122,3)="bye",0,IF(OR(E122="0:0",H125="WO"),0,IF(LEFT(E122,1)="3",2,1))+IF(OR(F122="0:0",H131="WO"),0,IF(LEFT(F122,1)="3",2,1))+IF(OR(G122="0:0",H128="WO-"),0,IF(LEFT(G122,1)="3",2,1))) -> 0 | K122: =IF(LEFT(C121,3)="bye",0,CONCATENATE(AI125+AC128+AI131,":",AC125+AI128+AC131)) -> 0:0 | M122: H4
B124: I.kolo | H124: 1.set | I124: 2.set | J124: 3.set | K124: 4.set | L124: 5.set | M124: výsledek
B125: =C119 -> jméno a oddíl | D125: - | E125: =C122 -> jméno a oddíl | M125: =IF(H125="WO","3:0",IF(H125="WO-","0:3",CONCATENATE(V125,":",W125))) -> 0:0 | Q125: =IF(H125="",0,IF(OR(H125<0,H125="0-"),"0:1","1:0")) -> 0 | R125: 0 | S125: 0 | T125: 0 | U125: 0 | V125: =LEFT(Q125,1)+LEFT(R125,1)+LEFT(S125,1)+LEFT(T125,1)+LEFT(U125,1) -> 0 | W125: =RIGHT(Q125,1)+RIGHT(R125,1)+RIGHT(S125,1)+RIGHT(T125,1)+RIGHT(U125,1) -> 0 | X125: =IF(OR(LEFT(H125,2)="WO",H125="0-",H125=""),0,IF(H125<0,ABS(H125),IF(H125<10,11,H125+2))) -> 0 | Y125: =IF(OR(LEFT(H125,2)="WO",I125="0-",I125=""),0,IF(I125<0,ABS(I125),IF(I125<10,11,I125+2))) -> 0 | Z125: =IF(OR(LEFT(H125,2)="WO",J125="0-",J125=""),0,IF(J125<0,ABS(J125),IF(J125<10,11,J125+2))) -> 0 | AA125: =IF(OR(LEFT(H125,2)="WO",K125="0-",K125=""),0,IF(K125<0,ABS(K125),IF(K125<10,11,K125+2))) -> 0 | AB125: =IF(OR(LEFT(H125,2)="WO",L125="0-",L125=""),0,IF(L125<0,ABS(L125),IF(L125<10,11,L125+2))) -> 0 | AC125: =SUM(X125:AB125) -> 0 | AD125: =IF(H125="0-",11,IF(OR(LEFT(H125,2)="WO",H125=""),0,IF(H125<0,IF(ABS(H125)<10,11,ABS(H125)+2),H125))) -> 0 | AE125: =IF(I125="0-",11,IF(OR(LEFT(H125,2)="WO",I125="0-",I125=""),0,IF(I125<0,IF(ABS(I125)<10,11,ABS(I125)+2),I125))) -> 0 | AF125: =IF(J125="0-",11,IF(OR(LEFT(H125,2)="WO",J125="0-",J125=""),0,IF(J125<0,IF(ABS(J125)<10,11,ABS(J125)+2),J125))) -> 0 | AG125: =IF(K125="0-",11,IF(OR(LEFT(H125,2)="WO",K125="0-",K125=""),0,IF(K125<0,IF(ABS(K125)<10,11,ABS(K125)+2),K125))) -> 0 | AH125: =IF(L125="0-",11,IF(OR(LEFT(H125,2)="WO",L125="0-",L125=""),0,IF(L125<0,IF(ABS(L125)<10,11,ABS(L125)+2),L125))) -> 0 | AI125: =SUM(AD125:AH125) -> 0 | AJ125: =CONCATENATE(B125,"-",E125) -> jméno a oddíl-jméno a oddíl
B126: =C120 -> jméno a oddíl | C126: =#REF! ->  | D126: - | E126: =C121 -> jméno a oddíl | F126: =C121 -> jméno a oddíl | M126: =IF(H126="WO","3:0",IF(H126="WO-","0:3",CONCATENATE(V126,":",W126))) -> 0:0 | Q126: 0 | R126: 0 | S126: 0 | T126: 0 | U126: 0 | V126: =LEFT(Q126,1)+LEFT(R126,1)+LEFT(S126,1)+LEFT(T126,1)+LEFT(U126,1) -> 0 | W126: =RIGHT(Q126,1)+RIGHT(R126,1)+RIGHT(S126,1)+RIGHT(T126,1)+RIGHT(U126,1) -> 0 | X126: =IF(OR(LEFT(H126,2)="WO",H126="0-",H126=""),0,IF(H126<0,ABS(H126),IF(H126<10,11,H126+2))) -> 0 | Y126: =IF(OR(LEFT(H126,2)="WO",I126="0-",I126=""),0,IF(I126<0,ABS(I126),IF(I126<10,11,I126+2))) -> 0 | Z126: =IF(OR(LEFT(H126,2)="WO",J126="0-",J126=""),0,IF(J126<0,ABS(J126),IF(J126<10,11,J126+2))) -> 0 | AA126: =IF(OR(LEFT(H126,2)="WO",K126="0-",K126=""),0,IF(K126<0,ABS(K126),IF(K126<10,11,K126+2))) -> 0 | AB126: =IF(OR(LEFT(H126,2)="WO",L126="0-",L126=""),0,IF(L126<0,ABS(L126),IF(L126<10,11,L126+2))) -> 0 | AC126: =SUM(X126:AB126) -> 0 | AD126: =IF(H126="0-",11,IF(OR(LEFT(H126,2)="WO",H126=""),0,IF(H126<0,IF(ABS(H126)<10,11,ABS(H126)+2),H126))) -> 0 | AE126: =IF(I126="0-",11,IF(OR(LEFT(H126,2)="WO",I126="0-",I126=""),0,IF(I126<0,IF(ABS(I126)<10,11,ABS(I126)+2),I126))) -> 0 | AF126: =IF(J126="0-",11,IF(OR(LEFT(H126,2)="WO",J126="0-",J126=""),0,IF(J126<0,IF(ABS(J126)<10,11,ABS(J126)+2),J126))) -> 0 | AG126: =IF(K126="0-",11,IF(OR(LEFT(H126,2)="WO",K126="0-",K126=""),0,IF(K126<0,IF(ABS(K126)<10,11,ABS(K126)+2),K126))) -> 0 | AH126: =IF(L126="0-",11,IF(OR(LEFT(H126,2)="WO",L126="0-",L126=""),0,IF(L126<0,IF(ABS(L126)<10,11,ABS(L126)+2),L126))) -> 0 | AI126: =SUM(AD126:AH126) -> 0 | AJ126: =CONCATENATE(B126,"-",E126) -> jméno a oddíl-jméno a oddíl
B127: II.kolo | H127: 1.set | I127: 2.set | J127: 3.set | K127: 4.set | L127: 5.set | M127: výsledek
B128: =C122 -> jméno a oddíl | C128: =C122 -> jméno a oddíl | D128: - | E128: =C121 -> jméno a oddíl | F128: =C121 -> jméno a oddíl | M128: =IF(H128="WO","3:0",IF(H128="WO-","0:3",CONCATENATE(V128,":",W128))) -> 0:0 | Q128: =IF(H128="",0,IF(OR(H128<0,H128="0-"),"0:1","1:0")) -> 0 | R128: 0 | S128: 0 | T128: 0 | U128: 0 | V128: =LEFT(Q128,1)+LEFT(R128,1)+LEFT(S128,1)+LEFT(T128,1)+LEFT(U128,1) -> 0 | W128: =RIGHT(Q128,1)+RIGHT(R128,1)+RIGHT(S128,1)+RIGHT(T128,1)+RIGHT(U128,1) -> 0 | X128: =IF(OR(LEFT(H128,2)="WO",H128="0-",H128=""),0,IF(H128<0,ABS(H128),IF(H128<10,11,H128+2))) -> 0 | Y128: =IF(OR(LEFT(H128,2)="WO",I128="0-",I128=""),0,IF(I128<0,ABS(I128),IF(I128<10,11,I128+2))) -> 0 | Z128: =IF(OR(LEFT(H128,2)="WO",J128="0-",J128=""),0,IF(J128<0,ABS(J128),IF(J128<10,11,J128+2))) -> 0 | AA128: =IF(OR(LEFT(H128,2)="WO",K128="0-",K128=""),0,IF(K128<0,ABS(K128),IF(K128<10,11,K128+2))) -> 0 | AB128: =IF(OR(LEFT(H128,2)="WO",L128="0-",L128=""),0,IF(L128<0,ABS(L128),IF(L128<10,11,L128+2))) -> 0 | AC128: =SUM(X128:AB128) -> 0 | AD128: =IF(H128="0-",11,IF(OR(LEFT(H128,2)="WO",H128=""),0,IF(H128<0,IF(ABS(H128)<10,11,ABS(H128)+2),H128))) -> 0 | AE128: =IF(I128="0-",11,IF(OR(LEFT(H128,2)="WO",I128="0-",I128=""),0,IF(I128<0,IF(ABS(I128)<10,11,ABS(I128)+2),I128))) -> 0 | AF128: =IF(J128="0-",11,IF(OR(LEFT(H128,2)="WO",J128="0-",J128=""),0,IF(J128<0,IF(ABS(J128)<10,11,ABS(J128)+2),J128))) -> 0 | AG128: =IF(K128="0-",11,IF(OR(LEFT(H128,2)="WO",K128="0-",K128=""),0,IF(K128<0,IF(ABS(K128)<10,11,ABS(K128)+2),K128))) -> 0 | AH128: =IF(L128="0-",11,IF(OR(LEFT(H128,2)="WO",L128="0-",L128=""),0,IF(L128<0,IF(ABS(L128)<10,11,ABS(L128)+2),L128))) -> 0 | AI128: =SUM(AD128:AH128) -> 0 | AJ128: =CONCATENATE(B128,"-",E128) -> jméno a oddíl-jméno a oddíl
B129: =C119 -> jméno a oddíl | C129: =C120 -> jméno a oddíl | D129: - | E129: =C120 -> jméno a oddíl | F129: =C120 -> jméno a oddíl | M129: =IF(H129="WO","3:0",IF(H129="WO-","0:3",CONCATENATE(V129,":",W129))) -> 0:0 | Q129: 0 | R129: 0 | S129: 0 | T129: 0 | U129: 0 | V129: 0 | W129: 0 | X129: =IF(OR(LEFT(H129,2)="WO",H129="0-",H129=""),0,IF(H129<0,ABS(H129),IF(H129<10,11,H129+2))) -> 0 | Y129: =IF(OR(LEFT(H129,2)="WO",I129="0-",I129=""),0,IF(I129<0,ABS(I129),IF(I129<10,11,I129+2))) -> 0 | Z129: =IF(OR(LEFT(H129,2)="WO",J129="0-",J129=""),0,IF(J129<0,ABS(J129),IF(J129<10,11,J129+2))) -> 0 | AA129: =IF(OR(LEFT(H129,2)="WO",K129="0-",K129=""),0,IF(K129<0,ABS(K129),IF(K129<10,11,K129+2))) -> 0 | AB129: =IF(OR(LEFT(H129,2)="WO",L129="0-",L129=""),0,IF(L129<0,ABS(L129),IF(L129<10,11,L129+2))) -> 0 | AC129: 0 | AD129: =IF(H129="0-",11,IF(OR(LEFT(H129,2)="WO",H129=""),0,IF(H129<0,IF(ABS(H129)<10,11,ABS(H129)+2),H129))) -> 0 | AE129: =IF(I129="0-",11,IF(OR(LEFT(H129,2)="WO",I129="0-",I129=""),0,IF(I129<0,IF(ABS(I129)<10,11,ABS(I129)+2),I129))) -> 0 | AF129: =IF(J129="0-",11,IF(OR(LEFT(H129,2)="WO",J129="0-",J129=""),0,IF(J129<0,IF(ABS(J129)<10,11,ABS(J129)+2),J129))) -> 0 | AG129: =IF(K129="0-",11,IF(OR(LEFT(H129,2)="WO",K129="0-",K129=""),0,IF(K129<0,IF(ABS(K129)<10,11,ABS(K129)+2),K129))) -> 0 | AH129: =IF(L129="0-",11,IF(OR(LEFT(H129,2)="WO",L129="0-",L129=""),0,IF(L129<0,IF(ABS(L129)<10,11,ABS(L129)+2),L129))) -> 0 | AI129: 0 | AJ129: =CONCATENATE(B129,"-",E129) -> jméno a oddíl-jméno a oddíl
B130: III.kolo | H130: 1.set | I130: 2.set | J130: 3.set | K130: 4.set | L130: 5.set | M130: výsledek
B131: =C120 -> jméno a oddíl | C131: =#REF! ->  | D131: - | E131: =C122 -> jméno a oddíl | F131: =C122 -> jméno a oddíl | M131: =IF(H131="WO","3:0",IF(H131="WO-","0:3",CONCATENATE(V131,":",W131))) -> 0:0 | Q131: =IF(H131="",0,IF(OR(H131<0,H131="0-"),"0:1","1:0")) -> 0 | R131: 0 | S131: 0 | T131: 0 | U131: 0 | V131: =LEFT(Q131,1)+LEFT(R131,1)+LEFT(S131,1)+LEFT(T131,1)+LEFT(U131,1) -> 0 | W131: =RIGHT(Q131,1)+RIGHT(R131,1)+RIGHT(S131,1)+RIGHT(T131,1)+RIGHT(U131,1) -> 0 | X131: =IF(OR(LEFT(H131,2)="WO",H131="0-",H131=""),0,IF(H131<0,ABS(H131),IF(H131<10,11,H131+2))) -> 0 | Y131: =IF(OR(LEFT(H131,2)="WO",I131="0-",I131=""),0,IF(I131<0,ABS(I131),IF(I131<10,11,I131+2))) -> 0 | Z131: =IF(OR(LEFT(H131,2)="WO",J131="0-",J131=""),0,IF(J131<0,ABS(J131),IF(J131<10,11,J131+2))) -> 0 | AA131: =IF(OR(LEFT(H131,2)="WO",K131="0-",K131=""),0,IF(K131<0,ABS(K131),IF(K131<10,11,K131+2))) -> 0 | AB131: =IF(OR(LEFT(H131,2)="WO",L131="0-",L131=""),0,IF(L131<0,ABS(L131),IF(L131<10,11,L131+2))) -> 0 | AC131: =SUM(X131:AB131) -> 0 | AD131: =IF(H131="0-",11,IF(OR(LEFT(H131,2)="WO",H131=""),0,IF(H131<0,IF(ABS(H131)<10,11,ABS(H131)+2),H131))) -> 0 | AE131: =IF(I131="0-",11,IF(OR(LEFT(H131,2)="WO",I131="0-",I131=""),0,IF(I131<0,IF(ABS(I131)<10,11,ABS(I131)+2),I131))) -> 0 | AF131: =IF(J131="0-",11,IF(OR(LEFT(H131,2)="WO",J131="0-",J131=""),0,IF(J131<0,IF(ABS(J131)<10,11,ABS(J131)+2),J131))) -> 0 | AG131: =IF(K131="0-",11,IF(OR(LEFT(H131,2)="WO",K131="0-",K131=""),0,IF(K131<0,IF(ABS(K131)<10,11,ABS(K131)+2),K131))) -> 0 | AH131: =IF(L131="0-",11,IF(OR(LEFT(H131,2)="WO",L131="0-",L131=""),0,IF(L131<0,IF(ABS(L131)<10,11,ABS(L131)+2),L131))) -> 0 | AI131: =SUM(AD131:AH131) -> 0 | AJ131: =CONCATENATE(B131,"-",E131) -> jméno a oddíl-jméno a oddíl
B132: =C121 -> jméno a oddíl | C132: =#REF! ->  | D132: - | E132: =C119 -> jméno a oddíl | F132: =C119 -> jméno a oddíl | M132: =IF(H132="WO","3:0",IF(H132="WO-","0:3",CONCATENATE(V132,":",W132))) -> 0:0 | Q132: 0 | R132: 0 | S132: 0 | T132: 0 | U132: 0 | V132: 0 | W132: 0 | X132: =IF(OR(LEFT(H132,2)="WO",H132="0-",H132=""),0,IF(H132<0,ABS(H132),IF(H132<10,11,H132+2))) -> 0 | Y132: =IF(OR(LEFT(H132,2)="WO",I132="0-",I132=""),0,IF(I132<0,ABS(I132),IF(I132<10,11,I132+2))) -> 0 | Z132: =IF(OR(LEFT(H132,2)="WO",J132="0-",J132=""),0,IF(J132<0,ABS(J132),IF(J132<10,11,J132+2))) -> 0 | AA132: =IF(OR(LEFT(H132,2)="WO",K132="0-",K132=""),0,IF(K132<0,ABS(K132),IF(K132<10,11,K132+2))) -> 0 | AB132: =IF(OR(LEFT(H132,2)="WO",L132="0-",L132=""),0,IF(L132<0,ABS(L132),IF(L132<10,11,L132+2))) -> 0 | AC132: 0 | AD132: =IF(H132="0-",11,IF(OR(LEFT(H132,2)="WO",H132=""),0,IF(H132<0,IF(ABS(H132)<10,11,ABS(H132)+2),H132))) -> 0 | AE132: =IF(I132="0-",11,IF(OR(LEFT(H132,2)="WO",I132="0-",I132=""),0,IF(I132<0,IF(ABS(I132)<10,11,ABS(I132)+2),I132))) -> 0 | AF132: =IF(J132="0-",11,IF(OR(LEFT(H132,2)="WO",J132="0-",J132=""),0,IF(J132<0,IF(ABS(J132)<10,11,ABS(J132)+2),J132))) -> 0 | AG132: =IF(K132="0-",11,IF(OR(LEFT(H132,2)="WO",K132="0-",K132=""),0,IF(K132<0,IF(ABS(K132)<10,11,ABS(K132)+2),K132))) -> 0 | AH132: =IF(L132="0-",11,IF(OR(LEFT(H132,2)="WO",L132="0-",L132=""),0,IF(L132<0,IF(ABS(L132)<10,11,ABS(L132)+2),L132))) -> 0 | AI132: 0 | AJ132: =CONCATENATE(B132,"-",E132) -> jméno a oddíl-jméno a oddíl
B135: Skupina I | E135: =C136 -> jméno a oddíl | F135: =C137 -> jméno a oddíl | G135: =C138 -> jméno a oddíl | H135: =C139 -> jméno a oddíl | I135: Skóre | J135: Body | K135: Míčky | L135: Pořadí | M135: Pavouk
B136: 1 | C136: jméno a oddíl | F136: =IF(OR(LEFT(B146,3)="bye",LEFT(E146,3)="bye"),"0:0",M146) -> 0:0 | G136: =CONCATENATE(RIGHT(E138,1),MID(E138,2,1),LEFT(E138,1)) -> 0:0 | H136: =IF(OR(LEFT(B142,3)="bye",LEFT(E142,3)="bye"),"0:0",M142) -> 0:0 | I136: =CONCATENATE(LEFT(F136,1)+LEFT(G136,1)+LEFT(H136,1),":",RIGHT(F136,1)+RIGHT(G136,1)+RIGHT(H136,1)) -> 0:0 | J136: =IF(LEFT(C136,3)="bye",0,IF(OR(F136="0:0",H146="WO-"),0,IF(LEFT(F136,1)="3",2,1))+IF(OR(G136="0:0",H149="WO"),0,IF(LEFT(G136,1)="3",2,1))+IF(OR(H136="0:0",H142="WO-"),0,IF(LEFT(H136,1)="3",2,1))) -> 0 | K136: =IF(LEFT(C136,3)="bye",0,CONCATENATE(AC142+AC146+AI149,":",AI142+AI146+AC149)) -> 0:0 | M136: I1
B137: 2 | C137: jméno a oddíl | E137: =CONCATENATE(RIGHT(F136,1),MID(F136,2,1),LEFT(F136,1)) -> 0:0 | G137: =IF(OR(LEFT(B143,3)="bye",LEFT(E143,3)="bye"),"0:0",M143) -> 0:0 | H137: =IF(OR(LEFT(B148,3)="bye",LEFT(E148,3)="bye"),"0:0",M148) -> 0:0 | I137: =CONCATENATE(LEFT(E137,1)+LEFT(G137,1)+LEFT(H137,1),":",RIGHT(E137,1)+RIGHT(G137,1)+RIGHT(H137,1)) -> 0:0 | J137: =IF(LEFT(C137,3)="bye",0,IF(OR(E137="0:0",H146="WO"),0,IF(LEFT(E137,1)="3",2,1))+IF(OR(G137="0:0",H143="WO-"),0,IF(LEFT(G137,1)="3",2,1))+IF(OR(H137="0:0",H148="WO-"),0,IF(LEFT(H137,1)="3",2,1))) -> 0 | K137: =IF(LEFT(C137,3)="bye",0,CONCATENATE(AC143+AI146+AC148,":",AI143+AC146+AI148)) -> 0:0 | M137: I2
B138: 3 | C138: jméno a oddíl | E138: =IF(OR(LEFT(B149,3)="bye",LEFT(E149,3)="bye"),"0:0",M149) -> 0:0 | F138: =CONCATENATE(RIGHT(G137,1),MID(G137,2,1),LEFT(G137,1)) -> 0:0 | H138: =CONCATENATE(RIGHT(G139,1),MID(G139,2,1),LEFT(G139,1)) -> 0:0 | I138: =CONCATENATE(LEFT(E138,1)+LEFT(F138,1)+LEFT(H138,1),":",RIGHT(E138,1)+RIGHT(F138,1)+RIGHT(H138,1)) -> 0:0 | J138: =IF(LEFT(C138,3)="bye",0,IF(OR(E138="0:0",H149="WO-"),0,IF(LEFT(E138,1)="3",2,1))+IF(OR(F138="0:0",H143="WO"),0,IF(LEFT(F138,1)="3",2,1))+IF(OR(H138="0:0",H145="WO"),0,IF(LEFT(H138,1)="3",2,1))) -> 0 | K138: =IF(LEFT(C138,3)="bye",0,CONCATENATE(AI143+AI145+AC149,":",AC143+AC145+AI149)) -> 0:0 | M138: I3
B139: 4 | C139: jméno a oddíl | E139: =CONCATENATE(RIGHT(H136,1),MID(H136,2,1),LEFT(H136,1)) -> 0:0 | F139: =CONCATENATE(RIGHT(H137,1),MID(H137,2,1),LEFT(H137,1)) -> 0:0 | G139: =IF(OR(LEFT(B145,3)="bye",LEFT(E145,3)="bye"),"0:0",M145) -> 0:0 | I139: =CONCATENATE(LEFT(E139,1)+LEFT(F139,1)+LEFT(G139,1),":",RIGHT(E139,1)+RIGHT(F139,1)+RIGHT(G139,1)) -> 0:0 | J139: =IF(LEFT(C139,3)="bye",0,IF(OR(E139="0:0",H142="WO"),0,IF(LEFT(E139,1)="3",2,1))+IF(OR(F139="0:0",H148="WO"),0,IF(LEFT(F139,1)="3",2,1))+IF(OR(G139="0:0",H145="WO-"),0,IF(LEFT(G139,1)="3",2,1))) -> 0 | K139: =IF(LEFT(C138,3)="bye",0,CONCATENATE(AI142+AC145+AI148,":",AC142+AI145+AC148)) -> 0:0 | M139: I4
B141: I.kolo | H141: 1.set | I141: 2.set | J141: 3.set | K141: 4.set | L141: 5.set | M141: výsledek
B142: =C136 -> jméno a oddíl | D142: - | E142: =C139 -> jméno a oddíl | M142: =IF(H142="WO","3:0",IF(H142="WO-","0:3",CONCATENATE(V142,":",W142))) -> 0:0 | Q142: =IF(H142="",0,IF(OR(H142<0,H142="0-"),"0:1","1:0")) -> 0 | R142: 0 | S142: 0 | T142: 0 | U142: 0 | V142: =LEFT(Q142,1)+LEFT(R142,1)+LEFT(S142,1)+LEFT(T142,1)+LEFT(U142,1) -> 0 | W142: =RIGHT(Q142,1)+RIGHT(R142,1)+RIGHT(S142,1)+RIGHT(T142,1)+RIGHT(U142,1) -> 0 | X142: =IF(OR(LEFT(H142,2)="WO",H142="0-",H142=""),0,IF(H142<0,ABS(H142),IF(H142<10,11,H142+2))) -> 0 | Y142: =IF(OR(LEFT(H142,2)="WO",I142="0-",I142=""),0,IF(I142<0,ABS(I142),IF(I142<10,11,I142+2))) -> 0 | Z142: =IF(OR(LEFT(H142,2)="WO",J142="0-",J142=""),0,IF(J142<0,ABS(J142),IF(J142<10,11,J142+2))) -> 0 | AA142: =IF(OR(LEFT(H142,2)="WO",K142="0-",K142=""),0,IF(K142<0,ABS(K142),IF(K142<10,11,K142+2))) -> 0 | AB142: =IF(OR(LEFT(H142,2)="WO",L142="0-",L142=""),0,IF(L142<0,ABS(L142),IF(L142<10,11,L142+2))) -> 0 | AC142: =SUM(X142:AB142) -> 0 | AD142: =IF(H142="0-",11,IF(OR(LEFT(H142,2)="WO",H142=""),0,IF(H142<0,IF(ABS(H142)<10,11,ABS(H142)+2),H142))) -> 0 | AE142: =IF(I142="0-",11,IF(OR(LEFT(H142,2)="WO",I142="0-",I142=""),0,IF(I142<0,IF(ABS(I142)<10,11,ABS(I142)+2),I142))) -> 0 | AF142: =IF(J142="0-",11,IF(OR(LEFT(H142,2)="WO",J142="0-",J142=""),0,IF(J142<0,IF(ABS(J142)<10,11,ABS(J142)+2),J142))) -> 0 | AG142: =IF(K142="0-",11,IF(OR(LEFT(H142,2)="WO",K142="0-",K142=""),0,IF(K142<0,IF(ABS(K142)<10,11,ABS(K142)+2),K142))) -> 0 | AH142: =IF(L142="0-",11,IF(OR(LEFT(H142,2)="WO",L142="0-",L142=""),0,IF(L142<0,IF(ABS(L142)<10,11,ABS(L142)+2),L142))) -> 0 | AI142: =SUM(AD142:AH142) -> 0 | AJ142: =CONCATENATE(B142,"-",E142) -> jméno a oddíl-jméno a oddíl
B143: =C137 -> jméno a oddíl | C143: =#REF! ->  | D143: - | E143: =C138 -> jméno a oddíl | F143: =C138 -> jméno a oddíl | M143: =IF(H143="WO","3:0",IF(H143="WO-","0:3",CONCATENATE(V143,":",W143))) -> 0:0 | Q143: 0 | R143: 0 | S143: 0 | T143: 0 | U143: 0 | V143: =LEFT(Q143,1)+LEFT(R143,1)+LEFT(S143,1)+LEFT(T143,1)+LEFT(U143,1) -> 0 | W143: =RIGHT(Q143,1)+RIGHT(R143,1)+RIGHT(S143,1)+RIGHT(T143,1)+RIGHT(U143,1) -> 0 | X143: =IF(OR(LEFT(H143,2)="WO",H143="0-",H143=""),0,IF(H143<0,ABS(H143),IF(H143<10,11,H143+2))) -> 0 | Y143: =IF(OR(LEFT(H143,2)="WO",I143="0-",I143=""),0,IF(I143<0,ABS(I143),IF(I143<10,11,I143+2))) -> 0 | Z143: =IF(OR(LEFT(H143,2)="WO",J143="0-",J143=""),0,IF(J143<0,ABS(J143),IF(J143<10,11,J143+2))) -> 0 | AA143: =IF(OR(LEFT(H143,2)="WO",K143="0-",K143=""),0,IF(K143<0,ABS(K143),IF(K143<10,11,K143+2))) -> 0 | AB143: =IF(OR(LEFT(H143,2)="WO",L143="0-",L143=""),0,IF(L143<0,ABS(L143),IF(L143<10,11,L143+2))) -> 0 | AC143: =SUM(X143:AB143) -> 0 | AD143: =IF(H143="0-",11,IF(OR(LEFT(H143,2)="WO",H143=""),0,IF(H143<0,IF(ABS(H143)<10,11,ABS(H143)+2),H143))) -> 0 | AE143: =IF(I143="0-",11,IF(OR(LEFT(H143,2)="WO",I143="0-",I143=""),0,IF(I143<0,IF(ABS(I143)<10,11,ABS(I143)+2),I143))) -> 0 | AF143: =IF(J143="0-",11,IF(OR(LEFT(H143,2)="WO",J143="0-",J143=""),0,IF(J143<0,IF(ABS(J143)<10,11,ABS(J143)+2),J143))) -> 0 | AG143: =IF(K143="0-",11,IF(OR(LEFT(H143,2)="WO",K143="0-",K143=""),0,IF(K143<0,IF(ABS(K143)<10,11,ABS(K143)+2),K143))) -> 0 | AH143: =IF(L143="0-",11,IF(OR(LEFT(H143,2)="WO",L143="0-",L143=""),0,IF(L143<0,IF(ABS(L143)<10,11,ABS(L143)+2),L143))) -> 0 | AI143: =SUM(AD143:AH143) -> 0 | AJ143: =CONCATENATE(B143,"-",E143) -> jméno a oddíl-jméno a oddíl
B144: II.kolo | H144: 1.set | I144: 2.set | J144: 3.set | K144: 4.set | L144: 5.set | M144: výsledek
B145: =C139 -> jméno a oddíl | C145: =C139 -> jméno a oddíl | D145: - | E145: =C138 -> jméno a oddíl | F145: =C138 -> jméno a oddíl | M145: =IF(H145="WO","3:0",IF(H145="WO-","0:3",CONCATENATE(V145,":",W145))) -> 0:0 | Q145: =IF(H145="",0,IF(OR(H145<0,H145="0-"),"0:1","1:0")) -> 0 | R145: 0 | S145: 0 | T145: 0 | U145: 0 | V145: =LEFT(Q145,1)+LEFT(R145,1)+LEFT(S145,1)+LEFT(T145,1)+LEFT(U145,1) -> 0 | W145: =RIGHT(Q145,1)+RIGHT(R145,1)+RIGHT(S145,1)+RIGHT(T145,1)+RIGHT(U145,1) -> 0 | X145: =IF(OR(LEFT(H145,2)="WO",H145="0-",H145=""),0,IF(H145<0,ABS(H145),IF(H145<10,11,H145+2))) -> 0 | Y145: =IF(OR(LEFT(H145,2)="WO",I145="0-",I145=""),0,IF(I145<0,ABS(I145),IF(I145<10,11,I145+2))) -> 0 | Z145: =IF(OR(LEFT(H145,2)="WO",J145="0-",J145=""),0,IF(J145<0,ABS(J145),IF(J145<10,11,J145+2))) -> 0 | AA145: =IF(OR(LEFT(H145,2)="WO",K145="0-",K145=""),0,IF(K145<0,ABS(K145),IF(K145<10,11,K145+2))) -> 0 | AB145: =IF(OR(LEFT(H145,2)="WO",L145="0-",L145=""),0,IF(L145<0,ABS(L145),IF(L145<10,11,L145+2))) -> 0 | AC145: =SUM(X145:AB145) -> 0 | AD145: =IF(H145="0-",11,IF(OR(LEFT(H145,2)="WO",H145=""),0,IF(H145<0,IF(ABS(H145)<10,11,ABS(H145)+2),H145))) -> 0 | AE145: =IF(I145="0-",11,IF(OR(LEFT(H145,2)="WO",I145="0-",I145=""),0,IF(I145<0,IF(ABS(I145)<10,11,ABS(I145)+2),I145))) -> 0 | AF145: =IF(J145="0-",11,IF(OR(LEFT(H145,2)="WO",J145="0-",J145=""),0,IF(J145<0,IF(ABS(J145)<10,11,ABS(J145)+2),J145))) -> 0 | AG145: =IF(K145="0-",11,IF(OR(LEFT(H145,2)="WO",K145="0-",K145=""),0,IF(K145<0,IF(ABS(K145)<10,11,ABS(K145)+2),K145))) -> 0 | AH145: =IF(L145="0-",11,IF(OR(LEFT(H145,2)="WO",L145="0-",L145=""),0,IF(L145<0,IF(ABS(L145)<10,11,ABS(L145)+2),L145))) -> 0 | AI145: =SUM(AD145:AH145) -> 0 | AJ145: =CONCATENATE(B145,"-",E145) -> jméno a oddíl-jméno a oddíl
B146: =C136 -> jméno a oddíl | C146: =C137 -> jméno a oddíl | D146: - | E146: =C137 -> jméno a oddíl | F146: =C137 -> jméno a oddíl | M146: =IF(H146="WO","3:0",IF(H146="WO-","0:3",CONCATENATE(V146,":",W146))) -> 0:0 | Q146: 0 | R146: 0 | S146: 0 | T146: 0 | U146: 0 | V146: 0 | W146: 0 | X146: =IF(OR(LEFT(H146,2)="WO",H146="0-",H146=""),0,IF(H146<0,ABS(H146),IF(H146<10,11,H146+2))) -> 0 | Y146: =IF(OR(LEFT(H146,2)="WO",I146="0-",I146=""),0,IF(I146<0,ABS(I146),IF(I146<10,11,I146+2))) -> 0 | Z146: =IF(OR(LEFT(H146,2)="WO",J146="0-",J146=""),0,IF(J146<0,ABS(J146),IF(J146<10,11,J146+2))) -> 0 | AA146: =IF(OR(LEFT(H146,2)="WO",K146="0-",K146=""),0,IF(K146<0,ABS(K146),IF(K146<10,11,K146+2))) -> 0 | AB146: =IF(OR(LEFT(H146,2)="WO",L146="0-",L146=""),0,IF(L146<0,ABS(L146),IF(L146<10,11,L146+2))) -> 0 | AC146: 0 | AD146: =IF(H146="0-",11,IF(OR(LEFT(H146,2)="WO",H146=""),0,IF(H146<0,IF(ABS(H146)<10,11,ABS(H146)+2),H146))) -> 0 | AE146: =IF(I146="0-",11,IF(OR(LEFT(H146,2)="WO",I146="0-",I146=""),0,IF(I146<0,IF(ABS(I146)<10,11,ABS(I146)+2),I146))) -> 0 | AF146: =IF(J146="0-",11,IF(OR(LEFT(H146,2)="WO",J146="0-",J146=""),0,IF(J146<0,IF(ABS(J146)<10,11,ABS(J146)+2),J146))) -> 0 | AG146: =IF(K146="0-",11,IF(OR(LEFT(H146,2)="WO",K146="0-",K146=""),0,IF(K146<0,IF(ABS(K146)<10,11,ABS(K146)+2),K146))) -> 0 | AH146: =IF(L146="0-",11,IF(OR(LEFT(H146,2)="WO",L146="0-",L146=""),0,IF(L146<0,IF(ABS(L146)<10,11,ABS(L146)+2),L146))) -> 0 | AI146: 0 | AJ146: =CONCATENATE(B146,"-",E146) -> jméno a oddíl-jméno a oddíl
B147: III.kolo | H147: 1.set | I147: 2.set | J147: 3.set | K147: 4.set | L147: 5.set | M147: výsledek
B148: =C137 -> jméno a oddíl | C148: =#REF! ->  | D148: - | E148: =C139 -> jméno a oddíl | F148: =C139 -> jméno a oddíl | M148: =IF(H148="WO","3:0",IF(H148="WO-","0:3",CONCATENATE(V148,":",W148))) -> 0:0 | Q148: =IF(H148="",0,IF(OR(H148<0,H148="0-"),"0:1","1:0")) -> 0 | R148: 0 | S148: 0 | T148: 0 | U148: 0 | V148: =LEFT(Q148,1)+LEFT(R148,1)+LEFT(S148,1)+LEFT(T148,1)+LEFT(U148,1) -> 0 | W148: =RIGHT(Q148,1)+RIGHT(R148,1)+RIGHT(S148,1)+RIGHT(T148,1)+RIGHT(U148,1) -> 0 | X148: =IF(OR(LEFT(H148,2)="WO",H148="0-",H148=""),0,IF(H148<0,ABS(H148),IF(H148<10,11,H148+2))) -> 0 | Y148: =IF(OR(LEFT(H148,2)="WO",I148="0-",I148=""),0,IF(I148<0,ABS(I148),IF(I148<10,11,I148+2))) -> 0 | Z148: =IF(OR(LEFT(H148,2)="WO",J148="0-",J148=""),0,IF(J148<0,ABS(J148),IF(J148<10,11,J148+2))) -> 0 | AA148: =IF(OR(LEFT(H148,2)="WO",K148="0-",K148=""),0,IF(K148<0,ABS(K148),IF(K148<10,11,K148+2))) -> 0 | AB148: =IF(OR(LEFT(H148,2)="WO",L148="0-",L148=""),0,IF(L148<0,ABS(L148),IF(L148<10,11,L148+2))) -> 0 | AC148: =SUM(X148:AB148) -> 0 | AD148: =IF(H148="0-",11,IF(OR(LEFT(H148,2)="WO",H148=""),0,IF(H148<0,IF(ABS(H148)<10,11,ABS(H148)+2),H148))) -> 0 | AE148: =IF(I148="0-",11,IF(OR(LEFT(H148,2)="WO",I148="0-",I148=""),0,IF(I148<0,IF(ABS(I148)<10,11,ABS(I148)+2),I148))) -> 0 | AF148: =IF(J148="0-",11,IF(OR(LEFT(H148,2)="WO",J148="0-",J148=""),0,IF(J148<0,IF(ABS(J148)<10,11,ABS(J148)+2),J148))) -> 0 | AG148: =IF(K148="0-",11,IF(OR(LEFT(H148,2)="WO",K148="0-",K148=""),0,IF(K148<0,IF(ABS(K148)<10,11,ABS(K148)+2),K148))) -> 0 | AH148: =IF(L148="0-",11,IF(OR(LEFT(H148,2)="WO",L148="0-",L148=""),0,IF(L148<0,IF(ABS(L148)<10,11,ABS(L148)+2),L148))) -> 0 | AI148: =SUM(AD148:AH148) -> 0 | AJ148: =CONCATENATE(B148,"-",E148) -> jméno a oddíl-jméno a oddíl
B149: =C138 -> jméno a oddíl | C149: =#REF! ->  | D149: - | E149: =C136 -> jméno a oddíl | F149: =C136 -> jméno a oddíl | M149: =IF(H149="WO","3:0",IF(H149="WO-","0:3",CONCATENATE(V149,":",W149))) -> 0:0 | Q149: 0 | R149: 0 | S149: 0 | T149: 0 | U149: 0 | V149: 0 | W149: 0 | X149: =IF(OR(LEFT(H149,2)="WO",H149="0-",H149=""),0,IF(H149<0,ABS(H149),IF(H149<10,11,H149+2))) -> 0 | Y149: =IF(OR(LEFT(H149,2)="WO",I149="0-",I149=""),0,IF(I149<0,ABS(I149),IF(I149<10,11,I149+2))) -> 0 | Z149: =IF(OR(LEFT(H149,2)="WO",J149="0-",J149=""),0,IF(J149<0,ABS(J149),IF(J149<10,11,J149+2))) -> 0 | AA149: =IF(OR(LEFT(H149,2)="WO",K149="0-",K149=""),0,IF(K149<0,ABS(K149),IF(K149<10,11,K149+2))) -> 0 | AB149: =IF(OR(LEFT(H149,2)="WO",L149="0-",L149=""),0,IF(L149<0,ABS(L149),IF(L149<10,11,L149+2))) -> 0 | AC149: 0 | AD149: =IF(H149="0-",11,IF(OR(LEFT(H149,2)="WO",H149=""),0,IF(H149<0,IF(ABS(H149)<10,11,ABS(H149)+2),H149))) -> 0 | AE149: =IF(I149="0-",11,IF(OR(LEFT(H149,2)="WO",I149="0-",I149=""),0,IF(I149<0,IF(ABS(I149)<10,11,ABS(I149)+2),I149))) -> 0 | AF149: =IF(J149="0-",11,IF(OR(LEFT(H149,2)="WO",J149="0-",J149=""),0,IF(J149<0,IF(ABS(J149)<10,11,ABS(J149)+2),J149))) -> 0 | AG149: =IF(K149="0-",11,IF(OR(LEFT(H149,2)="WO",K149="0-",K149=""),0,IF(K149<0,IF(ABS(K149)<10,11,ABS(K149)+2),K149))) -> 0 | AH149: =IF(L149="0-",11,IF(OR(LEFT(H149,2)="WO",L149="0-",L149=""),0,IF(L149<0,IF(ABS(L149)<10,11,ABS(L149)+2),L149))) -> 0 | AI149: 0 | AJ149: =CONCATENATE(B149,"-",E149) -> jméno a oddíl-jméno a oddíl
B152: Skupina J | E152: =C153 -> jméno a oddíl | F152: =C154 -> jméno a oddíl | G152: =C155 -> jméno a oddíl | H152: =C156 -> jméno a oddíl | I152: Skóre | J152: Body | K152: Míčky | L152: Pořadí | M152: Pavouk
B153: 1 | C153: jméno a oddíl | F153: =IF(OR(LEFT(B163,3)="bye",LEFT(E163,3)="bye"),"0:0",M163) -> 0:0 | G153: =CONCATENATE(RIGHT(E155,1),MID(E155,2,1),LEFT(E155,1)) -> 0:0 | H153: =IF(OR(LEFT(B159,3)="bye",LEFT(E159,3)="bye"),"0:0",M159) -> 0:0 | I153: =CONCATENATE(LEFT(F153,1)+LEFT(G153,1)+LEFT(H153,1),":",RIGHT(F153,1)+RIGHT(G153,1)+RIGHT(H153,1)) -> 0:0 | J153: =IF(LEFT(C153,3)="bye",0,IF(OR(F153="0:0",H163="WO-"),0,IF(LEFT(F153,1)="3",2,1))+IF(OR(G153="0:0",H166="WO"),0,IF(LEFT(G153,1)="3",2,1))+IF(OR(H153="0:0",H159="WO-"),0,IF(LEFT(H153,1)="3",2,1))) -> 0 | K153: =IF(LEFT(C153,3)="bye",0,CONCATENATE(AC159+AC163+AI166,":",AI159+AI163+AC166)) -> 0:0 | M153: J1
B154: 2 | C154: jméno a oddíl | E154: =CONCATENATE(RIGHT(F153,1),MID(F153,2,1),LEFT(F153,1)) -> 0:0 | G154: =IF(OR(LEFT(B160,3)="bye",LEFT(E160,3)="bye"),"0:0",M160) -> 0:0 | H154: =IF(OR(LEFT(B165,3)="bye",LEFT(E165,3)="bye"),"0:0",M165) -> 0:0 | I154: =CONCATENATE(LEFT(E154,1)+LEFT(G154,1)+LEFT(H154,1),":",RIGHT(E154,1)+RIGHT(G154,1)+RIGHT(H154,1)) -> 0:0 | J154: =IF(LEFT(C154,3)="bye",0,IF(OR(E154="0:0",H163="WO"),0,IF(LEFT(E154,1)="3",2,1))+IF(OR(G154="0:0",H160="WO-"),0,IF(LEFT(G154,1)="3",2,1))+IF(OR(H154="0:0",H165="WO-"),0,IF(LEFT(H154,1)="3",2,1))) -> 0 | K154: =IF(LEFT(C154,3)="bye",0,CONCATENATE(AC160+AI163+AC165,":",AI160+AC163+AI165)) -> 0:0 | M154: J2
B155: 3 | C155: jméno a oddíl | E155: =IF(OR(LEFT(B166,3)="bye",LEFT(E166,3)="bye"),"0:0",M166) -> 0:0 | F155: =CONCATENATE(RIGHT(G154,1),MID(G154,2,1),LEFT(G154,1)) -> 0:0 | H155: =CONCATENATE(RIGHT(G156,1),MID(G156,2,1),LEFT(G156,1)) -> 0:0 | I155: =CONCATENATE(LEFT(E155,1)+LEFT(F155,1)+LEFT(H155,1),":",RIGHT(E155,1)+RIGHT(F155,1)+RIGHT(H155,1)) -> 0:0 | J155: =IF(LEFT(C155,3)="bye",0,IF(OR(E155="0:0",H166="WO-"),0,IF(LEFT(E155,1)="3",2,1))+IF(OR(F155="0:0",H160="WO"),0,IF(LEFT(F155,1)="3",2,1))+IF(OR(H155="0:0",H162="WO"),0,IF(LEFT(H155,1)="3",2,1))) -> 0 | K155: =IF(LEFT(C155,3)="bye",0,CONCATENATE(AI160+AI162+AC166,":",AC160+AC162+AI166)) -> 0:0 | M155: J3
B156: 4 | C156: jméno a oddíl | E156: =CONCATENATE(RIGHT(H153,1),MID(H153,2,1),LEFT(H153,1)) -> 0:0 | F156: =CONCATENATE(RIGHT(H154,1),MID(H154,2,1),LEFT(H154,1)) -> 0:0 | G156: =IF(OR(LEFT(B162,3)="bye",LEFT(E162,3)="bye"),"0:0",M162) -> 0:0 | I156: =CONCATENATE(LEFT(E156,1)+LEFT(F156,1)+LEFT(G156,1),":",RIGHT(E156,1)+RIGHT(F156,1)+RIGHT(G156,1)) -> 0:0 | J156: =IF(LEFT(C156,3)="bye",0,IF(OR(E156="0:0",H159="WO"),0,IF(LEFT(E156,1)="3",2,1))+IF(OR(F156="0:0",H165="WO"),0,IF(LEFT(F156,1)="3",2,1))+IF(OR(G156="0:0",H162="WO-"),0,IF(LEFT(G156,1)="3",2,1))) -> 0 | K156: =IF(LEFT(C155,3)="bye",0,CONCATENATE(AI159+AC162+AI165,":",AC159+AI162+AC165)) -> 0:0 | M156: J4
B158: I.kolo | H158: 1.set | I158: 2.set | J158: 3.set | K158: 4.set | L158: 5.set | M158: výsledek
B159: =C153 -> jméno a oddíl | D159: - | E159: =C156 -> jméno a oddíl | M159: =IF(H159="WO","3:0",IF(H159="WO-","0:3",CONCATENATE(V159,":",W159))) -> 0:0 | Q159: =IF(H159="",0,IF(OR(H159<0,H159="0-"),"0:1","1:0")) -> 0 | R159: 0 | S159: 0 | T159: 0 | U159: 0 | V159: =LEFT(Q159,1)+LEFT(R159,1)+LEFT(S159,1)+LEFT(T159,1)+LEFT(U159,1) -> 0 | W159: =RIGHT(Q159,1)+RIGHT(R159,1)+RIGHT(S159,1)+RIGHT(T159,1)+RIGHT(U159,1) -> 0 | X159: =IF(OR(LEFT(H159,2)="WO",H159="0-",H159=""),0,IF(H159<0,ABS(H159),IF(H159<10,11,H159+2))) -> 0 | Y159: =IF(OR(LEFT(H159,2)="WO",I159="0-",I159=""),0,IF(I159<0,ABS(I159),IF(I159<10,11,I159+2))) -> 0 | Z159: =IF(OR(LEFT(H159,2)="WO",J159="0-",J159=""),0,IF(J159<0,ABS(J159),IF(J159<10,11,J159+2))) -> 0 | AA159: =IF(OR(LEFT(H159,2)="WO",K159="0-",K159=""),0,IF(K159<0,ABS(K159),IF(K159<10,11,K159+2))) -> 0 | AB159: =IF(OR(LEFT(H159,2)="WO",L159="0-",L159=""),0,IF(L159<0,ABS(L159),IF(L159<10,11,L159+2))) -> 0 | AC159: =SUM(X159:AB159) -> 0 | AD159: =IF(H159="0-",11,IF(OR(LEFT(H159,2)="WO",H159=""),0,IF(H159<0,IF(ABS(H159)<10,11,ABS(H159)+2),H159))) -> 0 | AE159: =IF(I159="0-",11,IF(OR(LEFT(H159,2)="WO",I159="0-",I159=""),0,IF(I159<0,IF(ABS(I159)<10,11,ABS(I159)+2),I159))) -> 0 | AF159: =IF(J159="0-",11,IF(OR(LEFT(H159,2)="WO",J159="0-",J159=""),0,IF(J159<0,IF(ABS(J159)<10,11,ABS(J159)+2),J159))) -> 0 | AG159: =IF(K159="0-",11,IF(OR(LEFT(H159,2)="WO",K159="0-",K159=""),0,IF(K159<0,IF(ABS(K159)<10,11,ABS(K159)+2),K159))) -> 0 | AH159: =IF(L159="0-",11,IF(OR(LEFT(H159,2)="WO",L159="0-",L159=""),0,IF(L159<0,IF(ABS(L159)<10,11,ABS(L159)+2),L159))) -> 0 | AI159: =SUM(AD159:AH159) -> 0 | AJ159: =CONCATENATE(B159,"-",E159) -> jméno a oddíl-jméno a oddíl
B160: =C154 -> jméno a oddíl | C160: =#REF! ->  | D160: - | E160: =C155 -> jméno a oddíl | F160: =C155 -> jméno a oddíl | M160: =IF(H160="WO","3:0",IF(H160="WO-","0:3",CONCATENATE(V160,":",W160))) -> 0:0 | Q160: 0 | R160: 0 | S160: 0 | T160: 0 | U160: 0 | V160: =LEFT(Q160,1)+LEFT(R160,1)+LEFT(S160,1)+LEFT(T160,1)+LEFT(U160,1) -> 0 | W160: =RIGHT(Q160,1)+RIGHT(R160,1)+RIGHT(S160,1)+RIGHT(T160,1)+RIGHT(U160,1) -> 0 | X160: =IF(OR(LEFT(H160,2)="WO",H160="0-",H160=""),0,IF(H160<0,ABS(H160),IF(H160<10,11,H160+2))) -> 0 | Y160: =IF(OR(LEFT(H160,2)="WO",I160="0-",I160=""),0,IF(I160<0,ABS(I160),IF(I160<10,11,I160+2))) -> 0 | Z160: =IF(OR(LEFT(H160,2)="WO",J160="0-",J160=""),0,IF(J160<0,ABS(J160),IF(J160<10,11,J160+2))) -> 0 | AA160: =IF(OR(LEFT(H160,2)="WO",K160="0-",K160=""),0,IF(K160<0,ABS(K160),IF(K160<10,11,K160+2))) -> 0 | AB160: =IF(OR(LEFT(H160,2)="WO",L160="0-",L160=""),0,IF(L160<0,ABS(L160),IF(L160<10,11,L160+2))) -> 0 | AC160: =SUM(X160:AB160) -> 0 | AD160: =IF(H160="0-",11,IF(OR(LEFT(H160,2)="WO",H160=""),0,IF(H160<0,IF(ABS(H160)<10,11,ABS(H160)+2),H160))) -> 0 | AE160: =IF(I160="0-",11,IF(OR(LEFT(H160,2)="WO",I160="0-",I160=""),0,IF(I160<0,IF(ABS(I160)<10,11,ABS(I160)+2),I160))) -> 0 | AF160: =IF(J160="0-",11,IF(OR(LEFT(H160,2)="WO",J160="0-",J160=""),0,IF(J160<0,IF(ABS(J160)<10,11,ABS(J160)+2),J160))) -> 0 | AG160: =IF(K160="0-",11,IF(OR(LEFT(H160,2)="WO",K160="0-",K160=""),0,IF(K160<0,IF(ABS(K160)<10,11,ABS(K160)+2),K160))) -> 0 | AH160: =IF(L160="0-",11,IF(OR(LEFT(H160,2)="WO",L160="0-",L160=""),0,IF(L160<0,IF(ABS(L160)<10,11,ABS(L160)+2),L160))) -> 0 | AI160: =SUM(AD160:AH160) -> 0 | AJ160: =CONCATENATE(B160,"-",E160) -> jméno a oddíl-jméno a oddíl
B161: II.kolo | H161: 1.set | I161: 2.set | J161: 3.set | K161: 4.set | L161: 5.set | M161: výsledek
B162: =C156 -> jméno a oddíl | C162: =C156 -> jméno a oddíl | D162: - | E162: =C155 -> jméno a oddíl | F162: =C155 -> jméno a oddíl | M162: =IF(H162="WO","3:0",IF(H162="WO-","0:3",CONCATENATE(V162,":",W162))) -> 0:0 | Q162: =IF(H162="",0,IF(OR(H162<0,H162="0-"),"0:1","1:0")) -> 0 | R162: 0 | S162: 0 | T162: 0 | U162: 0 | V162: =LEFT(Q162,1)+LEFT(R162,1)+LEFT(S162,1)+LEFT(T162,1)+LEFT(U162,1) -> 0 | W162: =RIGHT(Q162,1)+RIGHT(R162,1)+RIGHT(S162,1)+RIGHT(T162,1)+RIGHT(U162,1) -> 0 | X162: =IF(OR(LEFT(H162,2)="WO",H162="0-",H162=""),0,IF(H162<0,ABS(H162),IF(H162<10,11,H162+2))) -> 0 | Y162: =IF(OR(LEFT(H162,2)="WO",I162="0-",I162=""),0,IF(I162<0,ABS(I162),IF(I162<10,11,I162+2))) -> 0 | Z162: =IF(OR(LEFT(H162,2)="WO",J162="0-",J162=""),0,IF(J162<0,ABS(J162),IF(J162<10,11,J162+2))) -> 0 | AA162: =IF(OR(LEFT(H162,2)="WO",K162="0-",K162=""),0,IF(K162<0,ABS(K162),IF(K162<10,11,K162+2))) -> 0 | AB162: =IF(OR(LEFT(H162,2)="WO",L162="0-",L162=""),0,IF(L162<0,ABS(L162),IF(L162<10,11,L162+2))) -> 0 | AC162: =SUM(X162:AB162) -> 0 | AD162: =IF(H162="0-",11,IF(OR(LEFT(H162,2)="WO",H162=""),0,IF(H162<0,IF(ABS(H162)<10,11,ABS(H162)+2),H162))) -> 0 | AE162: =IF(I162="0-",11,IF(OR(LEFT(H162,2)="WO",I162="0-",I162=""),0,IF(I162<0,IF(ABS(I162)<10,11,ABS(I162)+2),I162))) -> 0 | AF162: =IF(J162="0-",11,IF(OR(LEFT(H162,2)="WO",J162="0-",J162=""),0,IF(J162<0,IF(ABS(J162)<10,11,ABS(J162)+2),J162))) -> 0 | AG162: =IF(K162="0-",11,IF(OR(LEFT(H162,2)="WO",K162="0-",K162=""),0,IF(K162<0,IF(ABS(K162)<10,11,ABS(K162)+2),K162))) -> 0 | AH162: =IF(L162="0-",11,IF(OR(LEFT(H162,2)="WO",L162="0-",L162=""),0,IF(L162<0,IF(ABS(L162)<10,11,ABS(L162)+2),L162))) -> 0 | AI162: =SUM(AD162:AH162) -> 0 | AJ162: =CONCATENATE(B162,"-",E162) -> jméno a oddíl-jméno a oddíl
B163: =C153 -> jméno a oddíl | C163: =C154 -> jméno a oddíl | D163: - | E163: =C154 -> jméno a oddíl | F163: =C154 -> jméno a oddíl | M163: =IF(H163="WO","3:0",IF(H163="WO-","0:3",CONCATENATE(V163,":",W163))) -> 0:0 | Q163: 0 | R163: 0 | S163: 0 | T163: 0 | U163: 0 | V163: 0 | W163: 0 | X163: =IF(OR(LEFT(H163,2)="WO",H163="0-",H163=""),0,IF(H163<0,ABS(H163),IF(H163<10,11,H163+2))) -> 0 | Y163: =IF(OR(LEFT(H163,2)="WO",I163="0-",I163=""),0,IF(I163<0,ABS(I163),IF(I163<10,11,I163+2))) -> 0 | Z163: =IF(OR(LEFT(H163,2)="WO",J163="0-",J163=""),0,IF(J163<0,ABS(J163),IF(J163<10,11,J163+2))) -> 0 | AA163: =IF(OR(LEFT(H163,2)="WO",K163="0-",K163=""),0,IF(K163<0,ABS(K163),IF(K163<10,11,K163+2))) -> 0 | AB163: =IF(OR(LEFT(H163,2)="WO",L163="0-",L163=""),0,IF(L163<0,ABS(L163),IF(L163<10,11,L163+2))) -> 0 | AC163: 0 | AD163: =IF(H163="0-",11,IF(OR(LEFT(H163,2)="WO",H163=""),0,IF(H163<0,IF(ABS(H163)<10,11,ABS(H163)+2),H163))) -> 0 | AE163: =IF(I163="0-",11,IF(OR(LEFT(H163,2)="WO",I163="0-",I163=""),0,IF(I163<0,IF(ABS(I163)<10,11,ABS(I163)+2),I163))) -> 0 | AF163: =IF(J163="0-",11,IF(OR(LEFT(H163,2)="WO",J163="0-",J163=""),0,IF(J163<0,IF(ABS(J163)<10,11,ABS(J163)+2),J163))) -> 0 | AG163: =IF(K163="0-",11,IF(OR(LEFT(H163,2)="WO",K163="0-",K163=""),0,IF(K163<0,IF(ABS(K163)<10,11,ABS(K163)+2),K163))) -> 0 | AH163: =IF(L163="0-",11,IF(OR(LEFT(H163,2)="WO",L163="0-",L163=""),0,IF(L163<0,IF(ABS(L163)<10,11,ABS(L163)+2),L163))) -> 0 | AI163: 0 | AJ163: =CONCATENATE(B163,"-",E163) -> jméno a oddíl-jméno a oddíl
B164: III.kolo | H164: 1.set | I164: 2.set | J164: 3.set | K164: 4.set | L164: 5.set | M164: výsledek
B165: =C154 -> jméno a oddíl | C165: =#REF! ->  | D165: - | E165: =C156 -> jméno a oddíl | F165: =C156 -> jméno a oddíl | M165: =IF(H165="WO","3:0",IF(H165="WO-","0:3",CONCATENATE(V165,":",W165))) -> 0:0 | Q165: =IF(H165="",0,IF(OR(H165<0,H165="0-"),"0:1","1:0")) -> 0 | R165: 0 | S165: 0 | T165: 0 | U165: 0 | V165: =LEFT(Q165,1)+LEFT(R165,1)+LEFT(S165,1)+LEFT(T165,1)+LEFT(U165,1) -> 0 | W165: =RIGHT(Q165,1)+RIGHT(R165,1)+RIGHT(S165,1)+RIGHT(T165,1)+RIGHT(U165,1) -> 0 | X165: =IF(OR(LEFT(H165,2)="WO",H165="0-",H165=""),0,IF(H165<0,ABS(H165),IF(H165<10,11,H165+2))) -> 0 | Y165: =IF(OR(LEFT(H165,2)="WO",I165="0-",I165=""),0,IF(I165<0,ABS(I165),IF(I165<10,11,I165+2))) -> 0 | Z165: =IF(OR(LEFT(H165,2)="WO",J165="0-",J165=""),0,IF(J165<0,ABS(J165),IF(J165<10,11,J165+2))) -> 0 | AA165: =IF(OR(LEFT(H165,2)="WO",K165="0-",K165=""),0,IF(K165<0,ABS(K165),IF(K165<10,11,K165+2))) -> 0 | AB165: =IF(OR(LEFT(H165,2)="WO",L165="0-",L165=""),0,IF(L165<0,ABS(L165),IF(L165<10,11,L165+2))) -> 0 | AC165: =SUM(X165:AB165) -> 0 | AD165: =IF(H165="0-",11,IF(OR(LEFT(H165,2)="WO",H165=""),0,IF(H165<0,IF(ABS(H165)<10,11,ABS(H165)+2),H165))) -> 0 | AE165: =IF(I165="0-",11,IF(OR(LEFT(H165,2)="WO",I165="0-",I165=""),0,IF(I165<0,IF(ABS(I165)<10,11,ABS(I165)+2),I165))) -> 0 | AF165: =IF(J165="0-",11,IF(OR(LEFT(H165,2)="WO",J165="0-",J165=""),0,IF(J165<0,IF(ABS(J165)<10,11,ABS(J165)+2),J165))) -> 0 | AG165: =IF(K165="0-",11,IF(OR(LEFT(H165,2)="WO",K165="0-",K165=""),0,IF(K165<0,IF(ABS(K165)<10,11,ABS(K165)+2),K165))) -> 0 | AH165: =IF(L165="0-",11,IF(OR(LEFT(H165,2)="WO",L165="0-",L165=""),0,IF(L165<0,IF(ABS(L165)<10,11,ABS(L165)+2),L165))) -> 0 | AI165: =SUM(AD165:AH165) -> 0 | AJ165: =CONCATENATE(B165,"-",E165) -> jméno a oddíl-jméno a oddíl
B166: =C155 -> jméno a oddíl | C166: =#REF! ->  | D166: - | E166: =C153 -> jméno a oddíl | F166: =C153 -> jméno a oddíl | M166: =IF(H166="WO","3:0",IF(H166="WO-","0:3",CONCATENATE(V166,":",W166))) -> 0:0 | Q166: 0 | R166: 0 | S166: 0 | T166: 0 | U166: 0 | V166: 0 | W166: 0 | X166: =IF(OR(LEFT(H166,2)="WO",H166="0-",H166=""),0,IF(H166<0,ABS(H166),IF(H166<10,11,H166+2))) -> 0 | Y166: =IF(OR(LEFT(H166,2)="WO",I166="0-",I166=""),0,IF(I166<0,ABS(I166),IF(I166<10,11,I166+2))) -> 0 | Z166: =IF(OR(LEFT(H166,2)="WO",J166="0-",J166=""),0,IF(J166<0,ABS(J166),IF(J166<10,11,J166+2))) -> 0 | AA166: =IF(OR(LEFT(H166,2)="WO",K166="0-",K166=""),0,IF(K166<0,ABS(K166),IF(K166<10,11,K166+2))) -> 0 | AB166: =IF(OR(LEFT(H166,2)="WO",L166="0-",L166=""),0,IF(L166<0,ABS(L166),IF(L166<10,11,L166+2))) -> 0 | AC166: 0 | AD166: =IF(H166="0-",11,IF(OR(LEFT(H166,2)="WO",H166=""),0,IF(H166<0,IF(ABS(H166)<10,11,ABS(H166)+2),H166))) -> 0 | AE166: =IF(I166="0-",11,IF(OR(LEFT(H166,2)="WO",I166="0-",I166=""),0,IF(I166<0,IF(ABS(I166)<10,11,ABS(I166)+2),I166))) -> 0 | AF166: =IF(J166="0-",11,IF(OR(LEFT(H166,2)="WO",J166="0-",J166=""),0,IF(J166<0,IF(ABS(J166)<10,11,ABS(J166)+2),J166))) -> 0 | AG166: =IF(K166="0-",11,IF(OR(LEFT(H166,2)="WO",K166="0-",K166=""),0,IF(K166<0,IF(ABS(K166)<10,11,ABS(K166)+2),K166))) -> 0 | AH166: =IF(L166="0-",11,IF(OR(LEFT(H166,2)="WO",L166="0-",L166=""),0,IF(L166<0,IF(ABS(L166)<10,11,ABS(L166)+2),L166))) -> 0 | AI166: 0 | AJ166: =CONCATENATE(B166,"-",E166) -> jméno a oddíl-jméno a oddíl
B168: Skupina K | E168: =C169 -> jméno a oddíl | F168: =C170 -> jméno a oddíl | G168: =C171 -> jméno a oddíl | H168: =C172 -> jméno a oddíl | I168: Skóre | J168: Body | K168: Míčky | L168: Pořadí | M168: Pavouk
B169: 1 | C169: jméno a oddíl | F169: =IF(OR(LEFT(B179,3)="bye",LEFT(E179,3)="bye"),"0:0",M179) -> 0:0 | G169: =CONCATENATE(RIGHT(E171,1),MID(E171,2,1),LEFT(E171,1)) -> 0:0 | H169: =IF(OR(LEFT(B175,3)="bye",LEFT(E175,3)="bye"),"0:0",M175) -> 0:0 | I169: =CONCATENATE(LEFT(F169,1)+LEFT(G169,1)+LEFT(H169,1),":",RIGHT(F169,1)+RIGHT(G169,1)+RIGHT(H169,1)) -> 0:0 | J169: =IF(LEFT(C169,3)="bye",0,IF(OR(F169="0:0",H179="WO-"),0,IF(LEFT(F169,1)="3",2,1))+IF(OR(G169="0:0",H182="WO"),0,IF(LEFT(G169,1)="3",2,1))+IF(OR(H169="0:0",H175="WO-"),0,IF(LEFT(H169,1)="3",2,1))) -> 0 | K169: =IF(LEFT(C169,3)="bye",0,CONCATENATE(AC175+AC179+AI182,":",AI175+AI179+AC182)) -> 0:0 | M169: K1
B170: 2 | C170: jméno a oddíl | E170: =CONCATENATE(RIGHT(F169,1),MID(F169,2,1),LEFT(F169,1)) -> 0:0 | G170: =IF(OR(LEFT(B176,3)="bye",LEFT(E176,3)="bye"),"0:0",M176) -> 0:0 | H170: =IF(OR(LEFT(B181,3)="bye",LEFT(E181,3)="bye"),"0:0",M181) -> 0:0 | I170: =CONCATENATE(LEFT(E170,1)+LEFT(G170,1)+LEFT(H170,1),":",RIGHT(E170,1)+RIGHT(G170,1)+RIGHT(H170,1)) -> 0:0 | J170: =IF(LEFT(C170,3)="bye",0,IF(OR(E170="0:0",H179="WO"),0,IF(LEFT(E170,1)="3",2,1))+IF(OR(G170="0:0",H176="WO-"),0,IF(LEFT(G170,1)="3",2,1))+IF(OR(H170="0:0",H181="WO-"),0,IF(LEFT(H170,1)="3",2,1))) -> 0 | K170: =IF(LEFT(C170,3)="bye",0,CONCATENATE(AC176+AI179+AC181,":",AI176+AC179+AI181)) -> 0:0 | M170: K2
B171: 3 | C171: jméno a oddíl | E171: =IF(OR(LEFT(B182,3)="bye",LEFT(E182,3)="bye"),"0:0",M182) -> 0:0 | F171: =CONCATENATE(RIGHT(G170,1),MID(G170,2,1),LEFT(G170,1)) -> 0:0 | H171: =CONCATENATE(RIGHT(G172,1),MID(G172,2,1),LEFT(G172,1)) -> 0:0 | I171: =CONCATENATE(LEFT(E171,1)+LEFT(F171,1)+LEFT(H171,1),":",RIGHT(E171,1)+RIGHT(F171,1)+RIGHT(H171,1)) -> 0:0 | J171: =IF(LEFT(C171,3)="bye",0,IF(OR(E171="0:0",H182="WO-"),0,IF(LEFT(E171,1)="3",2,1))+IF(OR(F171="0:0",H176="WO"),0,IF(LEFT(F171,1)="3",2,1))+IF(OR(H171="0:0",H178="WO"),0,IF(LEFT(H171,1)="3",2,1))) -> 0 | K171: =IF(LEFT(C171,3)="bye",0,CONCATENATE(AI176+AI178+AC182,":",AC176+AC178+AI182)) -> 0:0 | M171: K3
B172: 4 | C172: jméno a oddíl | E172: =CONCATENATE(RIGHT(H169,1),MID(H169,2,1),LEFT(H169,1)) -> 0:0 | F172: =CONCATENATE(RIGHT(H170,1),MID(H170,2,1),LEFT(H170,1)) -> 0:0 | G172: =IF(OR(LEFT(B178,3)="bye",LEFT(E178,3)="bye"),"0:0",M178) -> 0:0 | I172: =CONCATENATE(LEFT(E172,1)+LEFT(F172,1)+LEFT(G172,1),":",RIGHT(E172,1)+RIGHT(F172,1)+RIGHT(G172,1)) -> 0:0 | J172: =IF(LEFT(C172,3)="bye",0,IF(OR(E172="0:0",H175="WO"),0,IF(LEFT(E172,1)="3",2,1))+IF(OR(F172="0:0",H181="WO"),0,IF(LEFT(F172,1)="3",2,1))+IF(OR(G172="0:0",H178="WO-"),0,IF(LEFT(G172,1)="3",2,1))) -> 0 | K172: =IF(LEFT(C171,3)="bye",0,CONCATENATE(AI175+AC178+AI181,":",AC175+AI178+AC181)) -> 0:0 | M172: K4
B174: I.kolo | H174: 1.set | I174: 2.set | J174: 3.set | K174: 4.set | L174: 5.set | M174: výsledek
B175: =C169 -> jméno a oddíl | D175: - | E175: =C172 -> jméno a oddíl | M175: =IF(H175="WO","3:0",IF(H175="WO-","0:3",CONCATENATE(V175,":",W175))) -> 0:0 | Q175: =IF(H175="",0,IF(OR(H175<0,H175="0-"),"0:1","1:0")) -> 0 | R175: 0 | S175: 0 | T175: 0 | U175: 0 | V175: =LEFT(Q175,1)+LEFT(R175,1)+LEFT(S175,1)+LEFT(T175,1)+LEFT(U175,1) -> 0 | W175: =RIGHT(Q175,1)+RIGHT(R175,1)+RIGHT(S175,1)+RIGHT(T175,1)+RIGHT(U175,1) -> 0 | X175: =IF(OR(LEFT(H175,2)="WO",H175="0-",H175=""),0,IF(H175<0,ABS(H175),IF(H175<10,11,H175+2))) -> 0 | Y175: =IF(OR(LEFT(H175,2)="WO",I175="0-",I175=""),0,IF(I175<0,ABS(I175),IF(I175<10,11,I175+2))) -> 0 | Z175: =IF(OR(LEFT(H175,2)="WO",J175="0-",J175=""),0,IF(J175<0,ABS(J175),IF(J175<10,11,J175+2))) -> 0 | AA175: =IF(OR(LEFT(H175,2)="WO",K175="0-",K175=""),0,IF(K175<0,ABS(K175),IF(K175<10,11,K175+2))) -> 0 | AB175: =IF(OR(LEFT(H175,2)="WO",L175="0-",L175=""),0,IF(L175<0,ABS(L175),IF(L175<10,11,L175+2))) -> 0 | AC175: =SUM(X175:AB175) -> 0 | AD175: =IF(H175="0-",11,IF(OR(LEFT(H175,2)="WO",H175=""),0,IF(H175<0,IF(ABS(H175)<10,11,ABS(H175)+2),H175))) -> 0 | AE175: =IF(I175="0-",11,IF(OR(LEFT(H175,2)="WO",I175="0-",I175=""),0,IF(I175<0,IF(ABS(I175)<10,11,ABS(I175)+2),I175))) -> 0 | AF175: =IF(J175="0-",11,IF(OR(LEFT(H175,2)="WO",J175="0-",J175=""),0,IF(J175<0,IF(ABS(J175)<10,11,ABS(J175)+2),J175))) -> 0 | AG175: =IF(K175="0-",11,IF(OR(LEFT(H175,2)="WO",K175="0-",K175=""),0,IF(K175<0,IF(ABS(K175)<10,11,ABS(K175)+2),K175))) -> 0 | AH175: =IF(L175="0-",11,IF(OR(LEFT(H175,2)="WO",L175="0-",L175=""),0,IF(L175<0,IF(ABS(L175)<10,11,ABS(L175)+2),L175))) -> 0 | AI175: =SUM(AD175:AH175) -> 0 | AJ175: =CONCATENATE(B175,"-",E175) -> jméno a oddíl-jméno a oddíl
B176: =C170 -> jméno a oddíl | C176: =#REF! ->  | D176: - | E176: =C171 -> jméno a oddíl | F176: =C171 -> jméno a oddíl | M176: =IF(H176="WO","3:0",IF(H176="WO-","0:3",CONCATENATE(V176,":",W176))) -> 0:0 | Q176: 0 | R176: 0 | S176: 0 | T176: 0 | U176: 0 | V176: =LEFT(Q176,1)+LEFT(R176,1)+LEFT(S176,1)+LEFT(T176,1)+LEFT(U176,1) -> 0 | W176: =RIGHT(Q176,1)+RIGHT(R176,1)+RIGHT(S176,1)+RIGHT(T176,1)+RIGHT(U176,1) -> 0 | X176: =IF(OR(LEFT(H176,2)="WO",H176="0-",H176=""),0,IF(H176<0,ABS(H176),IF(H176<10,11,H176+2))) -> 0 | Y176: =IF(OR(LEFT(H176,2)="WO",I176="0-",I176=""),0,IF(I176<0,ABS(I176),IF(I176<10,11,I176+2))) -> 0 | Z176: =IF(OR(LEFT(H176,2)="WO",J176="0-",J176=""),0,IF(J176<0,ABS(J176),IF(J176<10,11,J176+2))) -> 0 | AA176: =IF(OR(LEFT(H176,2)="WO",K176="0-",K176=""),0,IF(K176<0,ABS(K176),IF(K176<10,11,K176+2))) -> 0 | AB176: =IF(OR(LEFT(H176,2)="WO",L176="0-",L176=""),0,IF(L176<0,ABS(L176),IF(L176<10,11,L176+2))) -> 0 | AC176: =SUM(X176:AB176) -> 0 | AD176: =IF(H176="0-",11,IF(OR(LEFT(H176,2)="WO",H176=""),0,IF(H176<0,IF(ABS(H176)<10,11,ABS(H176)+2),H176))) -> 0 | AE176: =IF(I176="0-",11,IF(OR(LEFT(H176,2)="WO",I176="0-",I176=""),0,IF(I176<0,IF(ABS(I176)<10,11,ABS(I176)+2),I176))) -> 0 | AF176: =IF(J176="0-",11,IF(OR(LEFT(H176,2)="WO",J176="0-",J176=""),0,IF(J176<0,IF(ABS(J176)<10,11,ABS(J176)+2),J176))) -> 0 | AG176: =IF(K176="0-",11,IF(OR(LEFT(H176,2)="WO",K176="0-",K176=""),0,IF(K176<0,IF(ABS(K176)<10,11,ABS(K176)+2),K176))) -> 0 | AH176: =IF(L176="0-",11,IF(OR(LEFT(H176,2)="WO",L176="0-",L176=""),0,IF(L176<0,IF(ABS(L176)<10,11,ABS(L176)+2),L176))) -> 0 | AI176: =SUM(AD176:AH176) -> 0 | AJ176: =CONCATENATE(B176,"-",E176) -> jméno a oddíl-jméno a oddíl
B177: II.kolo | H177: 1.set | I177: 2.set | J177: 3.set | K177: 4.set | L177: 5.set | M177: výsledek
B178: =C172 -> jméno a oddíl | C178: =C172 -> jméno a oddíl | D178: - | E178: =C171 -> jméno a oddíl | F178: =C171 -> jméno a oddíl | M178: =IF(H178="WO","3:0",IF(H178="WO-","0:3",CONCATENATE(V178,":",W178))) -> 0:0 | Q178: =IF(H178="",0,IF(OR(H178<0,H178="0-"),"0:1","1:0")) -> 0 | R178: 0 | S178: 0 | T178: 0 | U178: 0 | V178: =LEFT(Q178,1)+LEFT(R178,1)+LEFT(S178,1)+LEFT(T178,1)+LEFT(U178,1) -> 0 | W178: =RIGHT(Q178,1)+RIGHT(R178,1)+RIGHT(S178,1)+RIGHT(T178,1)+RIGHT(U178,1) -> 0 | X178: =IF(OR(LEFT(H178,2)="WO",H178="0-",H178=""),0,IF(H178<0,ABS(H178),IF(H178<10,11,H178+2))) -> 0 | Y178: =IF(OR(LEFT(H178,2)="WO",I178="0-",I178=""),0,IF(I178<0,ABS(I178),IF(I178<10,11,I178+2))) -> 0 | Z178: =IF(OR(LEFT(H178,2)="WO",J178="0-",J178=""),0,IF(J178<0,ABS(J178),IF(J178<10,11,J178+2))) -> 0 | AA178: =IF(OR(LEFT(H178,2)="WO",K178="0-",K178=""),0,IF(K178<0,ABS(K178),IF(K178<10,11,K178+2))) -> 0 | AB178: =IF(OR(LEFT(H178,2)="WO",L178="0-",L178=""),0,IF(L178<0,ABS(L178),IF(L178<10,11,L178+2))) -> 0 | AC178: =SUM(X178:AB178) -> 0 | AD178: =IF(H178="0-",11,IF(OR(LEFT(H178,2)="WO",H178=""),0,IF(H178<0,IF(ABS(H178)<10,11,ABS(H178)+2),H178))) -> 0 | AE178: =IF(I178="0-",11,IF(OR(LEFT(H178,2)="WO",I178="0-",I178=""),0,IF(I178<0,IF(ABS(I178)<10,11,ABS(I178)+2),I178))) -> 0 | AF178: =IF(J178="0-",11,IF(OR(LEFT(H178,2)="WO",J178="0-",J178=""),0,IF(J178<0,IF(ABS(J178)<10,11,ABS(J178)+2),J178))) -> 0 | AG178: =IF(K178="0-",11,IF(OR(LEFT(H178,2)="WO",K178="0-",K178=""),0,IF(K178<0,IF(ABS(K178)<10,11,ABS(K178)+2),K178))) -> 0 | AH178: =IF(L178="0-",11,IF(OR(LEFT(H178,2)="WO",L178="0-",L178=""),0,IF(L178<0,IF(ABS(L178)<10,11,ABS(L178)+2),L178))) -> 0 | AI178: =SUM(AD178:AH178) -> 0 | AJ178: =CONCATENATE(B178,"-",E178) -> jméno a oddíl-jméno a oddíl
B179: =C169 -> jméno a oddíl | C179: =C170 -> jméno a oddíl | D179: - | E179: =C170 -> jméno a oddíl | F179: =C170 -> jméno a oddíl | M179: =IF(H179="WO","3:0",IF(H179="WO-","0:3",CONCATENATE(V179,":",W179))) -> 0:0 | Q179: 0 | R179: 0 | S179: 0 | T179: 0 | U179: 0 | V179: 0 | W179: 0 | X179: =IF(OR(LEFT(H179,2)="WO",H179="0-",H179=""),0,IF(H179<0,ABS(H179),IF(H179<10,11,H179+2))) -> 0 | Y179: =IF(OR(LEFT(H179,2)="WO",I179="0-",I179=""),0,IF(I179<0,ABS(I179),IF(I179<10,11,I179+2))) -> 0 | Z179: =IF(OR(LEFT(H179,2)="WO",J179="0-",J179=""),0,IF(J179<0,ABS(J179),IF(J179<10,11,J179+2))) -> 0 | AA179: =IF(OR(LEFT(H179,2)="WO",K179="0-",K179=""),0,IF(K179<0,ABS(K179),IF(K179<10,11,K179+2))) -> 0 | AB179: =IF(OR(LEFT(H179,2)="WO",L179="0-",L179=""),0,IF(L179<0,ABS(L179),IF(L179<10,11,L179+2))) -> 0 | AC179: 0 | AD179: =IF(H179="0-",11,IF(OR(LEFT(H179,2)="WO",H179=""),0,IF(H179<0,IF(ABS(H179)<10,11,ABS(H179)+2),H179))) -> 0 | AE179: =IF(I179="0-",11,IF(OR(LEFT(H179,2)="WO",I179="0-",I179=""),0,IF(I179<0,IF(ABS(I179)<10,11,ABS(I179)+2),I179))) -> 0 | AF179: =IF(J179="0-",11,IF(OR(LEFT(H179,2)="WO",J179="0-",J179=""),0,IF(J179<0,IF(ABS(J179)<10,11,ABS(J179)+2),J179))) -> 0 | AG179: =IF(K179="0-",11,IF(OR(LEFT(H179,2)="WO",K179="0-",K179=""),0,IF(K179<0,IF(ABS(K179)<10,11,ABS(K179)+2),K179))) -> 0 | AH179: =IF(L179="0-",11,IF(OR(LEFT(H179,2)="WO",L179="0-",L179=""),0,IF(L179<0,IF(ABS(L179)<10,11,ABS(L179)+2),L179))) -> 0 | AI179: 0 | AJ179: =CONCATENATE(B179,"-",E179) -> jméno a oddíl-jméno a oddíl
B180: III.kolo | H180: 1.set | I180: 2.set | J180: 3.set | K180: 4.set | L180: 5.set | M180: výsledek
B181: =C170 -> jméno a oddíl | C181: =#REF! ->  | D181: - | E181: =C172 -> jméno a oddíl | F181: =C172 -> jméno a oddíl | M181: =IF(H181="WO","3:0",IF(H181="WO-","0:3",CONCATENATE(V181,":",W181))) -> 0:0 | Q181: =IF(H181="",0,IF(OR(H181<0,H181="0-"),"0:1","1:0")) -> 0 | R181: 0 | S181: 0 | T181: 0 | U181: 0 | V181: =LEFT(Q181,1)+LEFT(R181,1)+LEFT(S181,1)+LEFT(T181,1)+LEFT(U181,1) -> 0 | W181: =RIGHT(Q181,1)+RIGHT(R181,1)+RIGHT(S181,1)+RIGHT(T181,1)+RIGHT(U181,1) -> 0 | X181: =IF(OR(LEFT(H181,2)="WO",H181="0-",H181=""),0,IF(H181<0,ABS(H181),IF(H181<10,11,H181+2))) -> 0 | Y181: =IF(OR(LEFT(H181,2)="WO",I181="0-",I181=""),0,IF(I181<0,ABS(I181),IF(I181<10,11,I181+2))) -> 0 | Z181: =IF(OR(LEFT(H181,2)="WO",J181="0-",J181=""),0,IF(J181<0,ABS(J181),IF(J181<10,11,J181+2))) -> 0 | AA181: =IF(OR(LEFT(H181,2)="WO",K181="0-",K181=""),0,IF(K181<0,ABS(K181),IF(K181<10,11,K181+2))) -> 0 | AB181: =IF(OR(LEFT(H181,2)="WO",L181="0-",L181=""),0,IF(L181<0,ABS(L181),IF(L181<10,11,L181+2))) -> 0 | AC181: =SUM(X181:AB181) -> 0 | AD181: =IF(H181="0-",11,IF(OR(LEFT(H181,2)="WO",H181=""),0,IF(H181<0,IF(ABS(H181)<10,11,ABS(H181)+2),H181))) -> 0 | AE181: =IF(I181="0-",11,IF(OR(LEFT(H181,2)="WO",I181="0-",I181=""),0,IF(I181<0,IF(ABS(I181)<10,11,ABS(I181)+2),I181))) -> 0 | AF181: =IF(J181="0-",11,IF(OR(LEFT(H181,2)="WO",J181="0-",J181=""),0,IF(J181<0,IF(ABS(J181)<10,11,ABS(J181)+2),J181))) -> 0 | AG181: =IF(K181="0-",11,IF(OR(LEFT(H181,2)="WO",K181="0-",K181=""),0,IF(K181<0,IF(ABS(K181)<10,11,ABS(K181)+2),K181))) -> 0 | AH181: =IF(L181="0-",11,IF(OR(LEFT(H181,2)="WO",L181="0-",L181=""),0,IF(L181<0,IF(ABS(L181)<10,11,ABS(L181)+2),L181))) -> 0 | AI181: =SUM(AD181:AH181) -> 0 | AJ181: =CONCATENATE(B181,"-",E181) -> jméno a oddíl-jméno a oddíl
B182: =C171 -> jméno a oddíl | C182: =#REF! ->  | D182: - | E182: =C169 -> jméno a oddíl | F182: =C169 -> jméno a oddíl | M182: =IF(H182="WO","3:0",IF(H182="WO-","0:3",CONCATENATE(V182,":",W182))) -> 0:0 | Q182: 0 | R182: 0 | S182: 0 | T182: 0 | U182: 0 | V182: 0 | W182: 0 | X182: =IF(OR(LEFT(H182,2)="WO",H182="0-",H182=""),0,IF(H182<0,ABS(H182),IF(H182<10,11,H182+2))) -> 0 | Y182: =IF(OR(LEFT(H182,2)="WO",I182="0-",I182=""),0,IF(I182<0,ABS(I182),IF(I182<10,11,I182+2))) -> 0 | Z182: =IF(OR(LEFT(H182,2)="WO",J182="0-",J182=""),0,IF(J182<0,ABS(J182),IF(J182<10,11,J182+2))) -> 0 | AA182: =IF(OR(LEFT(H182,2)="WO",K182="0-",K182=""),0,IF(K182<0,ABS(K182),IF(K182<10,11,K182+2))) -> 0 | AB182: =IF(OR(LEFT(H182,2)="WO",L182="0-",L182=""),0,IF(L182<0,ABS(L182),IF(L182<10,11,L182+2))) -> 0 | AC182: 0 | AD182: =IF(H182="0-",11,IF(OR(LEFT(H182,2)="WO",H182=""),0,IF(H182<0,IF(ABS(H182)<10,11,ABS(H182)+2),H182))) -> 0 | AE182: =IF(I182="0-",11,IF(OR(LEFT(H182,2)="WO",I182="0-",I182=""),0,IF(I182<0,IF(ABS(I182)<10,11,ABS(I182)+2),I182))) -> 0 | AF182: =IF(J182="0-",11,IF(OR(LEFT(H182,2)="WO",J182="0-",J182=""),0,IF(J182<0,IF(ABS(J182)<10,11,ABS(J182)+2),J182))) -> 0 | AG182: =IF(K182="0-",11,IF(OR(LEFT(H182,2)="WO",K182="0-",K182=""),0,IF(K182<0,IF(ABS(K182)<10,11,ABS(K182)+2),K182))) -> 0 | AH182: =IF(L182="0-",11,IF(OR(LEFT(H182,2)="WO",L182="0-",L182=""),0,IF(L182<0,IF(ABS(L182)<10,11,ABS(L182)+2),L182))) -> 0 | AI182: 0 | AJ182: =CONCATENATE(B182,"-",E182) -> jméno a oddíl-jméno a oddíl
B185: Skupina L | E185: =C186 -> jméno a oddíl | F185: =C187 -> jméno a oddíl | G185: =C188 -> jméno a oddíl | H185: =C189 -> jméno a oddíl | I185: Skóre | J185: Body | K185: Míčky | L185: Pořadí | M185: Pavouk
B186: 1 | C186: jméno a oddíl | F186: =IF(OR(LEFT(B196,3)="bye",LEFT(E196,3)="bye"),"0:0",M196) -> 0:0 | G186: =CONCATENATE(RIGHT(E188,1),MID(E188,2,1),LEFT(E188,1)) -> 0:0 | H186: =IF(OR(LEFT(B192,3)="bye",LEFT(E192,3)="bye"),"0:0",M192) -> 0:0 | I186: =CONCATENATE(LEFT(F186,1)+LEFT(G186,1)+LEFT(H186,1),":",RIGHT(F186,1)+RIGHT(G186,1)+RIGHT(H186,1)) -> 0:0 | J186: =IF(LEFT(C186,3)="bye",0,IF(OR(F186="0:0",H196="WO-"),0,IF(LEFT(F186,1)="3",2,1))+IF(OR(G186="0:0",H199="WO"),0,IF(LEFT(G186,1)="3",2,1))+IF(OR(H186="0:0",H192="WO-"),0,IF(LEFT(H186,1)="3",2,1))) -> 0 | K186: =IF(LEFT(C186,3)="bye",0,CONCATENATE(AC192+AC196+AI199,":",AI192+AI196+AC199)) -> 0:0 | M186: L1
B187: 2 | C187: jméno a oddíl | E187: =CONCATENATE(RIGHT(F186,1),MID(F186,2,1),LEFT(F186,1)) -> 0:0 | G187: =IF(OR(LEFT(B193,3)="bye",LEFT(E193,3)="bye"),"0:0",M193) -> 0:0 | H187: =IF(OR(LEFT(B198,3)="bye",LEFT(E198,3)="bye"),"0:0",M198) -> 0:0 | I187: =CONCATENATE(LEFT(E187,1)+LEFT(G187,1)+LEFT(H187,1),":",RIGHT(E187,1)+RIGHT(G187,1)+RIGHT(H187,1)) -> 0:0 | J187: =IF(LEFT(C187,3)="bye",0,IF(OR(E187="0:0",H196="WO"),0,IF(LEFT(E187,1)="3",2,1))+IF(OR(G187="0:0",H193="WO-"),0,IF(LEFT(G187,1)="3",2,1))+IF(OR(H187="0:0",H198="WO-"),0,IF(LEFT(H187,1)="3",2,1))) -> 0 | K187: =IF(LEFT(C187,3)="bye",0,CONCATENATE(AC193+AI196+AC198,":",AI193+AC196+AI198)) -> 0:0 | M187: L2
B188: 3 | C188: jméno a oddíl | E188: =IF(OR(LEFT(B199,3)="bye",LEFT(E199,3)="bye"),"0:0",M199) -> 0:0 | F188: =CONCATENATE(RIGHT(G187,1),MID(G187,2,1),LEFT(G187,1)) -> 0:0 | H188: =CONCATENATE(RIGHT(G189,1),MID(G189,2,1),LEFT(G189,1)) -> 0:0 | I188: =CONCATENATE(LEFT(E188,1)+LEFT(F188,1)+LEFT(H188,1),":",RIGHT(E188,1)+RIGHT(F188,1)+RIGHT(H188,1)) -> 0:0 | J188: =IF(LEFT(C188,3)="bye",0,IF(OR(E188="0:0",H199="WO-"),0,IF(LEFT(E188,1)="3",2,1))+IF(OR(F188="0:0",H193="WO"),0,IF(LEFT(F188,1)="3",2,1))+IF(OR(H188="0:0",H195="WO"),0,IF(LEFT(H188,1)="3",2,1))) -> 0 | K188: =IF(LEFT(C188,3)="bye",0,CONCATENATE(AI193+AI195+AC199,":",AC193+AC195+AI199)) -> 0:0 | M188: L3
B189: 4 | C189: jméno a oddíl | E189: =CONCATENATE(RIGHT(H186,1),MID(H186,2,1),LEFT(H186,1)) -> 0:0 | F189: =CONCATENATE(RIGHT(H187,1),MID(H187,2,1),LEFT(H187,1)) -> 0:0 | G189: =IF(OR(LEFT(B195,3)="bye",LEFT(E195,3)="bye"),"0:0",M195) -> 0:0 | I189: =CONCATENATE(LEFT(E189,1)+LEFT(F189,1)+LEFT(G189,1),":",RIGHT(E189,1)+RIGHT(F189,1)+RIGHT(G189,1)) -> 0:0 | J189: =IF(LEFT(C189,3)="bye",0,IF(OR(E189="0:0",H192="WO"),0,IF(LEFT(E189,1)="3",2,1))+IF(OR(F189="0:0",H198="WO"),0,IF(LEFT(F189,1)="3",2,1))+IF(OR(G189="0:0",H195="WO-"),0,IF(LEFT(G189,1)="3",2,1))) -> 0 | K189: =IF(LEFT(C188,3)="bye",0,CONCATENATE(AI192+AC195+AI198,":",AC192+AI195+AC198)) -> 0:0 | M189: L4
B191: I.kolo | H191: 1.set | I191: 2.set | J191: 3.set | K191: 4.set | L191: 5.set | M191: výsledek
B192: =C186 -> jméno a oddíl | D192: - | E192: =C189 -> jméno a oddíl | M192: =IF(H192="WO","3:0",IF(H192="WO-","0:3",CONCATENATE(V192,":",W192))) -> 0:0 | Q192: =IF(H192="",0,IF(OR(H192<0,H192="0-"),"0:1","1:0")) -> 0 | R192: 0 | S192: 0 | T192: 0 | U192: 0 | V192: =LEFT(Q192,1)+LEFT(R192,1)+LEFT(S192,1)+LEFT(T192,1)+LEFT(U192,1) -> 0 | W192: =RIGHT(Q192,1)+RIGHT(R192,1)+RIGHT(S192,1)+RIGHT(T192,1)+RIGHT(U192,1) -> 0 | X192: =IF(OR(LEFT(H192,2)="WO",H192="0-",H192=""),0,IF(H192<0,ABS(H192),IF(H192<10,11,H192+2))) -> 0 | Y192: =IF(OR(LEFT(H192,2)="WO",I192="0-",I192=""),0,IF(I192<0,ABS(I192),IF(I192<10,11,I192+2))) -> 0 | Z192: =IF(OR(LEFT(H192,2)="WO",J192="0-",J192=""),0,IF(J192<0,ABS(J192),IF(J192<10,11,J192+2))) -> 0 | AA192: =IF(OR(LEFT(H192,2)="WO",K192="0-",K192=""),0,IF(K192<0,ABS(K192),IF(K192<10,11,K192+2))) -> 0 | AB192: =IF(OR(LEFT(H192,2)="WO",L192="0-",L192=""),0,IF(L192<0,ABS(L192),IF(L192<10,11,L192+2))) -> 0 | AC192: =SUM(X192:AB192) -> 0 | AD192: =IF(H192="0-",11,IF(OR(LEFT(H192,2)="WO",H192=""),0,IF(H192<0,IF(ABS(H192)<10,11,ABS(H192)+2),H192))) -> 0 | AE192: =IF(I192="0-",11,IF(OR(LEFT(H192,2)="WO",I192="0-",I192=""),0,IF(I192<0,IF(ABS(I192)<10,11,ABS(I192)+2),I192))) -> 0 | AF192: =IF(J192="0-",11,IF(OR(LEFT(H192,2)="WO",J192="0-",J192=""),0,IF(J192<0,IF(ABS(J192)<10,11,ABS(J192)+2),J192))) -> 0 | AG192: =IF(K192="0-",11,IF(OR(LEFT(H192,2)="WO",K192="0-",K192=""),0,IF(K192<0,IF(ABS(K192)<10,11,ABS(K192)+2),K192))) -> 0 | AH192: =IF(L192="0-",11,IF(OR(LEFT(H192,2)="WO",L192="0-",L192=""),0,IF(L192<0,IF(ABS(L192)<10,11,ABS(L192)+2),L192))) -> 0 | AI192: =SUM(AD192:AH192) -> 0 | AJ192: =CONCATENATE(B192,"-",E192) -> jméno a oddíl-jméno a oddíl
B193: =C187 -> jméno a oddíl | C193: =#REF! ->  | D193: - | E193: =C188 -> jméno a oddíl | F193: =C188 -> jméno a oddíl | M193: =IF(H193="WO","3:0",IF(H193="WO-","0:3",CONCATENATE(V193,":",W193))) -> 0:0 | Q193: 0 | R193: 0 | S193: 0 | T193: 0 | U193: 0 | V193: =LEFT(Q193,1)+LEFT(R193,1)+LEFT(S193,1)+LEFT(T193,1)+LEFT(U193,1) -> 0 | W193: =RIGHT(Q193,1)+RIGHT(R193,1)+RIGHT(S193,1)+RIGHT(T193,1)+RIGHT(U193,1) -> 0 | X193: =IF(OR(LEFT(H193,2)="WO",H193="0-",H193=""),0,IF(H193<0,ABS(H193),IF(H193<10,11,H193+2))) -> 0 | Y193: =IF(OR(LEFT(H193,2)="WO",I193="0-",I193=""),0,IF(I193<0,ABS(I193),IF(I193<10,11,I193+2))) -> 0 | Z193: =IF(OR(LEFT(H193,2)="WO",J193="0-",J193=""),0,IF(J193<0,ABS(J193),IF(J193<10,11,J193+2))) -> 0 | AA193: =IF(OR(LEFT(H193,2)="WO",K193="0-",K193=""),0,IF(K193<0,ABS(K193),IF(K193<10,11,K193+2))) -> 0 | AB193: =IF(OR(LEFT(H193,2)="WO",L193="0-",L193=""),0,IF(L193<0,ABS(L193),IF(L193<10,11,L193+2))) -> 0 | AC193: =SUM(X193:AB193) -> 0 | AD193: =IF(H193="0-",11,IF(OR(LEFT(H193,2)="WO",H193=""),0,IF(H193<0,IF(ABS(H193)<10,11,ABS(H193)+2),H193))) -> 0 | AE193: =IF(I193="0-",11,IF(OR(LEFT(H193,2)="WO",I193="0-",I193=""),0,IF(I193<0,IF(ABS(I193)<10,11,ABS(I193)+2),I193))) -> 0 | AF193: =IF(J193="0-",11,IF(OR(LEFT(H193,2)="WO",J193="0-",J193=""),0,IF(J193<0,IF(ABS(J193)<10,11,ABS(J193)+2),J193))) -> 0 | AG193: =IF(K193="0-",11,IF(OR(LEFT(H193,2)="WO",K193="0-",K193=""),0,IF(K193<0,IF(ABS(K193)<10,11,ABS(K193)+2),K193))) -> 0 | AH193: =IF(L193="0-",11,IF(OR(LEFT(H193,2)="WO",L193="0-",L193=""),0,IF(L193<0,IF(ABS(L193)<10,11,ABS(L193)+2),L193))) -> 0 | AI193: =SUM(AD193:AH193) -> 0 | AJ193: =CONCATENATE(B193,"-",E193) -> jméno a oddíl-jméno a oddíl
B194: II.kolo | H194: 1.set | I194: 2.set | J194: 3.set | K194: 4.set | L194: 5.set | M194: výsledek
B195: =C189 -> jméno a oddíl | C195: =C189 -> jméno a oddíl | D195: - | E195: =C188 -> jméno a oddíl | F195: =C188 -> jméno a oddíl | M195: =IF(H195="WO","3:0",IF(H195="WO-","0:3",CONCATENATE(V195,":",W195))) -> 0:0 | Q195: =IF(H195="",0,IF(OR(H195<0,H195="0-"),"0:1","1:0")) -> 0 | R195: 0 | S195: 0 | T195: 0 | U195: 0 | V195: =LEFT(Q195,1)+LEFT(R195,1)+LEFT(S195,1)+LEFT(T195,1)+LEFT(U195,1) -> 0 | W195: =RIGHT(Q195,1)+RIGHT(R195,1)+RIGHT(S195,1)+RIGHT(T195,1)+RIGHT(U195,1) -> 0 | X195: =IF(OR(LEFT(H195,2)="WO",H195="0-",H195=""),0,IF(H195<0,ABS(H195),IF(H195<10,11,H195+2))) -> 0 | Y195: =IF(OR(LEFT(H195,2)="WO",I195="0-",I195=""),0,IF(I195<0,ABS(I195),IF(I195<10,11,I195+2))) -> 0 | Z195: =IF(OR(LEFT(H195,2)="WO",J195="0-",J195=""),0,IF(J195<0,ABS(J195),IF(J195<10,11,J195+2))) -> 0 | AA195: =IF(OR(LEFT(H195,2)="WO",K195="0-",K195=""),0,IF(K195<0,ABS(K195),IF(K195<10,11,K195+2))) -> 0 | AB195: =IF(OR(LEFT(H195,2)="WO",L195="0-",L195=""),0,IF(L195<0,ABS(L195),IF(L195<10,11,L195+2))) -> 0 | AC195: =SUM(X195:AB195) -> 0 | AD195: =IF(H195="0-",11,IF(OR(LEFT(H195,2)="WO",H195=""),0,IF(H195<0,IF(ABS(H195)<10,11,ABS(H195)+2),H195))) -> 0 | AE195: =IF(I195="0-",11,IF(OR(LEFT(H195,2)="WO",I195="0-",I195=""),0,IF(I195<0,IF(ABS(I195)<10,11,ABS(I195)+2),I195))) -> 0 | AF195: =IF(J195="0-",11,IF(OR(LEFT(H195,2)="WO",J195="0-",J195=""),0,IF(J195<0,IF(ABS(J195)<10,11,ABS(J195)+2),J195))) -> 0 | AG195: =IF(K195="0-",11,IF(OR(LEFT(H195,2)="WO",K195="0-",K195=""),0,IF(K195<0,IF(ABS(K195)<10,11,ABS(K195)+2),K195))) -> 0 | AH195: =IF(L195="0-",11,IF(OR(LEFT(H195,2)="WO",L195="0-",L195=""),0,IF(L195<0,IF(ABS(L195)<10,11,ABS(L195)+2),L195))) -> 0 | AI195: =SUM(AD195:AH195) -> 0 | AJ195: =CONCATENATE(B195,"-",E195) -> jméno a oddíl-jméno a oddíl
B196: =C186 -> jméno a oddíl | C196: =C187 -> jméno a oddíl | D196: - | E196: =C187 -> jméno a oddíl | F196: =C187 -> jméno a oddíl | M196: =IF(H196="WO","3:0",IF(H196="WO-","0:3",CONCATENATE(V196,":",W196))) -> 0:0 | Q196: 0 | R196: 0 | S196: 0 | T196: 0 | U196: 0 | V196: 0 | W196: 0 | X196: =IF(OR(LEFT(H196,2)="WO",H196="0-",H196=""),0,IF(H196<0,ABS(H196),IF(H196<10,11,H196+2))) -> 0 | Y196: =IF(OR(LEFT(H196,2)="WO",I196="0-",I196=""),0,IF(I196<0,ABS(I196),IF(I196<10,11,I196+2))) -> 0 | Z196: =IF(OR(LEFT(H196,2)="WO",J196="0-",J196=""),0,IF(J196<0,ABS(J196),IF(J196<10,11,J196+2))) -> 0 | AA196: =IF(OR(LEFT(H196,2)="WO",K196="0-",K196=""),0,IF(K196<0,ABS(K196),IF(K196<10,11,K196+2))) -> 0 | AB196: =IF(OR(LEFT(H196,2)="WO",L196="0-",L196=""),0,IF(L196<0,ABS(L196),IF(L196<10,11,L196+2))) -> 0 | AC196: 0 | AD196: =IF(H196="0-",11,IF(OR(LEFT(H196,2)="WO",H196=""),0,IF(H196<0,IF(ABS(H196)<10,11,ABS(H196)+2),H196))) -> 0 | AE196: =IF(I196="0-",11,IF(OR(LEFT(H196,2)="WO",I196="0-",I196=""),0,IF(I196<0,IF(ABS(I196)<10,11,ABS(I196)+2),I196))) -> 0 | AF196: =IF(J196="0-",11,IF(OR(LEFT(H196,2)="WO",J196="0-",J196=""),0,IF(J196<0,IF(ABS(J196)<10,11,ABS(J196)+2),J196))) -> 0 | AG196: =IF(K196="0-",11,IF(OR(LEFT(H196,2)="WO",K196="0-",K196=""),0,IF(K196<0,IF(ABS(K196)<10,11,ABS(K196)+2),K196))) -> 0 | AH196: =IF(L196="0-",11,IF(OR(LEFT(H196,2)="WO",L196="0-",L196=""),0,IF(L196<0,IF(ABS(L196)<10,11,ABS(L196)+2),L196))) -> 0 | AI196: 0 | AJ196: =CONCATENATE(B196,"-",E196) -> jméno a oddíl-jméno a oddíl
B197: III.kolo | H197: 1.set | I197: 2.set | J197: 3.set | K197: 4.set | L197: 5.set | M197: výsledek
B198: =C187 -> jméno a oddíl | C198: =#REF! ->  | D198: - | E198: =C189 -> jméno a oddíl | F198: =C189 -> jméno a oddíl | M198: =IF(H198="WO","3:0",IF(H198="WO-","0:3",CONCATENATE(V198,":",W198))) -> 0:0 | Q198: =IF(H198="",0,IF(OR(H198<0,H198="0-"),"0:1","1:0")) -> 0 | R198: 0 | S198: 0 | T198: 0 | U198: 0 | V198: =LEFT(Q198,1)+LEFT(R198,1)+LEFT(S198,1)+LEFT(T198,1)+LEFT(U198,1) -> 0 | W198: =RIGHT(Q198,1)+RIGHT(R198,1)+RIGHT(S198,1)+RIGHT(T198,1)+RIGHT(U198,1) -> 0 | X198: =IF(OR(LEFT(H198,2)="WO",H198="0-",H198=""),0,IF(H198<0,ABS(H198),IF(H198<10,11,H198+2))) -> 0 | Y198: =IF(OR(LEFT(H198,2)="WO",I198="0-",I198=""),0,IF(I198<0,ABS(I198),IF(I198<10,11,I198+2))) -> 0 | Z198: =IF(OR(LEFT(H198,2)="WO",J198="0-",J198=""),0,IF(J198<0,ABS(J198),IF(J198<10,11,J198+2))) -> 0 | AA198: =IF(OR(LEFT(H198,2)="WO",K198="0-",K198=""),0,IF(K198<0,ABS(K198),IF(K198<10,11,K198+2))) -> 0 | AB198: =IF(OR(LEFT(H198,2)="WO",L198="0-",L198=""),0,IF(L198<0,ABS(L198),IF(L198<10,11,L198+2))) -> 0 | AC198: =SUM(X198:AB198) -> 0 | AD198: =IF(H198="0-",11,IF(OR(LEFT(H198,2)="WO",H198=""),0,IF(H198<0,IF(ABS(H198)<10,11,ABS(H198)+2),H198))) -> 0 | AE198: =IF(I198="0-",11,IF(OR(LEFT(H198,2)="WO",I198="0-",I198=""),0,IF(I198<0,IF(ABS(I198)<10,11,ABS(I198)+2),I198))) -> 0 | AF198: =IF(J198="0-",11,IF(OR(LEFT(H198,2)="WO",J198="0-",J198=""),0,IF(J198<0,IF(ABS(J198)<10,11,ABS(J198)+2),J198))) -> 0 | AG198: =IF(K198="0-",11,IF(OR(LEFT(H198,2)="WO",K198="0-",K198=""),0,IF(K198<0,IF(ABS(K198)<10,11,ABS(K198)+2),K198))) -> 0 | AH198: =IF(L198="0-",11,IF(OR(LEFT(H198,2)="WO",L198="0-",L198=""),0,IF(L198<0,IF(ABS(L198)<10,11,ABS(L198)+2),L198))) -> 0 | AI198: =SUM(AD198:AH198) -> 0 | AJ198: =CONCATENATE(B198,"-",E198) -> jméno a oddíl-jméno a oddíl
B199: =C188 -> jméno a oddíl | C199: =#REF! ->  | D199: - | E199: =C186 -> jméno a oddíl | F199: =C186 -> jméno a oddíl | M199: =IF(H199="WO","3:0",IF(H199="WO-","0:3",CONCATENATE(V199,":",W199))) -> 0:0 | Q199: 0 | R199: 0 | S199: 0 | T199: 0 | U199: 0 | V199: 0 | W199: 0 | X199: =IF(OR(LEFT(H199,2)="WO",H199="0-",H199=""),0,IF(H199<0,ABS(H199),IF(H199<10,11,H199+2))) -> 0 | Y199: =IF(OR(LEFT(H199,2)="WO",I199="0-",I199=""),0,IF(I199<0,ABS(I199),IF(I199<10,11,I199+2))) -> 0 | Z199: =IF(OR(LEFT(H199,2)="WO",J199="0-",J199=""),0,IF(J199<0,ABS(J199),IF(J199<10,11,J199+2))) -> 0 | AA199: =IF(OR(LEFT(H199,2)="WO",K199="0-",K199=""),0,IF(K199<0,ABS(K199),IF(K199<10,11,K199+2))) -> 0 | AB199: =IF(OR(LEFT(H199,2)="WO",L199="0-",L199=""),0,IF(L199<0,ABS(L199),IF(L199<10,11,L199+2))) -> 0 | AC199: 0 | AD199: =IF(H199="0-",11,IF(OR(LEFT(H199,2)="WO",H199=""),0,IF(H199<0,IF(ABS(H199)<10,11,ABS(H199)+2),H199))) -> 0 | AE199: =IF(I199="0-",11,IF(OR(LEFT(H199,2)="WO",I199="0-",I199=""),0,IF(I199<0,IF(ABS(I199)<10,11,ABS(I199)+2),I199))) -> 0 | AF199: =IF(J199="0-",11,IF(OR(LEFT(H199,2)="WO",J199="0-",J199=""),0,IF(J199<0,IF(ABS(J199)<10,11,ABS(J199)+2),J199))) -> 0 | AG199: =IF(K199="0-",11,IF(OR(LEFT(H199,2)="WO",K199="0-",K199=""),0,IF(K199<0,IF(ABS(K199)<10,11,ABS(K199)+2),K199))) -> 0 | AH199: =IF(L199="0-",11,IF(OR(LEFT(H199,2)="WO",L199="0-",L199=""),0,IF(L199<0,IF(ABS(L199)<10,11,ABS(L199)+2),L199))) -> 0 | AI199: 0 | AJ199: =CONCATENATE(B199,"-",E199) -> jméno a oddíl-jméno a oddíl
B202: Skupina M | E202: =C203 -> jméno a oddíl | F202: =C204 -> jméno a oddíl | G202: =C205 -> jméno a oddíl | H202: =C206 -> jméno a oddíl | I202: Skóre | J202: Body | K202: Míčky | L202: Pořadí | M202: Pavouk
B203: 1 | C203: jméno a oddíl | F203: =IF(OR(LEFT(B213,3)="bye",LEFT(E213,3)="bye"),"0:0",M213) -> 0:0 | G203: =CONCATENATE(RIGHT(E205,1),MID(E205,2,1),LEFT(E205,1)) -> 0:0 | H203: =IF(OR(LEFT(B209,3)="bye",LEFT(E209,3)="bye"),"0:0",M209) -> 0:0 | I203: =CONCATENATE(LEFT(F203,1)+LEFT(G203,1)+LEFT(H203,1),":",RIGHT(F203,1)+RIGHT(G203,1)+RIGHT(H203,1)) -> 0:0 | J203: =IF(LEFT(C203,3)="bye",0,IF(OR(F203="0:0",H213="WO-"),0,IF(LEFT(F203,1)="3",2,1))+IF(OR(G203="0:0",H216="WO"),0,IF(LEFT(G203,1)="3",2,1))+IF(OR(H203="0:0",H209="WO-"),0,IF(LEFT(H203,1)="3",2,1))) -> 0 | K203: =IF(LEFT(C203,3)="bye",0,CONCATENATE(AC209+AC213+AI216,":",AI209+AI213+AC216)) -> 0:0 | M203: M1
B204: 2 | C204: jméno a oddíl | E204: =CONCATENATE(RIGHT(F203,1),MID(F203,2,1),LEFT(F203,1)) -> 0:0 | G204: =IF(OR(LEFT(B210,3)="bye",LEFT(E210,3)="bye"),"0:0",M210) -> 0:0 | H204: =IF(OR(LEFT(B215,3)="bye",LEFT(E215,3)="bye"),"0:0",M215) -> 0:0 | I204: =CONCATENATE(LEFT(E204,1)+LEFT(G204,1)+LEFT(H204,1),":",RIGHT(E204,1)+RIGHT(G204,1)+RIGHT(H204,1)) -> 0:0 | J204: =IF(LEFT(C204,3)="bye",0,IF(OR(E204="0:0",H213="WO"),0,IF(LEFT(E204,1)="3",2,1))+IF(OR(G204="0:0",H210="WO-"),0,IF(LEFT(G204,1)="3",2,1))+IF(OR(H204="0:0",H215="WO-"),0,IF(LEFT(H204,1)="3",2,1))) -> 0 | K204: =IF(LEFT(C204,3)="bye",0,CONCATENATE(AC210+AI213+AC215,":",AI210+AC213+AI215)) -> 0:0 | M204: M2
B205: 3 | C205: jméno a oddíl | E205: =IF(OR(LEFT(B216,3)="bye",LEFT(E216,3)="bye"),"0:0",M216) -> 0:0 | F205: =CONCATENATE(RIGHT(G204,1),MID(G204,2,1),LEFT(G204,1)) -> 0:0 | H205: =CONCATENATE(RIGHT(G206,1),MID(G206,2,1),LEFT(G206,1)) -> 0:0 | I205: =CONCATENATE(LEFT(E205,1)+LEFT(F205,1)+LEFT(H205,1),":",RIGHT(E205,1)+RIGHT(F205,1)+RIGHT(H205,1)) -> 0:0 | J205: =IF(LEFT(C205,3)="bye",0,IF(OR(E205="0:0",H216="WO-"),0,IF(LEFT(E205,1)="3",2,1))+IF(OR(F205="0:0",H210="WO"),0,IF(LEFT(F205,1)="3",2,1))+IF(OR(H205="0:0",H212="WO"),0,IF(LEFT(H205,1)="3",2,1))) -> 0 | K205: =IF(LEFT(C205,3)="bye",0,CONCATENATE(AI210+AI212+AC216,":",AC210+AC212+AI216)) -> 0:0 | M205: M3
B206: 4 | C206: jméno a oddíl | E206: =CONCATENATE(RIGHT(H203,1),MID(H203,2,1),LEFT(H203,1)) -> 0:0 | F206: =CONCATENATE(RIGHT(H204,1),MID(H204,2,1),LEFT(H204,1)) -> 0:0 | G206: =IF(OR(LEFT(B212,3)="bye",LEFT(E212,3)="bye"),"0:0",M212) -> 0:0 | I206: =CONCATENATE(LEFT(E206,1)+LEFT(F206,1)+LEFT(G206,1),":",RIGHT(E206,1)+RIGHT(F206,1)+RIGHT(G206,1)) -> 0:0 | J206: =IF(LEFT(C206,3)="bye",0,IF(OR(E206="0:0",H209="WO"),0,IF(LEFT(E206,1)="3",2,1))+IF(OR(F206="0:0",H215="WO"),0,IF(LEFT(F206,1)="3",2,1))+IF(OR(G206="0:0",H212="WO-"),0,IF(LEFT(G206,1)="3",2,1))) -> 0 | K206: =IF(LEFT(C205,3)="bye",0,CONCATENATE(AI209+AC212+AI215,":",AC209+AI212+AC215)) -> 0:0 | M206: M4
B208: I.kolo | H208: 1.set | I208: 2.set | J208: 3.set | K208: 4.set | L208: 5.set | M208: výsledek
B209: =C203 -> jméno a oddíl | D209: - | E209: =C206 -> jméno a oddíl | M209: =IF(H209="WO","3:0",IF(H209="WO-","0:3",CONCATENATE(V209,":",W209))) -> 0:0 | Q209: =IF(H209="",0,IF(OR(H209<0,H209="0-"),"0:1","1:0")) -> 0 | R209: 0 | S209: 0 | T209: 0 | U209: 0 | V209: =LEFT(Q209,1)+LEFT(R209,1)+LEFT(S209,1)+LEFT(T209,1)+LEFT(U209,1) -> 0 | W209: =RIGHT(Q209,1)+RIGHT(R209,1)+RIGHT(S209,1)+RIGHT(T209,1)+RIGHT(U209,1) -> 0 | X209: =IF(OR(LEFT(H209,2)="WO",H209="0-",H209=""),0,IF(H209<0,ABS(H209),IF(H209<10,11,H209+2))) -> 0 | Y209: =IF(OR(LEFT(H209,2)="WO",I209="0-",I209=""),0,IF(I209<0,ABS(I209),IF(I209<10,11,I209+2))) -> 0 | Z209: =IF(OR(LEFT(H209,2)="WO",J209="0-",J209=""),0,IF(J209<0,ABS(J209),IF(J209<10,11,J209+2))) -> 0 | AA209: =IF(OR(LEFT(H209,2)="WO",K209="0-",K209=""),0,IF(K209<0,ABS(K209),IF(K209<10,11,K209+2))) -> 0 | AB209: =IF(OR(LEFT(H209,2)="WO",L209="0-",L209=""),0,IF(L209<0,ABS(L209),IF(L209<10,11,L209+2))) -> 0 | AC209: =SUM(X209:AB209) -> 0 | AD209: =IF(H209="0-",11,IF(OR(LEFT(H209,2)="WO",H209=""),0,IF(H209<0,IF(ABS(H209)<10,11,ABS(H209)+2),H209))) -> 0 | AE209: =IF(I209="0-",11,IF(OR(LEFT(H209,2)="WO",I209="0-",I209=""),0,IF(I209<0,IF(ABS(I209)<10,11,ABS(I209)+2),I209))) -> 0 | AF209: =IF(J209="0-",11,IF(OR(LEFT(H209,2)="WO",J209="0-",J209=""),0,IF(J209<0,IF(ABS(J209)<10,11,ABS(J209)+2),J209))) -> 0 | AG209: =IF(K209="0-",11,IF(OR(LEFT(H209,2)="WO",K209="0-",K209=""),0,IF(K209<0,IF(ABS(K209)<10,11,ABS(K209)+2),K209))) -> 0 | AH209: =IF(L209="0-",11,IF(OR(LEFT(H209,2)="WO",L209="0-",L209=""),0,IF(L209<0,IF(ABS(L209)<10,11,ABS(L209)+2),L209))) -> 0 | AI209: =SUM(AD209:AH209) -> 0 | AJ209: =CONCATENATE(B209,"-",E209) -> jméno a oddíl-jméno a oddíl
B210: =C204 -> jméno a oddíl | C210: =#REF! ->  | D210: - | E210: =C205 -> jméno a oddíl | F210: =C205 -> jméno a oddíl | M210: =IF(H210="WO","3:0",IF(H210="WO-","0:3",CONCATENATE(V210,":",W210))) -> 0:0 | Q210: 0 | R210: 0 | S210: 0 | T210: 0 | U210: 0 | V210: =LEFT(Q210,1)+LEFT(R210,1)+LEFT(S210,1)+LEFT(T210,1)+LEFT(U210,1) -> 0 | W210: =RIGHT(Q210,1)+RIGHT(R210,1)+RIGHT(S210,1)+RIGHT(T210,1)+RIGHT(U210,1) -> 0 | X210: =IF(OR(LEFT(H210,2)="WO",H210="0-",H210=""),0,IF(H210<0,ABS(H210),IF(H210<10,11,H210+2))) -> 0 | Y210: =IF(OR(LEFT(H210,2)="WO",I210="0-",I210=""),0,IF(I210<0,ABS(I210),IF(I210<10,11,I210+2))) -> 0 | Z210: =IF(OR(LEFT(H210,2)="WO",J210="0-",J210=""),0,IF(J210<0,ABS(J210),IF(J210<10,11,J210+2))) -> 0 | AA210: =IF(OR(LEFT(H210,2)="WO",K210="0-",K210=""),0,IF(K210<0,ABS(K210),IF(K210<10,11,K210+2))) -> 0 | AB210: =IF(OR(LEFT(H210,2)="WO",L210="0-",L210=""),0,IF(L210<0,ABS(L210),IF(L210<10,11,L210+2))) -> 0 | AC210: =SUM(X210:AB210) -> 0 | AD210: =IF(H210="0-",11,IF(OR(LEFT(H210,2)="WO",H210=""),0,IF(H210<0,IF(ABS(H210)<10,11,ABS(H210)+2),H210))) -> 0 | AE210: =IF(I210="0-",11,IF(OR(LEFT(H210,2)="WO",I210="0-",I210=""),0,IF(I210<0,IF(ABS(I210)<10,11,ABS(I210)+2),I210))) -> 0 | AF210: =IF(J210="0-",11,IF(OR(LEFT(H210,2)="WO",J210="0-",J210=""),0,IF(J210<0,IF(ABS(J210)<10,11,ABS(J210)+2),J210))) -> 0 | AG210: =IF(K210="0-",11,IF(OR(LEFT(H210,2)="WO",K210="0-",K210=""),0,IF(K210<0,IF(ABS(K210)<10,11,ABS(K210)+2),K210))) -> 0 | AH210: =IF(L210="0-",11,IF(OR(LEFT(H210,2)="WO",L210="0-",L210=""),0,IF(L210<0,IF(ABS(L210)<10,11,ABS(L210)+2),L210))) -> 0 | AI210: =SUM(AD210:AH210) -> 0 | AJ210: =CONCATENATE(B210,"-",E210) -> jméno a oddíl-jméno a oddíl
B211: II.kolo | H211: 1.set | I211: 2.set | J211: 3.set | K211: 4.set | L211: 5.set | M211: výsledek
B212: =C206 -> jméno a oddíl | C212: =C206 -> jméno a oddíl | D212: - | E212: =C205 -> jméno a oddíl | F212: =C205 -> jméno a oddíl | M212: =IF(H212="WO","3:0",IF(H212="WO-","0:3",CONCATENATE(V212,":",W212))) -> 0:0 | Q212: =IF(H212="",0,IF(OR(H212<0,H212="0-"),"0:1","1:0")) -> 0 | R212: 0 | S212: 0 | T212: 0 | U212: 0 | V212: =LEFT(Q212,1)+LEFT(R212,1)+LEFT(S212,1)+LEFT(T212,1)+LEFT(U212,1) -> 0 | W212: =RIGHT(Q212,1)+RIGHT(R212,1)+RIGHT(S212,1)+RIGHT(T212,1)+RIGHT(U212,1) -> 0 | X212: =IF(OR(LEFT(H212,2)="WO",H212="0-",H212=""),0,IF(H212<0,ABS(H212),IF(H212<10,11,H212+2))) -> 0 | Y212: =IF(OR(LEFT(H212,2)="WO",I212="0-",I212=""),0,IF(I212<0,ABS(I212),IF(I212<10,11,I212+2))) -> 0 | Z212: =IF(OR(LEFT(H212,2)="WO",J212="0-",J212=""),0,IF(J212<0,ABS(J212),IF(J212<10,11,J212+2))) -> 0 | AA212: =IF(OR(LEFT(H212,2)="WO",K212="0-",K212=""),0,IF(K212<0,ABS(K212),IF(K212<10,11,K212+2))) -> 0 | AB212: =IF(OR(LEFT(H212,2)="WO",L212="0-",L212=""),0,IF(L212<0,ABS(L212),IF(L212<10,11,L212+2))) -> 0 | AC212: =SUM(X212:AB212) -> 0 | AD212: =IF(H212="0-",11,IF(OR(LEFT(H212,2)="WO",H212=""),0,IF(H212<0,IF(ABS(H212)<10,11,ABS(H212)+2),H212))) -> 0 | AE212: =IF(I212="0-",11,IF(OR(LEFT(H212,2)="WO",I212="0-",I212=""),0,IF(I212<0,IF(ABS(I212)<10,11,ABS(I212)+2),I212))) -> 0 | AF212: =IF(J212="0-",11,IF(OR(LEFT(H212,2)="WO",J212="0-",J212=""),0,IF(J212<0,IF(ABS(J212)<10,11,ABS(J212)+2),J212))) -> 0 | AG212: =IF(K212="0-",11,IF(OR(LEFT(H212,2)="WO",K212="0-",K212=""),0,IF(K212<0,IF(ABS(K212)<10,11,ABS(K212)+2),K212))) -> 0 | AH212: =IF(L212="0-",11,IF(OR(LEFT(H212,2)="WO",L212="0-",L212=""),0,IF(L212<0,IF(ABS(L212)<10,11,ABS(L212)+2),L212))) -> 0 | AI212: =SUM(AD212:AH212) -> 0 | AJ212: =CONCATENATE(B212,"-",E212) -> jméno a oddíl-jméno a oddíl
B213: =C203 -> jméno a oddíl | C213: =C204 -> jméno a oddíl | D213: - | E213: =C204 -> jméno a oddíl | F213: =C204 -> jméno a oddíl | M213: =IF(H213="WO","3:0",IF(H213="WO-","0:3",CONCATENATE(V213,":",W213))) -> 0:0 | Q213: 0 | R213: 0 | S213: 0 | T213: 0 | U213: 0 | V213: 0 | W213: 0 | X213: =IF(OR(LEFT(H213,2)="WO",H213="0-",H213=""),0,IF(H213<0,ABS(H213),IF(H213<10,11,H213+2))) -> 0 | Y213: =IF(OR(LEFT(H213,2)="WO",I213="0-",I213=""),0,IF(I213<0,ABS(I213),IF(I213<10,11,I213+2))) -> 0 | Z213: =IF(OR(LEFT(H213,2)="WO",J213="0-",J213=""),0,IF(J213<0,ABS(J213),IF(J213<10,11,J213+2))) -> 0 | AA213: =IF(OR(LEFT(H213,2)="WO",K213="0-",K213=""),0,IF(K213<0,ABS(K213),IF(K213<10,11,K213+2))) -> 0 | AB213: =IF(OR(LEFT(H213,2)="WO",L213="0-",L213=""),0,IF(L213<0,ABS(L213),IF(L213<10,11,L213+2))) -> 0 | AC213: 0 | AD213: =IF(H213="0-",11,IF(OR(LEFT(H213,2)="WO",H213=""),0,IF(H213<0,IF(ABS(H213)<10,11,ABS(H213)+2),H213))) -> 0 | AE213: =IF(I213="0-",11,IF(OR(LEFT(H213,2)="WO",I213="0-",I213=""),0,IF(I213<0,IF(ABS(I213)<10,11,ABS(I213)+2),I213))) -> 0 | AF213: =IF(J213="0-",11,IF(OR(LEFT(H213,2)="WO",J213="0-",J213=""),0,IF(J213<0,IF(ABS(J213)<10,11,ABS(J213)+2),J213))) -> 0 | AG213: =IF(K213="0-",11,IF(OR(LEFT(H213,2)="WO",K213="0-",K213=""),0,IF(K213<0,IF(ABS(K213)<10,11,ABS(K213)+2),K213))) -> 0 | AH213: =IF(L213="0-",11,IF(OR(LEFT(H213,2)="WO",L213="0-",L213=""),0,IF(L213<0,IF(ABS(L213)<10,11,ABS(L213)+2),L213))) -> 0 | AI213: 0 | AJ213: =CONCATENATE(B213,"-",E213) -> jméno a oddíl-jméno a oddíl
B214: III.kolo | H214: 1.set | I214: 2.set | J214: 3.set | K214: 4.set | L214: 5.set | M214: výsledek
B215: =C204 -> jméno a oddíl | C215: =#REF! ->  | D215: - | E215: =C206 -> jméno a oddíl | F215: =C206 -> jméno a oddíl | M215: =IF(H215="WO","3:0",IF(H215="WO-","0:3",CONCATENATE(V215,":",W215))) -> 0:0 | Q215: =IF(H215="",0,IF(OR(H215<0,H215="0-"),"0:1","1:0")) -> 0 | R215: 0 | S215: 0 | T215: 0 | U215: 0 | V215: =LEFT(Q215,1)+LEFT(R215,1)+LEFT(S215,1)+LEFT(T215,1)+LEFT(U215,1) -> 0 | W215: =RIGHT(Q215,1)+RIGHT(R215,1)+RIGHT(S215,1)+RIGHT(T215,1)+RIGHT(U215,1) -> 0 | X215: =IF(OR(LEFT(H215,2)="WO",H215="0-",H215=""),0,IF(H215<0,ABS(H215),IF(H215<10,11,H215+2))) -> 0 | Y215: =IF(OR(LEFT(H215,2)="WO",I215="0-",I215=""),0,IF(I215<0,ABS(I215),IF(I215<10,11,I215+2))) -> 0 | Z215: =IF(OR(LEFT(H215,2)="WO",J215="0-",J215=""),0,IF(J215<0,ABS(J215),IF(J215<10,11,J215+2))) -> 0 | AA215: =IF(OR(LEFT(H215,2)="WO",K215="0-",K215=""),0,IF(K215<0,ABS(K215),IF(K215<10,11,K215+2))) -> 0 | AB215: =IF(OR(LEFT(H215,2)="WO",L215="0-",L215=""),0,IF(L215<0,ABS(L215),IF(L215<10,11,L215+2))) -> 0 | AC215: =SUM(X215:AB215) -> 0 | AD215: =IF(H215="0-",11,IF(OR(LEFT(H215,2)="WO",H215=""),0,IF(H215<0,IF(ABS(H215)<10,11,ABS(H215)+2),H215))) -> 0 | AE215: =IF(I215="0-",11,IF(OR(LEFT(H215,2)="WO",I215="0-",I215=""),0,IF(I215<0,IF(ABS(I215)<10,11,ABS(I215)+2),I215))) -> 0 | AF215: =IF(J215="0-",11,IF(OR(LEFT(H215,2)="WO",J215="0-",J215=""),0,IF(J215<0,IF(ABS(J215)<10,11,ABS(J215)+2),J215))) -> 0 | AG215: =IF(K215="0-",11,IF(OR(LEFT(H215,2)="WO",K215="0-",K215=""),0,IF(K215<0,IF(ABS(K215)<10,11,ABS(K215)+2),K215))) -> 0 | AH215: =IF(L215="0-",11,IF(OR(LEFT(H215,2)="WO",L215="0-",L215=""),0,IF(L215<0,IF(ABS(L215)<10,11,ABS(L215)+2),L215))) -> 0 | AI215: =SUM(AD215:AH215) -> 0 | AJ215: =CONCATENATE(B215,"-",E215) -> jméno a oddíl-jméno a oddíl
B216: =C205 -> jméno a oddíl | C216: =#REF! ->  | D216: - | E216: =C203 -> jméno a oddíl | F216: =C203 -> jméno a oddíl | M216: =IF(H216="WO","3:0",IF(H216="WO-","0:3",CONCATENATE(V216,":",W216))) -> 0:0 | Q216: 0 | R216: 0 | S216: 0 | T216: 0 | U216: 0 | V216: 0 | W216: 0 | X216: =IF(OR(LEFT(H216,2)="WO",H216="0-",H216=""),0,IF(H216<0,ABS(H216),IF(H216<10,11,H216+2))) -> 0 | Y216: =IF(OR(LEFT(H216,2)="WO",I216="0-",I216=""),0,IF(I216<0,ABS(I216),IF(I216<10,11,I216+2))) -> 0 | Z216: =IF(OR(LEFT(H216,2)="WO",J216="0-",J216=""),0,IF(J216<0,ABS(J216),IF(J216<10,11,J216+2))) -> 0 | AA216: =IF(OR(LEFT(H216,2)="WO",K216="0-",K216=""),0,IF(K216<0,ABS(K216),IF(K216<10,11,K216+2))) -> 0 | AB216: =IF(OR(LEFT(H216,2)="WO",L216="0-",L216=""),0,IF(L216<0,ABS(L216),IF(L216<10,11,L216+2))) -> 0 | AC216: 0 | AD216: =IF(H216="0-",11,IF(OR(LEFT(H216,2)="WO",H216=""),0,IF(H216<0,IF(ABS(H216)<10,11,ABS(H216)+2),H216))) -> 0 | AE216: =IF(I216="0-",11,IF(OR(LEFT(H216,2)="WO",I216="0-",I216=""),0,IF(I216<0,IF(ABS(I216)<10,11,ABS(I216)+2),I216))) -> 0 | AF216: =IF(J216="0-",11,IF(OR(LEFT(H216,2)="WO",J216="0-",J216=""),0,IF(J216<0,IF(ABS(J216)<10,11,ABS(J216)+2),J216))) -> 0 | AG216: =IF(K216="0-",11,IF(OR(LEFT(H216,2)="WO",K216="0-",K216=""),0,IF(K216<0,IF(ABS(K216)<10,11,ABS(K216)+2),K216))) -> 0 | AH216: =IF(L216="0-",11,IF(OR(LEFT(H216,2)="WO",L216="0-",L216=""),0,IF(L216<0,IF(ABS(L216)<10,11,ABS(L216)+2),L216))) -> 0 | AI216: 0 | AJ216: =CONCATENATE(B216,"-",E216) -> jméno a oddíl-jméno a oddíl
B219: Skupina N | E219: =C220 -> jméno a oddíl | F219: =C221 -> jméno a oddíl | G219: =C222 -> jméno a oddíl | H219: =C223 -> jméno a oddíl | I219: Skóre | J219: Body | K219: Míčky | L219: Pořadí | M219: Pavouk
B220: 1 | C220: jméno a oddíl | F220: =IF(OR(LEFT(B230,3)="bye",LEFT(E230,3)="bye"),"0:0",M230) -> 0:0 | G220: =CONCATENATE(RIGHT(E222,1),MID(E222,2,1),LEFT(E222,1)) -> 0:0 | H220: =IF(OR(LEFT(B226,3)="bye",LEFT(E226,3)="bye"),"0:0",M226) -> 0:0 | I220: =CONCATENATE(LEFT(F220,1)+LEFT(G220,1)+LEFT(H220,1),":",RIGHT(F220,1)+RIGHT(G220,1)+RIGHT(H220,1)) -> 0:0 | J220: =IF(LEFT(C220,3)="bye",0,IF(OR(F220="0:0",H230="WO-"),0,IF(LEFT(F220,1)="3",2,1))+IF(OR(G220="0:0",H233="WO"),0,IF(LEFT(G220,1)="3",2,1))+IF(OR(H220="0:0",H226="WO-"),0,IF(LEFT(H220,1)="3",2,1))) -> 0 | K220: =IF(LEFT(C220,3)="bye",0,CONCATENATE(AC226+AC230+AI233,":",AI226+AI230+AC233)) -> 0:0 | M220: N1
B221: 2 | C221: jméno a oddíl | E221: =CONCATENATE(RIGHT(F220,1),MID(F220,2,1),LEFT(F220,1)) -> 0:0 | G221: =IF(OR(LEFT(B227,3)="bye",LEFT(E227,3)="bye"),"0:0",M227) -> 0:0 | H221: =IF(OR(LEFT(B232,3)="bye",LEFT(E232,3)="bye"),"0:0",M232) -> 0:0 | I221: =CONCATENATE(LEFT(E221,1)+LEFT(G221,1)+LEFT(H221,1),":",RIGHT(E221,1)+RIGHT(G221,1)+RIGHT(H221,1)) -> 0:0 | J221: =IF(LEFT(C221,3)="bye",0,IF(OR(E221="0:0",H230="WO"),0,IF(LEFT(E221,1)="3",2,1))+IF(OR(G221="0:0",H227="WO-"),0,IF(LEFT(G221,1)="3",2,1))+IF(OR(H221="0:0",H232="WO-"),0,IF(LEFT(H221,1)="3",2,1))) -> 0 | K221: =IF(LEFT(C221,3)="bye",0,CONCATENATE(AC227+AI230+AC232,":",AI227+AC230+AI232)) -> 0:0 | M221: N2
B222: 3 | C222: jméno a oddíl | E222: =IF(OR(LEFT(B233,3)="bye",LEFT(E233,3)="bye"),"0:0",M233) -> 0:0 | F222: =CONCATENATE(RIGHT(G221,1),MID(G221,2,1),LEFT(G221,1)) -> 0:0 | H222: =CONCATENATE(RIGHT(G223,1),MID(G223,2,1),LEFT(G223,1)) -> 0:0 | I222: =CONCATENATE(LEFT(E222,1)+LEFT(F222,1)+LEFT(H222,1),":",RIGHT(E222,1)+RIGHT(F222,1)+RIGHT(H222,1)) -> 0:0 | J222: =IF(LEFT(C222,3)="bye",0,IF(OR(E222="0:0",H233="WO-"),0,IF(LEFT(E222,1)="3",2,1))+IF(OR(F222="0:0",H227="WO"),0,IF(LEFT(F222,1)="3",2,1))+IF(OR(H222="0:0",H229="WO"),0,IF(LEFT(H222,1)="3",2,1))) -> 0 | K222: =IF(LEFT(C222,3)="bye",0,CONCATENATE(AI227+AI229+AC233,":",AC227+AC229+AI233)) -> 0:0 | M222: N3
B223: 4 | C223: jméno a oddíl | E223: =CONCATENATE(RIGHT(H220,1),MID(H220,2,1),LEFT(H220,1)) -> 0:0 | F223: =CONCATENATE(RIGHT(H221,1),MID(H221,2,1),LEFT(H221,1)) -> 0:0 | G223: =IF(OR(LEFT(B229,3)="bye",LEFT(E229,3)="bye"),"0:0",M229) -> 0:0 | I223: =CONCATENATE(LEFT(E223,1)+LEFT(F223,1)+LEFT(G223,1),":",RIGHT(E223,1)+RIGHT(F223,1)+RIGHT(G223,1)) -> 0:0 | J223: =IF(LEFT(C223,3)="bye",0,IF(OR(E223="0:0",H226="WO"),0,IF(LEFT(E223,1)="3",2,1))+IF(OR(F223="0:0",H232="WO"),0,IF(LEFT(F223,1)="3",2,1))+IF(OR(G223="0:0",H229="WO-"),0,IF(LEFT(G223,1)="3",2,1))) -> 0 | K223: =IF(LEFT(C222,3)="bye",0,CONCATENATE(AI226+AC229+AI232,":",AC226+AI229+AC232)) -> 0:0 | M223: N4
B225: I.kolo | H225: 1.set | I225: 2.set | J225: 3.set | K225: 4.set | L225: 5.set | M225: výsledek
B226: =C220 -> jméno a oddíl | D226: - | E226: =C223 -> jméno a oddíl | M226: =IF(H226="WO","3:0",IF(H226="WO-","0:3",CONCATENATE(V226,":",W226))) -> 0:0 | Q226: =IF(H226="",0,IF(OR(H226<0,H226="0-"),"0:1","1:0")) -> 0 | R226: 0 | S226: 0 | T226: 0 | U226: 0 | V226: =LEFT(Q226,1)+LEFT(R226,1)+LEFT(S226,1)+LEFT(T226,1)+LEFT(U226,1) -> 0 | W226: =RIGHT(Q226,1)+RIGHT(R226,1)+RIGHT(S226,1)+RIGHT(T226,1)+RIGHT(U226,1) -> 0 | X226: =IF(OR(LEFT(H226,2)="WO",H226="0-",H226=""),0,IF(H226<0,ABS(H226),IF(H226<10,11,H226+2))) -> 0 | Y226: =IF(OR(LEFT(H226,2)="WO",I226="0-",I226=""),0,IF(I226<0,ABS(I226),IF(I226<10,11,I226+2))) -> 0 | Z226: =IF(OR(LEFT(H226,2)="WO",J226="0-",J226=""),0,IF(J226<0,ABS(J226),IF(J226<10,11,J226+2))) -> 0 | AA226: =IF(OR(LEFT(H226,2)="WO",K226="0-",K226=""),0,IF(K226<0,ABS(K226),IF(K226<10,11,K226+2))) -> 0 | AB226: =IF(OR(LEFT(H226,2)="WO",L226="0-",L226=""),0,IF(L226<0,ABS(L226),IF(L226<10,11,L226+2))) -> 0 | AC226: =SUM(X226:AB226) -> 0 | AD226: =IF(H226="0-",11,IF(OR(LEFT(H226,2)="WO",H226=""),0,IF(H226<0,IF(ABS(H226)<10,11,ABS(H226)+2),H226))) -> 0 | AE226: =IF(I226="0-",11,IF(OR(LEFT(H226,2)="WO",I226="0-",I226=""),0,IF(I226<0,IF(ABS(I226)<10,11,ABS(I226)+2),I226))) -> 0 | AF226: =IF(J226="0-",11,IF(OR(LEFT(H226,2)="WO",J226="0-",J226=""),0,IF(J226<0,IF(ABS(J226)<10,11,ABS(J226)+2),J226))) -> 0 | AG226: =IF(K226="0-",11,IF(OR(LEFT(H226,2)="WO",K226="0-",K226=""),0,IF(K226<0,IF(ABS(K226)<10,11,ABS(K226)+2),K226))) -> 0 | AH226: =IF(L226="0-",11,IF(OR(LEFT(H226,2)="WO",L226="0-",L226=""),0,IF(L226<0,IF(ABS(L226)<10,11,ABS(L226)+2),L226))) -> 0 | AI226: =SUM(AD226:AH226) -> 0 | AJ226: =CONCATENATE(B226,"-",E226) -> jméno a oddíl-jméno a oddíl
B227: =C221 -> jméno a oddíl | C227: =#REF! ->  | D227: - | E227: =C222 -> jméno a oddíl | F227: =C222 -> jméno a oddíl | M227: =IF(H227="WO","3:0",IF(H227="WO-","0:3",CONCATENATE(V227,":",W227))) -> 0:0 | Q227: 0 | R227: 0 | S227: 0 | T227: 0 | U227: 0 | V227: =LEFT(Q227,1)+LEFT(R227,1)+LEFT(S227,1)+LEFT(T227,1)+LEFT(U227,1) -> 0 | W227: =RIGHT(Q227,1)+RIGHT(R227,1)+RIGHT(S227,1)+RIGHT(T227,1)+RIGHT(U227,1) -> 0 | X227: =IF(OR(LEFT(H227,2)="WO",H227="0-",H227=""),0,IF(H227<0,ABS(H227),IF(H227<10,11,H227+2))) -> 0 | Y227: =IF(OR(LEFT(H227,2)="WO",I227="0-",I227=""),0,IF(I227<0,ABS(I227),IF(I227<10,11,I227+2))) -> 0 | Z227: =IF(OR(LEFT(H227,2)="WO",J227="0-",J227=""),0,IF(J227<0,ABS(J227),IF(J227<10,11,J227+2))) -> 0 | AA227: =IF(OR(LEFT(H227,2)="WO",K227="0-",K227=""),0,IF(K227<0,ABS(K227),IF(K227<10,11,K227+2))) -> 0 | AB227: =IF(OR(LEFT(H227,2)="WO",L227="0-",L227=""),0,IF(L227<0,ABS(L227),IF(L227<10,11,L227+2))) -> 0 | AC227: =SUM(X227:AB227) -> 0 | AD227: =IF(H227="0-",11,IF(OR(LEFT(H227,2)="WO",H227=""),0,IF(H227<0,IF(ABS(H227)<10,11,ABS(H227)+2),H227))) -> 0 | AE227: =IF(I227="0-",11,IF(OR(LEFT(H227,2)="WO",I227="0-",I227=""),0,IF(I227<0,IF(ABS(I227)<10,11,ABS(I227)+2),I227))) -> 0 | AF227: =IF(J227="0-",11,IF(OR(LEFT(H227,2)="WO",J227="0-",J227=""),0,IF(J227<0,IF(ABS(J227)<10,11,ABS(J227)+2),J227))) -> 0 | AG227: =IF(K227="0-",11,IF(OR(LEFT(H227,2)="WO",K227="0-",K227=""),0,IF(K227<0,IF(ABS(K227)<10,11,ABS(K227)+2),K227))) -> 0 | AH227: =IF(L227="0-",11,IF(OR(LEFT(H227,2)="WO",L227="0-",L227=""),0,IF(L227<0,IF(ABS(L227)<10,11,ABS(L227)+2),L227))) -> 0 | AI227: =SUM(AD227:AH227) -> 0 | AJ227: =CONCATENATE(B227,"-",E227) -> jméno a oddíl-jméno a oddíl
B228: II.kolo | H228: 1.set | I228: 2.set | J228: 3.set | K228: 4.set | L228: 5.set | M228: výsledek
B229: =C223 -> jméno a oddíl | C229: =C223 -> jméno a oddíl | D229: - | E229: =C222 -> jméno a oddíl | F229: =C222 -> jméno a oddíl | M229: =IF(H229="WO","3:0",IF(H229="WO-","0:3",CONCATENATE(V229,":",W229))) -> 0:0 | Q229: =IF(H229="",0,IF(OR(H229<0,H229="0-"),"0:1","1:0")) -> 0 | R229: 0 | S229: 0 | T229: 0 | U229: 0 | V229: =LEFT(Q229,1)+LEFT(R229,1)+LEFT(S229,1)+LEFT(T229,1)+LEFT(U229,1) -> 0 | W229: =RIGHT(Q229,1)+RIGHT(R229,1)+RIGHT(S229,1)+RIGHT(T229,1)+RIGHT(U229,1) -> 0 | X229: =IF(OR(LEFT(H229,2)="WO",H229="0-",H229=""),0,IF(H229<0,ABS(H229),IF(H229<10,11,H229+2))) -> 0 | Y229: =IF(OR(LEFT(H229,2)="WO",I229="0-",I229=""),0,IF(I229<0,ABS(I229),IF(I229<10,11,I229+2))) -> 0 | Z229: =IF(OR(LEFT(H229,2)="WO",J229="0-",J229=""),0,IF(J229<0,ABS(J229),IF(J229<10,11,J229+2))) -> 0 | AA229: =IF(OR(LEFT(H229,2)="WO",K229="0-",K229=""),0,IF(K229<0,ABS(K229),IF(K229<10,11,K229+2))) -> 0 | AB229: =IF(OR(LEFT(H229,2)="WO",L229="0-",L229=""),0,IF(L229<0,ABS(L229),IF(L229<10,11,L229+2))) -> 0 | AC229: =SUM(X229:AB229) -> 0 | AD229: =IF(H229="0-",11,IF(OR(LEFT(H229,2)="WO",H229=""),0,IF(H229<0,IF(ABS(H229)<10,11,ABS(H229)+2),H229))) -> 0 | AE229: =IF(I229="0-",11,IF(OR(LEFT(H229,2)="WO",I229="0-",I229=""),0,IF(I229<0,IF(ABS(I229)<10,11,ABS(I229)+2),I229))) -> 0 | AF229: =IF(J229="0-",11,IF(OR(LEFT(H229,2)="WO",J229="0-",J229=""),0,IF(J229<0,IF(ABS(J229)<10,11,ABS(J229)+2),J229))) -> 0 | AG229: =IF(K229="0-",11,IF(OR(LEFT(H229,2)="WO",K229="0-",K229=""),0,IF(K229<0,IF(ABS(K229)<10,11,ABS(K229)+2),K229))) -> 0 | AH229: =IF(L229="0-",11,IF(OR(LEFT(H229,2)="WO",L229="0-",L229=""),0,IF(L229<0,IF(ABS(L229)<10,11,ABS(L229)+2),L229))) -> 0 | AI229: =SUM(AD229:AH229) -> 0 | AJ229: =CONCATENATE(B229,"-",E229) -> jméno a oddíl-jméno a oddíl
B230: =C220 -> jméno a oddíl | C230: =C221 -> jméno a oddíl | D230: - | E230: =C221 -> jméno a oddíl | F230: =C221 -> jméno a oddíl | M230: =IF(H230="WO","3:0",IF(H230="WO-","0:3",CONCATENATE(V230,":",W230))) -> 0:0 | Q230: 0 | R230: 0 | S230: 0 | T230: 0 | U230: 0 | V230: 0 | W230: 0 | X230: =IF(OR(LEFT(H230,2)="WO",H230="0-",H230=""),0,IF(H230<0,ABS(H230),IF(H230<10,11,H230+2))) -> 0 | Y230: =IF(OR(LEFT(H230,2)="WO",I230="0-",I230=""),0,IF(I230<0,ABS(I230),IF(I230<10,11,I230+2))) -> 0 | Z230: =IF(OR(LEFT(H230,2)="WO",J230="0-",J230=""),0,IF(J230<0,ABS(J230),IF(J230<10,11,J230+2))) -> 0 | AA230: =IF(OR(LEFT(H230,2)="WO",K230="0-",K230=""),0,IF(K230<0,ABS(K230),IF(K230<10,11,K230+2))) -> 0 | AB230: =IF(OR(LEFT(H230,2)="WO",L230="0-",L230=""),0,IF(L230<0,ABS(L230),IF(L230<10,11,L230+2))) -> 0 | AC230: 0 | AD230: =IF(H230="0-",11,IF(OR(LEFT(H230,2)="WO",H230=""),0,IF(H230<0,IF(ABS(H230)<10,11,ABS(H230)+2),H230))) -> 0 | AE230: =IF(I230="0-",11,IF(OR(LEFT(H230,2)="WO",I230="0-",I230=""),0,IF(I230<0,IF(ABS(I230)<10,11,ABS(I230)+2),I230))) -> 0 | AF230: =IF(J230="0-",11,IF(OR(LEFT(H230,2)="WO",J230="0-",J230=""),0,IF(J230<0,IF(ABS(J230)<10,11,ABS(J230)+2),J230))) -> 0 | AG230: =IF(K230="0-",11,IF(OR(LEFT(H230,2)="WO",K230="0-",K230=""),0,IF(K230<0,IF(ABS(K230)<10,11,ABS(K230)+2),K230))) -> 0 | AH230: =IF(L230="0-",11,IF(OR(LEFT(H230,2)="WO",L230="0-",L230=""),0,IF(L230<0,IF(ABS(L230)<10,11,ABS(L230)+2),L230))) -> 0 | AI230: 0 | AJ230: =CONCATENATE(B230,"-",E230) -> jméno a oddíl-jméno a oddíl
B231: III.kolo | H231: 1.set | I231: 2.set | J231: 3.set | K231: 4.set | L231: 5.set | M231: výsledek
B232: =C221 -> jméno a oddíl | C232: =#REF! ->  | D232: - | E232: =C223 -> jméno a oddíl | F232: =C223 -> jméno a oddíl | M232: =IF(H232="WO","3:0",IF(H232="WO-","0:3",CONCATENATE(V232,":",W232))) -> 0:0 | Q232: =IF(H232="",0,IF(OR(H232<0,H232="0-"),"0:1","1:0")) -> 0 | R232: 0 | S232: 0 | T232: 0 | U232: 0 | V232: =LEFT(Q232,1)+LEFT(R232,1)+LEFT(S232,1)+LEFT(T232,1)+LEFT(U232,1) -> 0 | W232: =RIGHT(Q232,1)+RIGHT(R232,1)+RIGHT(S232,1)+RIGHT(T232,1)+RIGHT(U232,1) -> 0 | X232: =IF(OR(LEFT(H232,2)="WO",H232="0-",H232=""),0,IF(H232<0,ABS(H232),IF(H232<10,11,H232+2))) -> 0 | Y232: =IF(OR(LEFT(H232,2)="WO",I232="0-",I232=""),0,IF(I232<0,ABS(I232),IF(I232<10,11,I232+2))) -> 0 | Z232: =IF(OR(LEFT(H232,2)="WO",J232="0-",J232=""),0,IF(J232<0,ABS(J232),IF(J232<10,11,J232+2))) -> 0 | AA232: =IF(OR(LEFT(H232,2)="WO",K232="0-",K232=""),0,IF(K232<0,ABS(K232),IF(K232<10,11,K232+2))) -> 0 | AB232: =IF(OR(LEFT(H232,2)="WO",L232="0-",L232=""),0,IF(L232<0,ABS(L232),IF(L232<10,11,L232+2))) -> 0 | AC232: =SUM(X232:AB232) -> 0 | AD232: =IF(H232="0-",11,IF(OR(LEFT(H232,2)="WO",H232=""),0,IF(H232<0,IF(ABS(H232)<10,11,ABS(H232)+2),H232))) -> 0 | AE232: =IF(I232="0-",11,IF(OR(LEFT(H232,2)="WO",I232="0-",I232=""),0,IF(I232<0,IF(ABS(I232)<10,11,ABS(I232)+2),I232))) -> 0 | AF232: =IF(J232="0-",11,IF(OR(LEFT(H232,2)="WO",J232="0-",J232=""),0,IF(J232<0,IF(ABS(J232)<10,11,ABS(J232)+2),J232))) -> 0 | AG232: =IF(K232="0-",11,IF(OR(LEFT(H232,2)="WO",K232="0-",K232=""),0,IF(K232<0,IF(ABS(K232)<10,11,ABS(K232)+2),K232))) -> 0 | AH232: =IF(L232="0-",11,IF(OR(LEFT(H232,2)="WO",L232="0-",L232=""),0,IF(L232<0,IF(ABS(L232)<10,11,ABS(L232)+2),L232))) -> 0 | AI232: =SUM(AD232:AH232) -> 0 | AJ232: =CONCATENATE(B232,"-",E232) -> jméno a oddíl-jméno a oddíl
B233: =C222 -> jméno a oddíl | C233: =#REF! ->  | D233: - | E233: =C220 -> jméno a oddíl | F233: =C220 -> jméno a oddíl | M233: =IF(H233="WO","3:0",IF(H233="WO-","0:3",CONCATENATE(V233,":",W233))) -> 0:0 | Q233: 0 | R233: 0 | S233: 0 | T233: 0 | U233: 0 | V233: 0 | W233: 0 | X233: =IF(OR(LEFT(H233,2)="WO",H233="0-",H233=""),0,IF(H233<0,ABS(H233),IF(H233<10,11,H233+2))) -> 0 | Y233: =IF(OR(LEFT(H233,2)="WO",I233="0-",I233=""),0,IF(I233<0,ABS(I233),IF(I233<10,11,I233+2))) -> 0 | Z233: =IF(OR(LEFT(H233,2)="WO",J233="0-",J233=""),0,IF(J233<0,ABS(J233),IF(J233<10,11,J233+2))) -> 0 | AA233: =IF(OR(LEFT(H233,2)="WO",K233="0-",K233=""),0,IF(K233<0,ABS(K233),IF(K233<10,11,K233+2))) -> 0 | AB233: =IF(OR(LEFT(H233,2)="WO",L233="0-",L233=""),0,IF(L233<0,ABS(L233),IF(L233<10,11,L233+2))) -> 0 | AC233: 0 | AD233: =IF(H233="0-",11,IF(OR(LEFT(H233,2)="WO",H233=""),0,IF(H233<0,IF(ABS(H233)<10,11,ABS(H233)+2),H233))) -> 0 | AE233: =IF(I233="0-",11,IF(OR(LEFT(H233,2)="WO",I233="0-",I233=""),0,IF(I233<0,IF(ABS(I233)<10,11,ABS(I233)+2),I233))) -> 0 | AF233: =IF(J233="0-",11,IF(OR(LEFT(H233,2)="WO",J233="0-",J233=""),0,IF(J233<0,IF(ABS(J233)<10,11,ABS(J233)+2),J233))) -> 0 | AG233: =IF(K233="0-",11,IF(OR(LEFT(H233,2)="WO",K233="0-",K233=""),0,IF(K233<0,IF(ABS(K233)<10,11,ABS(K233)+2),K233))) -> 0 | AH233: =IF(L233="0-",11,IF(OR(LEFT(H233,2)="WO",L233="0-",L233=""),0,IF(L233<0,IF(ABS(L233)<10,11,ABS(L233)+2),L233))) -> 0 | AI233: 0 | AJ233: =CONCATENATE(B233,"-",E233) -> jméno a oddíl-jméno a oddíl
B235: Skupina O | E235: =C236 -> jméno a oddíl | F235: =C237 -> jméno a oddíl | G235: =C238 -> jméno a oddíl | H235: =C239 -> jméno a oddíl | I235: Skóre | J235: Body | K235: Míčky | L235: Pořadí | M235: Pavouk
B236: 1 | C236: jméno a oddíl | F236: =IF(OR(LEFT(B246,3)="bye",LEFT(E246,3)="bye"),"0:0",M246) -> 0:0 | G236: =CONCATENATE(RIGHT(E238,1),MID(E238,2,1),LEFT(E238,1)) -> 0:0 | H236: =IF(OR(LEFT(B242,3)="bye",LEFT(E242,3)="bye"),"0:0",M242) -> 0:0 | I236: =CONCATENATE(LEFT(F236,1)+LEFT(G236,1)+LEFT(H236,1),":",RIGHT(F236,1)+RIGHT(G236,1)+RIGHT(H236,1)) -> 0:0 | J236: =IF(LEFT(C236,3)="bye",0,IF(OR(F236="0:0",H246="WO-"),0,IF(LEFT(F236,1)="3",2,1))+IF(OR(G236="0:0",H249="WO"),0,IF(LEFT(G236,1)="3",2,1))+IF(OR(H236="0:0",H242="WO-"),0,IF(LEFT(H236,1)="3",2,1))) -> 0 | K236: =IF(LEFT(C236,3)="bye",0,CONCATENATE(AC242+AC246+AI249,":",AI242+AI246+AC249)) -> 0:0 | M236: O1
B237: 2 | C237: jméno a oddíl | E237: =CONCATENATE(RIGHT(F236,1),MID(F236,2,1),LEFT(F236,1)) -> 0:0 | G237: =IF(OR(LEFT(B243,3)="bye",LEFT(E243,3)="bye"),"0:0",M243) -> 0:0 | H237: =IF(OR(LEFT(B248,3)="bye",LEFT(E248,3)="bye"),"0:0",M248) -> 0:0 | I237: =CONCATENATE(LEFT(E237,1)+LEFT(G237,1)+LEFT(H237,1),":",RIGHT(E237,1)+RIGHT(G237,1)+RIGHT(H237,1)) -> 0:0 | J237: =IF(LEFT(C237,3)="bye",0,IF(OR(E237="0:0",H246="WO"),0,IF(LEFT(E237,1)="3",2,1))+IF(OR(G237="0:0",H243="WO-"),0,IF(LEFT(G237,1)="3",2,1))+IF(OR(H237="0:0",H248="WO-"),0,IF(LEFT(H237,1)="3",2,1))) -> 0 | K237: =IF(LEFT(C237,3)="bye",0,CONCATENATE(AC243+AI246+AC248,":",AI243+AC246+AI248)) -> 0:0 | M237: O2
B238: 3 | C238: jméno a oddíl | E238: =IF(OR(LEFT(B249,3)="bye",LEFT(E249,3)="bye"),"0:0",M249) -> 0:0 | F238: =CONCATENATE(RIGHT(G237,1),MID(G237,2,1),LEFT(G237,1)) -> 0:0 | H238: =CONCATENATE(RIGHT(G239,1),MID(G239,2,1),LEFT(G239,1)) -> 0:0 | I238: =CONCATENATE(LEFT(E238,1)+LEFT(F238,1)+LEFT(H238,1),":",RIGHT(E238,1)+RIGHT(F238,1)+RIGHT(H238,1)) -> 0:0 | J238: =IF(LEFT(C238,3)="bye",0,IF(OR(E238="0:0",H249="WO-"),0,IF(LEFT(E238,1)="3",2,1))+IF(OR(F238="0:0",H243="WO"),0,IF(LEFT(F238,1)="3",2,1))+IF(OR(H238="0:0",H245="WO"),0,IF(LEFT(H238,1)="3",2,1))) -> 0 | K238: =IF(LEFT(C238,3)="bye",0,CONCATENATE(AI243+AI245+AC249,":",AC243+AC245+AI249)) -> 0:0 | M238: O3
... 24 more rows

Sheet dvouhra dívky
B1: Středočeský svaz stolního tenisu | F1: 2025-02-23
B2: KP U15 | F2: dívky
B3: Odolena Voda | F3: Dvouhra
C6: ="(1 - 8)" -> (1 - 8)
C7: Rigoci Ema (STC Slaný) | D7: ="(1 - 4)" -> (1 - 4)
B8: A1
D9: Rigoci Ema (STC Slaný)
D10: 3:0 | E10: ="(1 - 2)" -> (1 - 2)
B11: C2 | C11: Suková Petra (Sokol Všetaty)
E12: Rigoci Ema (STC Slaný)
C13: Matějíčková Karolína (SKST Králův Dvůr) | E13: 3:0
B14: B2
D15: Mučková Zuzana (Sokol Všetaty)
D16: 3:0 | F16: ="(1)" -> (1)
B17: D1 | C17: Mučková Zuzana (Sokol Všetaty)
F18: Rigoci Ema (STC Slaný)
C19: Baštová Zuzana (TTC Brandýs nad Labem) | F19: 3:0
B20: C1
D21: Baštová Zuzana (TTC Brandýs nad Labem)
D22: 3:0
B23: A2 | C23: Bubeníčková Kateřina (AERO Odolena Voda)
E24: Čebišová Linda (Sokol Velký Osek)
C25: Kaiserová Karolína (Černošice) | E25: 3:0
B26: D2
D27: Čebišová Linda (Sokol Velký Osek)
D28: 3:0
B29: B1 | C29: Čebišová Linda (Sokol Velký Osek)
D32: ="(3 - 4)" -> (3 - 4)
D33: =C17 -> Mučková Zuzana (Sokol Všetaty) | E33: ="(3)" -> (3)
E35: =D37 -> Baštová Zuzana (TTC Brandýs nad Labem)
E36: 3:2
D37: =C19 -> Baštová Zuzana (TTC Brandýs nad Labem)
C40: ="(5 - 8)" -> (5 - 8)
C41: =C11 -> Suková Petra (Sokol Všetaty) | D41: ="(5 - 6)" -> (5 - 6)
D43: =C41 -> Suková Petra (Sokol Všetaty)
D44: 3:0 | E44: ="(5)" -> (5)
C45: =C13 -> Matějíčková Karolína (SKST Králův Dvůr)
E46: =D43 -> Suková Petra (Sokol Všetaty)
C47: =C23 -> Bubeníčková Kateřina (AERO Odolena Voda) | E47: 3:2
D49: =C47 -> Bubeníčková Kateřina (AERO Odolena Voda)
D50: 3:0
C51: =C25 -> Kaiserová Karolína (Černošice)
C54: ="(7 - 8)" -> (7 - 8)
C55: =C45 -> Matějíčková Karolína (SKST Králův Dvůr) | D55: ="(7)" -> (7)
C59: =C51 -> Kaiserová Karolína (Černošice)

Sheet Pořadí - dívky
A1: Středočeský svaz stolního tenisu | D1: 2025-02-23
A2: KP - U15 | D2: dívky
A3: Odolena Voda | D3: Dvouhra - konečné pořadí
A5: 1. | B5: Rigoci Ema | C5: 2010 | D5: STC Slaný
A6: 2. | B6: Čebišová Linda | C6: 2010 | D6: Sokol Velký Osek
A7: 3. | B7: Baštová Zuzana | C7: 2011 | D7: TTC Brandýs nad Labem
A8: 4. | B8: Múčková Zuzana | C8: 2011 | D8: Sokol Všetaty
A9: 5. | B9: Suková Petra | C9: 2010 | D9: Sokol Všetaty
A10: 6. | B10: Bubeníčková Kateřina | C10: 2011 | D10: TJ Aero Odolena Voda
A11: 7.-8. | B11: Matějíčková Karolína | C11: 2010 | D11: SKST Králův Dvůr
B12: Kaiserová Karolína | C12: 2012 | D12: Černošice
A13: 9. | B13: Svejkovská Valerie | C13: 2012 | D13: SKST Králův Dvůr
A14: 10. | B14: Zamrzlová Zita | C14: 2012 | D14: TTC Dřínov
A15: 11. - 12. | B15: Vachová Laura | C15: 2012 | D15: TTC Přezletice
B16: Sollier Jennifer | C16: 2010 | D16: TTC Poděbrady

Sheet čtyřhra dívky
B1: Středočeský svaz stolního tenisu | F1: 2025-02-23
B2: KP U15 | F2: dívky
B3: Odolena Voda | F3: Čtyřhra
C6: ="(1 - 8)" -> (1 - 8)
C7: Čebišová Linda (Sokol Velký Osek) Rigoci Ema (STC Slaný) | D7: ="(1 - 4)" -> (1 - 4)
B8: 1
D9: =C7 -> Čebišová Linda (Sokol Velký Osek) Rigoci Ema (STC Slaný)
E10: ="(1 - 2)" -> (1 - 2)
B11: 7 | C11: BYE
E12: =D9 -> Čebišová Linda (Sokol Velký Osek) Rigoci Ema (STC Slaný)
C13: Sollier Jeniffer (TTC Poděbrady) Vachová Laura (TTC Přezletice) | E13: 3:0
B14: 6
D15: =C17 -> Matějíčková Valerie (SKST Králův Dvůr) Svejkovská Karolína (SKST Kráův Dvůr)
D16: 3:0 | F16: ="(1)" -> (1)
B17: 4 | C17: Matějíčková Valerie (SKST Králův Dvůr) Svejkovská Karolína (SKST Kráův Dvůr)
F18: =E12 -> Čebišová Linda (Sokol Velký Osek) Rigoci Ema (STC Slaný)
C19: Bubeníčková Kateřina (AERO Odolena Voda) Baštová Zuzana (TTC Brandýs nad Labem) | F19: 3:0
B20: 3
D21: =C19 -> Bubeníčková Kateřina (AERO Odolena Voda) Baštová Zuzana (TTC Brandýs nad Labem)
D22: 3:0
B23: 5 | C23: Kaiserová Karolína (Černošice) Zamrzlová Zita (TTC Dřínov)
E24: =D27 -> Mučková Zuzana (Sokol Všetaty) Suková Petra (Sokol Všetaty)
C25: BYE | E25: 3:0
B26: 8
D27: =C29 -> Mučková Zuzana (Sokol Všetaty) Suková Petra (Sokol Všetaty)
B29: 2 | C29: Mučková Zuzana (Sokol Všetaty) Suková Petra (Sokol Všetaty)
B33: Konečné pořadí - čtyřhra dívky - kategorie U15
B34: 1. | C34: Čebišová Linda (Sokol Velký Osek) Rigoci Ema (STC Slaný)
B35: 2. | C35: Mučková Zuzana (Sokol Všetaty) Suková Petra (Sokol Všetaty)
B36: 3. | C36: Matějíčková Valerie (SKST Králův Dvůr) Svejkovská Karolína (SKST Králův Dvůr)
B37: 3. | C37: Bubeníčková Kateřina (AERO Odolena Voda) Baštová Zuzana (TTC Brandýs nad Labem)
B38: 5. - 8. | C38: Sollier Jennifer (TTC Poděbrady) Vachová Laura (TTC Přezletice)
B39: 5. - 8. | C39: Kaiserová Karolína (Černošice) Zamrzlová Zita (TTC Dřínov)
B40: 5. - 8.
B41: 5. - 8.

Sheet Startovní listina - chlapci
A1: Středočeský svaz stolního tenisu | E1: 2025-02-23
A2: KP - U15 | E2: chlapci
A3: Odolena Voda | E3: Dvouhra - startovní listina
A5: 1. | B5: Novák Emil | C5: 2010 | D5: TSM Kladno | E5: R15
A6: 2. | B6: Balog Lukáš | C6: 2010 | D6: TTC Bělá pod Bezdězem | E6: R44
A7: 3. | B7: Baladrán Denis | C7: 2010 | D7: TJ Sokol Lysá nad Labem | E7: R48
A8: 4. | B8: Fric Tomáš | C8: 2012 | D8: STC Slaný | E8: K44
A9: 5. | B9: Langer Josef | C9: 2013 | D9: SKC Zruč nad Sázavou | E9: K49
A10: 6. | B10: Mertlík Štěpán | C10: 2011 | D10: TTC Příbram | E10: K51
A11: 7. | B11: Hlavenka Theodor | C11: 2010 | D11: Černošice | E11: K59
A12: 8. | B12: Novák František | C12: 2011 | D12: TSM Kladno | E12: K63
A13: 9. | B13: Malimánek Vít | C13: 2013 | D13: TJ Církvice | E13: K66
A14: 10. | B14: Frydrych Pavel | C14: 2010 | D14: Sokol Všetaty | E14: K67
A15: 11. | B15: Přenosil Lukáš | C15: 2013 | D15: TTC Brandýs nad Labem | E15: K69
A16: 12. | B16: Duník Jan | C16: 2011 | D16: TTC Příbram | E16: K77
A17: 13. | B17: Nikl Tadeáš | C17: 2010 | D17: Sokol Velký Osek | E17: K88
A18: 14. | B18: Daněk Patrik | C18: 2010 | D18: SKST Vlašim | E18: K97
A19: 15. | B19: Jansa Antonín | C19: 2011 | D19: Spartak Čelákovice | E19: K103
A20: 16. | B20: Faktor Tadeáš | C20: 2010 | D20: TJ Tatran Sedlčany | E20: K106
A21: 17. | B21: Pazdera Pavel | C21: 2010 | D21: SKST Vlašim | E21: K110
A22: 18. | B22: Ulman Nicolas | C22: 2010 | D22: Spartak Čelákovice | E22: K120
A23: 19. | B23: Hurný Jakub | C23: 2012 | D23: TTC Přezletice | E23: K128
A24: 20. | B24: Veverka Jakub | C24: 2010 | D24: SKST Králův Dvůr | E24: K155
A25: 21. | B25: Stibor Dominik | C25: 2010 | D25: TJ Tatran Sedlčany | E25: K158
A26: 22. | B26: Jesenský Jan | C26: 2010 | D26: Mníšek pod Brdy | E26: K161
A27: 23. | B27: Mráz Jáchym | C27: 2015 | D27: TTC Brandýs nad Labem | E27: K165
A28: 24. | B28: Timko Jakub | C28: 2010 | D28: SKST Vlašim | E28: K166
A29: 25. | B29: Láznička Vojtěch | C29: 2010 | D29: SKST Králův Dvůr | E29: K167
A30: 26. | B30: Jirota Jakub | C30: 2010 | D30: Mníšek pod Brdy | E30: K173
A31: 27. | B31: Křenčil František | C31: 2011 | D31: TTC Dřínov | E31: K175
A32: 28. | B32: Herda Vojtěch | C32: 2010 | D32: Mníšek pod Brdy | E32: K202
A33: 29. | B33: Novák František | C33: 2010 | D33: TJ Tatran Sedlčany | E33: K204
A34: 30. | B34: Hlavatý Marek | C34: 2010 | D34: TTC Poděbrady
A35: 31. | B35: Jelínek Ondřej | C35: 2010 | D35: TJ Aero odolena Voda
A36: 32. | B36: Klíma Jaroslav | C36: 2011 | D36: Sokol Netvořice
A37: 33. | B37: Matyáš Andrej | C37: 2011 | D37: Sokol Netvořice
A38: 34. | B38: Onderčanin Matouš | C38: 2011 | D38: Sokol Netvořice
A39: 35. | B39: Smolík Jan | C39: 2012 | D39: TTC Kladno
A40: 36. | B40: Švorc Vojtěch | C40: 2011 | D40: ACS Přední Lhota
A41: 37. | B41: Tvrdý Samuel | C41: 2012 | D41: Černošice

Sheet Skupiny - chlapci
B1: Skupina A | E1: =C2 -> Novák Emil (TSM Kladno) | F1: =C3 -> Klíma Jaroslav (Sokol Netvořice) | G1: =C4 -> Veverka Jakub (SKST Králův Dvůr) | H1: =C5 -> Bye | I1: Skóre | J1: Body | K1: Míčky | L1: Pořadí | M1: Pavouk
B2: 1 | C2: Novák Emil (TSM Kladno) | F2: =IF(OR(LEFT(B12,3)="bye",LEFT(E12,3)="bye"),"0:0",M12) -> 3:0 | G2: =CONCATENATE(RIGHT(E4,1),MID(E4,2,1),LEFT(E4,1)) -> 3:0 | H2: =IF(OR(LEFT(B8,3)="bye",LEFT(E8,3)="bye"),"0:0",M8) -> 0:0 | I2: =CONCATENATE(LEFT(F2,1)+LEFT(G2,1)+LEFT(H2,1),":",RIGHT(F2,1)+RIGHT(G2,1)+RIGHT(H2,1)) -> 6:0 | J2: =IF(LEFT(C2,3)="bye",0,IF(OR(F2="0:0",H12="WO-"),0,IF(LEFT(F2,1)="3",2,1))+IF(OR(G2="0:0",H15="WO"),0,IF(LEFT(G2,1)="3",2,1))+IF(OR(H2="0:0",H8="WO-"),0,IF(LEFT(H2,1)="3",2,1))) -> 4 | K2: =IF(LEFT(C2,3)="bye",0,CONCATENATE(AC8+AC12+AI15,":",AI8+AI12+AC15)) -> 66:35 | L2: 1. | M2: A1
B3: 2 | C3: Klíma Jaroslav (Sokol Netvořice) | E3: =CONCATENATE(RIGHT(F2,1),MID(F2,2,1),LEFT(F2,1)) -> 0:3 | G3: =IF(OR(LEFT(B9,3)="bye",LEFT(E9,3)="bye"),"0:0",M9) -> 0:3 | H3: =IF(OR(LEFT(B14,3)="bye",LEFT(E14,3)="bye"),"0:0",M14) -> 0:0 | I3: =CONCATENATE(LEFT(E3,1)+LEFT(G3,1)+LEFT(H3,1),":",RIGHT(E3,1)+RIGHT(G3,1)+RIGHT(H3,1)) -> 0:6 | J3: =IF(LEFT(C3,3)="bye",0,IF(OR(E3="0:0",H12="WO"),0,IF(LEFT(E3,1)="3",2,1))+IF(OR(G3="0:0",H9="WO-"),0,IF(LEFT(G3,1)="3",2,1))+IF(OR(H3="0:0",H14="WO-"),0,IF(LEFT(H3,1)="3",2,1))) -> 2 | K3: =IF(LEFT(C3,3)="bye",0,CONCATENATE(AC9+AI12+AC14,":",AI9+AC12+AI14)) -> 32:66 | L3: 3. | M3: A2
B4: 3 | C4: Veverka Jakub (SKST Králův Dvůr) | E4: =IF(OR(LEFT(B15,3)="bye",LEFT(E15,3)="bye"),"0:0",M15) -> 0:3 | F4: =CONCATENATE(RIGHT(G3,1),MID(G3,2,1),LEFT(G3,1)) -> 3:0 | H4: =CONCATENATE(RIGHT(G5,1),MID(G5,2,1),LEFT(G5,1)) -> 0:0 | I4: =CONCATENATE(LEFT(E4,1)+LEFT(F4,1)+LEFT(H4,1),":",RIGHT(E4,1)+RIGHT(F4,1)+RIGHT(H4,1)) -> 3:3 | J4: =IF(LEFT(C4,3)="bye",0,IF(OR(E4="0:0",H15="WO-"),0,IF(LEFT(E4,1)="3",2,1))+IF(OR(F4="0:0",H9="WO"),0,IF(LEFT(F4,1)="3",2,1))+IF(OR(H4="0:0",H11="WO"),0,IF(LEFT(H4,1)="3",2,1))) -> 3 | K4: =IF(LEFT(C4,3)="bye",0,CONCATENATE(AI9+AI11+AC15,":",AC9+AC11+AI15)) -> 53:50 | L4: 2. | M4: A3
B5: 4 | C5: Bye | E5: =CONCATENATE(RIGHT(H2,1),MID(H2,2,1),LEFT(H2,1)) -> 0:0 | F5: =CONCATENATE(RIGHT(H3,1),MID(H3,2,1),LEFT(H3,1)) -> 0:0 | G5: =IF(OR(LEFT(B11,3)="bye",LEFT(E11,3)="bye"),"0:0",M11) -> 0:0 | I5: =CONCATENATE(LEFT(E5,1)+LEFT(F5,1)+LEFT(G5,1),":",RIGHT(E5,1)+RIGHT(F5,1)+RIGHT(G5,1)) -> 0:0 | J5: =IF(LEFT(C5,3)="bye",0,IF(OR(E5="0:0",H8="WO"),0,IF(LEFT(E5,1)="3",2,1))+IF(OR(F5="0:0",H14="WO"),0,IF(LEFT(F5,1)="3",2,1))+IF(OR(G5="0:0",H11="WO-"),0,IF(LEFT(G5,1)="3",2,1))) -> 0 | K5: =IF(LEFT(C4,3)="bye",0,CONCATENATE(AI8+AC11+AI14,":",AC8+AI11+AC14)) -> 0:0 | M5: A4
B7: I.kolo | H7: 1.set | I7: 2.set | J7: 3.set | K7: 4.set | L7: 5.set | M7: výsledek
B8: =C2 -> Novák Emil (TSM Kladno) | D8: - | E8: =C5 -> Bye | M8: =IF(H8="WO","3:0",IF(H8="WO-","0:3",CONCATENATE(V8,":",W8))) -> 0:0 | Q8: =IF(H8="",0,IF(OR(H8<0,H8="0-"),"0:1","1:0")) -> 0 | R8: 0 | S8: 0 | T8: 0 | U8: 0 | V8: =LEFT(Q8,1)+LEFT(R8,1)+LEFT(S8,1)+LEFT(T8,1)+LEFT(U8,1) -> 0 | W8: =RIGHT(Q8,1)+RIGHT(R8,1)+RIGHT(S8,1)+RIGHT(T8,1)+RIGHT(U8,1) -> 0 | X8: =IF(OR(LEFT(H8,2)="WO",H8="0-",H8=""),0,IF(H8<0,ABS(H8),IF(H8<10,11,H8+2))) -> 0 | Y8: =IF(OR(LEFT(H8,2)="WO",I8="0-",I8=""),0,IF(I8<0,ABS(I8),IF(I8<10,11,I8+2))) -> 0 | Z8: =IF(OR(LEFT(H8,2)="WO",J8="0-",J8=""),0,IF(J8<0,ABS(J8),IF(J8<10,11,J8+2))) -> 0 | AA8: =IF(OR(LEFT(H8,2)="WO",K8="0-",K8=""),0,IF(K8<0,ABS(K8),IF(K8<10,11,K8+2))) -> 0 | AB8: =IF(OR(LEFT(H8,2)="WO",L8="0-",L8=""),0,IF(L8<0,ABS(L8),IF(L8<10,11,L8+2))) -> 0 | AC8: =SUM(X8:AB8) -> 0 | AD8: =IF(H8="0-",11,IF(OR(LEFT(H8,2)="WO",H8=""),0,IF(H8<0,IF(ABS(H8)<10,11,ABS(H8)+2),H8))) -> 0 | AE8: =IF(I8="0-",11,IF(OR(LEFT(H8,2)="WO",I8="0-",I8=""),0,IF(I8<0,IF(ABS(I8)<10,11,ABS(I8)+2),I8))) -> 0 | AF8: =IF(J8="0-",11,IF(OR(LEFT(H8,2)="WO",J8="0-",J8=""),0,IF(J8<0,IF(ABS(J8)<10,11,ABS(J8)+2),J8))) -> 0 | AG8: =IF(K8="0-",11,IF(OR(LEFT(H8,2)="WO",K8="0-",K8=""),0,IF(K8<0,IF(ABS(K8)<10,11,ABS(K8)+2),K8))) -> 0 | AH8: =IF(L8="0-",11,IF(OR(LEFT(H8,2)="WO",L8="0-",L8=""),0,IF(L8<0,IF(ABS(L8)<10,11,ABS(L8)+2),L8))) -> 0 | AI8: =SUM(AD8:AH8) -> 0 | AJ8: =CONCATENATE(B8,"-",E8) -> Novák Emil (TSM Kladno)-Bye
B9: =C3 -> Klíma Jaroslav (Sokol Netvořice) | C9: =#REF! ->  | D9: - | E9: =C4 -> Veverka Jakub (SKST Králův Dvůr) | F9: =C4 -> Veverka Jakub (SKST Králův Dvůr) | H9: -7 | I9: -2 | J9: -8 | M9: =IF(H9="WO","3:0",IF(H9="WO-","0:3",CONCATENATE(V9,":",W9))) -> 0:3 | Q9: 0:1 | R9: 0:1 | S9: 0:1 | T9: 0 | U9: 0 | V9: =LEFT(Q9,1)+LEFT(R9,1)+LEFT(S9,1)+LEFT(T9,1)+LEFT(U9,1) -> 0 | W9: =RIGHT(Q9,1)+RIGHT(R9,1)+RIGHT(S9,1)+RIGHT(T9,1)+RIGHT(U9,1) -> 3 | X9: =IF(OR(LEFT(H9,2)="WO",H9="0-",H9=""),0,IF(H9<0,ABS(H9),IF(H9<10,11,H9+2))) -> 7 | Y9: =IF(OR(LEFT(H9,2)="WO",I9="0-",I9=""),0,IF(I9<0,ABS(I9),IF(I9<10,11,I9+2))) -> 2 | Z9: =IF(OR(LEFT(H9,2)="WO",J9="0-",J9=""),0,IF(J9<0,ABS(J9),IF(J9<10,11,J9+2))) -> 8 | AA9: =IF(OR(LEFT(H9,2)="WO",K9="0-",K9=""),0,IF(K9<0,ABS(K9),IF(K9<10,11,K9+2))) -> 0 | AB9: =IF(OR(LEFT(H9,2)="WO",L9="0-",L9=""),0,IF(L9<0,ABS(L9),IF(L9<10,11,L9+2))) -> 0 | AC9: =SUM(X9:AB9) -> 17 | AD9: =IF(H9="0-",11,IF(OR(LEFT(H9,2)="WO",H9=""),0,IF(H9<0,IF(ABS(H9)<10,11,ABS(H9)+2),H9))) -> 11 | AE9: =IF(I9="0-",11,IF(OR(LEFT(H9,2)="WO",I9="0-",I9=""),0,IF(I9<0,IF(ABS(I9)<10,11,ABS(I9)+2),I9))) -> 11 | AF9: =IF(J9="0-",11,IF(OR(LEFT(H9,2)="WO",J9="0-",J9=""),0,IF(J9<0,IF(ABS(J9)<10,11,ABS(J9)+2),J9))) -> 11 | AG9: =IF(K9="0-",11,IF(OR(LEFT(H9,2)="WO",K9="0-",K9=""),0,IF(K9<0,IF(ABS(K9)<10,11,ABS(K9)+2),K9))) -> 0 | AH9: =IF(L9="0-",11,IF(OR(LEFT(H9,2)="WO",L9="0-",L9=""),0,IF(L9<0,IF(ABS(L9)<10,11,ABS(L9)+2),L9))) -> 0 | AI9: =SUM(AD9:AH9) -> 33 | AJ9: =CONCATENATE(B9,"-",E9) -> Klíma Jaroslav (Sokol Netvořice)-Veverka Jakub (SKST Králův Dvůr)
B10: II.kolo | H10: 1.set | I10: 2.set | J10: 3.set | K10: 4.set | L10: 5.set | M10: výsledek
B11: =C5 -> Bye | C11: =C5 -> Bye | D11: - | E11: =C4 -> Veverka Jakub (SKST Králův Dvůr) | F11: =C4 -> Veverka Jakub (SKST Králův Dvůr) | M11: =IF(H11="WO","3:0",IF(H11="WO-","0:3",CONCATENATE(V11,":",W11))) -> 0:0 | Q11: =IF(H11="",0,IF(OR(H11<0,H11="0-"),"0:1","1:0")) -> 0 | R11: 0 | S11: 0 | T11: 0 | U11: 0 | V11: 0 | W11: 0 | X11: =IF(OR(LEFT(H11,2)="WO",H11="0-",H11=""),0,IF(H11<0,ABS(H11),IF(H11<10,11,H11+2))) -> 0 | Y11: =IF(OR(LEFT(H11,2)="WO",I11="0-",I11=""),0,IF(I11<0,ABS(I11),IF(I11<10,11,I11+2))) -> 0 | Z11: =IF(OR(LEFT(H11,2)="WO",J11="0-",J11=""),0,IF(J11<0,ABS(J11),IF(J11<10,11,J11+2))) -> 0 | AA11: =IF(OR(LEFT(H11,2)="WO",K11="0-",K11=""),0,IF(K11<0,ABS(K11),IF(K11<10,11,K11+2))) -> 0 | AB11: =IF(OR(LEFT(H11,2)="WO",L11="0-",L11=""),0,IF(L11<0,ABS(L11),IF(L11<10,11,L11+2))) -> 0 | AC11: 0 | AD11: =IF(H11="0-",11,IF(OR(LEFT(H11,2)="WO",H11=""),0,IF(H11<0,IF(ABS(H11)<10,11,ABS(H11)+2),H11))) -> 0 | AE11: =IF(I11="0-",11,IF(OR(LEFT(H11,2)="WO",I11="0-",I11=""),0,IF(I11<0,IF(ABS(I11)<10,11,ABS(I11)+2),I11))) -> 0 | AF11: =IF(J11="0-",11,IF(OR(LEFT(H11,2)="WO",J11="0-",J11=""),0,IF(J11<0,IF(ABS(J11)<10,11,ABS(J11)+2),J11))) -> 0 | AG11: =IF(K11="0-",11,IF(OR(LEFT(H11,2)="WO",K11="0-",K11=""),0,IF(K11<0,IF(ABS(K11)<10,11,ABS(K11)+2),K11))) -> 0 | AH11: =IF(L11="0-",11,IF(OR(LEFT(H11,2)="WO",L11="0-",L11=""),0,IF(L11<0,IF(ABS(L11)<10,11,ABS(L11)+2),L11))) -> 0 | AI11: 0 | AJ11: =CONCATENATE(B11,"-",E11) -> Bye-Veverka Jakub (SKST Králův Dvůr)
B12: =C2 -> Novák Emil (TSM Kladno) | C12: =C3 -> Klíma Jaroslav (Sokol Netvořice) | D12: - | E12: =C3 -> Klíma Jaroslav (Sokol Netvořice) | F12: =C3 -> Klíma Jaroslav (Sokol Netvořice) | H12: 5 | I12: 6 | J12: 4 | M12: =IF(H12="WO","3:0",IF(H12="WO-","0:3",CONCATENATE(V12,":",W12))) -> 3:0 | Q12: 1:0 | R12: 1:0 | S12: 1:0 | T12: 0 | U12: 0 | V12: 3 | W12: 0 | X12: =IF(OR(LEFT(H12,2)="WO",H12="0-",H12=""),0,IF(H12<0,ABS(H12),IF(H12<10,11,H12+2))) -> 11 | Y12: =IF(OR(LEFT(H12,2)="WO",I12="0-",I12=""),0,IF(I12<0,ABS(I12),IF(I12<10,11,I12+2))) -> 11 | Z12: =IF(OR(LEFT(H12,2)="WO",J12="0-",J12=""),0,IF(J12<0,ABS(J12),IF(J12<10,11,J12+2))) -> 11 | AA12: =IF(OR(LEFT(H12,2)="WO",K12="0-",K12=""),0,IF(K12<0,ABS(K12),IF(K12<10,11,K12+2))) -> 0 | AB12: =IF(OR(LEFT(H12,2)="WO",L12="0-",L12=""),0,IF(L12<0,ABS(L12),IF(L12<10,11,L12+2))) -> 0 | AC12: 33 | AD12: =IF(H12="0-",11,IF(OR(LEFT(H12,2)="WO",H12=""),0,IF(H12<0,IF(ABS(H12)<10,11,ABS(H12)+2),H12))) -> 5 | AE12: =IF(I12="0-",11,IF(OR(LEFT(H12,2)="WO",I12="0-",I12=""),0,IF(I12<0,IF(ABS(I12)<10,11,ABS(I12)+2),I12))) -> 6 | AF12: =IF(J12="0-",11,IF(OR(LEFT(H12,2)="WO",J12="0-",J12=""),0,IF(J12<0,IF(ABS(J12)<10,11,ABS(J12)+2),J12))) -> 4 | AG12: =IF(K12="0-",11,IF(OR(LEFT(H12,2)="WO",K12="0-",K12=""),0,IF(K12<0,IF(ABS(K12)<10,11,ABS(K12)+2),K12))) -> 0 | AH12: =IF(L12="0-",11,IF(OR(LEFT(H12,2)="WO",L12="0-",L12=""),0,IF(L12<0,IF(ABS(L12)<10,11,ABS(L12)+2),L12))) -> 0 | AI12: 15 | AJ12: =CONCATENATE(B12,"-",E12) -> Novák Emil (TSM Kladno)-Klíma Jaroslav (Sokol Netvořice)
B13: III.kolo | H13: 1.set | I13: 2.set | J13: 3.set | K13: 4.set | L13: 5.set | M13: výsledek
B14: =C3 -> Klíma Jaroslav (Sokol Netvořice) | C14: =#REF! ->  | D14: - | E14: =C5 -> Bye | F14: =C5 -> Bye | M14: =IF(H14="WO","3:0",IF(H14="WO-","0:3",CONCATENATE(V14,":",W14))) -> 0:0 | Q14: =IF(H14="",0,IF(OR(H14<0,H14="0-"),"0:1","1:0")) -> 0 | R14: 0 | S14: 0 | T14: 0 | U14: 0 | V14: 0 | W14: 0 | X14: =IF(OR(LEFT(H14,2)="WO",H14="0-",H14=""),0,IF(H14<0,ABS(H14),IF(H14<10,11,H14+2))) -> 0 | Y14: =IF(OR(LEFT(H14,2)="WO",I14="0-",I14=""),0,IF(I14<0,ABS(I14),IF(I14<10,11,I14+2))) -> 0 | Z14: =IF(OR(LEFT(H14,2)="WO",J14="0-",J14=""),0,IF(J14<0,ABS(J14),IF(J14<10,11,J14+2))) -> 0 | AA14: =IF(OR(LEFT(H14,2)="WO",K14="0-",K14=""),0,IF(K14<0,ABS(K14),IF(K14<10,11,K14+2))) -> 0 | AB14: =IF(OR(LEFT(H14,2)="WO",L14="0-",L14=""),0,IF(L14<0,ABS(L14),IF(L14<10,11,L14+2))) -> 0 | AC14: 0 | AD14: =IF(H14="0-",11,IF(OR(LEFT(H14,2)="WO",H14=""),0,IF(H14<0,IF(ABS(H14)<10,11,ABS(H14)+2),H14))) -> 0 | AE14: =IF(I14="0-",11,IF(OR(LEFT(H14,2)="WO",I14="0-",I14=""),0,IF(I14<0,IF(ABS(I14)<10,11,ABS(I14)+2),I14))) -> 0 | AF14: =IF(J14="0-",11,IF(OR(LEFT(H14,2)="WO",J14="0-",J14=""),0,IF(J14<0,IF(ABS(J14)<10,11,ABS(J14)+2),J14))) -> 0 | AG14: =IF(K14="0-",11,IF(OR(LEFT(H14,2)="WO",K14="0-",K14=""),0,IF(K14<0,IF(ABS(K14)<10,11,ABS(K14)+2),K14))) -> 0 | AH14: =IF(L14="0-",11,IF(OR(LEFT(H14,2)="WO",L14="0-",L14=""),0,IF(L14<0,IF(ABS(L14)<10,11,ABS(L14)+2),L14))) -> 0 | AI14: 0 | AJ14: =CONCATENATE(B14,"-",E14) -> Klíma Jaroslav (Sokol Netvořice)-Bye
B15: =C4 -> Veverka Jakub (SKST Králův Dvůr) | C15: =#REF! ->  | D15: - | E15: =C2 -> Novák Emil (TSM Kladno) | F15: =C2 -> Novák Emil (TSM Kladno) | H15: -8 | I15: -4 | J15: -8 | M15: =IF(H15="WO","3:0",IF(H15="WO-","0:3",CONCATENATE(V15,":",W15))) -> 0:3 | Q15: 0:1 | R15: 0:1 | S15: 0:1 | T15: 0 | U15: 0 | V15: 0 | W15: 3 | X15: =IF(OR(LEFT(H15,2)="WO",H15="0-",H15=""),0,IF(H15<0,ABS(H15),IF(H15<10,11,H15+2))) -> 8 | Y15: =IF(OR(LEFT(H15,2)="WO",I15="0-",I15=""),0,IF(I15<0,ABS(I15),IF(I15<10,11,I15+2))) -> 4 | Z15: =IF(OR(LEFT(H15,2)="WO",J15="0-",J15=""),0,IF(J15<0,ABS(J15),IF(J15<10,11,J15+2))) -> 8 | AA15: =IF(OR(LEFT(H15,2)="WO",K15="0-",K15=""),0,IF(K15<0,ABS(K15),IF(K15<10,11,K15+2))) -> 0 | AB15: =IF(OR(LEFT(H15,2)="WO",L15="0-",L15=""),0,IF(L15<0,ABS(L15),IF(L15<10,11,L15+2))) -> 0 | AC15: 20 | AD15: =IF(H15="0-",11,IF(OR(LEFT(H15,2)="WO",H15=""),0,IF(H15<0,IF(ABS(H15)<10,11,ABS(H15)+2),H15))) -> 11 | AE15: =IF(I15="0-",11,IF(OR(LEFT(H15,2)="WO",I15="0-",I15=""),0,IF(I15<0,IF(ABS(I15)<10,11,ABS(I15)+2),I15))) -> 11 | AF15: =IF(J15="0-",11,IF(OR(LEFT(H15,2)="WO",J15="0-",J15=""),0,IF(J15<0,IF(ABS(J15)<10,11,ABS(J15)+2),J15))) -> 11 | AG15: =IF(K15="0-",11,IF(OR(LEFT(H15,2)="WO",K15="0-",K15=""),0,IF(K15<0,IF(ABS(K15)<10,11,ABS(K15)+2),K15))) -> 0 | AH15: =IF(L15="0-",11,IF(OR(LEFT(H15,2)="WO",L15="0-",L15=""),0,IF(L15<0,IF(ABS(L15)<10,11,ABS(L15)+2),L15))) -> 0 | AI15: 33 | AJ15: =CONCATENATE(B15,"-",E15) -> Veverka Jakub (SKST Králův Dvůr)-Novák Emil (TSM Kladno)
B18: Skupina B | E18: =C19 -> Balog Lukáš (TTC Bělá pod Bezdězem) | F18: =C20 -> Jelínek Ondřej (TJ Aero Odolena Voda) | G18: =C21 -> Hurný Jakub (TTC Přezletice) | H18: =C22 -> Bye | I18: Skóre | J18: Body | K18: Míčky | L18: Pořadí | M18: Pavouk
B19: 1 | C19: Balog Lukáš (TTC Bělá pod Bezdězem) | F19: =IF(OR(LEFT(B29,3)="bye",LEFT(E29,3)="bye"),"0:0",M29) -> 3:0 | G19: =CONCATENATE(RIGHT(E21,1),MID(E21,2,1),LEFT(E21,1)) -> 3:0 | H19: =IF(OR(LEFT(B25,3)="bye",LEFT(E25,3)="bye"),"0:0",M25) -> 0:0 | I19: =CONCATENATE(LEFT(F19,1)+LEFT(G19,1)+LEFT(H19,1),":",RIGHT(F19,1)+RIGHT(G19,1)+RIGHT(H19,1)) -> 6:0 | J19: =IF(LEFT(C19,3)="bye",0,IF(OR(F19="0:0",H29="WO-"),0,IF(LEFT(F19,1)="3",2,1))+IF(OR(G19="0:0",H32="WO"),0,IF(LEFT(G19,1)="3",2,1))+IF(OR(H19="0:0",H25="WO-"),0,IF(LEFT(H19,1)="3",2,1))) -> 4 | K19: =IF(LEFT(C19,3)="bye",0,CONCATENATE(AC25+AC29+AI32,":",AI25+AI29+AC32)) -> 67:47 | L19: 1. | M19: B1
B20: 2 | C20: Jelínek Ondřej (TJ Aero Odolena Voda) | E20: =CONCATENATE(RIGHT(F19,1),MID(F19,2,1),LEFT(F19,1)) -> 0:3 | G20: =IF(OR(LEFT(B26,3)="bye",LEFT(E26,3)="bye"),"0:0",M26) -> 0:3 | H20: =IF(OR(LEFT(B31,3)="bye",LEFT(E31,3)="bye"),"0:0",M31) -> 0:0 | I20: =CONCATENATE(LEFT(E20,1)+LEFT(G20,1)+LEFT(H20,1),":",RIGHT(E20,1)+RIGHT(G20,1)+RIGHT(H20,1)) -> 0:6 | J20: =IF(LEFT(C20,3)="bye",0,IF(OR(E20="0:0",H29="WO"),0,IF(LEFT(E20,1)="3",2,1))+IF(OR(G20="0:0",H26="WO-"),0,IF(LEFT(G20,1)="3",2,1))+IF(OR(H20="0:0",H31="WO-"),0,IF(LEFT(H20,1)="3",2,1))) -> 2 | K20: =IF(LEFT(C20,3)="bye",0,CONCATENATE(AC26+AI29+AC31,":",AI26+AC29+AI31)) -> 38:66 | L20: 3. | M20: B2
B21: 3 | C21: Hurný Jakub (TTC Přezletice) | E21: =IF(OR(LEFT(B32,3)="bye",LEFT(E32,3)="bye"),"0:0",M32) -> 0:3 | F21: =CONCATENATE(RIGHT(G20,1),MID(G20,2,1),LEFT(G20,1)) -> 3:0 | H21: =CONCATENATE(RIGHT(G22,1),MID(G22,2,1),LEFT(G22,1)) -> 0:0 | I21: =CONCATENATE(LEFT(E21,1)+LEFT(F21,1)+LEFT(H21,1),":",RIGHT(E21,1)+RIGHT(F21,1)+RIGHT(H21,1)) -> 3:3 | J21: =IF(LEFT(C21,3)="bye",0,IF(OR(E21="0:0",H32="WO-"),0,IF(LEFT(E21,1)="3",2,1))+IF(OR(F21="0:0",H26="WO"),0,IF(LEFT(F21,1)="3",2,1))+IF(OR(H21="0:0",H28="WO"),0,IF(LEFT(H21,1)="3",2,1))) -> 3 | K21: =IF(LEFT(C21,3)="bye",0,CONCATENATE(AI26+AI28+AC32,":",AC26+AC28+AI32)) -> 58:50 | L21: 2. | M21: B3
B22: 4 | C22: Bye | E22: =CONCATENATE(RIGHT(H19,1),MID(H19,2,1),LEFT(H19,1)) -> 0:0 | F22: =CONCATENATE(RIGHT(H20,1),MID(H20,2,1),LEFT(H20,1)) -> 0:0 | G22: =IF(OR(LEFT(B28,3)="bye",LEFT(E28,3)="bye"),"0:0",M28) -> 0:0 | I22: =CONCATENATE(LEFT(E22,1)+LEFT(F22,1)+LEFT(G22,1),":",RIGHT(E22,1)+RIGHT(F22,1)+RIGHT(G22,1)) -> 0:0 | J22: =IF(LEFT(C22,3)="bye",0,IF(OR(E22="0:0",H25="WO"),0,IF(LEFT(E22,1)="3",2,1))+IF(OR(F22="0:0",H31="WO"),0,IF(LEFT(F22,1)="3",2,1))+IF(OR(G22="0:0",H28="WO-"),0,IF(LEFT(G22,1)="3",2,1))) -> 0 | K22: =IF(LEFT(C21,3)="bye",0,CONCATENATE(AI25+AC28+AI31,":",AC25+AI28+AC31)) -> 0:0 | M22: B4
B24: I.kolo | H24: 1.set | I24: 2.set | J24: 3.set | K24: 4.set | L24: 5.set | M24: výsledek
B25: =C19 -> Balog Lukáš (TTC Bělá pod Bezdězem) | D25: - | E25: =C22 -> Bye | M25: =IF(H25="WO","3:0",IF(H25="WO-","0:3",CONCATENATE(V25,":",W25))) -> 0:0 | Q25: =IF(H25="",0,IF(OR(H25<0,H25="0-"),"0:1","1:0")) -> 0 | R25: 0 | S25: 0 | T25: 0 | U25: 0 | V25: =LEFT(Q25,1)+LEFT(R25,1)+LEFT(S25,1)+LEFT(T25,1)+LEFT(U25,1) -> 0 | W25: =RIGHT(Q25,1)+RIGHT(R25,1)+RIGHT(S25,1)+RIGHT(T25,1)+RIGHT(U25,1) -> 0 | X25: =IF(OR(LEFT(H25,2)="WO",H25="0-",H25=""),0,IF(H25<0,ABS(H25),IF(H25<10,11,H25+2))) -> 0 | Y25: =IF(OR(LEFT(H25,2)="WO",I25="0-",I25=""),0,IF(I25<0,ABS(I25),IF(I25<10,11,I25+2))) -> 0 | Z25: =IF(OR(LEFT(H25,2)="WO",J25="0-",J25=""),0,IF(J25<0,ABS(J25),IF(J25<10,11,J25+2))) -> 0 | AA25: =IF(OR(LEFT(H25,2)="WO",K25="0-",K25=""),0,IF(K25<0,ABS(K25),IF(K25<10,11,K25+2))) -> 0 | AB25: =IF(OR(LEFT(H25,2)="WO",L25="0-",L25=""),0,IF(L25<0,ABS(L25),IF(L25<10,11,L25+2))) -> 0 | AC25: =SUM(X25:AB25) -> 0 | AD25: =IF(H25="0-",11,IF(OR(LEFT(H25,2)="WO",H25=""),0,IF(H25<0,IF(ABS(H25)<10,11,ABS(H25)+2),H25))) -> 0 | AE25: =IF(I25="0-",11,IF(OR(LEFT(H25,2)="WO",I25="0-",I25=""),0,IF(I25<0,IF(ABS(I25)<10,11,ABS(I25)+2),I25))) -> 0 | AF25: =IF(J25="0-",11,IF(OR(LEFT(H25,2)="WO",J25="0-",J25=""),0,IF(J25<0,IF(ABS(J25)<10,11,ABS(J25)+2),J25))) -> 0 | AG25: =IF(K25="0-",11,IF(OR(LEFT(H25,2)="WO",K25="0-",K25=""),0,IF(K25<0,IF(ABS(K25)<10,11,ABS(K25)+2),K25))) -> 0 | AH25: =IF(L25="0-",11,IF(OR(LEFT(H25,2)="WO",L25="0-",L25=""),0,IF(L25<0,IF(ABS(L25)<10,11,ABS(L25)+2),L25))) -> 0 | AI25: =SUM(AD25:AH25) -> 0 | AJ25: =CONCATENATE(B25,"-",E25) -> Balog Lukáš (TTC Bělá pod Bezdězem)-Bye
B26: =C20 -> Jelínek Ondřej (TJ Aero Odolena Voda) | C26: =#REF! ->  | D26: - | E26: =C21 -> Hurný Jakub (TTC Přezletice) | F26: =C21 -> Hurný Jakub (TTC Přezletice) | H26: -4 | I26: -8 | J26: -4 | M26: =IF(H26="WO","3:0",IF(H26="WO-","0:3",CONCATENATE(V26,":",W26))) -> 0:3 | Q26: 0:1 | R26: 0:1 | S26: 0:1 | T26: 0 | U26: 0 | V26: =LEFT(Q26,1)+LEFT(R26,1)+LEFT(S26,1)+LEFT(T26,1)+LEFT(U26,1) -> 0 | W26: =RIGHT(Q26,1)+RIGHT(R26,1)+RIGHT(S26,1)+RIGHT(T26,1)+RIGHT(U26,1) -> 3 | X26: =IF(OR(LEFT(H26,2)="WO",H26="0-",H26=""),0,IF(H26<0,ABS(H26),IF(H26<10,11,H26+2))) -> 4 | Y26: =IF(OR(LEFT(H26,2)="WO",I26="0-",I26=""),0,IF(I26<0,ABS(I26),IF(I26<10,11,I26+2))) -> 8 | Z26: =IF(OR(LEFT(H26,2)="WO",J26="0-",J26=""),0,IF(J26<0,ABS(J26),IF(J26<10,11,J26+2))) -> 4 | AA26: =IF(OR(LEFT(H26,2)="WO",K26="0-",K26=""),0,IF(K26<0,ABS(K26),IF(K26<10,11,K26+2))) -> 0 | AB26: =IF(OR(LEFT(H26,2)="WO",L26="0-",L26=""),0,IF(L26<0,ABS(L26),IF(L26<10,11,L26+2))) -> 0 | AC26: =SUM(X26:AB26) -> 16 | AD26: =IF(H26="0-",11,IF(OR(LEFT(H26,2)="WO",H26=""),0,IF(H26<0,IF(ABS(H26)<10,11,ABS(H26)+2),H26))) -> 11 | AE26: =IF(I26="0-",11,IF(OR(LEFT(H26,2)="WO",I26="0-",I26=""),0,IF(I26<0,IF(ABS(I26)<10,11,ABS(I26)+2),I26))) -> 11 | AF26: =IF(J26="0-",11,IF(OR(LEFT(H26,2)="WO",J26="0-",J26=""),0,IF(J26<0,IF(ABS(J26)<10,11,ABS(J26)+2),J26))) -> 11 | AG26: =IF(K26="0-",11,IF(OR(LEFT(H26,2)="WO",K26="0-",K26=""),0,IF(K26<0,IF(ABS(K26)<10,11,ABS(K26)+2),K26))) -> 0 | AH26: =IF(L26="0-",11,IF(OR(LEFT(H26,2)="WO",L26="0-",L26=""),0,IF(L26<0,IF(ABS(L26)<10,11,ABS(L26)+2),L26))) -> 0 | AI26: =SUM(AD26:AH26) -> 33 | AJ26: =CONCATENATE(B26,"-",E26) -> Jelínek Ondřej (TJ Aero Odolena Voda)-Hurný Jakub (TTC Přezletice)
B27: II.kolo | H27: 1.set | I27: 2.set | J27: 3.set | K27: 4.set | L27: 5.set | M27: výsledek
B28: =C22 -> Bye | C28: =C22 -> Bye | D28: - | E28: =C21 -> Hurný Jakub (TTC Přezletice) | F28: =C21 -> Hurný Jakub (TTC Přezletice) | M28: =IF(H28="WO","3:0",IF(H28="WO-","0:3",CONCATENATE(V28,":",W28))) -> 0:0 | Q28: =IF(H28="",0,IF(OR(H28<0,H28="0-"),"0:1","1:0")) -> 0 | R28: 0 | S28: 0 | T28: 0 | U28: 0 | V28: =LEFT(Q28,1)+LEFT(R28,1)+LEFT(S28,1)+LEFT(T28,1)+LEFT(U28,1) -> 0 | W28: =RIGHT(Q28,1)+RIGHT(R28,1)+RIGHT(S28,1)+RIGHT(T28,1)+RIGHT(U28,1) -> 0 | X28: =IF(OR(LEFT(H28,2)="WO",H28="0-",H28=""),0,IF(H28<0,ABS(H28),IF(H28<10,11,H28+2))) -> 0 | Y28: =IF(OR(LEFT(H28,2)="WO",I28="0-",I28=""),0,IF(I28<0,ABS(I28),IF(I28<10,11,I28+2))) -> 0 | Z28: =IF(OR(LEFT(H28,2)="WO",J28="0-",J28=""),0,IF(J28<0,ABS(J28),IF(J28<10,11,J28+2))) -> 0 | AA28: =IF(OR(LEFT(H28,2)="WO",K28="0-",K28=""),0,IF(K28<0,ABS(K28),IF(K28<10,11,K28+2))) -> 0 | AB28: =IF(OR(LEFT(H28,2)="WO",L28="0-",L28=""),0,IF(L28<0,ABS(L28),IF(L28<10,11,L28+2))) -> 0 | AC28: 0 | AD28: =IF(H28="0-",11,IF(OR(LEFT(H28,2)="WO",H28=""),0,IF(H28<0,IF(ABS(H28)<10,11,ABS(H28)+2),H28))) -> 0 | AE28: =IF(I28="0-",11,IF(OR(LEFT(H28,2)="WO",I28="0-",I28=""),0,IF(I28<0,IF(ABS(I28)<10,11,ABS(I28)+2),I28))) -> 0 | AF28: =IF(J28="0-",11,IF(OR(LEFT(H28,2)="WO",J28="0-",J28=""),0,IF(J28<0,IF(ABS(J28)<10,11,ABS(J28)+2),J28))) -> 0 | AG28: =IF(K28="0-",11,IF(OR(LEFT(H28,2)="WO",K28="0-",K28=""),0,IF(K28<0,IF(ABS(K28)<10,11,ABS(K28)+2),K28))) -> 0 | AH28: =IF(L28="0-",11,IF(OR(LEFT(H28,2)="WO",L28="0-",L28=""),0,IF(L28<0,IF(ABS(L28)<10,11,ABS(L28)+2),L28))) -> 0 | AI28: 0 | AJ28: =CONCATENATE(B28,"-",E28) -> Bye-Hurný Jakub (TTC Přezletice)
B29: =C19 -> Balog Lukáš (TTC Bělá pod Bezdězem) | C29: =C20 -> Jelínek Ondřej (TJ Aero Odolena Voda) | D29: - | E29: =C20 -> Jelínek Ondřej (TJ Aero Odolena Voda) | F29: =C20 -> Jelínek Ondřej (TJ Aero Odolena Voda) | H29: 7 | I29: 8 | J29: 7 | M29: =IF(H29="WO","3:0",IF(H29="WO-","0:3",CONCATENATE(V29,":",W29))) -> 3:0 | Q29: 1:0 | R29: 1:0 | S29: 1:0 | T29: 0 | U29: 0 | V29: 3 | W29: 0 | X29: =IF(OR(LEFT(H29,2)="WO",H29="0-",H29=""),0,IF(H29<0,ABS(H29),IF(H29<10,11,H29+2))) -> 11 | Y29: =IF(OR(LEFT(H29,2)="WO",I29="0-",I29=""),0,IF(I29<0,ABS(I29),IF(I29<10,11,I29+2))) -> 11 | Z29: =IF(OR(LEFT(H29,2)="WO",J29="0-",J29=""),0,IF(J29<0,ABS(J29),IF(J29<10,11,J29+2))) -> 11 | AA29: =IF(OR(LEFT(H29,2)="WO",K29="0-",K29=""),0,IF(K29<0,ABS(K29),IF(K29<10,11,K29+2))) -> 0 | AB29: =IF(OR(LEFT(H29,2)="WO",L29="0-",L29=""),0,IF(L29<0,ABS(L29),IF(L29<10,11,L29+2))) -> 0 | AC29: 33 | AD29: =IF(H29="0-",11,IF(OR(LEFT(H29,2)="WO",H29=""),0,IF(H29<0,IF(ABS(H29)<10,11,ABS(H29)+2),H29))) -> 7 | AE29: =IF(I29="0-",11,IF(OR(LEFT(H29,2)="WO",I29="0-",I29=""),0,IF(I29<0,IF(ABS(I29)<10,11,ABS(I29)+2),I29))) -> 8 | AF29: =IF(J29="0-",11,IF(OR(LEFT(H29,2)="WO",J29="0-",J29=""),0,IF(J29<0,IF(ABS(J29)<10,11,ABS(J29)+2),J29))) -> 7 | AG29: =IF(K29="0-",11,IF(OR(LEFT(H29,2)="WO",K29="0-",K29=""),0,IF(K29<0,IF(ABS(K29)<10,11,ABS(K29)+2),K29))) -> 0 | AH29: =IF(L29="0-",11,IF(OR(LEFT(H29,2)="WO",L29="0-",L29=""),0,IF(L29<0,IF(ABS(L29)<10,11,ABS(L29)+2),L29))) -> 0 | AI29: 22 | AJ29: =CONCATENATE(B29,"-",E29) -> Balog Lukáš (TTC Bělá pod Bezdězem)-Jelínek Ondřej (TJ Aero Odolena Voda)
B30: III.kolo | H30: 1.set | I30: 2.set | J30: 3.set | K30: 4.set | L30: 5.set | M30: výsledek
B31: =C20 -> Jelínek Ondřej (TJ Aero Odolena Voda) | C31: =#REF! ->  | D31: - | E31: =C22 -> Bye | F31: =C22 -> Bye | M31: =IF(H31="WO","3:0",IF(H31="WO-","0:3",CONCATENATE(V31,":",W31))) -> 0:0 | Q31: =IF(H31="",0,IF(OR(H31<0,H31="0-"),"0:1","1:0")) -> 0 | R31: 0 | S31: 0 | T31: 0 | U31: 0 | V31: =LEFT(Q31,1)+LEFT(R31,1)+LEFT(S31,1)+LEFT(T31,1)+LEFT(U31,1) -> 0 | W31: =RIGHT(Q31,1)+RIGHT(R31,1)+RIGHT(S31,1)+RIGHT(T31,1)+RIGHT(U31,1) -> 0 | X31: =IF(OR(LEFT(H31,2)="WO",H31="0-",H31=""),0,IF(H31<0,ABS(H31),IF(H31<10,11,H31+2))) -> 0 | Y31: =IF(OR(LEFT(H31,2)="WO",I31="0-",I31=""),0,IF(I31<0,ABS(I31),IF(I31<10,11,I31+2))) -> 0 | Z31: =IF(OR(LEFT(H31,2)="WO",J31="0-",J31=""),0,IF(J31<0,ABS(J31),IF(J31<10,11,J31+2))) -> 0 | AA31: =IF(OR(LEFT(H31,2)="WO",K31="0-",K31=""),0,IF(K31<0,ABS(K31),IF(K31<10,11,K31+2))) -> 0 | AB31: =IF(OR(LEFT(H31,2)="WO",L31="0-",L31=""),0,IF(L31<0,ABS(L31),IF(L31<10,11,L31+2))) -> 0 | AC31: 0 | AD31: =IF(H31="0-",11,IF(OR(LEFT(H31,2)="WO",H31=""),0,IF(H31<0,IF(ABS(H31)<10,11,ABS(H31)+2),H31))) -> 0 | AE31: =IF(I31="0-",11,IF(OR(LEFT(H31,2)="WO",I31="0-",I31=""),0,IF(I31<0,IF(ABS(I31)<10,11,ABS(I31)+2),I31))) -> 0 | AF31: =IF(J31="0-",11,IF(OR(LEFT(H31,2)="WO",J31="0-",J31=""),0,IF(J31<0,IF(ABS(J31)<10,11,ABS(J31)+2),J31))) -> 0 | AG31: =IF(K31="0-",11,IF(OR(LEFT(H31,2)="WO",K31="0-",K31=""),0,IF(K31<0,IF(ABS(K31)<10,11,ABS(K31)+2),K31))) -> 0 | AH31: =IF(L31="0-",11,IF(OR(LEFT(H31,2)="WO",L31="0-",L31=""),0,IF(L31<0,IF(ABS(L31)<10,11,ABS(L31)+2),L31))) -> 0 | AI31: 0 | AJ31: =CONCATENATE(B31,"-",E31) -> Jelínek Ondřej (TJ Aero Odolena Voda)-Bye
B32: =C21 -> Hurný Jakub (TTC Přezletice) | C32: =#REF! ->  | D32: - | E32: =C19 -> Balog Lukáš (TTC Bělá pod Bezdězem) | F32: =C19 -> Balog Lukáš (TTC Bělá pod Bezdězem) | H32: -10 | I32: -7 | J32: -8 | M32: =IF(H32="WO","3:0",IF(H32="WO-","0:3",CONCATENATE(V32,":",W32))) -> 0:3 | Q32: 0:1 | R32: 0:1 | S32: 0:1 | T32: 0 | U32: 0 | V32: 0 | W32: 3 | X32: =IF(OR(LEFT(H32,2)="WO",H32="0-",H32=""),0,IF(H32<0,ABS(H32),IF(H32<10,11,H32+2))) -> 10 | Y32: =IF(OR(LEFT(H32,2)="WO",I32="0-",I32=""),0,IF(I32<0,ABS(I32),IF(I32<10,11,I32+2))) -> 7 | Z32: =IF(OR(LEFT(H32,2)="WO",J32="0-",J32=""),0,IF(J32<0,ABS(J32),IF(J32<10,11,J32+2))) -> 8 | AA32: =IF(OR(LEFT(H32,2)="WO",K32="0-",K32=""),0,IF(K32<0,ABS(K32),IF(K32<10,11,K32+2))) -> 0 | AB32: =IF(OR(LEFT(H32,2)="WO",L32="0-",L32=""),0,IF(L32<0,ABS(L32),IF(L32<10,11,L32+2))) -> 0 | AC32: 25 | AD32: =IF(H32="0-",11,IF(OR(LEFT(H32,2)="WO",H32=""),0,IF(H32<0,IF(ABS(H32)<10,11,ABS(H32)+2),H32))) -> 12 | AE32: =IF(I32="0-",11,IF(OR(LEFT(H32,2)="WO",I32="0-",I32=""),0,IF(I32<0,IF(ABS(I32)<10,11,ABS(I32)+2),I32))) -> 11 | AF32: =IF(J32="0-",11,IF(OR(LEFT(H32,2)="WO",J32="0-",J32=""),0,IF(J32<0,IF(ABS(J32)<10,11,ABS(J32)+2),J32))) -> 11 | AG32: =IF(K32="0-",11,IF(OR(LEFT(H32,2)="WO",K32="0-",K32=""),0,IF(K32<0,IF(ABS(K32)<10,11,ABS(K32)+2),K32))) -> 0 | AH32: =IF(L32="0-",11,IF(OR(LEFT(H32,2)="WO",L32="0-",L32=""),0,IF(L32<0,IF(ABS(L32)<10,11,ABS(L32)+2),L32))) -> 0 | AI32: 34 | AJ32: =CONCATENATE(B32,"-",E32) -> Hurný Jakub (TTC Přezletice)-Balog Lukáš (TTC Bělá pod Bezdězem)
B34: Skupina C | E34: =C35 -> Baladrán Denis (TJ Sokol Lysá nad Labem) | F34: =C36 -> Matyáš Andrej (Sokol Netvořice) | G34: =C37 -> Mráz Jáchym (TTC Brandýs nad Labem) | H34: =C38 -> Bye | I34: Skóre | J34: Body | K34: Míčky | L34: Pořadí | M34: Pavouk
B35: 1 | C35: Baladrán Denis (TJ Sokol Lysá nad Labem) | F35: =IF(OR(LEFT(B45,3)="bye",LEFT(E45,3)="bye"),"0:0",M45) -> 3:0 | G35: =CONCATENATE(RIGHT(E37,1),MID(E37,2,1),LEFT(E37,1)) -> 3:1 | H35: =IF(OR(LEFT(B41,3)="bye",LEFT(E41,3)="bye"),"0:0",M41) -> 0:0 | I35: =CONCATENATE(LEFT(F35,1)+LEFT(G35,1)+LEFT(H35,1),":",RIGHT(F35,1)+RIGHT(G35,1)+RIGHT(H35,1)) -> 6:1 | J35: =IF(LEFT(C35,3)="bye",0,IF(OR(F35="0:0",H45="WO-"),0,IF(LEFT(F35,1)="3",2,1))+IF(OR(G35="0:0",H48="WO"),0,IF(LEFT(G35,1)="3",2,1))+IF(OR(H35="0:0",H41="WO-"),0,IF(LEFT(H35,1)="3",2,1))) -> 4 | K35: =IF(LEFT(C35,3)="bye",0,CONCATENATE(AC41+AC45+AI48,":",AI41+AI45+AC48)) -> 68:42 | L35: 1. | M35: C1
B36: 2 | C36: Matyáš Andrej (Sokol Netvořice) | E36: =CONCATENATE(RIGHT(F35,1),MID(F35,2,1),LEFT(F35,1)) -> 0:3 | G36: =IF(OR(LEFT(B42,3)="bye",LEFT(E42,3)="bye"),"0:0",M42) -> 0:3 | H36: =IF(OR(LEFT(B47,3)="bye",LEFT(E47,3)="bye"),"0:0",M47) -> 0:0 | I36: =CONCATENATE(LEFT(E36,1)+LEFT(G36,1)+LEFT(H36,1),":",RIGHT(E36,1)+RIGHT(G36,1)+RIGHT(H36,1)) -> 0:6 | J36: =IF(LEFT(C36,3)="bye",0,IF(OR(E36="0:0",H45="WO"),0,IF(LEFT(E36,1)="3",2,1))+IF(OR(G36="0:0",H42="WO-"),0,IF(LEFT(G36,1)="3",2,1))+IF(OR(H36="0:0",H47="WO-"),0,IF(LEFT(H36,1)="3",2,1))) -> 2 | K36: =IF(LEFT(C36,3)="bye",0,CONCATENATE(AC42+AI45+AC47,":",AI42+AC45+AI47)) -> 25:66 | L36: 3. | M36: C2
B37: 3 | C37: Mráz Jáchym (TTC Brandýs nad Labem) | E37: =IF(OR(LEFT(B48,3)="bye",LEFT(E48,3)="bye"),"0:0",M48) -> 1:3 | F37: =CONCATENATE(RIGHT(G36,1),MID(G36,2,1),LEFT(G36,1)) -> 3:0 | H37: =CONCATENATE(RIGHT(G38,1),MID(G38,2,1),LEFT(G38,1)) -> 0:0 | I37: =CONCATENATE(LEFT(E37,1)+LEFT(F37,1)+LEFT(H37,1),":",RIGHT(E37,1)+RIGHT(F37,1)+RIGHT(H37,1)) -> 4:3 | J37: =IF(LEFT(C37,3)="bye",0,IF(OR(E37="0:0",H48="WO-"),0,IF(LEFT(E37,1)="3",2,1))+IF(OR(F37="0:0",H42="WO"),0,IF(LEFT(F37,1)="3",2,1))+IF(OR(H37="0:0",H44="WO"),0,IF(LEFT(H37,1)="3",2,1))) -> 3 | K37: =IF(LEFT(C37,3)="bye",0,CONCATENATE(AI42+AI44+AC48,":",AC42+AC44+AI48)) -> 63:48 | L37: 2. | M37: C3
B38: 4 | C38: Bye | E38: =CONCATENATE(RIGHT(H35,1),MID(H35,2,1),LEFT(H35,1)) -> 0:0 | F38: =CONCATENATE(RIGHT(H36,1),MID(H36,2,1),LEFT(H36,1)) -> 0:0 | G38: =IF(OR(LEFT(B44,3)="bye",LEFT(E44,3)="bye"),"0:0",M44) -> 0:0 | I38: =CONCATENATE(LEFT(E38,1)+LEFT(F38,1)+LEFT(G38,1),":",RIGHT(E38,1)+RIGHT(F38,1)+RIGHT(G38,1)) -> 0:0 | J38: =IF(LEFT(C38,3)="bye",0,IF(OR(E38="0:0",H41="WO"),0,IF(LEFT(E38,1)="3",2,1))+IF(OR(F38="0:0",H47="WO"),0,IF(LEFT(F38,1)="3",2,1))+IF(OR(G38="0:0",H44="WO-"),0,IF(LEFT(G38,1)="3",2,1))) -> 0 | K38: =IF(LEFT(C37,3)="bye",0,CONCATENATE(AI41+AC44+AI47,":",AC41+AI44+AC47)) -> 0:0 | M38: C4
B40: I.kolo | H40: 1.set | I40: 2.set | J40: 3.set | K40: 4.set | L40: 5.set | M40: výsledek
B41: =C35 -> Baladrán Denis (TJ Sokol Lysá nad Labem) | D41: - | E41: =C38 -> Bye | M41: =IF(H41="WO","3:0",IF(H41="WO-","0:3",CONCATENATE(V41,":",W41))) -> 0:0 | Q41: =IF(H41="",0,IF(OR(H41<0,H41="0-"),"0:1","1:0")) -> 0 | R41: 0 | S41: 0 | T41: 0 | U41: 0 | V41: =LEFT(Q41,1)+LEFT(R41,1)+LEFT(S41,1)+LEFT(T41,1)+LEFT(U41,1) -> 0 | W41: =RIGHT(Q41,1)+RIGHT(R41,1)+RIGHT(S41,1)+RIGHT(T41,1)+RIGHT(U41,1) -> 0 | X41: =IF(OR(LEFT(H41,2)="WO",H41="0-",H41=""),0,IF(H41<0,ABS(H41),IF(H41<10,11,H41+2))) -> 0 | Y41: =IF(OR(LEFT(H41,2)="WO",I41="0-",I41=""),0,IF(I41<0,ABS(I41),IF(I41<10,11,I41+2))) -> 0 | Z41: =IF(OR(LEFT(H41,2)="WO",J41="0-",J41=""),0,IF(J41<0,ABS(J41),IF(J41<10,11,J41+2))) -> 0 | AA41: =IF(OR(LEFT(H41,2)="WO",K41="0-",K41=""),0,IF(K41<0,ABS(K41),IF(K41<10,11,K41+2))) -> 0 | AB41: =IF(OR(LEFT(H41,2)="WO",L41="0-",L41=""),0,IF(L41<0,ABS(L41),IF(L41<10,11,L41+2))) -> 0 | AC41: =SUM(X41:AB41) -> 0 | AD41: =IF(H41="0-",11,IF(OR(LEFT(H41,2)="WO",H41=""),0,IF(H41<0,IF(ABS(H41)<10,11,ABS(H41)+2),H41))) -> 0 | AE41: =IF(I41="0-",11,IF(OR(LEFT(H41,2)="WO",I41="0-",I41=""),0,IF(I41<0,IF(ABS(I41)<10,11,ABS(I41)+2),I41))) -> 0 | AF41: =IF(J41="0-",11,IF(OR(LEFT(H41,2)="WO",J41="0-",J41=""),0,IF(J41<0,IF(ABS(J41)<10,11,ABS(J41)+2),J41))) -> 0 | AG41: =IF(K41="0-",11,IF(OR(LEFT(H41,2)="WO",K41="0-",K41=""),0,IF(K41<0,IF(ABS(K41)<10,11,ABS(K41)+2),K41))) -> 0 | AH41: =IF(L41="0-",11,IF(OR(LEFT(H41,2)="WO",L41="0-",L41=""),0,IF(L41<0,IF(ABS(L41)<10,11,ABS(L41)+2),L41))) -> 0 | AI41: =SUM(AD41:AH41) -> 0 | AJ41: =CONCATENATE(B41,"-",E41) -> Baladrán Denis (TJ Sokol Lysá nad Labem)-Bye
B42: =C36 -> Matyáš Andrej (Sokol Netvořice) | C42: =#REF! ->  | D42: - | E42: =C37 -> Mráz Jáchym (TTC Brandýs nad Labem) | F42: =C37 -> Mráz Jáchym (TTC Brandýs nad Labem) | H42: -7 | I42: -2 | J42: -4 | M42: =IF(H42="WO","3:0",IF(H42="WO-","0:3",CONCATENATE(V42,":",W42))) -> 0:3 | Q42: 0:1 | R42: 0:1 | S42: 0:1 | T42: 0 | U42: 0 | V42: =LEFT(Q42,1)+LEFT(R42,1)+LEFT(S42,1)+LEFT(T42,1)+LEFT(U42,1) -> 0 | W42: =RIGHT(Q42,1)+RIGHT(R42,1)+RIGHT(S42,1)+RIGHT(T42,1)+RIGHT(U42,1) -> 3 | X42: =IF(OR(LEFT(H42,2)="WO",H42="0-",H42=""),0,IF(H42<0,ABS(H42),IF(H42<10,11,H42+2))) -> 7 | Y42: =IF(OR(LEFT(H42,2)="WO",I42="0-",I42=""),0,IF(I42<0,ABS(I42),IF(I42<10,11,I42+2))) -> 2 | Z42: =IF(OR(LEFT(H42,2)="WO",J42="0-",J42=""),0,IF(J42<0,ABS(J42),IF(J42<10,11,J42+2))) -> 4 | AA42: =IF(OR(LEFT(H42,2)="WO",K42="0-",K42=""),0,IF(K42<0,ABS(K42),IF(K42<10,11,K42+2))) -> 0 | AB42: =IF(OR(LEFT(H42,2)="WO",L42="0-",L42=""),0,IF(L42<0,ABS(L42),IF(L42<10,11,L42+2))) -> 0 | AC42: =SUM(X42:AB42) -> 13 | AD42: =IF(H42="0-",11,IF(OR(LEFT(H42,2)="WO",H42=""),0,IF(H42<0,IF(ABS(H42)<10,11,ABS(H42)+2),H42))) -> 11 | AE42: =IF(I42="0-",11,IF(OR(LEFT(H42,2)="WO",I42="0-",I42=""),0,IF(I42<0,IF(ABS(I42)<10,11,ABS(I42)+2),I42))) -> 11 | AF42: =IF(J42="0-",11,IF(OR(LEFT(H42,2)="WO",J42="0-",J42=""),0,IF(J42<0,IF(ABS(J42)<10,11,ABS(J42)+2),J42))) -> 11 | AG42: =IF(K42="0-",11,IF(OR(LEFT(H42,2)="WO",K42="0-",K42=""),0,IF(K42<0,IF(ABS(K42)<10,11,ABS(K42)+2),K42))) -> 0 | AH42: =IF(L42="0-",11,IF(OR(LEFT(H42,2)="WO",L42="0-",L42=""),0,IF(L42<0,IF(ABS(L42)<10,11,ABS(L42)+2),L42))) -> 0 | AI42: =SUM(AD42:AH42) -> 33 | AJ42: =CONCATENATE(B42,"-",E42) -> Matyáš Andrej (Sokol Netvořice)-Mráz Jáchym (TTC Brandýs nad Labem)
B43: II.kolo | H43: 1.set | I43: 2.set | J43: 3.set | K43: 4.set | L43: 5.set | M43: výsledek
B44: =C38 -> Bye | C44: =C38 -> Bye | D44: - | E44: =C37 -> Mráz Jáchym (TTC Brandýs nad Labem) | F44: =C37 -> Mráz Jáchym (TTC Brandýs nad Labem) | M44: =IF(H44="WO","3:0",IF(H44="WO-","0:3",CONCATENATE(V44,":",W44))) -> 0:0 | Q44: =IF(H44="",0,IF(OR(H44<0,H44="0-"),"0:1","1:0")) -> 0 | R44: 0 | S44: 0 | T44: 0 | U44: 0 | V44: =LEFT(Q44,1)+LEFT(R44,1)+LEFT(S44,1)+LEFT(T44,1)+LEFT(U44,1) -> 0 | W44: =RIGHT(Q44,1)+RIGHT(R44,1)+RIGHT(S44,1)+RIGHT(T44,1)+RIGHT(U44,1) -> 0 | X44: =IF(OR(LEFT(H44,2)="WO",H44="0-",H44=""),0,IF(H44<0,ABS(H44),IF(H44<10,11,H44+2))) -> 0 | Y44: =IF(OR(LEFT(H44,2)="WO",I44="0-",I44=""),0,IF(I44<0,ABS(I44),IF(I44<10,11,I44+2))) -> 0 | Z44: =IF(OR(LEFT(H44,2)="WO",J44="0-",J44=""),0,IF(J44<0,ABS(J44),IF(J44<10,11,J44+2))) -> 0 | AA44: =IF(OR(LEFT(H44,2)="WO",K44="0-",K44=""),0,IF(K44<0,ABS(K44),IF(K44<10,11,K44+2))) -> 0 | AB44: =IF(OR(LEFT(H44,2)="WO",L44="0-",L44=""),0,IF(L44<0,ABS(L44),IF(L44<10,11,L44+2))) -> 0 | AC44: 0 | AD44: =IF(H44="0-",11,IF(OR(LEFT(H44,2)="WO",H44=""),0,IF(H44<0,IF(ABS(H44)<10,11,ABS(H44)+2),H44))) -> 0 | AE44: =IF(I44="0-",11,IF(OR(LEFT(H44,2)="WO",I44="0-",I44=""),0,IF(I44<0,IF(ABS(I44)<10,11,ABS(I44)+2),I44))) -> 0 | AF44: =IF(J44="0-",11,IF(OR(LEFT(H44,2)="WO",J44="0-",J44=""),0,IF(J44<0,IF(ABS(J44)<10,11,ABS(J44)+2),J44))) -> 0 | AG44: =IF(K44="0-",11,IF(OR(LEFT(H44,2)="WO",K44="0-",K44=""),0,IF(K44<0,IF(ABS(K44)<10,11,ABS(K44)+2),K44))) -> 0 | AH44: =IF(L44="0-",11,IF(OR(LEFT(H44,2)="WO",L44="0-",L44=""),0,IF(L44<0,IF(ABS(L44)<10,11,ABS(L44)+2),L44))) -> 0 | AI44: 0 | AJ44: =CONCATENATE(B44,"-",E44) -> Bye-Mráz Jáchym (TTC Brandýs nad Labem)
B45: =C35 -> Baladrán Denis (TJ Sokol Lysá nad Labem) | C45: =C36 -> Matyáš Andrej (Sokol Netvořice) | D45: - | E45: =C36 -> Matyáš Andrej (Sokol Netvořice) | F45: =C36 -> Matyáš Andrej (Sokol Netvořice) | H45: 2 | I45: 2 | J45: 8 | M45: =IF(H45="WO","3:0",IF(H45="WO-","0:3",CONCATENATE(V45,":",W45))) -> 3:0 | Q45: 1:0 | R45: 1:0 | S45: 1:0 | T45: 0 | U45: 0 | V45: 3 | W45: 0 | X45: =IF(OR(LEFT(H45,2)="WO",H45="0-",H45=""),0,IF(H45<0,ABS(H45),IF(H45<10,11,H45+2))) -> 11 | Y45: =IF(OR(LEFT(H45,2)="WO",I45="0-",I45=""),0,IF(I45<0,ABS(I45),IF(I45<10,11,I45+2))) -> 11 | Z45: =IF(OR(LEFT(H45,2)="WO",J45="0-",J45=""),0,IF(J45<0,ABS(J45),IF(J45<10,11,J45+2))) -> 11 | AA45: =IF(OR(LEFT(H45,2)="WO",K45="0-",K45=""),0,IF(K45<0,ABS(K45),IF(K45<10,11,K45+2))) -> 0 | AB45: =IF(OR(LEFT(H45,2)="WO",L45="0-",L45=""),0,IF(L45<0,ABS(L45),IF(L45<10,11,L45+2))) -> 0 | AC45: 33 | AD45: =IF(H45="0-",11,IF(OR(LEFT(H45,2)="WO",H45=""),0,IF(H45<0,IF(ABS(H45)<10,11,ABS(H45)+2),H45))) -> 2 | AE45: =IF(I45="0-",11,IF(OR(LEFT(H45,2)="WO",I45="0-",I45=""),0,IF(I45<0,IF(ABS(I45)<10,11,ABS(I45)+2),I45))) -> 2 | AF45: =IF(J45="0-",11,IF(OR(LEFT(H45,2)="WO",J45="0-",J45=""),0,IF(J45<0,IF(ABS(J45)<10,11,ABS(J45)+2),J45))) -> 8 | AG45: =IF(K45="0-",11,IF(OR(LEFT(H45,2)="WO",K45="0-",K45=""),0,IF(K45<0,IF(ABS(K45)<10,11,ABS(K45)+2),K45))) -> 0 | AH45: =IF(L45="0-",11,IF(OR(LEFT(H45,2)="WO",L45="0-",L45=""),0,IF(L45<0,IF(ABS(L45)<10,11,ABS(L45)+2),L45))) -> 0 | AI45: 12 | AJ45: =CONCATENATE(B45,"-",E45) -> Baladrán Denis (TJ Sokol Lysá nad Labem)-Matyáš Andrej (Sokol Netvořice)
B46: III.kolo | H46: 1.set | I46: 2.set | J46: 3.set | K46: 4.set | L46: 5.set | M46: výsledek
B47: =C36 -> Matyáš Andrej (Sokol Netvořice) | C47: =#REF! ->  | D47: - | E47: =C38 -> Bye | F47: =C38 -> Bye | M47: =IF(H47="WO","3:0",IF(H47="WO-","0:3",CONCATENATE(V47,":",W47))) -> 0:0 | Q47: =IF(H47="",0,IF(OR(H47<0,H47="0-"),"0:1","1:0")) -> 0 | R47: 0 | S47: 0 | T47: 0 | U47: 0 | V47: =LEFT(Q47,1)+LEFT(R47,1)+LEFT(S47,1)+LEFT(T47,1)+LEFT(U47,1) -> 0 | W47: =RIGHT(Q47,1)+RIGHT(R47,1)+RIGHT(S47,1)+RIGHT(T47,1)+RIGHT(U47,1) -> 0 | X47: =IF(OR(LEFT(H47,2)="WO",H47="0-",H47=""),0,IF(H47<0,ABS(H47),IF(H47<10,11,H47+2))) -> 0 | Y47: =IF(OR(LEFT(H47,2)="WO",I47="0-",I47=""),0,IF(I47<0,ABS(I47),IF(I47<10,11,I47+2))) -> 0 | Z47: =IF(OR(LEFT(H47,2)="WO",J47="0-",J47=""),0,IF(J47<0,ABS(J47),IF(J47<10,11,J47+2))) -> 0 | AA47: =IF(OR(LEFT(H47,2)="WO",K47="0-",K47=""),0,IF(K47<0,ABS(K47),IF(K47<10,11,K47+2))) -> 0 | AB47: =IF(OR(LEFT(H47,2)="WO",L47="0-",L47=""),0,IF(L47<0,ABS(L47),IF(L47<10,11,L47+2))) -> 0 | AC47: 0 | AD47: =IF(H47="0-",11,IF(OR(LEFT(H47,2)="WO",H47=""),0,IF(H47<0,IF(ABS(H47)<10,11,ABS(H47)+2),H47))) -> 0 | AE47: =IF(I47="0-",11,IF(OR(LEFT(H47,2)="WO",I47="0-",I47=""),0,IF(I47<0,IF(ABS(I47)<10,11,ABS(I47)+2),I47))) -> 0 | AF47: =IF(J47="0-",11,IF(OR(LEFT(H47,2)="WO",J47="0-",J47=""),0,IF(J47<0,IF(ABS(J47)<10,11,ABS(J47)+2),J47))) -> 0 | AG47: =IF(K47="0-",11,IF(OR(LEFT(H47,2)="WO",K47="0-",K47=""),0,IF(K47<0,IF(ABS(K47)<10,11,ABS(K47)+2),K47))) -> 0 | AH47: =IF(L47="0-",11,IF(OR(LEFT(H47,2)="WO",L47="0-",L47=""),0,IF(L47<0,IF(ABS(L47)<10,11,ABS(L47)+2),L47))) -> 0 | AI47: 0 | AJ47: =CONCATENATE(B47,"-",E47) -> Matyáš Andrej (Sokol Netvořice)-Bye
B48: =C37 -> Mráz Jáchym (TTC Brandýs nad Labem) | C48: =#REF! ->  | D48: - | E48: =C35 -> Baladrán Denis (TJ Sokol Lysá nad Labem) | F48: =C35 -> Baladrán Denis (TJ Sokol Lysá nad Labem) | H48: 2 | I48: -7 | J48: -6 | K48: -6 | M48: =IF(H48="WO","3:0",IF(H48="WO-","0:3",CONCATENATE(V48,":",W48))) -> 1:3 | Q48: 1:0 | R48: 0:1 | S48: 0:1 | T48: 0:1 | U48: 0 | V48: 1 | W48: 3 | X48: =IF(OR(LEFT(H48,2)="WO",H48="0-",H48=""),0,IF(H48<0,ABS(H48),IF(H48<10,11,H48+2))) -> 11 | Y48: =IF(OR(LEFT(H48,2)="WO",I48="0-",I48=""),0,IF(I48<0,ABS(I48),IF(I48<10,11,I48+2))) -> 7 | Z48: =IF(OR(LEFT(H48,2)="WO",J48="0-",J48=""),0,IF(J48<0,ABS(J48),IF(J48<10,11,J48+2))) -> 6 | AA48: =IF(OR(LEFT(H48,2)="WO",K48="0-",K48=""),0,IF(K48<0,ABS(K48),IF(K48<10,11,K48+2))) -> 6 | AB48: =IF(OR(LEFT(H48,2)="WO",L48="0-",L48=""),0,IF(L48<0,ABS(L48),IF(L48<10,11,L48+2))) -> 0 | AC48: 30 | AD48: =IF(H48="0-",11,IF(OR(LEFT(H48,2)="WO",H48=""),0,IF(H48<0,IF(ABS(H48)<10,11,ABS(H48)+2),H48))) -> 2 | AE48: =IF(I48="0-",11,IF(OR(LEFT(H48,2)="WO",I48="0-",I48=""),0,IF(I48<0,IF(ABS(I48)<10,11,ABS(I48)+2),I48))) -> 11 | AF48: =IF(J48="0-",11,IF(OR(LEFT(H48,2)="WO",J48="0-",J48=""),0,IF(J48<0,IF(ABS(J48)<10,11,ABS(J48)+2),J48))) -> 11 | AG48: =IF(K48="0-",11,IF(OR(LEFT(H48,2)="WO",K48="0-",K48=""),0,IF(K48<0,IF(ABS(K48)<10,11,ABS(K48)+2),K48))) -> 11 | AH48: =IF(L48="0-",11,IF(OR(LEFT(H48,2)="WO",L48="0-",L48=""),0,IF(L48<0,IF(ABS(L48)<10,11,ABS(L48)+2),L48))) -> 0 | AI48: 35 | AJ48: =CONCATENATE(B48,"-",E48) -> Mráz Jáchym (TTC Brandýs nad Labem)-Baladrán Denis (TJ Sokol Lysá nad Labem)
B51: Skupina D | E51: =C52 -> Fric Tomáš (STC Slaný) | F51: =C53 -> Onderčanin Matouš (Sokol Netvořice) | G51: =C54 -> Stibor Dominik (TJ Tatran Sedlčany) | H51: =C55 -> Bye | I51: Skóre | J51: Body | K51: Míčky | L51: Pořadí | M51: Pavouk
B52: 1 | C52: Fric Tomáš (STC Slaný) | F52: =IF(OR(LEFT(B62,3)="bye",LEFT(E62,3)="bye"),"0:0",M62) -> 3:0 | G52: =CONCATENATE(RIGHT(E54,1),MID(E54,2,1),LEFT(E54,1)) -> 3:0 | H52: =IF(OR(LEFT(B58,3)="bye",LEFT(E58,3)="bye"),"0:0",M58) -> 0:0 | I52: =CONCATENATE(LEFT(F52,1)+LEFT(G52,1)+LEFT(H52,1),":",RIGHT(F52,1)+RIGHT(G52,1)+RIGHT(H52,1)) -> 6:0 | J52: =IF(LEFT(C52,3)="bye",0,IF(OR(F52="0:0",H62="WO-"),0,IF(LEFT(F52,1)="3",2,1))+IF(OR(G52="0:0",H65="WO"),0,IF(LEFT(G52,1)="3",2,1))+IF(OR(H52="0:0",H58="WO-"),0,IF(LEFT(H52,1)="3",2,1))) -> 4 | K52: =IF(LEFT(C52,3)="bye",0,CONCATENATE(AC58+AC62+AI65,":",AI58+AI62+AC65)) -> 67:43 | L52: 1. | M52: D1
B53: 2 | C53: Onderčanin Matouš (Sokol Netvořice) | E53: =CONCATENATE(RIGHT(F52,1),MID(F52,2,1),LEFT(F52,1)) -> 0:3 | G53: =IF(OR(LEFT(B59,3)="bye",LEFT(E59,3)="bye"),"0:0",M59) -> 3:1 | H53: =IF(OR(LEFT(B64,3)="bye",LEFT(E64,3)="bye"),"0:0",M64) -> 0:0 | I53: =CONCATENATE(LEFT(E53,1)+LEFT(G53,1)+LEFT(H53,1),":",RIGHT(E53,1)+RIGHT(G53,1)+RIGHT(H53,1)) -> 3:4 | J53: =IF(LEFT(C53,3)="bye",0,IF(OR(E53="0:0",H62="WO"),0,IF(LEFT(E53,1)="3",2,1))+IF(OR(G53="0:0",H59="WO-"),0,IF(LEFT(G53,1)="3",2,1))+IF(OR(H53="0:0",H64="WO-"),0,IF(LEFT(H53,1)="3",2,1))) -> 3 | K53: =IF(LEFT(C53,3)="bye",0,CONCATENATE(AC59+AI62+AC64,":",AI59+AC62+AI64)) -> 52:56 | L53: 2. | M53: D2
B54: 3 | C54: Stibor Dominik (TJ Tatran Sedlčany) | E54: =IF(OR(LEFT(B65,3)="bye",LEFT(E65,3)="bye"),"0:0",M65) -> 0:3 | F54: =CONCATENATE(RIGHT(G53,1),MID(G53,2,1),LEFT(G53,1)) -> 1:3 | H54: =CONCATENATE(RIGHT(G55,1),MID(G55,2,1),LEFT(G55,1)) -> 0:0 | I54: =CONCATENATE(LEFT(E54,1)+LEFT(F54,1)+LEFT(H54,1),":",RIGHT(E54,1)+RIGHT(F54,1)+RIGHT(H54,1)) -> 1:6 | J54: =IF(LEFT(C54,3)="bye",0,IF(OR(E54="0:0",H65="WO-"),0,IF(LEFT(E54,1)="3",2,1))+IF(OR(F54="0:0",H59="WO"),0,IF(LEFT(F54,1)="3",2,1))+IF(OR(H54="0:0",H61="WO"),0,IF(LEFT(H54,1)="3",2,1))) -> 2 | K54: =IF(LEFT(C54,3)="bye",0,CONCATENATE(AI59+AI61+AC65,":",AC59+AC61+AI65)) -> 49:69 | L54: 3. | M54: D3
B55: 4 | C55: Bye | E55: =CONCATENATE(RIGHT(H52,1),MID(H52,2,1),LEFT(H52,1)) -> 0:0 | F55: =CONCATENATE(RIGHT(H53,1),MID(H53,2,1),LEFT(H53,1)) -> 0:0 | G55: =IF(OR(LEFT(B61,3)="bye",LEFT(E61,3)="bye"),"0:0",M61) -> 0:0 | I55: =CONCATENATE(LEFT(E55,1)+LEFT(F55,1)+LEFT(G55,1),":",RIGHT(E55,1)+RIGHT(F55,1)+RIGHT(G55,1)) -> 0:0 | J55: =IF(LEFT(C55,3)="bye",0,IF(OR(E55="0:0",H58="WO"),0,IF(LEFT(E55,1)="3",2,1))+IF(OR(F55="0:0",H64="WO"),0,IF(LEFT(F55,1)="3",2,1))+IF(OR(G55="0:0",H61="WO-"),0,IF(LEFT(G55,1)="3",2,1))) -> 0 | K55: =IF(LEFT(C54,3)="bye",0,CONCATENATE(AI58+AC61+AI64,":",AC58+AI61+AC64)) -> 0:0 | M55: D4
B57: I.kolo | H57: 1.set | I57: 2.set | J57: 3.set | K57: 4.set | L57: 5.set | M57: výsledek
B58: =C52 -> Fric Tomáš (STC Slaný) | D58: - | E58: =C55 -> Bye | M58: =IF(H58="WO","3:0",IF(H58="WO-","0:3",CONCATENATE(V58,":",W58))) -> 0:0 | Q58: =IF(H58="",0,IF(OR(H58<0,H58="0-"),"0:1","1:0")) -> 0 | R58: 0 | S58: 0 | T58: 0 | U58: 0 | V58: =LEFT(Q58,1)+LEFT(R58,1)+LEFT(S58,1)+LEFT(T58,1)+LEFT(U58,1) -> 0 | W58: =RIGHT(Q58,1)+RIGHT(R58,1)+RIGHT(S58,1)+RIGHT(T58,1)+RIGHT(U58,1) -> 0 | X58: =IF(OR(LEFT(H58,2)="WO",H58="0-",H58=""),0,IF(H58<0,ABS(H58),IF(H58<10,11,H58+2))) -> 0 | Y58: =IF(OR(LEFT(H58,2)="WO",I58="0-",I58=""),0,IF(I58<0,ABS(I58),IF(I58<10,11,I58+2))) -> 0 | Z58: =IF(OR(LEFT(H58,2)="WO",J58="0-",J58=""),0,IF(J58<0,ABS(J58),IF(J58<10,11,J58+2))) -> 0 | AA58: =IF(OR(LEFT(H58,2)="WO",K58="0-",K58=""),0,IF(K58<0,ABS(K58),IF(K58<10,11,K58+2))) -> 0 | AB58: =IF(OR(LEFT(H58,2)="WO",L58="0-",L58=""),0,IF(L58<0,ABS(L58),IF(L58<10,11,L58+2))) -> 0 | AC58: =SUM(X58:AB58) -> 0 | AD58: =IF(H58="0-",11,IF(OR(LEFT(H58,2)="WO",H58=""),0,IF(H58<0,IF(ABS(H58)<10,11,ABS(H58)+2),H58))) -> 0 | AE58: =IF(I58="0-",11,IF(OR(LEFT(H58,2)="WO",I58="0-",I58=""),0,IF(I58<0,IF(ABS(I58)<10,11,ABS(I58)+2),I58))) -> 0 | AF58: =IF(J58="0-",11,IF(OR(LEFT(H58,2)="WO",J58="0-",J58=""),0,IF(J58<0,IF(ABS(J58)<10,11,ABS(J58)+2),J58))) -> 0 | AG58: =IF(K58="0-",11,IF(OR(LEFT(H58,2)="WO",K58="0-",K58=""),0,IF(K58<0,IF(ABS(K58)<10,11,ABS(K58)+2),K58))) -> 0 | AH58: =IF(L58="0-",11,IF(OR(LEFT(H58,2)="WO",L58="0-",L58=""),0,IF(L58<0,IF(ABS(L58)<10,11,ABS(L58)+2),L58))) -> 0 | AI58: =SUM(AD58:AH58) -> 0 | AJ58: =CONCATENATE(B58,"-",E58) -> Fric Tomáš (STC Slaný)-Bye
B59: =C53 -> Onderčanin Matouš (Sokol Netvořice) | C59: =#REF! ->  | D59: - | E59: =C54 -> Stibor Dominik (TJ Tatran Sedlčany) | F59: =C54 -> Stibor Dominik (TJ Tatran Sedlčany) | H59: -2 | I59: 3 | J59: 6 | K59: 3 | M59: =IF(H59="WO","3:0",IF(H59="WO-","0:3",CONCATENATE(V59,":",W59))) -> 3:1 | Q59: 0:1 | R59: 1:0 | S59: 1:0 | T59: 1:0 | U59: 0 | V59: =LEFT(Q59,1)+LEFT(R59,1)+LEFT(S59,1)+LEFT(T59,1)+LEFT(U59,1) -> 3 | W59: =RIGHT(Q59,1)+RIGHT(R59,1)+RIGHT(S59,1)+RIGHT(T59,1)+RIGHT(U59,1) -> 1 | X59: =IF(OR(LEFT(H59,2)="WO",H59="0-",H59=""),0,IF(H59<0,ABS(H59),IF(H59<10,11,H59+2))) -> 2 | Y59: =IF(OR(LEFT(H59,2)="WO",I59="0-",I59=""),0,IF(I59<0,ABS(I59),IF(I59<10,11,I59+2))) -> 11 | Z59: =IF(OR(LEFT(H59,2)="WO",J59="0-",J59=""),0,IF(J59<0,ABS(J59),IF(J59<10,11,J59+2))) -> 11 | AA59: =IF(OR(LEFT(H59,2)="WO",K59="0-",K59=""),0,IF(K59<0,ABS(K59),IF(K59<10,11,K59+2))) -> 11 | AB59: =IF(OR(LEFT(H59,2)="WO",L59="0-",L59=""),0,IF(L59<0,ABS(L59),IF(L59<10,11,L59+2))) -> 0 | AC59: =SUM(X59:AB59) -> 35 | AD59: =IF(H59="0-",11,IF(OR(LEFT(H59,2)="WO",H59=""),0,IF(H59<0,IF(ABS(H59)<10,11,ABS(H59)+2),H59))) -> 11 | AE59: =IF(I59="0-",11,IF(OR(LEFT(H59,2)="WO",I59="0-",I59=""),0,IF(I59<0,IF(ABS(I59)<10,11,ABS(I59)+2),I59))) -> 3 | AF59: =IF(J59="0-",11,IF(OR(LEFT(H59,2)="WO",J59="0-",J59=""),0,IF(J59<0,IF(ABS(J59)<10,11,ABS(J59)+2),J59))) -> 6 | AG59: =IF(K59="0-",11,IF(OR(LEFT(H59,2)="WO",K59="0-",K59=""),0,IF(K59<0,IF(ABS(K59)<10,11,ABS(K59)+2),K59))) -> 3 | AH59: =IF(L59="0-",11,IF(OR(LEFT(H59,2)="WO",L59="0-",L59=""),0,IF(L59<0,IF(ABS(L59)<10,11,ABS(L59)+2),L59))) -> 0 | AI59: =SUM(AD59:AH59) -> 23 | AJ59: =CONCATENATE(B59,"-",E59) -> Onderčanin Matouš (Sokol Netvořice)-Stibor Dominik (TJ Tatran Sedlčany)
B60: II.kolo | H60: 1.set | I60: 2.set | J60: 3.set | K60: 4.set | L60: 5.set | M60: výsledek
B61: =C55 -> Bye | C61: =C55 -> Bye | D61: - | E61: =C54 -> Stibor Dominik (TJ Tatran Sedlčany) | F61: =C54 -> Stibor Dominik (TJ Tatran Sedlčany) | M61: =IF(H61="WO","3:0",IF(H61="WO-","0:3",CONCATENATE(V61,":",W61))) -> 0:0 | Q61: =IF(H61="",0,IF(OR(H61<0,H61="0-"),"0:1","1:0")) -> 0 | R61: 0 | S61: 0 | T61: 0 | U61: 0 | V61: =LEFT(Q61,1)+LEFT(R61,1)+LEFT(S61,1)+LEFT(T61,1)+LEFT(U61,1) -> 0 | W61: =RIGHT(Q61,1)+RIGHT(R61,1)+RIGHT(S61,1)+RIGHT(T61,1)+RIGHT(U61,1) -> 0 | X61: =IF(OR(LEFT(H61,2)="WO",H61="0-",H61=""),0,IF(H61<0,ABS(H61),IF(H61<10,11,H61+2))) -> 0 | Y61: =IF(OR(LEFT(H61,2)="WO",I61="0-",I61=""),0,IF(I61<0,ABS(I61),IF(I61<10,11,I61+2))) -> 0 | Z61: =IF(OR(LEFT(H61,2)="WO",J61="0-",J61=""),0,IF(J61<0,ABS(J61),IF(J61<10,11,J61+2))) -> 0 | AA61: =IF(OR(LEFT(H61,2)="WO",K61="0-",K61=""),0,IF(K61<0,ABS(K61),IF(K61<10,11,K61+2))) -> 0 | AB61: =IF(OR(LEFT(H61,2)="WO",L61="0-",L61=""),0,IF(L61<0,ABS(L61),IF(L61<10,11,L61+2))) -> 0 | AC61: 0 | AD61: =IF(H61="0-",11,IF(OR(LEFT(H61,2)="WO",H61=""),0,IF(H61<0,IF(ABS(H61)<10,11,ABS(H61)+2),H61))) -> 0 | AE61: =IF(I61="0-",11,IF(OR(LEFT(H61,2)="WO",I61="0-",I61=""),0,IF(I61<0,IF(ABS(I61)<10,11,ABS(I61)+2),I61))) -> 0 | AF61: =IF(J61="0-",11,IF(OR(LEFT(H61,2)="WO",J61="0-",J61=""),0,IF(J61<0,IF(ABS(J61)<10,11,ABS(J61)+2),J61))) -> 0 | AG61: =IF(K61="0-",11,IF(OR(LEFT(H61,2)="WO",K61="0-",K61=""),0,IF(K61<0,IF(ABS(K61)<10,11,ABS(K61)+2),K61))) -> 0 | AH61: =IF(L61="0-",11,IF(OR(LEFT(H61,2)="WO",L61="0-",L61=""),0,IF(L61<0,IF(ABS(L61)<10,11,ABS(L61)+2),L61))) -> 0 | AI61: 0 | AJ61: =CONCATENATE(B61,"-",E61) -> Bye-Stibor Dominik (TJ Tatran Sedlčany)
B62: =C52 -> Fric Tomáš (STC Slaný) | C62: =C53 -> Onderčanin Matouš (Sokol Netvořice) | D62: - | E62: =C53 -> Onderčanin Matouš (Sokol Netvořice) | F62: =C53 -> Onderčanin Matouš (Sokol Netvořice) | H62: 4 | I62: 8 | J62: 5 | M62: =IF(H62="WO","3:0",IF(H62="WO-","0:3",CONCATENATE(V62,":",W62))) -> 3:0 | Q62: 1:0 | R62: 1:0 | S62: 1:0 | T62: 0 | U62: 0 | V62: 3 | W62: 0 | X62: =IF(OR(LEFT(H62,2)="WO",H62="0-",H62=""),0,IF(H62<0,ABS(H62),IF(H62<10,11,H62+2))) -> 11 | Y62: =IF(OR(LEFT(H62,2)="WO",I62="0-",I62=""),0,IF(I62<0,ABS(I62),IF(I62<10,11,I62+2))) -> 11 | Z62: =IF(OR(LEFT(H62,2)="WO",J62="0-",J62=""),0,IF(J62<0,ABS(J62),IF(J62<10,11,J62+2))) -> 11 | AA62: =IF(OR(LEFT(H62,2)="WO",K62="0-",K62=""),0,IF(K62<0,ABS(K62),IF(K62<10,11,K62+2))) -> 0 | AB62: =IF(OR(LEFT(H62,2)="WO",L62="0-",L62=""),0,IF(L62<0,ABS(L62),IF(L62<10,11,L62+2))) -> 0 | AC62: 33 | AD62: =IF(H62="0-",11,IF(OR(LEFT(H62,2)="WO",H62=""),0,IF(H62<0,IF(ABS(H62)<10,11,ABS(H62)+2),H62))) -> 4 | AE62: =IF(I62="0-",11,IF(OR(LEFT(H62,2)="WO",I62="0-",I62=""),0,IF(I62<0,IF(ABS(I62)<10,11,ABS(I62)+2),I62))) -> 8 | AF62: =IF(J62="0-",11,IF(OR(LEFT(H62,2)="WO",J62="0-",J62=""),0,IF(J62<0,IF(ABS(J62)<10,11,ABS(J62)+2),J62))) -> 5 | AG62: =IF(K62="0-",11,IF(OR(LEFT(H62,2)="WO",K62="0-",K62=""),0,IF(K62<0,IF(ABS(K62)<10,11,ABS(K62)+2),K62))) -> 0 | AH62: =IF(L62="0-",11,IF(OR(LEFT(H62,2)="WO",L62="0-",L62=""),0,IF(L62<0,IF(ABS(L62)<10,11,ABS(L62)+2),L62))) -> 0 | AI62: 17 | AJ62: =CONCATENATE(B62,"-",E62) -> Fric Tomáš (STC Slaný)-Onderčanin Matouš (Sokol Netvořice)
B63: III.kolo | H63: 1.set | I63: 2.set | J63: 3.set | K63: 4.set | L63: 5.set | M63: výsledek
B64: =C53 -> Onderčanin Matouš (Sokol Netvořice) | C64: =#REF! ->  | D64: - | E64: =C55 -> Bye | F64: =C55 -> Bye | M64: =IF(H64="WO","3:0",IF(H64="WO-","0:3",CONCATENATE(V64,":",W64))) -> 0:0 | Q64: =IF(H64="",0,IF(OR(H64<0,H64="0-"),"0:1","1:0")) -> 0 | R64: 0 | S64: 0 | T64: 0 | U64: 0 | V64: =LEFT(Q64,1)+LEFT(R64,1)+LEFT(S64,1)+LEFT(T64,1)+LEFT(U64,1) -> 0 | W64: =RIGHT(Q64,1)+RIGHT(R64,1)+RIGHT(S64,1)+RIGHT(T64,1)+RIGHT(U64,1) -> 0 | X64: =IF(OR(LEFT(H64,2)="WO",H64="0-",H64=""),0,IF(H64<0,ABS(H64),IF(H64<10,11,H64+2))) -> 0 | Y64: =IF(OR(LEFT(H64,2)="WO",I64="0-",I64=""),0,IF(I64<0,ABS(I64),IF(I64<10,11,I64+2))) -> 0 | Z64: =IF(OR(LEFT(H64,2)="WO",J64="0-",J64=""),0,IF(J64<0,ABS(J64),IF(J64<10,11,J64+2))) -> 0 | AA64: =IF(OR(LEFT(H64,2)="WO",K64="0-",K64=""),0,IF(K64<0,ABS(K64),IF(K64<10,11,K64+2))) -> 0 | AB64: =IF(OR(LEFT(H64,2)="WO",L64="0-",L64=""),0,IF(L64<0,ABS(L64),IF(L64<10,11,L64+2))) -> 0 | AC64: 0 | AD64: =IF(H64="0-",11,IF(OR(LEFT(H64,2)="WO",H64=""),0,IF(H64<0,IF(ABS(H64)<10,11,ABS(H64)+2),H64))) -> 0 | AE64: =IF(I64="0-",11,IF(OR(LEFT(H64,2)="WO",I64="0-",I64=""),0,IF(I64<0,IF(ABS(I64)<10,11,ABS(I64)+2),I64))) -> 0 | AF64: =IF(J64="0-",11,IF(OR(LEFT(H64,2)="WO",J64="0-",J64=""),0,IF(J64<0,IF(ABS(J64)<10,11,ABS(J64)+2),J64))) -> 0 | AG64: =IF(K64="0-",11,IF(OR(LEFT(H64,2)="WO",K64="0-",K64=""),0,IF(K64<0,IF(ABS(K64)<10,11,ABS(K64)+2),K64))) -> 0 | AH64: =IF(L64="0-",11,IF(OR(LEFT(H64,2)="WO",L64="0-",L64=""),0,IF(L64<0,IF(ABS(L64)<10,11,ABS(L64)+2),L64))) -> 0 | AI64: 0 | AJ64: =CONCATENATE(B64,"-",E64) -> Onderčanin Matouš (Sokol Netvořice)-Bye
B65: =C54 -> Stibor Dominik (TJ Tatran Sedlčany) | C65: =#REF! ->  | D65: - | E65: =C52 -> Fric Tomáš (STC Slaný) | F65: =C52 -> Fric Tomáš (STC Slaný) | H65: -10 | I65: -7 | J65: -9 | M65: =IF(H65="WO","3:0",IF(H65="WO-","0:3",CONCATENATE(V65,":",W65))) -> 0:3 | Q65: 0:1 | R65: 0:1 | S65: 0:1 | T65: 0 | U65: 0 | V65: 0 | W65: 3 | X65: =IF(OR(LEFT(H65,2)="WO",H65="0-",H65=""),0,IF(H65<0,ABS(H65),IF(H65<10,11,H65+2))) -> 10 | Y65: =IF(OR(LEFT(H65,2)="WO",I65="0-",I65=""),0,IF(I65<0,ABS(I65),IF(I65<10,11,I65+2))) -> 7 | Z65: =IF(OR(LEFT(H65,2)="WO",J65="0-",J65=""),0,IF(J65<0,ABS(J65),IF(J65<10,11,J65+2))) -> 9 | AA65: =IF(OR(LEFT(H65,2)="WO",K65="0-",K65=""),0,IF(K65<0,ABS(K65),IF(K65<10,11,K65+2))) -> 0 | AB65: =IF(OR(LEFT(H65,2)="WO",L65="0-",L65=""),0,IF(L65<0,ABS(L65),IF(L65<10,11,L65+2))) -> 0 | AC65: 26 | AD65: =IF(H65="0-",11,IF(OR(LEFT(H65,2)="WO",H65=""),0,IF(H65<0,IF(ABS(H65)<10,11,ABS(H65)+2),H65))) -> 12 | AE65: =IF(I65="0-",11,IF(OR(LEFT(H65,2)="WO",I65="0-",I65=""),0,IF(I65<0,IF(ABS(I65)<10,11,ABS(I65)+2),I65))) -> 11 | AF65: =IF(J65="0-",11,IF(OR(LEFT(H65,2)="WO",J65="0-",J65=""),0,IF(J65<0,IF(ABS(J65)<10,11,ABS(J65)+2),J65))) -> 11 | AG65: =IF(K65="0-",11,IF(OR(LEFT(H65,2)="WO",K65="0-",K65=""),0,IF(K65<0,IF(ABS(K65)<10,11,ABS(K65)+2),K65))) -> 0 | AH65: =IF(L65="0-",11,IF(OR(LEFT(H65,2)="WO",L65="0-",L65=""),0,IF(L65<0,IF(ABS(L65)<10,11,ABS(L65)+2),L65))) -> 0 | AI65: 34 | AJ65: =CONCATENATE(B65,"-",E65) -> Stibor Dominik (TJ Tatran Sedlčany)-Fric Tomáš (STC Slaný)
B68: Skupina E | E68: =C69 -> Langer Josef (SKC Zruč nad Sázavou) | F68: =C70 -> Smolík Jan (TSM Kladno) | G68: =C71 -> Timko Jakub (SKST Vlašim) | H68: =C72 -> Bye | I68: Skóre | J68: Body | K68: Míčky | L68: Pořadí | M68: Pavouk
B69: 1 | C69: Langer Josef (SKC Zruč nad Sázavou) | F69: =IF(OR(LEFT(B79,3)="bye",LEFT(E79,3)="bye"),"0:0",M79) -> 3:0 | G69: =CONCATENATE(RIGHT(E71,1),MID(E71,2,1),LEFT(E71,1)) -> 3:0 | H69: =IF(OR(LEFT(B75,3)="bye",LEFT(E75,3)="bye"),"0:0",M75) -> 0:0 | I69: =CONCATENATE(LEFT(F69,1)+LEFT(G69,1)+LEFT(H69,1),":",RIGHT(F69,1)+RIGHT(G69,1)+RIGHT(H69,1)) -> 6:0 | J69: =IF(LEFT(C69,3)="bye",0,IF(OR(F69="0:0",H79="WO-"),0,IF(LEFT(F69,1)="3",2,1))+IF(OR(G69="0:0",H82="WO"),0,IF(LEFT(G69,1)="3",2,1))+IF(OR(H69="0:0",H75="WO-"),0,IF(LEFT(H69,1)="3",2,1))) -> 4 | K69: =IF(LEFT(C69,3)="bye",0,CONCATENATE(AC75+AC79+AI82,":",AI75+AI79+AC82)) -> 67:45 | L69: 1. | M69: E1
B70: 2 | C70: Smolík Jan (TSM Kladno) | E70: =CONCATENATE(RIGHT(F69,1),MID(F69,2,1),LEFT(F69,1)) -> 0:3 | G70: =IF(OR(LEFT(B76,3)="bye",LEFT(E76,3)="bye"),"0:0",M76) -> 1:3 | H70: =IF(OR(LEFT(B81,3)="bye",LEFT(E81,3)="bye"),"0:0",M81) -> 0:0 | I70: =CONCATENATE(LEFT(E70,1)+LEFT(G70,1)+LEFT(H70,1),":",RIGHT(E70,1)+RIGHT(G70,1)+RIGHT(H70,1)) -> 1:6 | J70: =IF(LEFT(C70,3)="bye",0,IF(OR(E70="0:0",H79="WO"),0,IF(LEFT(E70,1)="3",2,1))+IF(OR(G70="0:0",H76="WO-"),0,IF(LEFT(G70,1)="3",2,1))+IF(OR(H70="0:0",H81="WO-"),0,IF(LEFT(H70,1)="3",2,1))) -> 2 | K70: =IF(LEFT(C70,3)="bye",0,CONCATENATE(AC76+AI79+AC81,":",AI76+AC79+AI81)) -> 52:73 | L70: 3. | M70: E2
B71: 3 | C71: Timko Jakub (SKST Vlašim) | E71: =IF(OR(LEFT(B82,3)="bye",LEFT(E82,3)="bye"),"0:0",M82) -> 0:3 | F71: =CONCATENATE(RIGHT(G70,1),MID(G70,2,1),LEFT(G70,1)) -> 3:1 | H71: =CONCATENATE(RIGHT(G72,1),MID(G72,2,1),LEFT(G72,1)) -> 0:0 | I71: =CONCATENATE(LEFT(E71,1)+LEFT(F71,1)+LEFT(H71,1),":",RIGHT(E71,1)+RIGHT(F71,1)+RIGHT(H71,1)) -> 3:4 | J71: =IF(LEFT(C71,3)="bye",0,IF(OR(E71="0:0",H82="WO-"),0,IF(LEFT(E71,1)="3",2,1))+IF(OR(F71="0:0",H76="WO"),0,IF(LEFT(F71,1)="3",2,1))+IF(OR(H71="0:0",H78="WO"),0,IF(LEFT(H71,1)="3",2,1))) -> 3 | K71: =IF(LEFT(C71,3)="bye",0,CONCATENATE(AI76+AI78+AC82,":",AC76+AC78+AI82)) -> 63:64 | L71: 2. | M71: E3
B72: 4 | C72: Bye | E72: =CONCATENATE(RIGHT(H69,1),MID(H69,2,1),LEFT(H69,1)) -> 0:0 | F72: =CONCATENATE(RIGHT(H70,1),MID(H70,2,1),LEFT(H70,1)) -> 0:0 | G72: =IF(OR(LEFT(B78,3)="bye",LEFT(E78,3)="bye"),"0:0",M78) -> 0:0 | I72: =CONCATENATE(LEFT(E72,1)+LEFT(F72,1)+LEFT(G72,1),":",RIGHT(E72,1)+RIGHT(F72,1)+RIGHT(G72,1)) -> 0:0 | J72: =IF(LEFT(C72,3)="bye",0,IF(OR(E72="0:0",H75="WO"),0,IF(LEFT(E72,1)="3",2,1))+IF(OR(F72="0:0",H81="WO"),0,IF(LEFT(F72,1)="3",2,1))+IF(OR(G72="0:0",H78="WO-"),0,IF(LEFT(G72,1)="3",2,1))) -> 0 | K72: =IF(LEFT(C71,3)="bye",0,CONCATENATE(AI75+AC78+AI81,":",AC75+AI78+AC81)) -> 0:0 | M72: E4
B74: I.kolo | H74: 1.set | I74: 2.set | J74: 3.set | K74: 4.set | L74: 5.set | M74: výsledek
B75: =C69 -> Langer Josef (SKC Zruč nad Sázavou) | D75: - | E75: =C72 -> Bye | M75: =IF(H75="WO","3:0",IF(H75="WO-","0:3",CONCATENATE(V75,":",W75))) -> 0:0 | Q75: =IF(H75="",0,IF(OR(H75<0,H75="0-"),"0:1","1:0")) -> 0 | R75: =IF(I75="",0,IF(OR(I75<0,I75="0-"),"0:1","1:0")) -> 0 | S75: =IF(J75="",0,IF(OR(J75<0,J75="0-"),"0:1","1:0")) -> 0 | T75: =IF(K75="",0,IF(OR(K75<0,K75="0-"),"0:1","1:0")) -> 0 | U75: =IF(L75="",0,IF(OR(L75<0,L75="0-"),"0:1","1:0")) -> 0 | V75: =LEFT(Q75,1)+LEFT(R75,1)+LEFT(S75,1)+LEFT(T75,1)+LEFT(U75,1) -> 0 | W75: =RIGHT(Q75,1)+RIGHT(R75,1)+RIGHT(S75,1)+RIGHT(T75,1)+RIGHT(U75,1) -> 0 | X75: =IF(OR(LEFT(H75,2)="WO",H75="0-",H75=""),0,IF(H75<0,ABS(H75),IF(H75<10,11,H75+2))) -> 0 | Y75: =IF(OR(LEFT(H75,2)="WO",I75="0-",I75=""),0,IF(I75<0,ABS(I75),IF(I75<10,11,I75+2))) -> 0 | Z75: =IF(OR(LEFT(H75,2)="WO",J75="0-",J75=""),0,IF(J75<0,ABS(J75),IF(J75<10,11,J75+2))) -> 0 | AA75: =IF(OR(LEFT(H75,2)="WO",K75="0-",K75=""),0,IF(K75<0,ABS(K75),IF(K75<10,11,K75+2))) -> 0 | AB75: =IF(OR(LEFT(H75,2)="WO",L75="0-",L75=""),0,IF(L75<0,ABS(L75),IF(L75<10,11,L75+2))) -> 0 | AC75: =SUM(X75:AB75) -> 0 | AD75: =IF(H75="0-",11,IF(OR(LEFT(H75,2)="WO",H75=""),0,IF(H75<0,IF(ABS(H75)<10,11,ABS(H75)+2),H75))) -> 0 | AE75: =IF(I75="0-",11,IF(OR(LEFT(H75,2)="WO",I75="0-",I75=""),0,IF(I75<0,IF(ABS(I75)<10,11,ABS(I75)+2),I75))) -> 0 | AF75: =IF(J75="0-",11,IF(OR(LEFT(H75,2)="WO",J75="0-",J75=""),0,IF(J75<0,IF(ABS(J75)<10,11,ABS(J75)+2),J75))) -> 0 | AG75: =IF(K75="0-",11,IF(OR(LEFT(H75,2)="WO",K75="0-",K75=""),0,IF(K75<0,IF(ABS(K75)<10,11,ABS(K75)+2),K75))) -> 0 | AH75: =IF(L75="0-",11,IF(OR(LEFT(H75,2)="WO",L75="0-",L75=""),0,IF(L75<0,IF(ABS(L75)<10,11,ABS(L75)+2),L75))) -> 0 | AI75: =SUM(AD75:AH75) -> 0 | AJ75: =CONCATENATE(B75,"-",E75) -> Langer Josef (SKC Zruč nad Sázavou)-Bye
B76: =C70 -> Smolík Jan (TSM Kladno) | C76: =#REF! ->  | D76: - | E76: =C71 -> Timko Jakub (SKST Vlašim) | F76: =C71 -> Timko Jakub (SKST Vlašim) | H76: -6 | I76: -4 | J76: 7 | K76: -9 | M76: =IF(H76="WO","3:0",IF(H76="WO-","0:3",CONCATENATE(V76,":",W76))) -> 1:3 | Q76: 0:1 | R76: 0:1 | S76: 1:0 | T76: 0:1 | U76: 0 | V76: =LEFT(Q76,1)+LEFT(R76,1)+LEFT(S76,1)+LEFT(T76,1)+LEFT(U76,1) -> 1 | W76: =RIGHT(Q76,1)+RIGHT(R76,1)+RIGHT(S76,1)+RIGHT(T76,1)+RIGHT(U76,1) -> 3 | X76: =IF(OR(LEFT(H76,2)="WO",H76="0-",H76=""),0,IF(H76<0,ABS(H76),IF(H76<10,11,H76+2))) -> 6 | Y76: =IF(OR(LEFT(H76,2)="WO",I76="0-",I76=""),0,IF(I76<0,ABS(I76),IF(I76<10,11,I76+2))) -> 4 | Z76: =IF(OR(LEFT(H76,2)="WO",J76="0-",J76=""),0,IF(J76<0,ABS(J76),IF(J76<10,11,J76+2))) -> 11 | AA76: =IF(OR(LEFT(H76,2)="WO",K76="0-",K76=""),0,IF(K76<0,ABS(K76),IF(K76<10,11,K76+2))) -> 9 | AB76: =IF(OR(LEFT(H76,2)="WO",L76="0-",L76=""),0,IF(L76<0,ABS(L76),IF(L76<10,11,L76+2))) -> 0 | AC76: =SUM(X76:AB76) -> 30 | AD76: =IF(H76="0-",11,IF(OR(LEFT(H76,2)="WO",H76=""),0,IF(H76<0,IF(ABS(H76)<10,11,ABS(H76)+2),H76))) -> 11 | AE76: =IF(I76="0-",11,IF(OR(LEFT(H76,2)="WO",I76="0-",I76=""),0,IF(I76<0,IF(ABS(I76)<10,11,ABS(I76)+2),I76))) -> 11 | AF76: =IF(J76="0-",11,IF(OR(LEFT(H76,2)="WO",J76="0-",J76=""),0,IF(J76<0,IF(ABS(J76)<10,11,ABS(J76)+2),J76))) -> 7 | AG76: =IF(K76="0-",11,IF(OR(LEFT(H76,2)="WO",K76="0-",K76=""),0,IF(K76<0,IF(ABS(K76)<10,11,ABS(K76)+2),K76))) -> 11 | AH76: =IF(L76="0-",11,IF(OR(LEFT(H76,2)="WO",L76="0-",L76=""),0,IF(L76<0,IF(ABS(L76)<10,11,ABS(L76)+2),L76))) -> 0 | AI76: =SUM(AD76:AH76) -> 40 | AJ76: =CONCATENATE(B76,"-",E76) -> Smolík Jan (TSM Kladno)-Timko Jakub (SKST Vlašim)
B77: II.kolo | H77: 1.set | I77: 2.set | J77: 3.set | K77: 4.set | L77: 5.set | M77: výsledek
B78: =C72 -> Bye | C78: =C72 -> Bye | D78: - | E78: =C71 -> Timko Jakub (SKST Vlašim) | F78: =C71 -> Timko Jakub (SKST Vlašim) | M78: =IF(H78="WO","3:0",IF(H78="WO-","0:3",CONCATENATE(V78,":",W78))) -> 0:0 | Q78: =IF(H78="",0,IF(OR(H78<0,H78="0-"),"0:1","1:0")) -> 0 | R78: =IF(I78="",0,IF(OR(I78<0,I78="0-"),"0:1","1:0")) -> 0 | S78: =IF(J78="",0,IF(OR(J78<0,J78="0-"),"0:1","1:0")) -> 0 | T78: =IF(K78="",0,IF(OR(K78<0,K78="0-"),"0:1","1:0")) -> 0 | U78: =IF(L78="",0,IF(OR(L78<0,L78="0-"),"0:1","1:0")) -> 0 | V78: =LEFT(Q78,1)+LEFT(R78,1)+LEFT(S78,1)+LEFT(T78,1)+LEFT(U78,1) -> 0 | W78: =RIGHT(Q78,1)+RIGHT(R78,1)+RIGHT(S78,1)+RIGHT(T78,1)+RIGHT(U78,1) -> 0 | X78: =IF(OR(LEFT(H78,2)="WO",H78="0-",H78=""),0,IF(H78<0,ABS(H78),IF(H78<10,11,H78+2))) -> 0 | Y78: =IF(OR(LEFT(H78,2)="WO",I78="0-",I78=""),0,IF(I78<0,ABS(I78),IF(I78<10,11,I78+2))) -> 0 | Z78: =IF(OR(LEFT(H78,2)="WO",J78="0-",J78=""),0,IF(J78<0,ABS(J78),IF(J78<10,11,J78+2))) -> 0 | AA78: =IF(OR(LEFT(H78,2)="WO",K78="0-",K78=""),0,IF(K78<0,ABS(K78),IF(K78<10,11,K78+2))) -> 0 | AB78: =IF(OR(LEFT(H78,2)="WO",L78="0-",L78=""),0,IF(L78<0,ABS(L78),IF(L78<10,11,L78+2))) -> 0 | AC78: =SUM(X78:AB78) -> 0 | AD78: =IF(H78="0-",11,IF(OR(LEFT(H78,2)="WO",H78=""),0,IF(H78<0,IF(ABS(H78)<10,11,ABS(H78)+2),H78))) -> 0 | AE78: =IF(I78="0-",11,IF(OR(LEFT(H78,2)="WO",I78="0-",I78=""),0,IF(I78<0,IF(ABS(I78)<10,11,ABS(I78)+2),I78))) -> 0 | AF78: =IF(J78="0-",11,IF(OR(LEFT(H78,2)="WO",J78="0-",J78=""),0,IF(J78<0,IF(ABS(J78)<10,11,ABS(J78)+2),J78))) -> 0 | AG78: =IF(K78="0-",11,IF(OR(LEFT(H78,2)="WO",K78="0-",K78=""),0,IF(K78<0,IF(ABS(K78)<10,11,ABS(K78)+2),K78))) -> 0 | AH78: =IF(L78="0-",11,IF(OR(LEFT(H78,2)="WO",L78="0-",L78=""),0,IF(L78<0,IF(ABS(L78)<10,11,ABS(L78)+2),L78))) -> 0 | AI78: =SUM(AD78:AH78) -> 0 | AJ78: =CONCATENATE(B78,"-",E78) -> Bye-Timko Jakub (SKST Vlašim)
B79: =C69 -> Langer Josef (SKC Zruč nad Sázavou) | C79: =C70 -> Smolík Jan (TSM Kladno) | D79: - | E79: =C70 -> Smolík Jan (TSM Kladno) | F79: =C70 -> Smolík Jan (TSM Kladno) | H79: 9 | I79: 4 | J79: 9 | M79: =IF(H79="WO","3:0",IF(H79="WO-","0:3",CONCATENATE(V79,":",W79))) -> 3:0 | Q79: 1:0 | R79: 1:0 | S79: 1:0 | T79: 0 | U79: 0 | V79: 3 | W79: 0 | X79: =IF(OR(LEFT(H79,2)="WO",H79="0-",H79=""),0,IF(H79<0,ABS(H79),IF(H79<10,11,H79+2))) -> 11 | Y79: =IF(OR(LEFT(H79,2)="WO",I79="0-",I79=""),0,IF(I79<0,ABS(I79),IF(I79<10,11,I79+2))) -> 11 | Z79: =IF(OR(LEFT(H79,2)="WO",J79="0-",J79=""),0,IF(J79<0,ABS(J79),IF(J79<10,11,J79+2))) -> 11 | AA79: =IF(OR(LEFT(H79,2)="WO",K79="0-",K79=""),0,IF(K79<0,ABS(K79),IF(K79<10,11,K79+2))) -> 0 | AB79: =IF(OR(LEFT(H79,2)="WO",L79="0-",L79=""),0,IF(L79<0,ABS(L79),IF(L79<10,11,L79+2))) -> 0 | AC79: 33 | AD79: =IF(H79="0-",11,IF(OR(LEFT(H79,2)="WO",H79=""),0,IF(H79<0,IF(ABS(H79)<10,11,ABS(H79)+2),H79))) -> 9 | AE79: =IF(I79="0-",11,IF(OR(LEFT(H79,2)="WO",I79="0-",I79=""),0,IF(I79<0,IF(ABS(I79)<10,11,ABS(I79)+2),I79))) -> 4 | AF79: =IF(J79="0-",11,IF(OR(LEFT(H79,2)="WO",J79="0-",J79=""),0,IF(J79<0,IF(ABS(J79)<10,11,ABS(J79)+2),J79))) -> 9 | AG79: =IF(K79="0-",11,IF(OR(LEFT(H79,2)="WO",K79="0-",K79=""),0,IF(K79<0,IF(ABS(K79)<10,11,ABS(K79)+2),K79))) -> 0 | AH79: =IF(L79="0-",11,IF(OR(LEFT(H79,2)="WO",L79="0-",L79=""),0,IF(L79<0,IF(ABS(L79)<10,11,ABS(L79)+2),L79))) -> 0 | AI79: 22 | AJ79: =CONCATENATE(B79,"-",E79) -> Langer Josef (SKC Zruč nad Sázavou)-Smolík Jan (TSM Kladno)
B80: III.kolo | H80: 1.set | I80: 2.set | J80: 3.set | K80: 4.set | L80: 5.set | M80: výsledek
B81: =C70 -> Smolík Jan (TSM Kladno) | C81: =#REF! ->  | D81: - | E81: =C72 -> Bye | F81: =C72 -> Bye | M81: =IF(H81="WO","3:0",IF(H81="WO-","0:3",CONCATENATE(V81,":",W81))) -> 0:0 | Q81: =IF(H81="",0,IF(OR(H81<0,H81="0-"),"0:1","1:0")) -> 0 | R81: =IF(I81="",0,IF(OR(I81<0,I81="0-"),"0:1","1:0")) -> 0 | S81: =IF(J81="",0,IF(OR(J81<0,J81="0-"),"0:1","1:0")) -> 0 | T81: =IF(K81="",0,IF(OR(K81<0,K81="0-"),"0:1","1:0")) -> 0 | U81: =IF(L81="",0,IF(OR(L81<0,L81="0-"),"0:1","1:0")) -> 0 | V81: =LEFT(Q81,1)+LEFT(R81,1)+LEFT(S81,1)+LEFT(T81,1)+LEFT(U81,1) -> 0 | W81: =RIGHT(Q81,1)+RIGHT(R81,1)+RIGHT(S81,1)+RIGHT(T81,1)+RIGHT(U81,1) -> 0 | X81: =IF(OR(LEFT(H81,2)="WO",H81="0-",H81=""),0,IF(H81<0,ABS(H81),IF(H81<10,11,H81+2))) -> 0 | Y81: =IF(OR(LEFT(H81,2)="WO",I81="0-",I81=""),0,IF(I81<0,ABS(I81),IF(I81<10,11,I81+2))) -> 0 | Z81: =IF(OR(LEFT(H81,2)="WO",J81="0-",J81=""),0,IF(J81<0,ABS(J81),IF(J81<10,11,J81+2))) -> 0 | AA81: =IF(OR(LEFT(H81,2)="WO",K81="0-",K81=""),0,IF(K81<0,ABS(K81),IF(K81<10,11,K81+2))) -> 0 | AB81: =IF(OR(LEFT(H81,2)="WO",L81="0-",L81=""),0,IF(L81<0,ABS(L81),IF(L81<10,11,L81+2))) -> 0 | AC81: =SUM(X81:AB81) -> 0 | AD81: =IF(H81="0-",11,IF(OR(LEFT(H81,2)="WO",H81=""),0,IF(H81<0,IF(ABS(H81)<10,11,ABS(H81)+2),H81))) -> 0 | AE81: =IF(I81="0-",11,IF(OR(LEFT(H81,2)="WO",I81="0-",I81=""),0,IF(I81<0,IF(ABS(I81)<10,11,ABS(I81)+2),I81))) -> 0 | AF81: =IF(J81="0-",11,IF(OR(LEFT(H81,2)="WO",J81="0-",J81=""),0,IF(J81<0,IF(ABS(J81)<10,11,ABS(J81)+2),J81))) -> 0 | AG81: =IF(K81="0-",11,IF(OR(LEFT(H81,2)="WO",K81="0-",K81=""),0,IF(K81<0,IF(ABS(K81)<10,11,ABS(K81)+2),K81))) -> 0 | AH81: =IF(L81="0-",11,IF(OR(LEFT(H81,2)="WO",L81="0-",L81=""),0,IF(L81<0,IF(ABS(L81)<10,11,ABS(L81)+2),L81))) -> 0 | AI81: =SUM(AD81:AH81) -> 0 | AJ81: =CONCATENATE(B81,"-",E81) -> Smolík Jan (TSM Kladno)-Bye
B82: =C71 -> Timko Jakub (SKST Vlašim) | C82: =#REF! ->  | D82: - | E82: =C69 -> Langer Josef (SKC Zruč nad Sázavou) | F82: =C69 -> Langer Josef (SKC Zruč nad Sázavou) | H82: -4 | I82: -9 | J82: -10 | M82: =IF(H82="WO","3:0",IF(H82="WO-","0:3",CONCATENATE(V82,":",W82))) -> 0:3 | Q82: 0:1 | R82: 0:1 | S82: 0:1 | T82: 0 | U82: 0 | V82: 0 | W82: 3 | X82: =IF(OR(LEFT(H82,2)="WO",H82="0-",H82=""),0,IF(H82<0,ABS(H82),IF(H82<10,11,H82+2))) -> 4 | Y82: =IF(OR(LEFT(H82,2)="WO",I82="0-",I82=""),0,IF(I82<0,ABS(I82),IF(I82<10,11,I82+2))) -> 9 | Z82: =IF(OR(LEFT(H82,2)="WO",J82="0-",J82=""),0,IF(J82<0,ABS(J82),IF(J82<10,11,J82+2))) -> 10 | AA82: =IF(OR(LEFT(H82,2)="WO",K82="0-",K82=""),0,IF(K82<0,ABS(K82),IF(K82<10,11,K82+2))) -> 0 | AB82: =IF(OR(LEFT(H82,2)="WO",L82="0-",L82=""),0,IF(L82<0,ABS(L82),IF(L82<10,11,L82+2))) -> 0 | AC82: 23 | AD82: =IF(H82="0-",11,IF(OR(LEFT(H82,2)="WO",H82=""),0,IF(H82<0,IF(ABS(H82)<10,11,ABS(H82)+2),H82))) -> 11 | AE82: =IF(I82="0-",11,IF(OR(LEFT(H82,2)="WO",I82="0-",I82=""),0,IF(I82<0,IF(ABS(I82)<10,11,ABS(I82)+2),I82))) -> 11 | AF82: =IF(J82="0-",11,IF(OR(LEFT(H82,2)="WO",J82="0-",J82=""),0,IF(J82<0,IF(ABS(J82)<10,11,ABS(J82)+2),J82))) -> 12 | AG82: =IF(K82="0-",11,IF(OR(LEFT(H82,2)="WO",K82="0-",K82=""),0,IF(K82<0,IF(ABS(K82)<10,11,ABS(K82)+2),K82))) -> 0 | AH82: =IF(L82="0-",11,IF(OR(LEFT(H82,2)="WO",L82="0-",L82=""),0,IF(L82<0,IF(ABS(L82)<10,11,ABS(L82)+2),L82))) -> 0 | AI82: 34 | AJ82: =CONCATENATE(B82,"-",E82) -> Timko Jakub (SKST Vlašim)-Langer Josef (SKC Zruč nad Sázavou)
B85: Skupina F | E85: =C86 -> Mertlík Štěpán (TTC Příbram) | F85: =C87 -> Tvrdý Samuel (Černošice) | G85: =C88 -> Jesenský Jan (Mníšek pod Brdy) | H85: =C89 -> Bye | I85: Skóre | J85: Body | K85: Míčky | L85: Pořadí | M85: Pavouk
B86: 1 | C86: Mertlík Štěpán (TTC Příbram) | F86: =IF(OR(LEFT(B96,3)="bye",LEFT(E96,3)="bye"),"0:0",M96) -> 3:0 | G86: =CONCATENATE(RIGHT(E88,1),MID(E88,2,1),LEFT(E88,1)) -> 3:0 | H86: =IF(OR(LEFT(B92,3)="bye",LEFT(E92,3)="bye"),"0:0",M92) -> 0:0 | I86: =CONCATENATE(LEFT(F86,1)+LEFT(G86,1)+LEFT(H86,1),":",RIGHT(F86,1)+RIGHT(G86,1)+RIGHT(H86,1)) -> 6:0 | J86: =IF(LEFT(C86,3)="bye",0,IF(OR(F86="0:0",H96="WO-"),0,IF(LEFT(F86,1)="3",2,1))+IF(OR(G86="0:0",H99="WO"),0,IF(LEFT(G86,1)="3",2,1))+IF(OR(H86="0:0",H92="WO-"),0,IF(LEFT(H86,1)="3",2,1))) -> 4 | K86: =IF(LEFT(C86,3)="bye",0,CONCATENATE(AC92+AC96+AI99,":",AI92+AI96+AC99)) -> 67:41 | L86: 1. | M86: F1
B87: 2 | C87: Tvrdý Samuel (Černošice) | E87: =CONCATENATE(RIGHT(F86,1),MID(F86,2,1),LEFT(F86,1)) -> 0:3 | G87: =IF(OR(LEFT(B93,3)="bye",LEFT(E93,3)="bye"),"0:0",M93) -> 0:3 | H87: =IF(OR(LEFT(B98,3)="bye",LEFT(E98,3)="bye"),"0:0",M98) -> 0:0 | I87: =CONCATENATE(LEFT(E87,1)+LEFT(G87,1)+LEFT(H87,1),":",RIGHT(E87,1)+RIGHT(G87,1)+RIGHT(H87,1)) -> 0:6 | J87: =IF(LEFT(C87,3)="bye",0,IF(OR(E87="0:0",H96="WO"),0,IF(LEFT(E87,1)="3",2,1))+IF(OR(G87="0:0",H93="WO-"),0,IF(LEFT(G87,1)="3",2,1))+IF(OR(H87="0:0",H98="WO-"),0,IF(LEFT(H87,1)="3",2,1))) -> 2 | K87: =IF(LEFT(C87,3)="bye",0,CONCATENATE(AC93+AI96+AC98,":",AI93+AC96+AI98)) -> 31:66 | L87: 3. | M87: F2
B88: 3 | C88: Jesenský Jan (Mníšek pod Brdy) | E88: =IF(OR(LEFT(B99,3)="bye",LEFT(E99,3)="bye"),"0:0",M99) -> 0:3 | F88: =CONCATENATE(RIGHT(G87,1),MID(G87,2,1),LEFT(G87,1)) -> 3:0 | H88: =CONCATENATE(RIGHT(G89,1),MID(G89,2,1),LEFT(G89,1)) -> 0:0 | I88: =CONCATENATE(LEFT(E88,1)+LEFT(F88,1)+LEFT(H88,1),":",RIGHT(E88,1)+RIGHT(F88,1)+RIGHT(H88,1)) -> 3:3 | J88: =IF(LEFT(C88,3)="bye",0,IF(OR(E88="0:0",H99="WO-"),0,IF(LEFT(E88,1)="3",2,1))+IF(OR(F88="0:0",H93="WO"),0,IF(LEFT(F88,1)="3",2,1))+IF(OR(H88="0:0",H95="WO"),0,IF(LEFT(H88,1)="3",2,1))) -> 3 | K88: =IF(LEFT(C88,3)="bye",0,CONCATENATE(AI93+AI95+AC99,":",AC93+AC95+AI99)) -> 55:46 | L88: 2. | M88: F3
B89: 4 | C89: Bye | E89: =CONCATENATE(RIGHT(H86,1),MID(H86,2,1),LEFT(H86,1)) -> 0:0 | F89: =CONCATENATE(RIGHT(H87,1),MID(H87,2,1),LEFT(H87,1)) -> 0:0 | G89: =IF(OR(LEFT(B95,3)="bye",LEFT(E95,3)="bye"),"0:0",M95) -> 0:0 | I89: =CONCATENATE(LEFT(E89,1)+LEFT(F89,1)+LEFT(G89,1),":",RIGHT(E89,1)+RIGHT(F89,1)+RIGHT(G89,1)) -> 0:0 | J89: =IF(LEFT(C89,3)="bye",0,IF(OR(E89="0:0",H92="WO"),0,IF(LEFT(E89,1)="3",2,1))+IF(OR(F89="0:0",H98="WO"),0,IF(LEFT(F89,1)="3",2,1))+IF(OR(G89="0:0",H95="WO-"),0,IF(LEFT(G89,1)="3",2,1))) -> 0 | K89: =IF(LEFT(C88,3)="bye",0,CONCATENATE(AI92+AC95+AI98,":",AC92+AI95+AC98)) -> 0:0 | M89: F4
B91: I.kolo | H91: 1.set | I91: 2.set | J91: 3.set | K91: 4.set | L91: 5.set | M91: výsledek
B92: =C86 -> Mertlík Štěpán (TTC Příbram) | D92: - | E92: =C89 -> Bye | M92: =IF(H92="WO","3:0",IF(H92="WO-","0:3",CONCATENATE(V92,":",W92))) -> 0:0 | Q92: =IF(H92="",0,IF(OR(H92<0,H92="0-"),"0:1","1:0")) -> 0 | R92: =IF(I92="",0,IF(OR(I92<0,I92="0-"),"0:1","1:0")) -> 0 | S92: =IF(J92="",0,IF(OR(J92<0,J92="0-"),"0:1","1:0")) -> 0 | T92: =IF(K92="",0,IF(OR(K92<0,K92="0-"),"0:1","1:0")) -> 0 | U92: =IF(L92="",0,IF(OR(L92<0,L92="0-"),"0:1","1:0")) -> 0 | V92: =LEFT(Q92,1)+LEFT(R92,1)+LEFT(S92,1)+LEFT(T92,1)+LEFT(U92,1) -> 0 | W92: =RIGHT(Q92,1)+RIGHT(R92,1)+RIGHT(S92,1)+RIGHT(T92,1)+RIGHT(U92,1) -> 0 | X92: =IF(OR(LEFT(H92,2)="WO",H92="0-",H92=""),0,IF(H92<0,ABS(H92),IF(H92<10,11,H92+2))) -> 0 | Y92: =IF(OR(LEFT(H92,2)="WO",I92="0-",I92=""),0,IF(I92<0,ABS(I92),IF(I92<10,11,I92+2))) -> 0 | Z92: =IF(OR(LEFT(H92,2)="WO",J92="0-",J92=""),0,IF(J92<0,ABS(J92),IF(J92<10,11,J92+2))) -> 0 | AA92: =IF(OR(LEFT(H92,2)="WO",K92="0-",K92=""),0,IF(K92<0,ABS(K92),IF(K92<10,11,K92+2))) -> 0 | AB92: =IF(OR(LEFT(H92,2)="WO",L92="0-",L92=""),0,IF(L92<0,ABS(L92),IF(L92<10,11,L92+2))) -> 0 | AC92: =SUM(X92:AB92) -> 0 | AD92: =IF(H92="0-",11,IF(OR(LEFT(H92,2)="WO",H92=""),0,IF(H92<0,IF(ABS(H92)<10,11,ABS(H92)+2),H92))) -> 0 | AE92: =IF(I92="0-",11,IF(OR(LEFT(H92,2)="WO",I92="0-",I92=""),0,IF(I92<0,IF(ABS(I92)<10,11,ABS(I92)+2),I92))) -> 0 | AF92: =IF(J92="0-",11,IF(OR(LEFT(H92,2)="WO",J92="0-",J92=""),0,IF(J92<0,IF(ABS(J92)<10,11,ABS(J92)+2),J92))) -> 0 | AG92: =IF(K92="0-",11,IF(OR(LEFT(H92,2)="WO",K92="0-",K92=""),0,IF(K92<0,IF(ABS(K92)<10,11,ABS(K92)+2),K92))) -> 0 | AH92: =IF(L92="0-",11,IF(OR(LEFT(H92,2)="WO",L92="0-",L92=""),0,IF(L92<0,IF(ABS(L92)<10,11,ABS(L92)+2),L92))) -> 0 | AI92: =SUM(AD92:AH92) -> 0 | AJ92: =CONCATENATE(B92,"-",E92) -> Mertlík Štěpán (TTC Příbram)-Bye
B93: =C87 -> Tvrdý Samuel (Černošice) | C93: =#REF! ->  | D93: - | E93: =C88 -> Jesenský Jan (Mníšek pod Brdy) | F93: =C88 -> Jesenský Jan (Mníšek pod Brdy) | H93: -5 | I93: -3 | J93: -4 | M93: =IF(H93="WO","3:0",IF(H93="WO-","0:3",CONCATENATE(V93,":",W93))) -> 0:3 | Q93: 0:1 | R93: 0:1 | S93: 0:1 | T93: 0 | U93: 0 | V93: =LEFT(Q93,1)+LEFT(R93,1)+LEFT(S93,1)+LEFT(T93,1)+LEFT(U93,1) -> 0 | W93: =RIGHT(Q93,1)+RIGHT(R93,1)+RIGHT(S93,1)+RIGHT(T93,1)+RIGHT(U93,1) -> 3 | X93: =IF(OR(LEFT(H93,2)="WO",H93="0-",H93=""),0,IF(H93<0,ABS(H93),IF(H93<10,11,H93+2))) -> 5 | Y93: =IF(OR(LEFT(H93,2)="WO",I93="0-",I93=""),0,IF(I93<0,ABS(I93),IF(I93<10,11,I93+2))) -> 3 | Z93: =IF(OR(LEFT(H93,2)="WO",J93="0-",J93=""),0,IF(J93<0,ABS(J93),IF(J93<10,11,J93+2))) -> 4 | AA93: =IF(OR(LEFT(H93,2)="WO",K93="0-",K93=""),0,IF(K93<0,ABS(K93),IF(K93<10,11,K93+2))) -> 0 | AB93: =IF(OR(LEFT(H93,2)="WO",L93="0-",L93=""),0,IF(L93<0,ABS(L93),IF(L93<10,11,L93+2))) -> 0 | AC93: =SUM(X93:AB93) -> 12 | AD93: =IF(H93="0-",11,IF(OR(LEFT(H93,2)="WO",H93=""),0,IF(H93<0,IF(ABS(H93)<10,11,ABS(H93)+2),H93))) -> 11 | AE93: =IF(I93="0-",11,IF(OR(LEFT(H93,2)="WO",I93="0-",I93=""),0,IF(I93<0,IF(ABS(I93)<10,11,ABS(I93)+2),I93))) -> 11 | AF93: =IF(J93="0-",11,IF(OR(LEFT(H93,2)="WO",J93="0-",J93=""),0,IF(J93<0,IF(ABS(J93)<10,11,ABS(J93)+2),J93))) -> 11 | AG93: =IF(K93="0-",11,IF(OR(LEFT(H93,2)="WO",K93="0-",K93=""),0,IF(K93<0,IF(ABS(K93)<10,11,ABS(K93)+2),K93))) -> 0 | AH93: =IF(L93="0-",11,IF(OR(LEFT(H93,2)="WO",L93="0-",L93=""),0,IF(L93<0,IF(ABS(L93)<10,11,ABS(L93)+2),L93))) -> 0 | AI93: =SUM(AD93:AH93) -> 33 | AJ93: =CONCATENATE(B93,"-",E93) -> Tvrdý Samuel (Černošice)-Jesenský Jan (Mníšek pod Brdy)
B94: II.kolo | H94: 1.set | I94: 2.set | J94: 3.set | K94: 4.set | L94: 5.set | M94: výsledek
B95: =C89 -> Bye | C95: =C89 -> Bye | D95: - | E95: =C88 -> Jesenský Jan (Mníšek pod Brdy) | F95: =C88 -> Jesenský Jan (Mníšek pod Brdy) | M95: =IF(H95="WO","3:0",IF(H95="WO-","0:3",CONCATENATE(V95,":",W95))) -> 0:0 | Q95: =IF(H95="",0,IF(OR(H95<0,H95="0-"),"0:1","1:0")) -> 0 | R95: =IF(I95="",0,IF(OR(I95<0,I95="0-"),"0:1","1:0")) -> 0 | S95: =IF(J95="",0,IF(OR(J95<0,J95="0-"),"0:1","1:0")) -> 0 | T95: =IF(K95="",0,IF(OR(K95<0,K95="0-"),"0:1","1:0")) -> 0 | U95: =IF(L95="",0,IF(OR(L95<0,L95="0-"),"0:1","1:0")) -> 0 | V95: =LEFT(Q95,1)+LEFT(R95,1)+LEFT(S95,1)+LEFT(T95,1)+LEFT(U95,1) -> 0 | W95: =RIGHT(Q95,1)+RIGHT(R95,1)+RIGHT(S95,1)+RIGHT(T95,1)+RIGHT(U95,1) -> 0 | X95: =IF(OR(LEFT(H95,2)="WO",H95="0-",H95=""),0,IF(H95<0,ABS(H95),IF(H95<10,11,H95+2))) -> 0 | Y95: =IF(OR(LEFT(H95,2)="WO",I95="0-",I95=""),0,IF(I95<0,ABS(I95),IF(I95<10,11,I95+2))) -> 0 | Z95: =IF(OR(LEFT(H95,2)="WO",J95="0-",J95=""),0,IF(J95<0,ABS(J95),IF(J95<10,11,J95+2))) -> 0 | AA95: =IF(OR(LEFT(H95,2)="WO",K95="0-",K95=""),0,IF(K95<0,ABS(K95),IF(K95<10,11,K95+2))) -> 0 | AB95: =IF(OR(LEFT(H95,2)="WO",L95="0-",L95=""),0,IF(L95<0,ABS(L95),IF(L95<10,11,L95+2))) -> 0 | AC95: =SUM(X95:AB95) -> 0 | AD95: =IF(H95="0-",11,IF(OR(LEFT(H95,2)="WO",H95=""),0,IF(H95<0,IF(ABS(H95)<10,11,ABS(H95)+2),H95))) -> 0 | AE95: =IF(I95="0-",11,IF(OR(LEFT(H95,2)="WO",I95="0-",I95=""),0,IF(I95<0,IF(ABS(I95)<10,11,ABS(I95)+2),I95))) -> 0 | AF95: =IF(J95="0-",11,IF(OR(LEFT(H95,2)="WO",J95="0-",J95=""),0,IF(J95<0,IF(ABS(J95)<10,11,ABS(J95)+2),J95))) -> 0 | AG95: =IF(K95="0-",11,IF(OR(LEFT(H95,2)="WO",K95="0-",K95=""),0,IF(K95<0,IF(ABS(K95)<10,11,ABS(K95)+2),K95))) -> 0 | AH95: =IF(L95="0-",11,IF(OR(LEFT(H95,2)="WO",L95="0-",L95=""),0,IF(L95<0,IF(ABS(L95)<10,11,ABS(L95)+2),L95))) -> 0 | AI95: =SUM(AD95:AH95) -> 0 | AJ95: =CONCATENATE(B95,"-",E95) -> Bye-Jesenský Jan (Mníšek pod Brdy)
B96: =C86 -> Mertlík Štěpán (TTC Příbram) | C96: =C87 -> Tvrdý Samuel (Černošice) | D96: - | E96: =C87 -> Tvrdý Samuel (Černošice) | F96: =C87 -> Tvrdý Samuel (Černošice) | H96: 7 | I96: 8 | J96: 4 | M96: =IF(H96="WO","3:0",IF(H96="WO-","0:3",CONCATENATE(V96,":",W96))) -> 3:0 | Q96: 1:0 | R96: 1:0 | S96: 1:0 | T96: 0 | U96: 0 | V96: 3 | W96: 0 | X96: =IF(OR(LEFT(H96,2)="WO",H96="0-",H96=""),0,IF(H96<0,ABS(H96),IF(H96<10,11,H96+2))) -> 11 | Y96: =IF(OR(LEFT(H96,2)="WO",I96="0-",I96=""),0,IF(I96<0,ABS(I96),IF(I96<10,11,I96+2))) -> 11 | Z96: =IF(OR(LEFT(H96,2)="WO",J96="0-",J96=""),0,IF(J96<0,ABS(J96),IF(J96<10,11,J96+2))) -> 11 | AA96: =IF(OR(LEFT(H96,2)="WO",K96="0-",K96=""),0,IF(K96<0,ABS(K96),IF(K96<10,11,K96+2))) -> 0 | AB96: =IF(OR(LEFT(H96,2)="WO",L96="0-",L96=""),0,IF(L96<0,ABS(L96),IF(L96<10,11,L96+2))) -> 0 | AC96: 33 | AD96: =IF(H96="0-",11,IF(OR(LEFT(H96,2)="WO",H96=""),0,IF(H96<0,IF(ABS(H96)<10,11,ABS(H96)+2),H96))) -> 7 | AE96: =IF(I96="0-",11,IF(OR(LEFT(H96,2)="WO",I96="0-",I96=""),0,IF(I96<0,IF(ABS(I96)<10,11,ABS(I96)+2),I96))) -> 8 | AF96: =IF(J96="0-",11,IF(OR(LEFT(H96,2)="WO",J96="0-",J96=""),0,IF(J96<0,IF(ABS(J96)<10,11,ABS(J96)+2),J96))) -> 4 | AG96: =IF(K96="0-",11,IF(OR(LEFT(H96,2)="WO",K96="0-",K96=""),0,IF(K96<0,IF(ABS(K96)<10,11,ABS(K96)+2),K96))) -> 0 | AH96: =IF(L96="0-",11,IF(OR(LEFT(H96,2)="WO",L96="0-",L96=""),0,IF(L96<0,IF(ABS(L96)<10,11,ABS(L96)+2),L96))) -> 0 | AI96: 19 | AJ96: =CONCATENATE(B96,"-",E96) -> Mertlík Štěpán (TTC Příbram)-Tvrdý Samuel (Černošice)
B97: III.kolo | H97: 1.set | I97: 2.set | J97: 3.set | K97: 4.set | L97: 5.set | M97: výsledek
B98: =C87 -> Tvrdý Samuel (Černošice) | C98: =#REF! ->  | D98: - | E98: =C89 -> Bye | F98: =C89 -> Bye | M98: =IF(H98="WO","3:0",IF(H98="WO-","0:3",CONCATENATE(V98,":",W98))) -> 0:0 | Q98: =IF(H98="",0,IF(OR(H98<0,H98="0-"),"0:1","1:0")) -> 0 | R98: =IF(I98="",0,IF(OR(I98<0,I98="0-"),"0:1","1:0")) -> 0 | S98: =IF(J98="",0,IF(OR(J98<0,J98="0-"),"0:1","1:0")) -> 0 | T98: =IF(K98="",0,IF(OR(K98<0,K98="0-"),"0:1","1:0")) -> 0 | U98: =IF(L98="",0,IF(OR(L98<0,L98="0-"),"0:1","1:0")) -> 0 | V98: =LEFT(Q98,1)+LEFT(R98,1)+LEFT(S98,1)+LEFT(T98,1)+LEFT(U98,1) -> 0 | W98: =RIGHT(Q98,1)+RIGHT(R98,1)+RIGHT(S98,1)+RIGHT(T98,1)+RIGHT(U98,1) -> 0 | X98: =IF(OR(LEFT(H98,2)="WO",H98="0-",H98=""),0,IF(H98<0,ABS(H98),IF(H98<10,11,H98+2))) -> 0 | Y98: =IF(OR(LEFT(H98,2)="WO",I98="0-",I98=""),0,IF(I98<0,ABS(I98),IF(I98<10,11,I98+2))) -> 0 | Z98: =IF(OR(LEFT(H98,2)="WO",J98="0-",J98=""),0,IF(J98<0,ABS(J98),IF(J98<10,11,J98+2))) -> 0 | AA98: =IF(OR(LEFT(H98,2)="WO",K98="0-",K98=""),0,IF(K98<0,ABS(K98),IF(K98<10,11,K98+2))) -> 0 | AB98: =IF(OR(LEFT(H98,2)="WO",L98="0-",L98=""),0,IF(L98<0,ABS(L98),IF(L98<10,11,L98+2))) -> 0 | AC98: =SUM(X98:AB98) -> 0 | AD98: =IF(H98="0-",11,IF(OR(LEFT(H98,2)="WO",H98=""),0,IF(H98<0,IF(ABS(H98)<10,11,ABS(H98)+2),H98))) -> 0 | AE98: =IF(I98="0-",11,IF(OR(LEFT(H98,2)="WO",I98="0-",I98=""),0,IF(I98<0,IF(ABS(I98)<10,11,ABS(I98)+2),I98))) -> 0 | AF98: =IF(J98="0-",11,IF(OR(LEFT(H98,2)="WO",J98="0-",J98=""),0,IF(J98<0,IF(ABS(J98)<10,11,ABS(J98)+2),J98))) -> 0 | AG98: =IF(K98="0-",11,IF(OR(LEFT(H98,2)="WO",K98="0-",K98=""),0,IF(K98<0,IF(ABS(K98)<10,11,ABS(K98)+2),K98))) -> 0 | AH98: =IF(L98="0-",11,IF(OR(LEFT(H98,2)="WO",L98="0-",L98=""),0,IF(L98<0,IF(ABS(L98)<10,11,ABS(L98)+2),L98))) -> 0 | AI98: =SUM(AD98:AH98) -> 0 | AJ98: =CONCATENATE(B98,"-",E98) -> Tvrdý Samuel (Černošice)-Bye
B99: =C88 -> Jesenský Jan (Mníšek pod Brdy) | C99: =#REF! ->  | D99: - | E99: =C86 -> Mertlík Štěpán (TTC Příbram) | F99: =C86 -> Mertlík Štěpán (TTC Příbram) | H99: -10 | I99: -8 | J99: -4 | M99: =IF(H99="WO","3:0",IF(H99="WO-","0:3",CONCATENATE(V99,":",W99))) -> 0:3 | Q99: 0:1 | R99: 0:1 | S99: 0:1 | T99: 0 | U99: 0 | V99: 0 | W99: 3 | X99: =IF(OR(LEFT(H99,2)="WO",H99="0-",H99=""),0,IF(H99<0,ABS(H99),IF(H99<10,11,H99+2))) -> 10 | Y99: =IF(OR(LEFT(H99,2)="WO",I99="0-",I99=""),0,IF(I99<0,ABS(I99),IF(I99<10,11,I99+2))) -> 8 | Z99: =IF(OR(LEFT(H99,2)="WO",J99="0-",J99=""),0,IF(J99<0,ABS(J99),IF(J99<10,11,J99+2))) -> 4 | AA99: =IF(OR(LEFT(H99,2)="WO",K99="0-",K99=""),0,IF(K99<0,ABS(K99),IF(K99<10,11,K99+2))) -> 0 | AB99: =IF(OR(LEFT(H99,2)="WO",L99="0-",L99=""),0,IF(L99<0,ABS(L99),IF(L99<10,11,L99+2))) -> 0 | AC99: 22 | AD99: =IF(H99="0-",11,IF(OR(LEFT(H99,2)="WO",H99=""),0,IF(H99<0,IF(ABS(H99)<10,11,ABS(H99)+2),H99))) -> 12 | AE99: =IF(I99="0-",11,IF(OR(LEFT(H99,2)="WO",I99="0-",I99=""),0,IF(I99<0,IF(ABS(I99)<10,11,ABS(I99)+2),I99))) -> 11 | AF99: =IF(J99="0-",11,IF(OR(LEFT(H99,2)="WO",J99="0-",J99=""),0,IF(J99<0,IF(ABS(J99)<10,11,ABS(J99)+2),J99))) -> 11 | AG99: =IF(K99="0-",11,IF(OR(LEFT(H99,2)="WO",K99="0-",K99=""),0,IF(K99<0,IF(ABS(K99)<10,11,ABS(K99)+2),K99))) -> 0 | AH99: =IF(L99="0-",11,IF(OR(LEFT(H99,2)="WO",L99="0-",L99=""),0,IF(L99<0,IF(ABS(L99)<10,11,ABS(L99)+2),L99))) -> 0 | AI99: 34 | AJ99: =CONCATENATE(B99,"-",E99) -> Jesenský Jan (Mníšek pod Brdy)-Mertlík Štěpán (TTC Příbram)
B101: Skupina G | E101: =C102 -> Hlavenka Theodor (Černošice) | F101: =C103 -> Švorc Vojtěch (ACS Přední Lhota) | G101: =C104 -> Nikl Tadeáš (Sokol Velký Osek) | H101: =C105 -> Bye | I101: Skóre | J101: Body | K101: Míčky | L101: Pořadí | M101: Pavouk
B102: 1 | C102: Hlavenka Theodor (Černošice) | F102: =IF(OR(LEFT(B112,3)="bye",LEFT(E112,3)="bye"),"0:0",M112) -> 3:0 | G102: =CONCATENATE(RIGHT(E104,1),MID(E104,2,1),LEFT(E104,1)) -> 3:0 | H102: =IF(OR(LEFT(B108,3)="bye",LEFT(E108,3)="bye"),"0:0",M108) -> 0:0 | I102: =CONCATENATE(LEFT(F102,1)+LEFT(G102,1)+LEFT(H102,1),":",RIGHT(F102,1)+RIGHT(G102,1)+RIGHT(H102,1)) -> 6:0 | J102: =IF(LEFT(C102,3)="bye",0,IF(OR(F102="0:0",H112="WO-"),0,IF(LEFT(F102,1)="3",2,1))+IF(OR(G102="0:0",H115="WO"),0,IF(LEFT(G102,1)="3",2,1))+IF(OR(H102="0:0",H108="WO-"),0,IF(LEFT(H102,1)="3",2,1))) -> 4 | K102: =IF(LEFT(C102,3)="bye",0,CONCATENATE(AC108+AC112+AI115,":",AI108+AI112+AC115)) -> 66:29 | L102: 1. | M102: G1
B103: 2 | C103: Švorc Vojtěch (ACS Přední Lhota) | E103: =CONCATENATE(RIGHT(F102,1),MID(F102,2,1),LEFT(F102,1)) -> 0:3 | G103: =IF(OR(LEFT(B109,3)="bye",LEFT(E109,3)="bye"),"0:0",M109) -> 3:1 | H103: =IF(OR(LEFT(B114,3)="bye",LEFT(E114,3)="bye"),"0:0",M114) -> 0:0 | I103: =CONCATENATE(LEFT(E103,1)+LEFT(G103,1)+LEFT(H103,1),":",RIGHT(E103,1)+RIGHT(G103,1)+RIGHT(H103,1)) -> 3:4 | J103: =IF(LEFT(C103,3)="bye",0,IF(OR(E103="0:0",H112="WO"),0,IF(LEFT(E103,1)="3",2,1))+IF(OR(G103="0:0",H109="WO-"),0,IF(LEFT(G103,1)="3",2,1))+IF(OR(H103="0:0",H114="WO-"),0,IF(LEFT(H103,1)="3",2,1))) -> 3 | K103: =IF(LEFT(C103,3)="bye",0,CONCATENATE(AC109+AI112+AC114,":",AI109+AC112+AI114)) -> 54:56 | L103: 2. | M103: G2
B104: 3 | C104: Nikl Tadeáš (Sokol Velký Osek) | E104: =IF(OR(LEFT(B115,3)="bye",LEFT(E115,3)="bye"),"0:0",M115) -> 0:3 | F104: =CONCATENATE(RIGHT(G103,1),MID(G103,2,1),LEFT(G103,1)) -> 1:3 | H104: =CONCATENATE(RIGHT(G105,1),MID(G105,2,1),LEFT(G105,1)) -> 0:0 | I104: =CONCATENATE(LEFT(E104,1)+LEFT(F104,1)+LEFT(H104,1),":",RIGHT(E104,1)+RIGHT(F104,1)+RIGHT(H104,1)) -> 1:6 | J104: =IF(LEFT(C104,3)="bye",0,IF(OR(E104="0:0",H115="WO-"),0,IF(LEFT(E104,1)="3",2,1))+IF(OR(F104="0:0",H109="WO"),0,IF(LEFT(F104,1)="3",2,1))+IF(OR(H104="0:0",H111="WO"),0,IF(LEFT(H104,1)="3",2,1))) -> 2 | K104: =IF(LEFT(C104,3)="bye",0,CONCATENATE(AI109+AI111+AC115,":",AC109+AC111+AI115)) -> 35:70 | L104: 3. | M104: G3
B105: 4 | C105: Bye | E105: =CONCATENATE(RIGHT(H102,1),MID(H102,2,1),LEFT(H102,1)) -> 0:0 | F105: =CONCATENATE(RIGHT(H103,1),MID(H103,2,1),LEFT(H103,1)) -> 0:0 | G105: =IF(OR(LEFT(B111,3)="bye",LEFT(E111,3)="bye"),"0:0",M111) -> 0:0 | I105: =CONCATENATE(LEFT(E105,1)+LEFT(F105,1)+LEFT(G105,1),":",RIGHT(E105,1)+RIGHT(F105,1)+RIGHT(G105,1)) -> 0:0 | J105: =IF(LEFT(C105,3)="bye",0,IF(OR(E105="0:0",H108="WO"),0,IF(LEFT(E105,1)="3",2,1))+IF(OR(F105="0:0",H114="WO"),0,IF(LEFT(F105,1)="3",2,1))+IF(OR(G105="0:0",H111="WO-"),0,IF(LEFT(G105,1)="3",2,1))) -> 0 | K105: =IF(LEFT(C104,3)="bye",0,CONCATENATE(AI108+AC111+AI114,":",AC108+AI111+AC114)) -> 0:0 | M105: G4
B107: I.kolo | H107: 1.set | I107: 2.set | J107: 3.set | K107: 4.set | L107: 5.set | M107: výsledek
B108: =C102 -> Hlavenka Theodor (Černošice) | D108: - | E108: =C105 -> Bye | M108: =IF(H108="WO","3:0",IF(H108="WO-","0:3",CONCATENATE(V108,":",W108))) -> 0:0 | Q108: =IF(H108="",0,IF(OR(H108<0,H108="0-"),"0:1","1:0")) -> 0 | R108: =IF(I108="",0,IF(OR(I108<0,I108="0-"),"0:1","1:0")) -> 0 | S108: =IF(J108="",0,IF(OR(J108<0,J108="0-"),"0:1","1:0")) -> 0 | T108: =IF(K108="",0,IF(OR(K108<0,K108="0-"),"0:1","1:0")) -> 0 | U108: =IF(L108="",0,IF(OR(L108<0,L108="0-"),"0:1","1:0")) -> 0 | V108: =LEFT(Q108,1)+LEFT(R108,1)+LEFT(S108,1)+LEFT(T108,1)+LEFT(U108,1) -> 0 | W108: =RIGHT(Q108,1)+RIGHT(R108,1)+RIGHT(S108,1)+RIGHT(T108,1)+RIGHT(U108,1) -> 0 | X108: =IF(OR(LEFT(H108,2)="WO",H108="0-",H108=""),0,IF(H108<0,ABS(H108),IF(H108<10,11,H108+2))) -> 0 | Y108: =IF(OR(LEFT(H108,2)="WO",I108="0-",I108=""),0,IF(I108<0,ABS(I108),IF(I108<10,11,I108+2))) -> 0 | Z108: =IF(OR(LEFT(H108,2)="WO",J108="0-",J108=""),0,IF(J108<0,ABS(J108),IF(J108<10,11,J108+2))) -> 0 | AA108: =IF(OR(LEFT(H108,2)="WO",K108="0-",K108=""),0,IF(K108<0,ABS(K108),IF(K108<10,11,K108+2))) -> 0 | AB108: =IF(OR(LEFT(H108,2)="WO",L108="0-",L108=""),0,IF(L108<0,ABS(L108),IF(L108<10,11,L108+2))) -> 0 | AC108: =SUM(X108:AB108) -> 0 | AD108: =IF(H108="0-",11,IF(OR(LEFT(H108,2)="WO",H108=""),0,IF(H108<0,IF(ABS(H108)<10,11,ABS(H108)+2),H108))) -> 0 | AE108: =IF(I108="0-",11,IF(OR(LEFT(H108,2)="WO",I108="0-",I108=""),0,IF(I108<0,IF(ABS(I108)<10,11,ABS(I108)+2),I108))) -> 0 | AF108: =IF(J108="0-",11,IF(OR(LEFT(H108,2)="WO",J108="0-",J108=""),0,IF(J108<0,IF(ABS(J108)<10,11,ABS(J108)+2),J108))) -> 0 | AG108: =IF(K108="0-",11,IF(OR(LEFT(H108,2)="WO",K108="0-",K108=""),0,IF(K108<0,IF(ABS(K108)<10,11,ABS(K108)+2),K108))) -> 0 | AH108: =IF(L108="0-",11,IF(OR(LEFT(H108,2)="WO",L108="0-",L108=""),0,IF(L108<0,IF(ABS(L108)<10,11,ABS(L108)+2),L108))) -> 0 | AI108: =SUM(AD108:AH108) -> 0 | AJ108: =CONCATENATE(B108,"-",E108) -> Hlavenka Theodor (Černošice)-Bye
B109: =C103 -> Švorc Vojtěch (ACS Přední Lhota) | C109: =#REF! ->  | D109: - | E109: =C104 -> Nikl Tadeáš (Sokol Velký Osek) | F109: =C104 -> Nikl Tadeáš (Sokol Velký Osek) | H109: 5 | I109: -4 | J109: 5 | K109: 2 | M109: =IF(H109="WO","3:0",IF(H109="WO-","0:3",CONCATENATE(V109,":",W109))) -> 3:1 | Q109: 1:0 | R109: 0:1 | S109: 1:0 | T109: 1:0 | U109: 0 | V109: =LEFT(Q109,1)+LEFT(R109,1)+LEFT(S109,1)+LEFT(T109,1)+LEFT(U109,1) -> 3 | W109: =RIGHT(Q109,1)+RIGHT(R109,1)+RIGHT(S109,1)+RIGHT(T109,1)+RIGHT(U109,1) -> 1 | X109: =IF(OR(LEFT(H109,2)="WO",H109="0-",H109=""),0,IF(H109<0,ABS(H109),IF(H109<10,11,H109+2))) -> 11 | Y109: =IF(OR(LEFT(H109,2)="WO",I109="0-",I109=""),0,IF(I109<0,ABS(I109),IF(I109<10,11,I109+2))) -> 4 | Z109: =IF(OR(LEFT(H109,2)="WO",J109="0-",J109=""),0,IF(J109<0,ABS(J109),IF(J109<10,11,J109+2))) -> 11 | AA109: =IF(OR(LEFT(H109,2)="WO",K109="0-",K109=""),0,IF(K109<0,ABS(K109),IF(K109<10,11,K109+2))) -> 11 | AB109: =IF(OR(LEFT(H109,2)="WO",L109="0-",L109=""),0,IF(L109<0,ABS(L109),IF(L109<10,11,L109+2))) -> 0 | AC109: =SUM(X109:AB109) -> 37 | AD109: =IF(H109="0-",11,IF(OR(LEFT(H109,2)="WO",H109=""),0,IF(H109<0,IF(ABS(H109)<10,11,ABS(H109)+2),H109))) -> 5 | AE109: =IF(I109="0-",11,IF(OR(LEFT(H109,2)="WO",I109="0-",I109=""),0,IF(I109<0,IF(ABS(I109)<10,11,ABS(I109)+2),I109))) -> 11 | AF109: =IF(J109="0-",11,IF(OR(LEFT(H109,2)="WO",J109="0-",J109=""),0,IF(J109<0,IF(ABS(J109)<10,11,ABS(J109)+2),J109))) -> 5 | AG109: =IF(K109="0-",11,IF(OR(LEFT(H109,2)="WO",K109="0-",K109=""),0,IF(K109<0,IF(ABS(K109)<10,11,ABS(K109)+2),K109))) -> 2 | AH109: =IF(L109="0-",11,IF(OR(LEFT(H109,2)="WO",L109="0-",L109=""),0,IF(L109<0,IF(ABS(L109)<10,11,ABS(L109)+2),L109))) -> 0 | AI109: =SUM(AD109:AH109) -> 23 | AJ109: =CONCATENATE(B109,"-",E109) -> Švorc Vojtěch (ACS Přední Lhota)-Nikl Tadeáš (Sokol Velký Osek)
B110: II.kolo | H110: 1.set | I110: 2.set | J110: 3.set | K110: 4.set | L110: 5.set | M110: výsledek
B111: =C105 -> Bye | C111: =C105 -> Bye | D111: - | E111: =C104 -> Nikl Tadeáš (Sokol Velký Osek) | F111: =C104 -> Nikl Tadeáš (Sokol Velký Osek) | M111: =IF(H111="WO","3:0",IF(H111="WO-","0:3",CONCATENATE(V111,":",W111))) -> 0:0 | Q111: =IF(H111="",0,IF(OR(H111<0,H111="0-"),"0:1","1:0")) -> 0 | R111: =IF(I111="",0,IF(OR(I111<0,I111="0-"),"0:1","1:0")) -> 0 | S111: =IF(J111="",0,IF(OR(J111<0,J111="0-"),"0:1","1:0")) -> 0 | T111: =IF(K111="",0,IF(OR(K111<0,K111="0-"),"0:1","1:0")) -> 0 | U111: =IF(L111="",0,IF(OR(L111<0,L111="0-"),"0:1","1:0")) -> 0 | V111: =LEFT(Q111,1)+LEFT(R111,1)+LEFT(S111,1)+LEFT(T111,1)+LEFT(U111,1) -> 0 | W111: =RIGHT(Q111,1)+RIGHT(R111,1)+RIGHT(S111,1)+RIGHT(T111,1)+RIGHT(U111,1) -> 0 | X111: =IF(OR(LEFT(H111,2)="WO",H111="0-",H111=""),0,IF(H111<0,ABS(H111),IF(H111<10,11,H111+2))) -> 0 | Y111: =IF(OR(LEFT(H111,2)="WO",I111="0-",I111=""),0,IF(I111<0,ABS(I111),IF(I111<10,11,I111+2))) -> 0 | Z111: =IF(OR(LEFT(H111,2)="WO",J111="0-",J111=""),0,IF(J111<0,ABS(J111),IF(J111<10,11,J111+2))) -> 0 | AA111: =IF(OR(LEFT(H111,2)="WO",K111="0-",K111=""),0,IF(K111<0,ABS(K111),IF(K111<10,11,K111+2))) -> 0 | AB111: =IF(OR(LEFT(H111,2)="WO",L111="0-",L111=""),0,IF(L111<0,ABS(L111),IF(L111<10,11,L111+2))) -> 0 | AC111: =SUM(X111:AB111) -> 0 | AD111: =IF(H111="0-",11,IF(OR(LEFT(H111,2)="WO",H111=""),0,IF(H111<0,IF(ABS(H111)<10,11,ABS(H111)+2),H111))) -> 0 | AE111: =IF(I111="0-",11,IF(OR(LEFT(H111,2)="WO",I111="0-",I111=""),0,IF(I111<0,IF(ABS(I111)<10,11,ABS(I111)+2),I111))) -> 0 | AF111: =IF(J111="0-",11,IF(OR(LEFT(H111,2)="WO",J111="0-",J111=""),0,IF(J111<0,IF(ABS(J111)<10,11,ABS(J111)+2),J111))) -> 0 | AG111: =IF(K111="0-",11,IF(OR(LEFT(H111,2)="WO",K111="0-",K111=""),0,IF(K111<0,IF(ABS(K111)<10,11,ABS(K111)+2),K111))) -> 0 | AH111: =IF(L111="0-",11,IF(OR(LEFT(H111,2)="WO",L111="0-",L111=""),0,IF(L111<0,IF(ABS(L111)<10,11,ABS(L111)+2),L111))) -> 0 | AI111: =SUM(AD111:AH111) -> 0 | AJ111: =CONCATENATE(B111,"-",E111) -> Bye-Nikl Tadeáš (Sokol Velký Osek)
B112: =C102 -> Hlavenka Theodor (Černošice) | C112: =C103 -> Švorc Vojtěch (ACS Přední Lhota) | D112: - | E112: =C103 -> Švorc Vojtěch (ACS Přední Lhota) | F112: =C103 -> Švorc Vojtěch (ACS Přední Lhota) | H112: 6 | I112: 2 | J112: 9 | M112: =IF(H112="WO","3:0",IF(H112="WO-","0:3",CONCATENATE(V112,":",W112))) -> 3:0 | Q112: 1:0 | R112: 1:0 | S112: 1:0 | T112: 0 | U112: 0 | V112: 3 | W112: 0 | X112: =IF(OR(LEFT(H112,2)="WO",H112="0-",H112=""),0,IF(H112<0,ABS(H112),IF(H112<10,11,H112+2))) -> 11 | Y112: =IF(OR(LEFT(H112,2)="WO",I112="0-",I112=""),0,IF(I112<0,ABS(I112),IF(I112<10,11,I112+2))) -> 11 | Z112: =IF(OR(LEFT(H112,2)="WO",J112="0-",J112=""),0,IF(J112<0,ABS(J112),IF(J112<10,11,J112+2))) -> 11 | AA112: =IF(OR(LEFT(H112,2)="WO",K112="0-",K112=""),0,IF(K112<0,ABS(K112),IF(K112<10,11,K112+2))) -> 0 | AB112: =IF(OR(LEFT(H112,2)="WO",L112="0-",L112=""),0,IF(L112<0,ABS(L112),IF(L112<10,11,L112+2))) -> 0 | AC112: 33 | AD112: =IF(H112="0-",11,IF(OR(LEFT(H112,2)="WO",H112=""),0,IF(H112<0,IF(ABS(H112)<10,11,ABS(H112)+2),H112))) -> 6 | AE112: =IF(I112="0-",11,IF(OR(LEFT(H112,2)="WO",I112="0-",I112=""),0,IF(I112<0,IF(ABS(I112)<10,11,ABS(I112)+2),I112))) -> 2 | AF112: =IF(J112="0-",11,IF(OR(LEFT(H112,2)="WO",J112="0-",J112=""),0,IF(J112<0,IF(ABS(J112)<10,11,ABS(J112)+2),J112))) -> 9 | AG112: =IF(K112="0-",11,IF(OR(LEFT(H112,2)="WO",K112="0-",K112=""),0,IF(K112<0,IF(ABS(K112)<10,11,ABS(K112)+2),K112))) -> 0 | AH112: =IF(L112="0-",11,IF(OR(LEFT(H112,2)="WO",L112="0-",L112=""),0,IF(L112<0,IF(ABS(L112)<10,11,ABS(L112)+2),L112))) -> 0 | AI112: 17 | AJ112: =CONCATENATE(B112,"-",E112) -> Hlavenka Theodor (Černošice)-Švorc Vojtěch (ACS Přední Lhota)
B113: III.kolo | H113: 1.set | I113: 2.set | J113: 3.set | K113: 4.set | L113: 5.set | M113: výsledek
B114: =C103 -> Švorc Vojtěch (ACS Přední Lhota) | C114: =#REF! ->  | D114: - | E114: =C105 -> Bye | F114: =C105 -> Bye | M114: =IF(H114="WO","3:0",IF(H114="WO-","0:3",CONCATENATE(V114,":",W114))) -> 0:0 | Q114: =IF(H114="",0,IF(OR(H114<0,H114="0-"),"0:1","1:0")) -> 0 | R114: =IF(I114="",0,IF(OR(I114<0,I114="0-"),"0:1","1:0")) -> 0 | S114: =IF(J114="",0,IF(OR(J114<0,J114="0-"),"0:1","1:0")) -> 0 | T114: =IF(K114="",0,IF(OR(K114<0,K114="0-"),"0:1","1:0")) -> 0 | U114: =IF(L114="",0,IF(OR(L114<0,L114="0-"),"0:1","1:0")) -> 0 | V114: =LEFT(Q114,1)+LEFT(R114,1)+LEFT(S114,1)+LEFT(T114,1)+LEFT(U114,1) -> 0 | W114: =RIGHT(Q114,1)+RIGHT(R114,1)+RIGHT(S114,1)+RIGHT(T114,1)+RIGHT(U114,1) -> 0 | X114: =IF(OR(LEFT(H114,2)="WO",H114="0-",H114=""),0,IF(H114<0,ABS(H114),IF(H114<10,11,H114+2))) -> 0 | Y114: =IF(OR(LEFT(H114,2)="WO",I114="0-",I114=""),0,IF(I114<0,ABS(I114),IF(I114<10,11,I114+2))) -> 0 | Z114: =IF(OR(LEFT(H114,2)="WO",J114="0-",J114=""),0,IF(J114<0,ABS(J114),IF(J114<10,11,J114+2))) -> 0 | AA114: =IF(OR(LEFT(H114,2)="WO",K114="0-",K114=""),0,IF(K114<0,ABS(K114),IF(K114<10,11,K114+2))) -> 0 | AB114: =IF(OR(LEFT(H114,2)="WO",L114="0-",L114=""),0,IF(L114<0,ABS(L114),IF(L114<10,11,L114+2))) -> 0 | AC114: =SUM(X114:AB114) -> 0 | AD114: =IF(H114="0-",11,IF(OR(LEFT(H114,2)="WO",H114=""),0,IF(H114<0,IF(ABS(H114)<10,11,ABS(H114)+2),H114))) -> 0 | AE114: =IF(I114="0-",11,IF(OR(LEFT(H114,2)="WO",I114="0-",I114=""),0,IF(I114<0,IF(ABS(I114)<10,11,ABS(I114)+2),I114))) -> 0 | AF114: =IF(J114="0-",11,IF(OR(LEFT(H114,2)="WO",J114="0-",J114=""),0,IF(J114<0,IF(ABS(J114)<10,11,ABS(J114)+2),J114))) -> 0 | AG114: =IF(K114="0-",11,IF(OR(LEFT(H114,2)="WO",K114="0-",K114=""),0,IF(K114<0,IF(ABS(K114)<10,11,ABS(K114)+2),K114))) -> 0 | AH114: =IF(L114="0-",11,IF(OR(LEFT(H114,2)="WO",L114="0-",L114=""),0,IF(L114<0,IF(ABS(L114)<10,11,ABS(L114)+2),L114))) -> 0 | AI114: =SUM(AD114:AH114) -> 0 | AJ114: =CONCATENATE(B114,"-",E114) -> Švorc Vojtěch (ACS Přední Lhota)-Bye
B115: =C104 -> Nikl Tadeáš (Sokol Velký Osek) | C115: =#REF! ->  | D115: - | E115: =C102 -> Hlavenka Theodor (Černošice) | F115: =C102 -> Hlavenka Theodor (Černošice) | H115: -3 | I115: -7 | J115: -2 | M115: =IF(H115="WO","3:0",IF(H115="WO-","0:3",CONCATENATE(V115,":",W115))) -> 0:3 | Q115: 0:1 | R115: 0:1 | S115: 0:1 | T115: 0 | U115: 0 | V115: 0 | W115: 3 | X115: =IF(OR(LEFT(H115,2)="WO",H115="0-",H115=""),0,IF(H115<0,ABS(H115),IF(H115<10,11,H115+2))) -> 3 | Y115: =IF(OR(LEFT(H115,2)="WO",I115="0-",I115=""),0,IF(I115<0,ABS(I115),IF(I115<10,11,I115+2))) -> 7 | Z115: =IF(OR(LEFT(H115,2)="WO",J115="0-",J115=""),0,IF(J115<0,ABS(J115),IF(J115<10,11,J115+2))) -> 2 | AA115: =IF(OR(LEFT(H115,2)="WO",K115="0-",K115=""),0,IF(K115<0,ABS(K115),IF(K115<10,11,K115+2))) -> 0 | AB115: =IF(OR(LEFT(H115,2)="WO",L115="0-",L115=""),0,IF(L115<0,ABS(L115),IF(L115<10,11,L115+2))) -> 0 | AC115: 12 | AD115: =IF(H115="0-",11,IF(OR(LEFT(H115,2)="WO",H115=""),0,IF(H115<0,IF(ABS(H115)<10,11,ABS(H115)+2),H115))) -> 11 | AE115: =IF(I115="0-",11,IF(OR(LEFT(H115,2)="WO",I115="0-",I115=""),0,IF(I115<0,IF(ABS(I115)<10,11,ABS(I115)+2),I115))) -> 11 | AF115: =IF(J115="0-",11,IF(OR(LEFT(H115,2)="WO",J115="0-",J115=""),0,IF(J115<0,IF(ABS(J115)<10,11,ABS(J115)+2),J115))) -> 11 | AG115: =IF(K115="0-",11,IF(OR(LEFT(H115,2)="WO",K115="0-",K115=""),0,IF(K115<0,IF(ABS(K115)<10,11,ABS(K115)+2),K115))) -> 0 | AH115: =IF(L115="0-",11,IF(OR(LEFT(H115,2)="WO",L115="0-",L115=""),0,IF(L115<0,IF(ABS(L115)<10,11,ABS(L115)+2),L115))) -> 0 | AI115: 33 | AJ115: =CONCATENATE(B115,"-",E115) -> Nikl Tadeáš (Sokol Velký Osek)-Hlavenka Theodor (Černošice)
B118: Skupina H | E118: =C119 -> Novák František (TSM Kladno) | F118: =C120 -> Novák František (TJ Tatran Sedlčany) | G118: =C121 -> Daněk Patrik (Vlašim) | H118: =C122 -> Bye | I118: Skóre | J118: Body | K118: Míčky | L118: Pořadí | M118: Pavouk
B119: 1 | C119: Novák František (TSM Kladno) | F119: =IF(OR(LEFT(B129,3)="bye",LEFT(E129,3)="bye"),"0:0",M129) -> 3:1 | G119: =CONCATENATE(RIGHT(E121,1),MID(E121,2,1),LEFT(E121,1)) -> 1:3 | H119: =IF(OR(LEFT(B125,3)="bye",LEFT(E125,3)="bye"),"0:0",M125) -> 0:0 | I119: =CONCATENATE(LEFT(F119,1)+LEFT(G119,1)+LEFT(H119,1),":",RIGHT(F119,1)+RIGHT(G119,1)+RIGHT(H119,1)) -> 4:4 | J119: =IF(LEFT(C119,3)="bye",0,IF(OR(F119="0:0",H129="WO-"),0,IF(LEFT(F119,1)="3",2,1))+IF(OR(G119="0:0",H132="WO"),0,IF(LEFT(G119,1)="3",2,1))+IF(OR(H119="0:0",H125="WO-"),0,IF(LEFT(H119,1)="3",2,1))) -> 3 | K119: =IF(LEFT(C119,3)="bye",0,CONCATENATE(AC125+AC129+AI132,":",AI125+AI129+AC132)) -> 56:62 | L119: 2. | M119: H1
B120: 2 | C120: Novák František (TJ Tatran Sedlčany) | E120: =CONCATENATE(RIGHT(F119,1),MID(F119,2,1),LEFT(F119,1)) -> 1:3 | G120: =IF(OR(LEFT(B126,3)="bye",LEFT(E126,3)="bye"),"0:0",M126) -> 1:3 | H120: =IF(OR(LEFT(B131,3)="bye",LEFT(E131,3)="bye"),"0:0",M131) -> 0:0 | I120: =CONCATENATE(LEFT(E120,1)+LEFT(G120,1)+LEFT(H120,1),":",RIGHT(E120,1)+RIGHT(G120,1)+RIGHT(H120,1)) -> 2:6 | J120: =IF(LEFT(C120,3)="bye",0,IF(OR(E120="0:0",H129="WO"),0,IF(LEFT(E120,1)="3",2,1))+IF(OR(G120="0:0",H126="WO-"),0,IF(LEFT(G120,1)="3",2,1))+IF(OR(H120="0:0",H131="WO-"),0,IF(LEFT(H120,1)="3",2,1))) -> 2 | K120: =IF(LEFT(C120,3)="bye",0,CONCATENATE(AC126+AI129+AC131,":",AI126+AC129+AI131)) -> 46:72 | L120: 3. | M120: H2
B121: 3 | C121: Daněk Patrik (Vlašim) | E121: =IF(OR(LEFT(B132,3)="bye",LEFT(E132,3)="bye"),"0:0",M132) -> 3:1 | F121: =CONCATENATE(RIGHT(G120,1),MID(G120,2,1),LEFT(G120,1)) -> 3:1 | H121: =CONCATENATE(RIGHT(G122,1),MID(G122,2,1),LEFT(G122,1)) -> 0:0 | I121: =CONCATENATE(LEFT(E121,1)+LEFT(F121,1)+LEFT(H121,1),":",RIGHT(E121,1)+RIGHT(F121,1)+RIGHT(H121,1)) -> 6:2 | J121: =IF(LEFT(C121,3)="bye",0,IF(OR(E121="0:0",H132="WO-"),0,IF(LEFT(E121,1)="3",2,1))+IF(OR(F121="0:0",H126="WO"),0,IF(LEFT(F121,1)="3",2,1))+IF(OR(H121="0:0",H128="WO"),0,IF(LEFT(H121,1)="3",2,1))) -> 4 | K121: =IF(LEFT(C121,3)="bye",0,CONCATENATE(AI126+AI128+AC132,":",AC126+AC128+AI132)) -> 72:40 | L121: 1. | M121: H3
B122: 4 | C122: Bye | E122: =CONCATENATE(RIGHT(H119,1),MID(H119,2,1),LEFT(H119,1)) -> 0:0 | F122: =CONCATENATE(RIGHT(H120,1),MID(H120,2,1),LEFT(H120,1)) -> 0:0 | G122: =IF(OR(LEFT(B128,3)="bye",LEFT(E128,3)="bye"),"0:0",M128) -> 0:0 | I122: =CONCATENATE(LEFT(E122,1)+LEFT(F122,1)+LEFT(G122,1),":",RIGHT(E122,1)+RIGHT(F122,1)+RIGHT(G122,1)) -> 0:0 | J122: =IF(LEFT(C122,3)="bye",0,IF(OR(E122="0:0",H125="WO"),0,IF(LEFT(E122,1)="3",2,1))+IF(OR(F122="0:0",H131="WO"),0,IF(LEFT(F122,1)="3",2,1))+IF(OR(G122="0:0",H128="WO-"),0,IF(LEFT(G122,1)="3",2,1))) -> 0 | K122: =IF(LEFT(C121,3)="bye",0,CONCATENATE(AI125+AC128+AI131,":",AC125+AI128+AC131)) -> 0:0 | M122: H4
B124: I.kolo | H124: 1.set | I124: 2.set | J124: 3.set | K124: 4.set | L124: 5.set | M124: výsledek
B125: =C119 -> Novák František (TSM Kladno) | D125: - | E125: =C122 -> Bye | M125: =IF(H125="WO","3:0",IF(H125="WO-","0:3",CONCATENATE(V125,":",W125))) -> 0:0 | Q125: =IF(H125="",0,IF(OR(H125<0,H125="0-"),"0:1","1:0")) -> 0 | R125: =IF(I125="",0,IF(OR(I125<0,I125="0-"),"0:1","1:0")) -> 0 | S125: =IF(J125="",0,IF(OR(J125<0,J125="0-"),"0:1","1:0")) -> 0 | T125: =IF(K125="",0,IF(OR(K125<0,K125="0-"),"0:1","1:0")) -> 0 | U125: =IF(L125="",0,IF(OR(L125<0,L125="0-"),"0:1","1:0")) -> 0 | V125: =LEFT(Q125,1)+LEFT(R125,1)+LEFT(S125,1)+LEFT(T125,1)+LEFT(U125,1) -> 0 | W125: =RIGHT(Q125,1)+RIGHT(R125,1)+RIGHT(S125,1)+RIGHT(T125,1)+RIGHT(U125,1) -> 0 | X125: =IF(OR(LEFT(H125,2)="WO",H125="0-",H125=""),0,IF(H125<0,ABS(H125),IF(H125<10,11,H125+2))) -> 0 | Y125: =IF(OR(LEFT(H125,2)="WO",I125="0-",I125=""),0,IF(I125<0,ABS(I125),IF(I125<10,11,I125+2))) -> 0 | Z125: =IF(OR(LEFT(H125,2)="WO",J125="0-",J125=""),0,IF(J125<0,ABS(J125),IF(J125<10,11,J125+2))) -> 0 | AA125: =IF(OR(LEFT(H125,2)="WO",K125="0-",K125=""),0,IF(K125<0,ABS(K125),IF(K125<10,11,K125+2))) -> 0 | AB125: =IF(OR(LEFT(H125,2)="WO",L125="0-",L125=""),0,IF(L125<0,ABS(L125),IF(L125<10,11,L125+2))) -> 0 | AC125: =SUM(X125:AB125) -> 0 | AD125: =IF(H125="0-",11,IF(OR(LEFT(H125,2)="WO",H125=""),0,IF(H125<0,IF(ABS(H125)<10,11,ABS(H125)+2),H125))) -> 0 | AE125: =IF(I125="0-",11,IF(OR(LEFT(H125,2)="WO",I125="0-",I125=""),0,IF(I125<0,IF(ABS(I125)<10,11,ABS(I125)+2),I125))) -> 0 | AF125: =IF(J125="0-",11,IF(OR(LEFT(H125,2)="WO",J125="0-",J125=""),0,IF(J125<0,IF(ABS(J125)<10,11,ABS(J125)+2),J125))) -> 0 | AG125: =IF(K125="0-",11,IF(OR(LEFT(H125,2)="WO",K125="0-",K125=""),0,IF(K125<0,IF(ABS(K125)<10,11,ABS(K125)+2),K125))) -> 0 | AH125: =IF(L125="0-",11,IF(OR(LEFT(H125,2)="WO",L125="0-",L125=""),0,IF(L125<0,IF(ABS(L125)<10,11,ABS(L125)+2),L125))) -> 0 | AI125: =SUM(AD125:AH125) -> 0 | AJ125: =CONCATENATE(B125,"-",E125) -> Novák František (TSM Kladno)-Bye
B126: =C120 -> Novák František (TJ Tatran Sedlčany) | C126: =#REF! ->  | D126: - | E126: =C121 -> Daněk Patrik (Vlašim) | F126: =C121 -> Daněk Patrik (Vlašim) | H126: -3 | I126: -5 | J126: 2 | K126: -2 | M126: =IF(H126="WO","3:0",IF(H126="WO-","0:3",CONCATENATE(V126,":",W126))) -> 1:3 | Q126: 0:1 | R126: 0:1 | S126: 1:0 | T126: 0:1 | U126: 0 | V126: =LEFT(Q126,1)+LEFT(R126,1)+LEFT(S126,1)+LEFT(T126,1)+LEFT(U126,1) -> 1 | W126: =RIGHT(Q126,1)+RIGHT(R126,1)+RIGHT(S126,1)+RIGHT(T126,1)+RIGHT(U126,1) -> 3 | X126: =IF(OR(LEFT(H126,2)="WO",H126="0-",H126=""),0,IF(H126<0,ABS(H126),IF(H126<10,11,H126+2))) -> 3 | Y126: =IF(OR(LEFT(H126,2)="WO",I126="0-",I126=""),0,IF(I126<0,ABS(I126),IF(I126<10,11,I126+2))) -> 5 | Z126: =IF(OR(LEFT(H126,2)="WO",J126="0-",J126=""),0,IF(J126<0,ABS(J126),IF(J126<10,11,J126+2))) -> 11 | AA126: =IF(OR(LEFT(H126,2)="WO",K126="0-",K126=""),0,IF(K126<0,ABS(K126),IF(K126<10,11,K126+2))) -> 2 | AB126: =IF(OR(LEFT(H126,2)="WO",L126="0-",L126=""),0,IF(L126<0,ABS(L126),IF(L126<10,11,L126+2))) -> 0 | AC126: =SUM(X126:AB126) -> 21 | AD126: =IF(H126="0-",11,IF(OR(LEFT(H126,2)="WO",H126=""),0,IF(H126<0,IF(ABS(H126)<10,11,ABS(H126)+2),H126))) -> 11 | AE126: =IF(I126="0-",11,IF(OR(LEFT(H126,2)="WO",I126="0-",I126=""),0,IF(I126<0,IF(ABS(I126)<10,11,ABS(I126)+2),I126))) -> 11 | AF126: =IF(J126="0-",11,IF(OR(LEFT(H126,2)="WO",J126="0-",J126=""),0,IF(J126<0,IF(ABS(J126)<10,11,ABS(J126)+2),J126))) -> 2 | AG126: =IF(K126="0-",11,IF(OR(LEFT(H126,2)="WO",K126="0-",K126=""),0,IF(K126<0,IF(ABS(K126)<10,11,ABS(K126)+2),K126))) -> 11 | AH126: =IF(L126="0-",11,IF(OR(LEFT(H126,2)="WO",L126="0-",L126=""),0,IF(L126<0,IF(ABS(L126)<10,11,ABS(L126)+2),L126))) -> 0 | AI126: =SUM(AD126:AH126) -> 35 | AJ126: =CONCATENATE(B126,"-",E126) -> Novák František (TJ Tatran Sedlčany)-Daněk Patrik (Vlašim)
B127: II.kolo | H127: 1.set | I127: 2.set | J127: 3.set | K127: 4.set | L127: 5.set | M127: výsledek
B128: =C122 -> Bye | C128: =C122 -> Bye | D128: - | E128: =C121 -> Daněk Patrik (Vlašim) | F128: =C121 -> Daněk Patrik (Vlašim) | M128: =IF(H128="WO","3:0",IF(H128="WO-","0:3",CONCATENATE(V128,":",W128))) -> 0:0 | Q128: =IF(H128="",0,IF(OR(H128<0,H128="0-"),"0:1","1:0")) -> 0 | R128: =IF(I128="",0,IF(OR(I128<0,I128="0-"),"0:1","1:0")) -> 0 | S128: =IF(J128="",0,IF(OR(J128<0,J128="0-"),"0:1","1:0")) -> 0 | T128: =IF(K128="",0,IF(OR(K128<0,K128="0-"),"0:1","1:0")) -> 0 | U128: =IF(L128="",0,IF(OR(L128<0,L128="0-"),"0:1","1:0")) -> 0 | V128: =LEFT(Q128,1)+LEFT(R128,1)+LEFT(S128,1)+LEFT(T128,1)+LEFT(U128,1) -> 0 | W128: =RIGHT(Q128,1)+RIGHT(R128,1)+RIGHT(S128,1)+RIGHT(T128,1)+RIGHT(U128,1) -> 0 | X128: =IF(OR(LEFT(H128,2)="WO",H128="0-",H128=""),0,IF(H128<0,ABS(H128),IF(H128<10,11,H128+2))) -> 0 | Y128: =IF(OR(LEFT(H128,2)="WO",I128="0-",I128=""),0,IF(I128<0,ABS(I128),IF(I128<10,11,I128+2))) -> 0 | Z128: =IF(OR(LEFT(H128,2)="WO",J128="0-",J128=""),0,IF(J128<0,ABS(J128),IF(J128<10,11,J128+2))) -> 0 | AA128: =IF(OR(LEFT(H128,2)="WO",K128="0-",K128=""),0,IF(K128<0,ABS(K128),IF(K128<10,11,K128+2))) -> 0 | AB128: =IF(OR(LEFT(H128,2)="WO",L128="0-",L128=""),0,IF(L128<0,ABS(L128),IF(L128<10,11,L128+2))) -> 0 | AC128: =SUM(X128:AB128) -> 0 | AD128: =IF(H128="0-",11,IF(OR(LEFT(H128,2)="WO",H128=""),0,IF(H128<0,IF(ABS(H128)<10,11,ABS(H128)+2),H128))) -> 0 | AE128: =IF(I128="0-",11,IF(OR(LEFT(H128,2)="WO",I128="0-",I128=""),0,IF(I128<0,IF(ABS(I128)<10,11,ABS(I128)+2),I128))) -> 0 | AF128: =IF(J128="0-",11,IF(OR(LEFT(H128,2)="WO",J128="0-",J128=""),0,IF(J128<0,IF(ABS(J128)<10,11,ABS(J128)+2),J128))) -> 0 | AG128: =IF(K128="0-",11,IF(OR(LEFT(H128,2)="WO",K128="0-",K128=""),0,IF(K128<0,IF(ABS(K128)<10,11,ABS(K128)+2),K128))) -> 0 | AH128: =IF(L128="0-",11,IF(OR(LEFT(H128,2)="WO",L128="0-",L128=""),0,IF(L128<0,IF(ABS(L128)<10,11,ABS(L128)+2),L128))) -> 0 | AI128: =SUM(AD128:AH128) -> 0 | AJ128: =CONCATENATE(B128,"-",E128) -> Bye-Daněk Patrik (Vlašim)
B129: =C119 -> Novák František (TSM Kladno) | C129: =C120 -> Novák František (TJ Tatran Sedlčany) | D129: - | E129: =C120 -> Novák František (TJ Tatran Sedlčany) | F129: =C120 -> Novák František (TJ Tatran Sedlčany) | H129: 6 | I129: 3 | J129: -4 | K129: 5 | M129: =IF(H129="WO","3:0",IF(H129="WO-","0:3",CONCATENATE(V129,":",W129))) -> 3:1 | Q129: 1:0 | R129: 1:0 | S129: 0:1 | T129: 1:0 | U129: 0 | V129: 3 | W129: 1 | X129: =IF(OR(LEFT(H129,2)="WO",H129="0-",H129=""),0,IF(H129<0,ABS(H129),IF(H129<10,11,H129+2))) -> 11 | Y129: =IF(OR(LEFT(H129,2)="WO",I129="0-",I129=""),0,IF(I129<0,ABS(I129),IF(I129<10,11,I129+2))) -> 11 | Z129: =IF(OR(LEFT(H129,2)="WO",J129="0-",J129=""),0,IF(J129<0,ABS(J129),IF(J129<10,11,J129+2))) -> 4 | AA129: =IF(OR(LEFT(H129,2)="WO",K129="0-",K129=""),0,IF(K129<0,ABS(K129),IF(K129<10,11,K129+2))) -> 11 | AB129: =IF(OR(LEFT(H129,2)="WO",L129="0-",L129=""),0,IF(L129<0,ABS(L129),IF(L129<10,11,L129+2))) -> 0 | AC129: 37 | AD129: =IF(H129="0-",11,IF(OR(LEFT(H129,2)="WO",H129=""),0,IF(H129<0,IF(ABS(H129)<10,11,ABS(H129)+2),H129))) -> 6 | AE129: =IF(I129="0-",11,IF(OR(LEFT(H129,2)="WO",I129="0-",I129=""),0,IF(I129<0,IF(ABS(I129)<10,11,ABS(I129)+2),I129))) -> 3 | AF129: =IF(J129="0-",11,IF(OR(LEFT(H129,2)="WO",J129="0-",J129=""),0,IF(J129<0,IF(ABS(J129)<10,11,ABS(J129)+2),J129))) -> 11 | AG129: =IF(K129="0-",11,IF(OR(LEFT(H129,2)="WO",K129="0-",K129=""),0,IF(K129<0,IF(ABS(K129)<10,11,ABS(K129)+2),K129))) -> 5 | AH129: =IF(L129="0-",11,IF(OR(LEFT(H129,2)="WO",L129="0-",L129=""),0,IF(L129<0,IF(ABS(L129)<10,11,ABS(L129)+2),L129))) -> 0 | AI129: 25 | AJ129: =CONCATENATE(B129,"-",E129) -> Novák František (TSM Kladno)-Novák František (TJ Tatran Sedlčany)
B130: III.kolo | H130: 1.set | I130: 2.set | J130: 3.set | K130: 4.set | L130: 5.set | M130: výsledek
B131: =C120 -> Novák František (TJ Tatran Sedlčany) | C131: =#REF! ->  | D131: - | E131: =C122 -> Bye | F131: =C122 -> Bye | M131: =IF(H131="WO","3:0",IF(H131="WO-","0:3",CONCATENATE(V131,":",W131))) -> 0:0 | Q131: =IF(H131="",0,IF(OR(H131<0,H131="0-"),"0:1","1:0")) -> 0 | R131: =IF(I131="",0,IF(OR(I131<0,I131="0-"),"0:1","1:0")) -> 0 | S131: =IF(J131="",0,IF(OR(J131<0,J131="0-"),"0:1","1:0")) -> 0 | T131: =IF(K131="",0,IF(OR(K131<0,K131="0-"),"0:1","1:0")) -> 0 | U131: =IF(L131="",0,IF(OR(L131<0,L131="0-"),"0:1","1:0")) -> 0 | V131: =LEFT(Q131,1)+LEFT(R131,1)+LEFT(S131,1)+LEFT(T131,1)+LEFT(U131,1) -> 0 | W131: =RIGHT(Q131,1)+RIGHT(R131,1)+RIGHT(S131,1)+RIGHT(T131,1)+RIGHT(U131,1) -> 0 | X131: =IF(OR(LEFT(H131,2)="WO",H131="0-",H131=""),0,IF(H131<0,ABS(H131),IF(H131<10,11,H131+2))) -> 0 | Y131: =IF(OR(LEFT(H131,2)="WO",I131="0-",I131=""),0,IF(I131<0,ABS(I131),IF(I131<10,11,I131+2))) -> 0 | Z131: =IF(OR(LEFT(H131,2)="WO",J131="0-",J131=""),0,IF(J131<0,ABS(J131),IF(J131<10,11,J131+2))) -> 0 | AA131: =IF(OR(LEFT(H131,2)="WO",K131="0-",K131=""),0,IF(K131<0,ABS(K131),IF(K131<10,11,K131+2))) -> 0 | AB131: =IF(OR(LEFT(H131,2)="WO",L131="0-",L131=""),0,IF(L131<0,ABS(L131),IF(L131<10,11,L131+2))) -> 0 | AC131: =SUM(X131:AB131) -> 0 | AD131: =IF(H131="0-",11,IF(OR(LEFT(H131,2)="WO",H131=""),0,IF(H131<0,IF(ABS(H131)<10,11,ABS(H131)+2),H131))) -> 0 | AE131: =IF(I131="0-",11,IF(OR(LEFT(H131,2)="WO",I131="0-",I131=""),0,IF(I131<0,IF(ABS(I131)<10,11,ABS(I131)+2),I131))) -> 0 | AF131: =IF(J131="0-",11,IF(OR(LEFT(H131,2)="WO",J131="0-",J131=""),0,IF(J131<0,IF(ABS(J131)<10,11,ABS(J131)+2),J131))) -> 0 | AG131: =IF(K131="0-",11,IF(OR(LEFT(H131,2)="WO",K131="0-",K131=""),0,IF(K131<0,IF(ABS(K131)<10,11,ABS(K131)+2),K131))) -> 0 | AH131: =IF(L131="0-",11,IF(OR(LEFT(H131,2)="WO",L131="0-",L131=""),0,IF(L131<0,IF(ABS(L131)<10,11,ABS(L131)+2),L131))) -> 0 | AI131: =SUM(AD131:AH131) -> 0 | AJ131: =CONCATENATE(B131,"-",E131) -> Novák František (TJ Tatran Sedlčany)-Bye
B132: =C121 -> Daněk Patrik (Vlašim) | C132: =#REF! ->  | D132: - | E132: =C119 -> Novák František (TSM Kladno) | F132: =C119 -> Novák František (TSM Kladno) | H132: 3 | I132: -4 | J132: 2 | K132: 3 | M132: =IF(H132="WO","3:0",IF(H132="WO-","0:3",CONCATENATE(V132,":",W132))) -> 3:1 | Q132: 1:0 | R132: 0:1 | S132: 1:0 | T132: 1:0 | U132: 0 | V132: 3 | W132: 1 | X132: =IF(OR(LEFT(H132,2)="WO",H132="0-",H132=""),0,IF(H132<0,ABS(H132),IF(H132<10,11,H132+2))) -> 11 | Y132: =IF(OR(LEFT(H132,2)="WO",I132="0-",I132=""),0,IF(I132<0,ABS(I132),IF(I132<10,11,I132+2))) -> 4 | Z132: =IF(OR(LEFT(H132,2)="WO",J132="0-",J132=""),0,IF(J132<0,ABS(J132),IF(J132<10,11,J132+2))) -> 11 | AA132: =IF(OR(LEFT(H132,2)="WO",K132="0-",K132=""),0,IF(K132<0,ABS(K132),IF(K132<10,11,K132+2))) -> 11 | AB132: =IF(OR(LEFT(H132,2)="WO",L132="0-",L132=""),0,IF(L132<0,ABS(L132),IF(L132<10,11,L132+2))) -> 0 | AC132: 37 | AD132: =IF(H132="0-",11,IF(OR(LEFT(H132,2)="WO",H132=""),0,IF(H132<0,IF(ABS(H132)<10,11,ABS(H132)+2),H132))) -> 3 | AE132: =IF(I132="0-",11,IF(OR(LEFT(H132,2)="WO",I132="0-",I132=""),0,IF(I132<0,IF(ABS(I132)<10,11,ABS(I132)+2),I132))) -> 11 | AF132: =IF(J132="0-",11,IF(OR(LEFT(H132,2)="WO",J132="0-",J132=""),0,IF(J132<0,IF(ABS(J132)<10,11,ABS(J132)+2),J132))) -> 2 | AG132: =IF(K132="0-",11,IF(OR(LEFT(H132,2)="WO",K132="0-",K132=""),0,IF(K132<0,IF(ABS(K132)<10,11,ABS(K132)+2),K132))) -> 3 | AH132: =IF(L132="0-",11,IF(OR(LEFT(H132,2)="WO",L132="0-",L132=""),0,IF(L132<0,IF(ABS(L132)<10,11,ABS(L132)+2),L132))) -> 0 | AI132: 19 | AJ132: =CONCATENATE(B132,"-",E132) -> Daněk Patrik (Vlašim)-Novák František (TSM Kladno)
B135: Skupina I | E135: =C136 -> Malimánek Vít (TJ Církvice) | F135: =C137 -> Herda Vojtěch (Mníšek pod Brdy) | G135: =C138 -> Jansa Antonín (Spartak Čelákovice) | H135: =C139 -> Hlavatý Marek (TTC Poděbrady) | I135: Skóre | J135: Body | K135: Míčky | L135: Pořadí | M135: Pavouk
B136: 1 | C136: Malimánek Vít (TJ Církvice) | F136: =IF(OR(LEFT(B146,3)="bye",LEFT(E146,3)="bye"),"0:0",M146) -> 3:0 | G136: =CONCATENATE(RIGHT(E138,1),MID(E138,2,1),LEFT(E138,1)) -> 3:2 | H136: =IF(OR(LEFT(B142,3)="bye",LEFT(E142,3)="bye"),"0:0",M142) -> 3:1 | I136: =CONCATENATE(LEFT(F136,1)+LEFT(G136,1)+LEFT(H136,1),":",RIGHT(F136,1)+RIGHT(G136,1)+RIGHT(H136,1)) -> 9:3 | J136: =IF(LEFT(C136,3)="bye",0,IF(OR(F136="0:0",H146="WO-"),0,IF(LEFT(F136,1)="3",2,1))+IF(OR(G136="0:0",H149="WO"),0,IF(LEFT(G136,1)="3",2,1))+IF(OR(H136="0:0",H142="WO-"),0,IF(LEFT(H136,1)="3",2,1))) -> 6 | K136: =IF(LEFT(C136,3)="bye",0,CONCATENATE(AC142+AC146+AI149,":",AI142+AI146+AC149)) -> 113:74 | L136: 1. | M136: I1
B137: 2 | C137: Herda Vojtěch (Mníšek pod Brdy) | E137: =CONCATENATE(RIGHT(F136,1),MID(F136,2,1),LEFT(F136,1)) -> 0:3 | G137: =IF(OR(LEFT(B143,3)="bye",LEFT(E143,3)="bye"),"0:0",M143) -> 3:0 | H137: =IF(OR(LEFT(B148,3)="bye",LEFT(E148,3)="bye"),"0:0",M148) -> 3:1 | I137: =CONCATENATE(LEFT(E137,1)+LEFT(G137,1)+LEFT(H137,1),":",RIGHT(E137,1)+RIGHT(G137,1)+RIGHT(H137,1)) -> 6:4 | J137: =IF(LEFT(C137,3)="bye",0,IF(OR(E137="0:0",H146="WO"),0,IF(LEFT(E137,1)="3",2,1))+IF(OR(G137="0:0",H143="WO-"),0,IF(LEFT(G137,1)="3",2,1))+IF(OR(H137="0:0",H148="WO-"),0,IF(LEFT(H137,1)="3",2,1))) -> 5 | K137: =IF(LEFT(C137,3)="bye",0,CONCATENATE(AC143+AI146+AC148,":",AI143+AC146+AI148)) -> 83:63 | L137: 2. | M137: I2
B138: 3 | C138: Jansa Antonín (Spartak Čelákovice) | E138: =IF(OR(LEFT(B149,3)="bye",LEFT(E149,3)="bye"),"0:0",M149) -> 2:3 | F138: =CONCATENATE(RIGHT(G137,1),MID(G137,2,1),LEFT(G137,1)) -> 0:3 | H138: =CONCATENATE(RIGHT(G139,1),MID(G139,2,1),LEFT(G139,1)) -> 3:1 | I138: =CONCATENATE(LEFT(E138,1)+LEFT(F138,1)+LEFT(H138,1),":",RIGHT(E138,1)+RIGHT(F138,1)+RIGHT(H138,1)) -> 5:7 | J138: =IF(LEFT(C138,3)="bye",0,IF(OR(E138="0:0",H149="WO-"),0,IF(LEFT(E138,1)="3",2,1))+IF(OR(F138="0:0",H143="WO"),0,IF(LEFT(F138,1)="3",2,1))+IF(OR(H138="0:0",H145="WO"),0,IF(LEFT(H138,1)="3",2,1))) -> 4 | K138: =IF(LEFT(C138,3)="bye",0,CONCATENATE(AI143+AI145+AC149,":",AC143+AC145+AI149)) -> 89:100 | L138: 3. | M138: I3
B139: 4 | C139: Hlavatý Marek (TTC Poděbrady) | E139: =CONCATENATE(RIGHT(H136,1),MID(H136,2,1),LEFT(H136,1)) -> 1:3 | F139: =CONCATENATE(RIGHT(H137,1),MID(H137,2,1),LEFT(H137,1)) -> 1:3 | G139: =IF(OR(LEFT(B145,3)="bye",LEFT(E145,3)="bye"),"0:0",M145) -> 1:3 | I139: =CONCATENATE(LEFT(E139,1)+LEFT(F139,1)+LEFT(G139,1),":",RIGHT(E139,1)+RIGHT(F139,1)+RIGHT(G139,1)) -> 3:9 | J139: =IF(LEFT(C139,3)="bye",0,IF(OR(E139="0:0",H142="WO"),0,IF(LEFT(E139,1)="3",2,1))+IF(OR(F139="0:0",H148="WO"),0,IF(LEFT(F139,1)="3",2,1))+IF(OR(G139="0:0",H145="WO-"),0,IF(LEFT(G139,1)="3",2,1))) -> 3 | K139: =IF(LEFT(C138,3)="bye",0,CONCATENATE(AI142+AC145+AI148,":",AC142+AI145+AC148)) -> 61:109 | L139: 4. | M139: I4
B141: I.kolo | H141: 1.set | I141: 2.set | J141: 3.set | K141: 4.set | L141: 5.set | M141: výsledek
B142: =C136 -> Malimánek Vít (TJ Církvice) | D142: - | E142: =C139 -> Hlavatý Marek (TTC Poděbrady) | H142: 2 | I142: -2 | J142: 2 | K142: 4 | M142: =IF(H142="WO","3:0",IF(H142="WO-","0:3",CONCATENATE(V142,":",W142))) -> 3:1 | Q142: =IF(H142="",0,IF(OR(H142<0,H142="0-"),"0:1","1:0")) -> 1:0 | R142: =IF(I142="",0,IF(OR(I142<0,I142="0-"),"0:1","1:0")) -> 0:1 | S142: =IF(J142="",0,IF(OR(J142<0,J142="0-"),"0:1","1:0")) -> 1:0 | T142: =IF(K142="",0,IF(OR(K142<0,K142="0-"),"0:1","1:0")) -> 1:0 | U142: =IF(L142="",0,IF(OR(L142<0,L142="0-"),"0:1","1:0")) -> 0 | V142: =LEFT(Q142,1)+LEFT(R142,1)+LEFT(S142,1)+LEFT(T142,1)+LEFT(U142,1) -> 3 | W142: =RIGHT(Q142,1)+RIGHT(R142,1)+RIGHT(S142,1)+RIGHT(T142,1)+RIGHT(U142,1) -> 1 | X142: =IF(OR(LEFT(H142,2)="WO",H142="0-",H142=""),0,IF(H142<0,ABS(H142),IF(H142<10,11,H142+2))) -> 11 | Y142: =IF(OR(LEFT(H142,2)="WO",I142="0-",I142=""),0,IF(I142<0,ABS(I142),IF(I142<10,11,I142+2))) -> 2 | Z142: =IF(OR(LEFT(H142,2)="WO",J142="0-",J142=""),0,IF(J142<0,ABS(J142),IF(J142<10,11,J142+2))) -> 11 | AA142: =IF(OR(LEFT(H142,2)="WO",K142="0-",K142=""),0,IF(K142<0,ABS(K142),IF(K142<10,11,K142+2))) -> 11 | AB142: =IF(OR(LEFT(H142,2)="WO",L142="0-",L142=""),0,IF(L142<0,ABS(L142),IF(L142<10,11,L142+2))) -> 0 | AC142: =SUM(X142:AB142) -> 35 | AD142: =IF(H142="0-",11,IF(OR(LEFT(H142,2)="WO",H142=""),0,IF(H142<0,IF(ABS(H142)<10,11,ABS(H142)+2),H142))) -> 2 | AE142: =IF(I142="0-",11,IF(OR(LEFT(H142,2)="WO",I142="0-",I142=""),0,IF(I142<0,IF(ABS(I142)<10,11,ABS(I142)+2),I142))) -> 11 | AF142: =IF(J142="0-",11,IF(OR(LEFT(H142,2)="WO",J142="0-",J142=""),0,IF(J142<0,IF(ABS(J142)<10,11,ABS(J142)+2),J142))) -> 2 | AG142: =IF(K142="0-",11,IF(OR(LEFT(H142,2)="WO",K142="0-",K142=""),0,IF(K142<0,IF(ABS(K142)<10,11,ABS(K142)+2),K142))) -> 4 | AH142: =IF(L142="0-",11,IF(OR(LEFT(H142,2)="WO",L142="0-",L142=""),0,IF(L142<0,IF(ABS(L142)<10,11,ABS(L142)+2),L142))) -> 0 | AI142: =SUM(AD142:AH142) -> 19 | AJ142: =CONCATENATE(B142,"-",E142) -> Malimánek Vít (TJ Církvice)-Hlavatý Marek (TTC Poděbrady)
